Workbook

Sheet DADOS
A1: 27476 | B1: PO - Planilha Orçamentária / PLQ - Planilha de Levantamento de Quantidades / CFF - Cronograma Físico Financeiro
A2: v008
A4: INSTRUÇÕES DE USO E PREENCHIMENTO
A6: 1. Este documento somente pode ser utilizado nas versões do Excel 2003 ou superior. Não deve ser utilizado versões do BROffice. O Documento deve ser salvo SOMENTE em extensão habilitada para macros (.xls ou .xlsm). Se o documento for salvo na extensão .xlsx, o arquivo será INUTILIZADO.
A8: 2. Para funcionamento pleno desse arquivo, a Segurança de Macros do Excel deve ser habilitada.
A10: 2.1 Na Versão Excel 2003, selecione na Faixa de Opções: Ferramentas --> Macro --> Segurança --> Na aba Nível de Segurança selecione a Opção "Baixo" --> Clique em OK --> Feche e abra o Excel novamente para utilizar a Planilha.
A12: 2.2 Na Versão Excel 2007 ou superior, selecione na Faixa de Opções: Arquivo --> Opções --> Central de Confiabilidade --> Configurações da Central de Confiabilidade --> Configurações de Macro --> Habilitar todas as Macros --> Clique em OK --> Feche e abra o excel novamente para utilizar a Planilha.
A14: 3. O Preenchimento deve ser feito somente nas células em amarelo. As outras células são de preenchimento Automático.
A16: 4. Preferências de Elaboração do Orçamento
A18: 4.1. Preenchimento de Quantidades
A22: 5. Ordem de Preenchimento
A24: 5.1. na Aba DADOS
A26: 5.1.1. Preencha no Quadro abaixo os Dados do TC/CR:
A28: Nº OPERAÇÃO | C28: GESTOR | F28: PROGRAMA | J28: AÇÃO / MODALIDADE | P28: OBJETO
P29: RESIDENCIA EM MADEIRA
A31: PROPONENTE / TOMADOR | G31: MUNICÍPIO / UF | K31: LOCALIDADE / ENDEREÇO | Q31: APELIDO DO EMPREENDIMENTO
A32: PREFEITURA MUNICIPAL | G32: SÃO JOÃO DA URTIGA/RS
A35: 5.1.2. Preencha no quadro abaixo as informações sobre o orçamento:
A37: DATA BASE | C37: DESON. | D37: LOCALIDADE DO SINAPI | G37: DESCRIÇÃO DO LOTE | T37: BDI 1 | U37: BDI 2 | V37: BDI 3 | W37: BDI 4 | X37: BDI 5
A38: 2023-03-01 | C38: Sim | D38: Porto Alegre / RS | T38: =IF(ISERROR(INDIRECT("'BDI ("&RIGHT(T37,1)&")'!N27")),"",INDIRECT("'BDI ("&RIGHT(T37,1)&")'!N27")) -> 0.2638 | U38: =IF(ISERROR(INDIRECT("'BDI ("&RIGHT(U37,1)&")'!N27")),"",INDIRECT("'BDI ("&RIGHT(U37,1)&")'!N27")) ->  | V38: =IF(ISERROR(INDIRECT("'BDI ("&RIGHT(V37,1)&")'!N27")),"",INDIRECT("'BDI ("&RIGHT(V37,1)&")'!N27")) ->  | W38: =IF(ISERROR(INDIRECT("'BDI ("&RIGHT(W37,1)&")'!N27")),"",INDIRECT("'BDI ("&RIGHT(W37,1)&")'!N27")) ->  | X38: =IF(ISERROR(INDIRECT("'BDI ("&RIGHT(X37,1)&")'!N27")),"",INDIRECT("'BDI ("&RIGHT(X37,1)&")'!N27")) -> 
A40: 4.1.2. Preencha no quadro abaixo as informações sobre o orçamento licitado:
A42: CTEF n.º | C42: NOME DA EMPRESA | H42: DATA BASE | J42: DESON. | K42: REGIME DE EXECUÇÃO | N42: ACOMP. | O42: OBJETO CTEF | U42: DATA ASSINATURA | W42: VIGÊNCIA
A45: 5.1.3. Preencha a data de Início da Obra:
A47: DATA INÍCIO
A50: 5.1.4. Preencha no(s) Quadro(s) abaixo os Dados do(s) Responsável(is) Técnico(s) pela elaboração do Orçamento:
G52: Exibir o 2° Quadro de Assinatura? | K52: NÃO
A54: Nome: | B54: ADRIANA SCHENATTO | G54: Nome:
A55: =IF(OR(TipoOrçamento="BASE",TipoOrçamento="REPROGRAMADONPL"),"Título:","Cargo:") -> Título: | B55: ENGENHEIRA CIVIL | G55: =A55 -> Título:
A56: =IF(OR(TipoOrçamento="BASE",TipoOrçamento="REPROGRAMADONPL"),"CREA/CAU:","Empresa:") -> CREA/CAU: | B56: CREA/RS 91580 | G56: =A56 -> CREA/CAU:
A57: =IF(OR(TipoOrçamento="BASE",TipoOrçamento="REPROGRAMADONPL"),"ART/RRT:","CNPJ:") -> ART/RRT: | G57: =A57 -> ART/RRT:
A60: 5.2. Legenda das Abas
A62: 5.2.1. LARANJA: Aba DADOS. Preenchimento Obrigatório. Impressão Dispensada.
A63: 5.2.2. AMARELO: Abas BDI, PO, PLQ e CFF. Preenchimento e Impressão Obrigatórias. O preenchimento da Aba BDI é dispensada para os casos de Aquisição Direta de Materiais e Equipamentos. A Impressão da Aba PLQ pode ser dispensada para casos de Frente de Obra Única.
A65: 5.3. na Aba BDI (Bonificações e Despesas Indiretas):
A67: 5.3.1. Escolha o tipo de empreendimento.
A68: 5.3.2. Escolha se o BDI será do tipo desonerado ou não (aba DADOS)
A69: 5.3.3. Informe a base de cálculo do ISS (0 a 100%).
A70: 5.3.4. Informe a alíquota do ISS (Normalmente de 2 a 5%).
A71: 5.3.5. Defina na tabela os percentuais a serem adotados para cada item que compõe o BDI nos campos em amarelo.
A72: 5.3.6. Preencha o campo observações se necessário (recomendado para os orçamentos que utilizam mais de um BDI).
A74: 5.4. na Aba PO (Planilha Orçamentária):
A76: 5.4.1. Primeiramente, selecione os níveis de cada item do orçamento na coluna NÍVEL.
A77: 5.4.1.1: O nível de "Serviço" serve tanto para serviços ou insumos (mão-de-obra / material / equipamento / veículo / máquina / ferramenta / etc). Um "nível 2/3/4" é um título (é preenchida apenas a coluna descrição) utilizado para organizar melhor a planilha orçamentária e engloba (agrupa) serviços e agrupadores de nível inferior.
A78: 5.4.2. Após a seleção dos níveis, preencha, para cada serviço, as informações sobre a Fonte de Referência, (SINAPI, SICRO, SIURB, etc) e o respectivo Código de Referência.
A79: 5.4.3. Esta planilha é compatível com o arquivo REFERÊNCIA distribuído pela CAIXA. Caso o arquivo REFERÊNCIA esteja aberto, será possível buscar um código através do botão "Buscar Código". Desta forma a descrição dos serviços será preenchida automaticamente (podendo ser substituída). Caso contrário, seu preenchimento deve ser manual.
A80: 5.4.3.1. As descrições e unidades preenchidas automaticamente ficarão vinculadas ao arquivo REFERÊNCIA até que se use o botão "Fixar Descrições", que quebra a fórmula e transforma as descrições em texto.
A81: 5.4.4. Preencher o custo unitário do serviço/insumo na Coluna CUSTO UNITÁRIO. ATENÇÃO: o custo unitário adotado deve ser menor ou igual ao contido na tabela de referência ou mediana das cotações de mercado.
A82: 5.4.5. Indicar o BDI adotado para cada serviço/insumo na Coluna BDI. Preferencialmente selecione uma das opções da lista suspensa que aparecerá na célula, esta lista contém os 05 BDIs que podem ser preenchidos na Aba BDI (conforme item 5.2 das instruções). Caso seja necessária a adoção de mais de 05 valores diferentes de BDI, digite o percentual diretamente na célula.
A83: 5.4.6. Conforme selecionado no item 4.1. desta Aba, a Coluna Quantidade pode ser preenchida diretamente na PO, ou representar a soma das quantidades de cada Frente de Obra, informadas na aba PLQ (Planilha de Levantamento de Quantitativos).
A84: 5.4.7. OBSERVAÇÃO: As demais colunas (Item / Quantidade / Preço Unitário / Preço Total) são de preenchimento automático. Não tente preenche-las ou alterá-las na Aba PO.
A85: 5.4.8. Se for necessário acrescentar ou excluir linhas da Planilha Orçamentária, utilize o Botão EDITAR PLANILHA e selecione as opções no quadro. ATENÇÃO: quanto maior o número de linhas mais lento será o processamento dos dados, então acrescente apenas o número necessário ou um pouco a mais.
A86: 5.4.8.1. Evite deixar linhas em branco no corpo da Planilha Orçamentária.
A87: 5.4.9. Caso deseje importar os dados de outro arquivo utilize apenas a opção COLAR ESPECIAL ==> VALORES.
A88: 5.4.10. Clique no Botão LICITAR / REPROGRAMAR para preencher o Orçamento Licitado ou Reprogramado.
A90: 5.5. na Aba PLQ (Planilha de Levantamento de Quantitativos):
A92: 5.5.1. Preencha primeiramente as Frentes de Obra.
A93: 5.5.1.1. Exemplos de Frentes de Obra (Rua A trecho 01 / Rua A trecho 02 / Rua B ; UH 01 / UH 02 / UH 03).
A94: 5.5.2. Preencha as quantidades dos serviços por frente de obra. A soma das quantidades de todas as frentes de um determinado serviço será a quantidade exibida na Planilha Orçamentária.
A95: 5.5.3. Caso deseje incluir ou excluir frentes, utilize os botões ADICIONAR e EXCLUIR.
A97: 5.6. na Aba CFF (Cronograma Físico-Financeiro):
A99: 5.6.1. Preencha a data de início da obra na aba Dados.
A100: 5.6.2. Preencha as porcentagens previstas por parcela para cada meta ou macrosserviço.
A101: 5.6.3. Para atualizar o Cronograma conforme o Orçamento e incluir ou excluir parcelas, utilize o botão EDITAR / ATUALIZAR CRONOGRAMA.
L107: (Selecione uma Localidade)
L108: Aracaju / SE | S108: =T38 -> 0.2638
L109: Belém / PA | S109: =U38 -> 
L110: Belo Horizonte / MG | S110: =V38 -> 
L111: Boa Vista / RR | S111: =W38 -> 
L112: Brasília / DF | S112: =X38 -> 
L113: Campo Grande / MS
L114: Cuiabá / MT
L115: Curitiba / PR | P115: Empreitada Preço Global
L116: Florianópolis / SC | P116: Empreitada Preço Unitário
L117: Fortaleza / CE | P117: Empreitada Integral
L118: Goiânia / GO | P118: Tarefa
L119: João Pessoa / PB | P119: Contratação Integrada
L120: Macapá / AP | P120: Não se aplica
L121: Maceió / AL
L122: Manaus / AM | P122: BM
L123: Natal / RN | P123: PLE
L124: Palmas / TO
L125: Porto Alegre / RS
L126: Porto Velho / RO
L127: Recife / PE
L128: Rio Branco / AC
L129: Rio de Janeiro / RJ
L130: Salvador / BA
L131: São Luís / MA
L132: São Paulo / SP
L133: Teresina / PI
L134: Vitória / ES
A220: =A28 -> Nº OPERAÇÃO | C220: =C28 -> GESTOR | F220: =F28 -> PROGRAMA | J220: =J28 -> AÇÃO / MODALIDADE | P220: =P28 -> OBJETO
A221: =IF(A29="","",A29) ->  | C221: =IF(C29="","",C29) ->  | F221: =IF(F29="","",F29) ->  | J221: =IF(J29="","",J29) ->  | L221: =IF(#REF!="","",#REF!) ->  | N221: =IF(#REF!="","",#REF!) ->  | P221: =IF(P29="","",P29) -> RESIDENCIA EM MADEIRA
A223: =A31 -> PROPONENTE / TOMADOR | G223: =G31 -> MUNICÍPIO / UF | K223: =K31 -> LOCALIDADE / ENDEREÇO | Q223: =Q31 -> APELIDO DO EMPREENDIMENTO
A224: =IF(A32="","",A32) -> PREFEITURA MUNICIPAL | G224: =IF(G32="","",G32) -> SÃO JOÃO DA URTIGA/RS | H224: =IF(I32="","",I32) ->  | J224: =IF(#REF!="","",#REF!) ->  | K224: =IF(K32="","",K32) ->  | Q224: =IF(Q32="","",Q32) -> 
A226: =A37 -> DATA BASE | C226: =C37 -> DESON. | D226: =D37 -> LOCALIDADE DO SINAPI | G226: =G37 -> DESCRIÇÃO DO LOTE | T226: =T37 -> BDI 1 | U226: =U37 -> BDI 2 | V226: =V37 -> BDI 3 | W226: =W37 -> BDI 4 | X226: =X37 -> BDI 5
A227: =IF(A38="","",A38) -> 2023-03-01 | C227: =IF(C38="","",C38) -> Sim | D227: Porto Alegre / RS | T227: 0.2638
A229: CTEF n.º | C229: NOME DA EMPRESA / CNPJ: | H229: DATA BASE | J229: DESON. | K229: REGIME DE EXECUÇÃO | N229: ACOMP. | O229: OBJETO CTEF | U229: DATA ASSINATURA | W229: VIGÊNCIA
A230: =IF(A43="","",A43) ->  | C230: =IF(C43="","",C43) ->  | E230: =IF(E43="","",E43) ->  | G230: =IF(G43="","",G43) ->  | H230: =IF(H43="","",H43) ->  | I230: =IF(I43="","",I43) ->  | J230: =IF(J43="","",J43) ->  | K230: =IF(K43="","",K43) ->  | M230: =IF(M43="","",M43) ->  | N230: =IF(N43="","",N43) ->  | O230: =IF(O43="","",O43) ->  | Q230: =IF(Q43="","",Q43) ->  | S230: =IF(S43="","",S43) ->  | U230: =IF(U43="","",U43) ->  | W230: =IF(W43="","",W43) -> 

Sheet BDI (1)
E1: MIN | F1: MED | G1: MAX | N1: ="Quadro de Composição do BDI "&MID(CELL("nome.arquivo",N1),5+FIND("BDI (",CELL("nome.arquivo",N1)),1) -> Quadro de Composição do BDI 1
A2: Construção e Reforma de Edifícios | B2: AC | C2: =CONCATENATE(A2,"-",B2) -> Construção e Reforma de Edifícios-AC | E2: 0.03 | F2: 0.04 | G2: 0.055
A3: =A2 -> Construção e Reforma de Edifícios | B3: SG | C3: Construção e Reforma de Edifícios-SG | E3: 0.008 | F3: 0.008 | G3: 0.01
A4: =A3 -> Construção e Reforma de Edifícios | B4: R | C4: Construção e Reforma de Edifícios-R | E4: 0.0097 | F4: 0.0127 | G4: 0.0127 | I4: Nº TC/CR | K4: PROPONENTE / TOMADOR
A5: =A4 -> Construção e Reforma de Edifícios | B5: DF | C5: Construção e Reforma de Edifícios-DF | E5: 0.0059 | F5: 0.0123 | G5: 0.0139 | I5: =DADOS!A29 -> 0 | K5: =DADOS!A32 -> PREFEITURA MUNICIPAL
A6: =A5 -> Construção e Reforma de Edifícios | B6: L | C6: Construção e Reforma de Edifícios-L | E6: 0.0616 | F6: 0.074 | G6: 0.0896
A7: =A6 -> Construção e Reforma de Edifícios | B7: BDI PAD | C7: Construção e Reforma de Edifícios-BDI PAD | E7: 0.2034 | F7: 0.2212 | G7: 0.25 | I7: OBJETO
A8: Construção de Praças Urbanas, Rodovias, Ferrovias e recapeamento e pavimentação de vias urbanas | B8: AC | C8: Construção de Praças Urbanas, Rodovias, Ferrovias e recapeamento e pavimentação de vias urbanas-AC | E8: 0.038 | F8: 0.0401 | G8: 0.0467 | I8: =DADOS!P29 -> RESIDENCIA EM MADEIRA
A9: Construção de Praças Urbanas, Rodovias, Ferrovias e recapeamento e pavimentação de vias urbanas | B9: SG | C9: Construção de Praças Urbanas, Rodovias, Ferrovias e recapeamento e pavimentação de vias urbanas-SG | E9: 0.0032 | F9: 0.004 | G9: 0.0074
A10: Construção de Praças Urbanas, Rodovias, Ferrovias e recapeamento e pavimentação de vias urbanas | B10: R | C10: Construção de Praças Urbanas, Rodovias, Ferrovias e recapeamento e pavimentação de vias urbanas-R | E10: 0.005 | F10: 0.0056 | G10: 0.0097 | I10: TIPO DE OBRA DO EMPREENDIMENTO | Q10: DESONERAÇÃO
A11: Construção de Praças Urbanas, Rodovias, Ferrovias e recapeamento e pavimentação de vias urbanas | B11: DF | C11: Construção de Praças Urbanas, Rodovias, Ferrovias e recapeamento e pavimentação de vias urbanas-DF | E11: 0.0102 | F11: 0.0111 | G11: 0.0121 | I11: Construção e Reforma de Edifícios | Q11: =DADOS!$C$38 -> Sim
A12: Construção de Praças Urbanas, Rodovias, Ferrovias e recapeamento e pavimentação de vias urbanas | B12: L | C12: Construção de Praças Urbanas, Rodovias, Ferrovias e recapeamento e pavimentação de vias urbanas-L | E12: 0.0664 | F12: 0.073 | G12: 0.0869
A13: Construção de Praças Urbanas, Rodovias, Ferrovias e recapeamento e pavimentação de vias urbanas | B13: BDI PAD | C13: Construção de Praças Urbanas, Rodovias, Ferrovias e recapeamento e pavimentação de vias urbanas-BDI PAD | E13: 0.196 | F13: 0.2097 | G13: 0.2423 | I13: Conforme legislação tributária municipal, definir estimativa de percentual da base de cálculo para o ISS: | Q13: 1
A14: Construção de Redes de Abastecimento de Água, Coleta de Esgoto | B14: AC | C14: Construção de Redes de Abastecimento de Água, Coleta de Esgoto-AC | E14: 0.0343 | F14: 0.0493 | G14: 0.0671 | I14: Sobre a base de cálculo, definir a respectiva alíquota do ISS (entre 2% e 5%): | Q14: 0.02
A15: =A14 -> Construção de Redes de Abastecimento de Água, Coleta de Esgoto | B15: SG | C15: Construção de Redes de Abastecimento de Água, Coleta de Esgoto-SG | E15: 0.0028 | F15: 0.0049 | G15: 0.0075
I16: Itens | M16: Siglas | N16: % Adotado | O16: Situação | P16: 1º Quartil | Q16: Médio | R16: 3º Quartil | T16: =IF(V27,"Para BDI fora do intervalo estatístico, deve ser apresentado Relatório Técnico Circunstanciado justificando a adoção do percentual de cada parcela do BDI.","") -> 
A17: =A15 -> Construção de Redes de Abastecimento de Água, Coleta de Esgoto | B17: R | C17: Construção de Redes de Abastecimento de Água, Coleta de Esgoto-R | E17: 0.01 | F17: 0.0139 | G17: 0.0174
A18: =A17 -> Construção de Redes de Abastecimento de Água, Coleta de Esgoto | B18: DF | C18: Construção de Redes de Abastecimento de Água, Coleta de Esgoto-DF | E18: 0.0094 | F18: 0.0099 | G18: 0.0117 | I18: =IF($I$11=$A$59,"Encargos Sociais incidentes sobre a mão de obra","Administração Central") -> Administração Central | M18: =IF($I$11=$A$59,"K1","AC") -> AC | N18: 0.03 | O18: - | P18: =VLOOKUP(CONCATENATE(I$11,"-",M18),$C$2:$G$49,3,FALSE) -> 0.03 | Q18: =VLOOKUP(CONCATENATE(I$11,"-",M18),$C$2:$G$49,4,FALSE) -> 0.04 | R18: =VLOOKUP(CONCATENATE(I$11,"-",M18),$C$2:$G$49,5,FALSE) -> 0.055
A19: =A18 -> Construção de Redes de Abastecimento de Água, Coleta de Esgoto | B19: L | C19: Construção de Redes de Abastecimento de Água, Coleta de Esgoto-L | E19: 0.0674 | F19: 0.0804 | G19: 0.094 | I19: =IF($I$11=$A$59,"Administração Central da empresa ou consultoria - overhead","Seguro e Garantia") -> Seguro e Garantia | M19: =IF($I$11=$A$59,"K2","SG") -> SG | N19: 0.008 | O19: - | P19: =VLOOKUP(CONCATENATE(I$11,"-",M19),$C$2:$G$49,3,FALSE) -> 0.008 | Q19: =VLOOKUP(CONCATENATE(I$11,"-",M19),$C$2:$G$49,4,FALSE) -> 0.008 | R19: =VLOOKUP(CONCATENATE(I$11,"-",M19),$C$2:$G$49,5,FALSE) -> 0.01
A20: =A19 -> Construção de Redes de Abastecimento de Água, Coleta de Esgoto | B20: BDI PAD | C20: Construção de Redes de Abastecimento de Água, Coleta de Esgoto-BDI PAD | E20: 0.2076 | F20: 0.2418 | G20: 0.2644 | I20: =IF($I$11=$A$59,"","Risco") -> Risco | M20: =IF($I$11=$A$59,"","R") -> R | N20: 0.0127 | O20: - | P20: =VLOOKUP(CONCATENATE(I$11,"-",M20),$C$2:$G$49,3,FALSE) -> 0.0097 | Q20: =VLOOKUP(CONCATENATE(I$11,"-",M20),$C$2:$G$49,4,FALSE) -> 0.0127 | R20: =VLOOKUP(CONCATENATE(I$11,"-",M20),$C$2:$G$49,5,FALSE) -> 0.0127
A21: Construção e Manutenção de Estações e Redes de Distribuição de Energia Elétrica | B21: AC | C21: Construção e Manutenção de Estações e Redes de Distribuição de Energia Elétrica-AC | E21: 0.0529 | F21: 0.0592 | G21: 0.0793 | I21: =IF($I$11=$A$59,"","Despesas Financeiras") -> Despesas Financeiras | M21: =IF($I$11=$A$59,"","DF") -> DF | N21: 0.01 | O21: - | P21: =VLOOKUP(CONCATENATE(I$11,"-",M21),$C$2:$G$49,3,FALSE) -> 0.0059 | Q21: =VLOOKUP(CONCATENATE(I$11,"-",M21),$C$2:$G$49,4,FALSE) -> 0.0123 | R21: =VLOOKUP(CONCATENATE(I$11,"-",M21),$C$2:$G$49,5,FALSE) -> 0.0139
A22: =A21 -> Construção e Manutenção de Estações e Redes de Distribuição de Energia Elétrica | B22: SG | C22: Construção e Manutenção de Estações e Redes de Distribuição de Energia Elétrica-SG | E22: 0.0025 | F22: 0.0051 | G22: 0.0056 | I22: =IF($I$11=$A$59,"Margem bruta da empresa de consultoria","Lucro") -> Lucro | M22: =IF($I$11=$A$59,"K3","L") -> L | N22: 0.07 | O22: - | P22: =VLOOKUP(CONCATENATE(I$11,"-",M22),$C$2:$G$49,3,FALSE) -> 0.0616 | Q22: =VLOOKUP(CONCATENATE(I$11,"-",M22),$C$2:$G$49,4,FALSE) -> 0.074 | R22: =VLOOKUP(CONCATENATE(I$11,"-",M22),$C$2:$G$49,5,FALSE) -> 0.0896
A23: =A22 -> Construção e Manutenção de Estações e Redes de Distribuição de Energia Elétrica | B23: R | C23: Construção e Manutenção de Estações e Redes de Distribuição de Energia Elétrica-R | E23: 0.01 | F23: 0.0148 | G23: 0.0197 | I23: Tributos (impostos COFINS 3%, e PIS 0,65%) | M23: CP | N23: 0.0365 | O23: - | P23: 0.0365 | Q23: 0.0365 | R23: 0.0365
A24: =A23 -> Construção e Manutenção de Estações e Redes de Distribuição de Energia Elétrica | B24: DF | C24: Construção e Manutenção de Estações e Redes de Distribuição de Energia Elétrica-DF | E24: 0.0101 | F24: 0.0107 | G24: 0.0111 | I24: Tributos (ISS, variável de acordo com o município) | M24: ISS | N24: =IF($I$11<>$A$58,Q14*Q13,0) -> 0.02 | O24: - | P24: 0 | Q24: 0.025 | R24: 0.05
A25: =A24 -> Construção e Manutenção de Estações e Redes de Distribuição de Energia Elétrica | B25: L | C25: Construção e Manutenção de Estações e Redes de Distribuição de Energia Elétrica-L | E25: 0.08 | F25: 0.0831 | G25: 0.0951 | I25: Tributos (Contribuição Previdenciária sobre a Receita Bruta - 0% ou 4,5% - Desoneração) | M25: CPRB | N25: =IF(AND($I$11<>$A$58,Q11="Sim"),4.5%,0%) -> 0.045 | O25: =IF(AND(N25>=P25, N25<=R25), "OK", "Não OK") -> OK | P25: 0 | Q25: 0.045 | R25: 0.045
A26: =A25 -> Construção e Manutenção de Estações e Redes de Distribuição de Energia Elétrica | B26: BDI PAD | C26: Construção e Manutenção de Estações e Redes de Distribuição de Energia Elétrica-BDI PAD | E26: 0.24 | F26: 0.2584 | G26: 0.2786 | I26: BDI SEM desoneração (Fórmula Acórdão TCU) | M26: BDI PAD | N26: =IF($I$11=$A$58,0,ROUND((((1+N18+N19+N20)*(1+N21)*(1+N22)/(1-(N23+N24)))-1),4)) -> 0.2035 | O26: =IF(OR($I$11=$A$59,$I$11=$A$58,AND(N26>=P26, N26<=R26)), "OK", "FORA DO INTERVALO") -> OK | P26: =IF($I$11=$A$58,0,VLOOKUP(CONCATENATE($I$11,"-",$M26),$C$2:$G$49,3,FALSE)) -> 0.2034 | Q26: =IF($I$11=$A$58,0,VLOOKUP(CONCATENATE($I$11,"-",$M26),$C$2:$G$49,4,FALSE)) -> 0.2212 | R26: =IF($I$11=$A$58,0,VLOOKUP(CONCATENATE($I$11,"-",$M26),$C$2:$G$49,5,FALSE)) -> 0.25
A27: Obras Portuárias, Marítimas e Fluviais | B27: AC | C27: Obras Portuárias, Marítimas e Fluviais-AC | E27: 0.04 | F27: 0.0552 | G27: 0.0785 | I27: BDI COM desoneração | M27: BDI DES | N27: =IF($I$11=$A$58,0,ROUND((((1+N18+N19+N20)*(1+N21)*(1+N22)/(1-(N23+N24+N25)))-1),4)) -> 0.2638 | O27: =IF(Q11<>"Sim","",O26) -> OK | V27: =AND(COUNTA(N18:N23)=6,O26<>"ok",NOT(V29)) -> FALSE | W27: pedir anexo
A28: =A27 -> Obras Portuárias, Marítimas e Fluviais | B28: SG | C28: Obras Portuárias, Marítimas e Fluviais-SG | E28: 0.0081 | F28: 0.0122 | G28: 0.0199
A29: =A28 -> Obras Portuárias, Marítimas e Fluviais | B29: R | C29: Obras Portuárias, Marítimas e Fluviais-R | E29: 0.0146 | F29: 0.0232 | G29: 0.0316 | I29: =IF(V29,"X","") ->  | J29: Anexo: Relatório Técnico Circunstanciado justificando a adoção do percentual de cada parcela do BDI. | V29: FALSE | W29: anexo apresentado
I31: Os valores de BDI foram calculados com o emprego da fórmula:
A32: =A29 -> Obras Portuárias, Marítimas e Fluviais | B32: DF | C32: Obras Portuárias, Marítimas e Fluviais-DF | E32: 0.0094 | F32: 0.0102 | G32: 0.0133 | L32: =IF(Q11="Sim","BDI.DES =","BDI.PAD =") -> BDI.DES = | M32: =IF($I$11=$A$59,"(1+K1+K2)*(1+K3)","(1+AC + S + R + G)*(1 + DF)*(1+L)") -> (1+AC + S + R + G)*(1 + DF)*(1+L) | P32: - 1
A33: =A32 -> Obras Portuárias, Marítimas e Fluviais | B33: L | C33: Obras Portuárias, Marítimas e Fluviais-L | E33: 0.0714 | F33: 0.084 | G33: 0.1043 | M33: =IF(Q11="Sim","(1-CP-ISS-CRPB)","(1-CP-ISS)") -> (1-CP-ISS-CRPB)
A34: =A33 -> Obras Portuárias, Marítimas e Fluviais | B34: BDI PAD | C34: Obras Portuárias, Marítimas e Fluviais-BDI PAD | E34: 0.228 | F34: 0.2748 | G34: 0.3095
I35: =CONCATENATE("Declaro para os devidos fins que, conforme legislação tributária municipal, a base de cálculo para ",I11,", é de ",Q13*100,"%, com a respectiva alíquota de ",Q14*100,"%.") -> Declaro para os devidos fins que, conforme legislação tributária municipal, a base de cálculo para Construção e Reforma de Edifícios, é de 100%, com a respectiva alíquota de 2%.
I37: =CONCATENATE("Declaro para os devidos fins que o regime de Contribuição Previdenciária sobre a Receita Bruta adotado para elaboração do orçamento foi ",IF(Q11="Sim","COM","SEM")," Desoneração, e que esta é a alternativa mais adequada para a Administração Pública.") -> Declaro para os devidos fins que o regime de Contribuição Previdenciária sobre a Receita Bruta adotado para elaboração do orçamento foi COM Desoneração, e que esta é a alternativa mais adequada para a Administração Pública.
A38: Fornecimento de Materiais e Equipamentos (aquisição indireta - em conjunto com licitação de obras) | B38: AC | C38: Fornecimento de Materiais e Equipamentos (aquisição indireta - em conjunto com licitação de obras)-AC | E38: 0.015 | F38: 0.0345 | G38: 0.0449
A39: =A38 -> Fornecimento de Materiais e Equipamentos (aquisição indireta - em conjunto com licitação de obras) | B39: SG | C39: Fornecimento de Materiais e Equipamentos (aquisição indireta - em conjunto com licitação de obras)-SG | E39: 0.003 | F39: 0.0048 | G39: 0.0082 | I39: Observações:
A40: =A39 -> Fornecimento de Materiais e Equipamentos (aquisição indireta - em conjunto com licitação de obras) | B40: R | C40: Fornecimento de Materiais e Equipamentos (aquisição indireta - em conjunto com licitação de obras)-R | E40: 0.0056 | F40: 0.0085 | G40: 0.0089
A41: =A40 -> Fornecimento de Materiais e Equipamentos (aquisição indireta - em conjunto com licitação de obras) | B41: DF | C41: Fornecimento de Materiais e Equipamentos (aquisição indireta - em conjunto com licitação de obras)-DF | E41: 0.0085 | F41: 0.0085 | G41: 0.0111
A42: =A41 -> Fornecimento de Materiais e Equipamentos (aquisição indireta - em conjunto com licitação de obras) | B42: L | C42: Fornecimento de Materiais e Equipamentos (aquisição indireta - em conjunto com licitação de obras)-L | E42: 0.035 | F42: 0.0511 | G42: 0.0622 | I42: =PO!K153 -> SÃO JOÃO DA URTIGA/RS | O42: =PO!K156 -> 2023-06-06
A43: =A42 -> Fornecimento de Materiais e Equipamentos (aquisição indireta - em conjunto com licitação de obras) | B43: BDI PAD | C43: Fornecimento de Materiais e Equipamentos (aquisição indireta - em conjunto com licitação de obras)-BDI PAD | E43: 0.111 | F43: 0.1402 | G43: 0.168 | I43: Local | O43: Data
A44: Estudos e Projetos, Planos e Gerenciamento e outros correlatos | B44: K1 | C44: Estudos e Projetos, Planos e Gerenciamento e outros correlatos-K1 | E44: - | F44: - | G44: -
A45: =A44 -> Estudos e Projetos, Planos e Gerenciamento e outros correlatos | B45: K2 | C45: Estudos e Projetos, Planos e Gerenciamento e outros correlatos-K2 | E45: - | F45: 0.2 | G45: -
A46: =A45 -> Estudos e Projetos, Planos e Gerenciamento e outros correlatos | C46: Estudos e Projetos, Planos e Gerenciamento e outros correlatos- | E46: - | F46: - | G46: - | I46: Responsável Técnico | O46: Responsável Tomador
A47: =A46 -> Estudos e Projetos, Planos e Gerenciamento e outros correlatos | C47: Estudos e Projetos, Planos e Gerenciamento e outros correlatos- | E47: - | F47: - | G47: - | I47: Nome: | J47: =DADOS!B54 -> ADRIANA SCHENATTO | O47: Nome: | P47: CEZAR OLIMPIO ZANDONA
A48: =A47 -> Estudos e Projetos, Planos e Gerenciamento e outros correlatos | B48: K3 | C48: Estudos e Projetos, Planos e Gerenciamento e outros correlatos-K3 | E48: - | F48: 0.12 | G48: - | I48: Título: | J48: =DADOS!B55 -> ENGENHEIRA CIVIL | O48: Cargo: | P48: PREFEITO MUNICIPAL
A49: =A48 -> Estudos e Projetos, Planos e Gerenciamento e outros correlatos | B49: BDI PAD | C49: Estudos e Projetos, Planos e Gerenciamento e outros correlatos-BDI PAD | E49: - | F49: - | G49: - | I49: =DADOS!A56 -> CREA/CAU: | J49: =DADOS!B56 -> CREA/RS 91580
I50: =DADOS!A57 -> ART/RRT: | J50: =DADOS!B57 -> 0
A52: Construção e Reforma de Edifícios
A53: Construção de Praças Urbanas, Rodovias, Ferrovias e recapeamento e pavimentação de vias urbanas
A54: Construção de Redes de Abastecimento de Água, Coleta de Esgoto
A55: Construção e Manutenção de Estações e Redes de Distribuição de Energia Elétrica
A56: Obras Portuárias, Marítimas e Fluviais
A57: Fornecimento de Materiais e Equipamentos (aquisição indireta - em conjunto com licitação de obras)
A58: Fornecimento de Materiais e Equipamentos (aquisição direta)
A59: Estudos e Projetos, Planos e Gerenciamento e outros correlatos

Sheet PO
N1: PO - PLANILHA ORÇAMENTÁRIA | T1: Grau de Sigilo
B2: LOTE | C2: Meta | D2: Nível 2 | E2: Nível 3 | F2: Nível 4 | G2: Serviço | N2: =CHOOSE(1+LOG(1+2*(TipoOrçamento="BASE")+4*(TipoOrçamento="LICITADO")+8*(TipoOrçamento="REPROGRAMADOAC")+16*(TipoOrçamento="REPROGRAMADONPL"),2),"nada","Orçamento Base para Licitação","Orçamento Licitado","Orçamento Licitado Reprogramado","Orçamento Base para Licitação - Reprogramado") -> Orçamento Base para Licitação | T2: #PUBLICO | W2: Arredondamento
W3: Quantidade | X3: TRUE
A4: Nmax | U4: ERRO GERAL | W4: Custo Unitáro | X4: TRUE
A5: =MAX($A$12:$A$142) -> 2 | U5: =IF(COUNTIF($U$12:OFFSET($U$142,-1,0),"DESCRIÇÃO")+COUNTIF($U$12:OFFSET($U$142,-1,0),"UNIDADE")+COUNTIF($U$12:OFFSET($U$142,-1,0),"SEM VALOR")>0,"NÃO OK","OK") -> NÃO OK | W5: BDI | X5: TRUE
W6: Preço Unitário | X6: TRUE
W7: Preço Total | X7: TRUE
P9: =OFFSET(PLQ!$E$12,ROW($P9)-ROW(P$12),0) -> -
A10: Nível | B10: Altura | C10: n1 | D10: n2 | E10: n3 | F10: n4 | G10: n5 | H10: Czero | I10: Cnível | J10: Nível | K10: Item | L10: Fonte | M10: Código | N10: Descrição | O10: Unidade | P10: Quantidade | Q10: =IF(OR(TipoOrçamento="LICITADO",TipoOrçamento="REPROGRAMADOAC"),"Preço Unitário (R$)","Custo Unitário (R$)") -> Custo Unitário (R$) | R10: BDI (%) | S10: Preço Unitário (R$) | T10: Preço Total (R$) | U10: Erro de Dados | V10: Lista Crono | W10: Concatenação Fonte-Código | X10: BancoRef | Y10: =IF(TipoOrçamento="LICITADO","Preço Unitário Edital (R$)","Custo Unitário Referência (R$)") -> Custo Unitário Referência (R$) | Z10: =IF(TipoOrçamento="LICITADO","Valor BDI Edital","Valor BDI") -> Valor BDI
A11: =CHOOSE(1+LOG(1+2*(J11="Meta")+4*(J11="Nível 2")+8*(J11="Nível 3")+16*(J11="Nível 4")+32*(J11="Serviço"),2),0,1,2,3,4,"S") -> S | B11: =IF(OR(A11="S",A11=0),0,IF(ISERROR(I11),H11,SMALL(H11:I11,1))) -> 0 | C11: =IF($A11=1,OFFSET(C11,-1,0)+1,OFFSET(C11,-1,0)) -> n1 | D11: =IF($A11=1,0,IF($A11=2,OFFSET(D11,-1,0)+1,OFFSET(D11,-1,0))) -> n2 | E11: =IF(AND($A11<=2,$A11<>0),0,IF($A11=3,OFFSET(E11,-1,0)+1,OFFSET(E11,-1,0))) -> n3 | F11: =IF(AND($A11<=3,$A11<>0),0,IF($A11=4,OFFSET(F11,-1,0)+1,OFFSET(F11,-1,0))) -> n4 | G11: =IF(AND($A11<=4,$A11<>0),0,IF($A11="S",OFFSET(G11,-1,0)+1,OFFSET(G11,-1,0))) ->  | H11: =IF(OR($A11="S",$A11=0),0,MATCH(0,OFFSET($B11,1,$A11,ROW($A$142)-ROW($A11)),0)) -> 0 | I11: =IF(OR($A11="S",$A11=0),0,MATCH(OFFSET($B11,0,$A11)+1,OFFSET($B11,1,$A11,ROW($A$142)-ROW($A11)),0)) -> 0 | J11: Serviço | K11: =IF($A11=0,"-",CONCATENATE(C11&".",IF(AND($A$5>=2,$A11>=2),D11&".",""),IF(AND($A$5>=3,$A11>=3),E11&".",""),IF(AND($A$5>=4,$A11>=4),F11&".",""),IF($A11="S",G11&".",""))) ->  | N11: =IF($A11="S",Referencia.Descricao,"(digite a descrição aqui)") ->  | O11: =Referencia.Unidade ->  | P11: =OFFSET(PLQ!$E$12,ROW($P11)-ROW(P$12),0) -> 0 | R11: BDI 1 | S11: =IF($A11="S",IF($Q$10="Preço Unitário (R$)",PO.CustoUnitario,ROUND(PO.CustoUnitario*(1+$Z11),15-13*$X$6)),0) -> 0 | T11: =IF($A11="S",VTOTAL1,IF($A11=0,0,ROUND(SomaAgrup,15-13*$X$7))) -> 0 | U11: =IF($J11="","",IF($N11="","DESCRIÇÃO",IF(AND($J11="Serviço",$O11=""),"UNIDADE",IF($T11<=0,"SEM VALOR",IF(AND($Y11<>"",$Q11>$Y11),"ACIMA REF.",""))))) -> DESCRIÇÃO | V11: =IF(OR($A11=0,$A11="S",$A11>CFF!$A$9),"",MAX(V$12:OFFSET(V11,-1,0))+1) ->  | W11: =IF(AND($J11="Serviço",$M11<>""),IF($L11="",$M11,CONCATENATE($L11,"-",$M11))) -> FALSE | X11: =IF(AND(Fonte<>"",Código<>""),MATCH(Fonte&" "&IF(Fonte="sinapi",SUBSTITUTE(SUBSTITUTE(Código,"/00","/"),"/0","/"),Código),INDIRECT("'[Referência "&_xlnm.Database&".xls]Banco'!$a:$a"),0),"X") -> X | Y11: =IF(Import.Desoneracao="sim",Referencia.Desonerado,Referencia.NaoDesonerado) -> 0 | Z11: =ROUND(IF(ISNUMBER(R11),R11,IF(LEFT(R11,3)="BDI",HLOOKUP(R11,DADOS!$T$37:$X$38,2,FALSE),0)),15-11*$X$5) -> 0.2638
A12: 0 | B12: =COUNTA(OFFSET(B12,1,0):B$142) -> 129 | J12: =IF(OR(TipoOrçamento="LICITADO",TipoOrçamento="REPROGRAMADOAC"),"CTEF","LOTE") -> LOTE | K12: 0 | N12: =IF(TipoOrçamento="LICITADO",DADOS!O43,DADOS!G38) -> 0 | T12: =SUMIF(OFFSET($J12,1,0,ROW(T142)-ROW(T12)-1),"Serviço",OFFSET(T12,1,0,ROW(T142)-ROW(T12)-1)) -> 91360.2 | U12: =IF($N12=0,"DESCRIÇÃO","") -> DESCRIÇÃO | V12: 0
A13: =CHOOSE(1+LOG(1+2*(J13="Meta")+4*(J13="Nível 2")+8*(J13="Nível 3")+16*(J13="Nível 4")+32*(J13="Serviço"),2),0,1,2,3,4,"S") -> 1 | B13: =IF(OR(A13="S",A13=0),0,IF(ISERROR(I13),H13,SMALL(H13:I13,1))) -> 129 | C13: =IF($A13=1,OFFSET(C13,-1,0)+1,OFFSET(C13,-1,0)) -> 1 | D13: =IF($A13=1,0,IF($A13=2,OFFSET(D13,-1,0)+1,OFFSET(D13,-1,0))) -> 0 | E13: =IF(AND($A13<=2,$A13<>0),0,IF($A13=3,OFFSET(E13,-1,0)+1,OFFSET(E13,-1,0))) -> 0 | F13: =IF(AND($A13<=3,$A13<>0),0,IF($A13=4,OFFSET(F13,-1,0)+1,OFFSET(F13,-1,0))) -> 0 | G13: =IF(AND($A13<=4,$A13<>0),0,IF($A13="S",OFFSET(G13,-1,0)+1,OFFSET(G13,-1,0))) -> 0 | H13: =IF(OR($A13="S",$A13=0),0,MATCH(0,OFFSET($B13,1,$A13,ROW($A$142)-ROW($A13)),0)) -> 129 | I13: =IF(OR($A13="S",$A13=0),0,MATCH(OFFSET($B13,0,$A13)+1,OFFSET($B13,1,$A13,ROW($A$142)-ROW($A13)),0)) ->  | J13: Meta | K13: =IF($A13=0,"-",CONCATENATE(C13&".",IF(AND($A$5>=2,$A13>=2),D13&".",""),IF(AND($A$5>=3,$A13>=3),E13&".",""),IF(AND($A$5>=4,$A13>=4),F13&".",""),IF($A13="S",G13&".",""))) -> 1. | N13: RESIDÊNCIA POPULAR UNIFAMILIARES EM MADEIRA | P13: =OFFSET(PLQ!$E$12,ROW($P13)-ROW(P$12),0) -> 0 | R13: BDI 1 | S13: =IF($A13="S",IF($Q$10="Preço Unitário (R$)",PO.CustoUnitario,ROUND(PO.CustoUnitario*(1+$Z13),15-13*$X$6)),0) -> 0 | T13: =IF($A13="S",VTOTAL1,IF($A13=0,0,ROUND(SomaAgrup,15-13*$X$7))) -> 91360.2 | U13: =IF($J13="","",IF($N13="","DESCRIÇÃO",IF(AND($J13="Serviço",$O13=""),"UNIDADE",IF($T13<=0,"SEM VALOR",IF(AND($Y13<>"",$Q13>$Y13),"ACIMA REF.",""))))) ->  | V13: =IF(OR($A13=0,$A13="S",$A13>CFF!$A$9),"",MAX(V$12:OFFSET(V13,-1,0))+1) -> 1 | W13: =IF(AND($J13="Serviço",$M13<>""),IF($L13="",$M13,CONCATENATE($L13,"-",$M13))) -> FALSE | X13: =IF(AND(Fonte<>"",Código<>""),MATCH(Fonte&" "&IF(Fonte="sinapi",SUBSTITUTE(SUBSTITUTE(Código,"/00","/"),"/0","/"),Código),INDIRECT("'[Referência "&_xlnm.Database&".xls]Banco'!$a:$a"),0),"X") -> X | Y13: =IF(Import.Desoneracao="sim",Referencia.Desonerado,Referencia.NaoDesonerado) -> 0 | Z13: =ROUND(IF(ISNUMBER(R13),R13,IF(LEFT(R13,3)="BDI",HLOOKUP(R13,DADOS!$T$37:$X$38,2,FALSE),0)),15-11*$X$5) -> 0.2638
A14: 2 | B14: 3 | C14: 1 | D14: 1 | E14: 0 | F14: 0 | G14: 0 | H14: 128 | I14: 3 | J14: Nível 2 | K14: 1.1. | N14: SERVIÇOS PRELIMINARES | O14: =Referencia.Unidade ->  | P14: =OFFSET(PLQ!$E$12,ROW($P14)-ROW(P$12),0) -> 0 | R14: BDI 1 | S14: 0 | T14: 3555.62 | V14: =IF(OR($A14=0,$A14="S",$A14>CFF!$A$9),"",MAX(V$12:OFFSET(V14,-1,0))+1) -> 2 | W14: FALSE | X14: X | Y14: 0 | Z14: =ROUND(IF(ISNUMBER(R14),R14,IF(LEFT(R14,3)="BDI",HLOOKUP(R14,DADOS!$T$37:$X$38,2,FALSE),0)),15-11*$X$5) -> 0.2638
A15: S | B15: 0 | C15: 1 | D15: 1 | E15: 0 | F15: 0 | G15: 1 | H15: 0 | I15: 0 | J15: Serviço | K15: 1.1.1. | L15: SINAPI | M15: 101489 | N15: =IF($A15="S",Referencia.Descricao,"(digite a descrição aqui)") -> ENTRADA DE ENERGIA ELÉTRICA, AÉREA, MONOFÁSICA, COM CAIXA DE SOBREPOR, CABO DE 10 MM2 E DISJUNTOR DIN 50A (NÃO INCLUSO O POSTE DE CONCRETO). AF_07/2020_PS | O15: =Referencia.Unidade -> UN | P15: =OFFSET(PLQ!$E$12,ROW($P15)-ROW(P$12),0) -> 1 | Q15: 1403.73 | R15: BDI 1 | S15: 1774.03 | T15: 1774.03 | V15: =IF(OR($A15=0,$A15="S",$A15>CFF!$A$9),"",MAX(V$12:OFFSET(V15,-1,0))+1) ->  | W15: SINAPI-101489 | X15: 3125 | Y15: 1403.73 | Z15: =ROUND(IF(ISNUMBER(R15),R15,IF(LEFT(R15,3)="BDI",HLOOKUP(R15,DADOS!$T$37:$X$38,2,FALSE),0)),15-11*$X$5) -> 0.2638
A16: S | B16: 0 | C16: 1 | D16: 1 | E16: 0 | F16: 0 | G16: 2 | H16: 0 | I16: 0 | J16: Serviço | K16: 1.1.2. | L16: SINAPI-I | M16: 12366 | N16: POSTE DE CONCRETO ARMADO DE SECAO CIRCULAR, EXTENSAO DE 10,00 M, RESISTENCIA DE 150 A 200 DAN, TIPO C-14 | O16: =Referencia.Unidade -> UN | P16: =OFFSET(PLQ!$E$12,ROW($P16)-ROW(P$12),0) -> 1 | Q16: 1409.71 | R16: BDI 1 | S16: 1781.59 | T16: 1781.59 | V16: =IF(OR($A16=0,$A16="S",$A16>CFF!$A$9),"",MAX(V$12:OFFSET(V16,-1,0))+1) ->  | W16: SINAPI-I-12366 | X16: 11082 | Y16: 1409.71 | Z16: =ROUND(IF(ISNUMBER(R16),R16,IF(LEFT(R16,3)="BDI",HLOOKUP(R16,DADOS!$T$37:$X$38,2,FALSE),0)),15-11*$X$5) -> 0.2638
A17: 2 | B17: 11 | C17: 1 | D17: 2 | E17: 0 | F17: 0 | G17: 0 | H17: 125 | I17: 11 | J17: Nível 2 | K17: 1.2. | N17: INFRAESTRUTURA | O17: =Referencia.Unidade ->  | P17: =OFFSET(PLQ!$E$12,ROW($P17)-ROW(P$12),0) -> 0 | R17: BDI 1 | S17: 0 | T17: 10972.2 | V17: =IF(OR($A17=0,$A17="S",$A17>CFF!$A$9),"",MAX(V$12:OFFSET(V17,-1,0))+1) -> 3 | W17: FALSE | X17: X | Y17: 0 | Z17: =ROUND(IF(ISNUMBER(R17),R17,IF(LEFT(R17,3)="BDI",HLOOKUP(R17,DADOS!$T$37:$X$38,2,FALSE),0)),15-11*$X$5) -> 0.2638
A18: S | B18: 0 | C18: 1 | D18: 2 | E18: 0 | F18: 0 | G18: 1 | H18: 0 | I18: 0 | J18: Serviço | K18: 1.2.1. | L18: SINAPI | M18: 96527 | N18: ESCAVAÇÃO MANUAL DE VALA PARA VIGA BALDRAME (INCLUINDO ESCAVAÇÃO PARA COLOCAÇÃO DE FÔRMAS). AF_06/2017 | O18: =Referencia.Unidade -> M3 | P18: =OFFSET(PLQ!$E$12,ROW($P18)-ROW(P$12),0) -> 4.45 | Q18: 112.54 | R18: BDI 1 | S18: 142.23 | T18: 632.92 | V18: =IF(OR($A18=0,$A18="S",$A18>CFF!$A$9),"",MAX(V$12:OFFSET(V18,-1,0))+1) ->  | W18: SINAPI-96527 | X18: 5495 | Y18: 112.54 | Z18: =ROUND(IF(ISNUMBER(R18),R18,IF(LEFT(R18,3)="BDI",HLOOKUP(R18,DADOS!$T$37:$X$38,2,FALSE),0)),15-11*$X$5) -> 0.2638
A19: S | B19: 0 | C19: 1 | D19: 2 | E19: 0 | F19: 0 | G19: 2 | H19: 0 | I19: 0 | J19: Serviço | K19: 1.2.2. | L19: SINAPI | M19: 102487 | N19: CONCRETO CICLÓPICO FCK = 15MPA, 30% PEDRA DE MÃO EM VOLUME REAL, INCLUSIVE LANÇAMENTO. AF_05/2021 | O19: =Referencia.Unidade -> M3 | P19: =OFFSET(PLQ!$E$12,ROW($P19)-ROW(P$12),0) -> 1.48 | Q19: 521.96 | R19: BDI 1 | S19: 659.65 | T19: 976.28 | V19: =IF(OR($A19=0,$A19="S",$A19>CFF!$A$9),"",MAX(V$12:OFFSET(V19,-1,0))+1) ->  | W19: SINAPI-102487 | X19: 2590 | Y19: 521.96 | Z19: =ROUND(IF(ISNUMBER(R19),R19,IF(LEFT(R19,3)="BDI",HLOOKUP(R19,DADOS!$T$37:$X$38,2,FALSE),0)),15-11*$X$5) -> 0.2638
A20: S | B20: 0 | C20: 1 | D20: 2 | E20: 0 | F20: 0 | G20: 3 | H20: 0 | I20: 0 | J20: Serviço | K20: 1.2.3. | L20: SINAPI | M20: 101159 | N20: ALVENARIA DE VEDAÇÃO DE BLOCOS CERÂMICOS MACIÇOS DE 5X10X20CM (ESPESSURA 10CM) E ARGAMASSA DE ASSENTAMENTO COM PREPARO EM BETONEIRA. AF_05/2020 | O20: =Referencia.Unidade -> M2 | P20: =OFFSET(PLQ!$E$12,ROW($P20)-ROW(P$12),0) -> 10.18 | Q20: 127.09 | R20: BDI 1 | S20: 160.62 | T20: 1635.11 | V20: =IF(OR($A20=0,$A20="S",$A20>CFF!$A$9),"",MAX(V$12:OFFSET(V20,-1,0))+1) ->  | W20: SINAPI-101159 | X20: 5751 | Y20: 127.09 | Z20: =ROUND(IF(ISNUMBER(R20),R20,IF(LEFT(R20,3)="BDI",HLOOKUP(R20,DADOS!$T$37:$X$38,2,FALSE),0)),15-11*$X$5) -> 0.2638
A21: S | B21: 0 | C21: 1 | D21: 2 | E21: 0 | F21: 0 | G21: 4 | H21: 0 | I21: 0 | J21: Serviço | K21: 1.2.4. | L21: SINAPI | M21: 96533 | N21: FABRICAÇÃO, MONTAGEM E DESMONTAGEM DE FÔRMA PARA VIGA BALDRAME, EM MADEIRA SERRADA, E=25 MM, 2 UTILIZAÇÕES. AF_06/2017 | O21: =Referencia.Unidade -> M2 | P21: =OFFSET(PLQ!$E$12,ROW($P21)-ROW(P$12),0) -> 14.82 | Q21: 84.61 | R21: BDI 1 | S21: 106.93 | T21: 1584.7 | V21: =IF(OR($A21=0,$A21="S",$A21>CFF!$A$9),"",MAX(V$12:OFFSET(V21,-1,0))+1) ->  | W21: SINAPI-96533 | X21: 2325 | Y21: 84.61 | Z21: =ROUND(IF(ISNUMBER(R21),R21,IF(LEFT(R21,3)="BDI",HLOOKUP(R21,DADOS!$T$37:$X$38,2,FALSE),0)),15-11*$X$5) -> 0.2638
A22: S | B22: 0 | C22: 1 | D22: 2 | E22: 0 | F22: 0 | G22: 5 | H22: 0 | I22: 0 | J22: Serviço | K22: 1.2.5. | L22: SINAPI | M22: 94965 | N22: CONCRETO FCK = 25MPA, TRAÇO 1:2,3:2,7 (EM MASSA SECA DE CIMENTO/ AREIA MÉDIA/ BRITA 1) - PREPARO MECÂNICO COM BETONEIRA 400 L. AF_05/2021 | O22: =Referencia.Unidade -> M3 | P22: =OFFSET(PLQ!$E$12,ROW($P22)-ROW(P$12),0) -> 2.96 | Q22: 473.64 | R22: BDI 1 | S22: 598.59 | T22: 1771.83 | V22: =IF(OR($A22=0,$A22="S",$A22>CFF!$A$9),"",MAX(V$12:OFFSET(V22,-1,0))+1) ->  | W22: SINAPI-94965 | X22: 2551 | Y22: 473.64 | Z22: =ROUND(IF(ISNUMBER(R22),R22,IF(LEFT(R22,3)="BDI",HLOOKUP(R22,DADOS!$T$37:$X$38,2,FALSE),0)),15-11*$X$5) -> 0.2638
A23: S | B23: 0 | C23: 1 | D23: 2 | E23: 0 | F23: 0 | G23: 6 | H23: 0 | I23: 0 | J23: Serviço | K23: 1.2.6. | L23: SINAPI | M23: 103670 | N23: LANÇAMENTO COM USO DE BALDES, ADENSAMENTO E ACABAMENTO DE CONCRETO EM ESTRUTURAS. AF_02/2022 | O23: =Referencia.Unidade -> M3 | P23: =OFFSET(PLQ!$E$12,ROW($P23)-ROW(P$12),0) -> 2.96 | Q23: 255.08 | R23: BDI 1 | S23: 322.37 | T23: 954.22 | V23: =IF(OR($A23=0,$A23="S",$A23>CFF!$A$9),"",MAX(V$12:OFFSET(V23,-1,0))+1) ->  | W23: SINAPI-103670 | X23: 2594 | Y23: 255.08 | Z23: =ROUND(IF(ISNUMBER(R23),R23,IF(LEFT(R23,3)="BDI",HLOOKUP(R23,DADOS!$T$37:$X$38,2,FALSE),0)),15-11*$X$5) -> 0.2638
A24: S | B24: 0 | C24: 1 | D24: 2 | E24: 0 | F24: 0 | G24: 7 | H24: 0 | I24: 0 | J24: Serviço | K24: 1.2.7. | L24: SINAPI | M24: 92919 | N24: ARMAÇÃO DE ESTRUTURAS DIVERSAS DE CONCRETO ARMADO, EXCETO VIGAS, PILARES, LAJES E FUNDAÇÕES, UTILIZANDO AÇO CA-50 DE 10,0 MM - MONTAGEM. AF_06/2022 | O24: =Referencia.Unidade -> KG | P24: =OFFSET(PLQ!$E$12,ROW($P24)-ROW(P$12),0) -> 37.38 | Q24: 12.52 | R24: BDI 1 | S24: 15.82 | T24: 591.35 | V24: =IF(OR($A24=0,$A24="S",$A24>CFF!$A$9),"",MAX(V$12:OFFSET(V24,-1,0))+1) ->  | W24: SINAPI-92919 | X24: 2490 | Y24: 12.52 | Z24: =ROUND(IF(ISNUMBER(R24),R24,IF(LEFT(R24,3)="BDI",HLOOKUP(R24,DADOS!$T$37:$X$38,2,FALSE),0)),15-11*$X$5) -> 0.2638
A25: S | B25: 0 | C25: 1 | D25: 2 | E25: 0 | F25: 0 | G25: 8 | H25: 0 | I25: 0 | J25: Serviço | K25: 1.2.8. | L25: SINAPI | M25: 92917 | N25: ARMAÇÃO DE ESTRUTURAS DIVERSAS DE CONCRETO ARMADO, EXCETO VIGAS, PILARES, LAJES E FUNDAÇÕES, UTILIZANDO AÇO CA-50 DE 8,0 MM - MONTAGEM. AF_06/2022 | O25: =Referencia.Unidade -> KG | P25: =OFFSET(PLQ!$E$12,ROW($P25)-ROW(P$12),0) -> 9.76 | Q25: 14.12 | R25: BDI 1 | S25: 17.84 | T25: 174.12 | V25: =IF(OR($A25=0,$A25="S",$A25>CFF!$A$9),"",MAX(V$12:OFFSET(V25,-1,0))+1) ->  | W25: SINAPI-92917 | X25: 2489 | Y25: 14.12 | Z25: =ROUND(IF(ISNUMBER(R25),R25,IF(LEFT(R25,3)="BDI",HLOOKUP(R25,DADOS!$T$37:$X$38,2,FALSE),0)),15-11*$X$5) -> 0.2638
A26: S | B26: 0 | C26: 1 | D26: 2 | E26: 0 | F26: 0 | G26: 9 | H26: 0 | I26: 0 | J26: Serviço | K26: 1.2.9. | L26: SINAPI | M26: 92915 | N26: ARMAÇÃO DE ESTRUTURAS DIVERSAS DE CONCRETO ARMADO, EXCETO VIGAS, PILARES, LAJES E FUNDAÇÕES, UTILIZANDO AÇO CA-60 DE 5,0 MM - MONTAGEM. AF_06/2022 | O26: =Referencia.Unidade -> KG | P26: =OFFSET(PLQ!$E$12,ROW($P26)-ROW(P$12),0) -> 10.39 | Q26: 16.21 | R26: BDI 1 | S26: 20.49 | T26: 212.89 | V26: =IF(OR($A26=0,$A26="S",$A26>CFF!$A$9),"",MAX(V$12:OFFSET(V26,-1,0))+1) ->  | W26: SINAPI-92915 | X26: 2487 | Y26: 16.21 | Z26: =ROUND(IF(ISNUMBER(R26),R26,IF(LEFT(R26,3)="BDI",HLOOKUP(R26,DADOS!$T$37:$X$38,2,FALSE),0)),15-11*$X$5) -> 0.2638
A27: S | B27: 0 | C27: 1 | D27: 2 | E27: 0 | F27: 0 | G27: 10 | H27: 0 | I27: 0 | J27: Serviço | K27: 1.2.10. | L27: SINAPI | M27: 98557 | N27: IMPERMEABILIZAÇÃO DE SUPERFÍCIE COM EMULSÃO ASFÁLTICA, 2 DEMÃOS AF_06/2018 | O27: =Referencia.Unidade -> M2 | P27: =OFFSET(PLQ!$E$12,ROW($P27)-ROW(P$12),0) -> 39.52 | Q27: 48.83 | R27: BDI 1 | S27: 61.71 | T27: 2438.78 | V27: =IF(OR($A27=0,$A27="S",$A27>CFF!$A$9),"",MAX(V$12:OFFSET(V27,-1,0))+1) ->  | W27: SINAPI-98557 | X27: 2732 | Y27: 48.83 | Z27: =ROUND(IF(ISNUMBER(R27),R27,IF(LEFT(R27,3)="BDI",HLOOKUP(R27,DADOS!$T$37:$X$38,2,FALSE),0)),15-11*$X$5) -> 0.2638
A28: 2 | B28: 11 | C28: 1 | D28: 3 | E28: 0 | F28: 0 | G28: 0 | H28: 114 | I28: 11 | J28: Nível 2 | K28: 1.3. | N28: SUPRAESTRUTURA | O28: =Referencia.Unidade ->  | P28: =OFFSET(PLQ!$E$12,ROW($P28)-ROW(P$12),0) -> 0 | R28: BDI 1 | S28: 0 | T28: 6468.63 | V28: =IF(OR($A28=0,$A28="S",$A28>CFF!$A$9),"",MAX(V$12:OFFSET(V28,-1,0))+1) -> 4 | W28: FALSE | X28: X | Y28: 0 | Z28: =ROUND(IF(ISNUMBER(R28),R28,IF(LEFT(R28,3)="BDI",HLOOKUP(R28,DADOS!$T$37:$X$38,2,FALSE),0)),15-11*$X$5) -> 0.2638
A29: S | B29: 0 | C29: 1 | D29: 3 | E29: 0 | F29: 0 | G29: 1 | H29: 0 | I29: 0 | J29: Serviço | K29: 1.3.1. | L29: SINAPI | M29: 94965 | N29: CONCRETO FCK = 25MPA, TRAÇO 1:2,3:2,7 (EM MASSA SECA DE CIMENTO/ AREIA MÉDIA/ BRITA 1) - PREPARO MECÂNICO COM BETONEIRA 400 L. AF_05/2021 | O29: =Referencia.Unidade -> M3 | P29: =OFFSET(PLQ!$E$12,ROW($P29)-ROW(P$12),0) -> 1.49 | Q29: 473.64 | R29: BDI 1 | S29: 598.59 | T29: 891.9 | V29: =IF(OR($A29=0,$A29="S",$A29>CFF!$A$9),"",MAX(V$12:OFFSET(V29,-1,0))+1) ->  | W29: SINAPI-94965 | X29: 2551 | Y29: 473.64 | Z29: =ROUND(IF(ISNUMBER(R29),R29,IF(LEFT(R29,3)="BDI",HLOOKUP(R29,DADOS!$T$37:$X$38,2,FALSE),0)),15-11*$X$5) -> 0.2638
A30: S | B30: 0 | C30: 1 | D30: 3 | E30: 0 | F30: 0 | G30: 2 | H30: 0 | I30: 0 | J30: Serviço | K30: 1.3.2. | L30: SINAPI | M30: 103670 | N30: LANÇAMENTO COM USO DE BALDES, ADENSAMENTO E ACABAMENTO DE CONCRETO EM ESTRUTURAS. AF_02/2022 | O30: =Referencia.Unidade -> M3 | P30: =OFFSET(PLQ!$E$12,ROW($P30)-ROW(P$12),0) -> 1.49 | Q30: 255.08 | R30: BDI 1 | S30: 322.37 | T30: 480.33 | V30: =IF(OR($A30=0,$A30="S",$A30>CFF!$A$9),"",MAX(V$12:OFFSET(V30,-1,0))+1) ->  | W30: SINAPI-103670 | X30: 2594 | Y30: 255.08 | Z30: =ROUND(IF(ISNUMBER(R30),R30,IF(LEFT(R30,3)="BDI",HLOOKUP(R30,DADOS!$T$37:$X$38,2,FALSE),0)),15-11*$X$5) -> 0.2638
A31: S | B31: 0 | C31: 1 | D31: 3 | E31: 0 | F31: 0 | G31: 3 | H31: 0 | I31: 0 | J31: Serviço | K31: 1.3.3. | L31: SINAPI | M31: 96533 | N31: FABRICAÇÃO, MONTAGEM E DESMONTAGEM DE FÔRMA PARA VIGA BALDRAME, EM MADEIRA SERRADA, E=25 MM, 2 UTILIZAÇÕES. AF_06/2017 | O31: =Referencia.Unidade -> M2 | P31: =OFFSET(PLQ!$E$12,ROW($P31)-ROW(P$12),0) -> 12.95 | Q31: 84.61 | R31: BDI 1 | S31: 106.93 | T31: 1384.74 | V31: =IF(OR($A31=0,$A31="S",$A31>CFF!$A$9),"",MAX(V$12:OFFSET(V31,-1,0))+1) ->  | W31: SINAPI-96533 | X31: 2325 | Y31: 84.61 | Z31: =ROUND(IF(ISNUMBER(R31),R31,IF(LEFT(R31,3)="BDI",HLOOKUP(R31,DADOS!$T$37:$X$38,2,FALSE),0)),15-11*$X$5) -> 0.2638
A32: =CHOOSE(1+LOG(1+2*(J32="Meta")+4*(J32="Nível 2")+8*(J32="Nível 3")+16*(J32="Nível 4")+32*(J32="Serviço"),2),0,1,2,3,4,"S") -> S | B32: =IF(OR(A32="S",A32=0),0,IF(ISERROR(I32),H32,SMALL(H32:I32,1))) -> 0 | C32: =IF($A32=1,OFFSET(C32,-1,0)+1,OFFSET(C32,-1,0)) -> 1 | D32: =IF($A32=1,0,IF($A32=2,OFFSET(D32,-1,0)+1,OFFSET(D32,-1,0))) -> 3 | E32: =IF(AND($A32<=2,$A32<>0),0,IF($A32=3,OFFSET(E32,-1,0)+1,OFFSET(E32,-1,0))) -> 0 | F32: =IF(AND($A32<=3,$A32<>0),0,IF($A32=4,OFFSET(F32,-1,0)+1,OFFSET(F32,-1,0))) -> 0 | G32: =IF(AND($A32<=4,$A32<>0),0,IF($A32="S",OFFSET(G32,-1,0)+1,OFFSET(G32,-1,0))) -> 4 | H32: 0 | I32: 0 | J32: Serviço | K32: =IF($A32=0,"-",CONCATENATE(C32&".",IF(AND($A$5>=2,$A32>=2),D32&".",""),IF(AND($A$5>=3,$A32>=3),E32&".",""),IF(AND($A$5>=4,$A32>=4),F32&".",""),IF($A32="S",G32&".",""))) -> 1.3.4. | L32: SINAPI | M32: 92919 | N32: =IF($A32="S",Referencia.Descricao,"(digite a descrição aqui)") -> ARMAÇÃO DE ESTRUTURAS DIVERSAS DE CONCRETO ARMADO, EXCETO VIGAS, PILARES, LAJES E FUNDAÇÕES, UTILIZANDO AÇO CA-50 DE 10,0 MM - MONTAGEM. AF_06/2022 | O32: =Referencia.Unidade -> KG | P32: =OFFSET(PLQ!$E$12,ROW($P32)-ROW(P$12),0) -> 4.97 | Q32: 12.52 | R32: BDI 1 | S32: =IF($A32="S",IF($Q$10="Preço Unitário (R$)",PO.CustoUnitario,ROUND(PO.CustoUnitario*(1+$Z32),15-13*$X$6)),0) -> 15.82 | T32: =IF($A32="S",VTOTAL1,IF($A32=0,0,ROUND(SomaAgrup,15-13*$X$7))) -> 78.63 | U32: =IF($J32="","",IF($N32="","DESCRIÇÃO",IF(AND($J32="Serviço",$O32=""),"UNIDADE",IF($T32<=0,"SEM VALOR",IF(AND($Y32<>"",$Q32>$Y32),"ACIMA REF.",""))))) ->  | V32: =IF(OR($A32=0,$A32="S",$A32>CFF!$A$9),"",MAX(V$12:OFFSET(V32,-1,0))+1) ->  | W32: =IF(AND($J32="Serviço",$M32<>""),IF($L32="",$M32,CONCATENATE($L32,"-",$M32))) -> SINAPI-92919 | X32: =IF(AND(Fonte<>"",Código<>""),MATCH(Fonte&" "&IF(Fonte="sinapi",SUBSTITUTE(SUBSTITUTE(Código,"/00","/"),"/0","/"),Código),INDIRECT("'[Referência "&_xlnm.Database&".xls]Banco'!$a:$a"),0),"X") -> 2490 | Y32: =IF(Import.Desoneracao="sim",Referencia.Desonerado,Referencia.NaoDesonerado) -> 12.52 | Z32: =ROUND(IF(ISNUMBER(R32),R32,IF(LEFT(R32,3)="BDI",HLOOKUP(R32,DADOS!$T$37:$X$38,2,FALSE),0)),15-11*$X$5) -> 0.2638
A33: =CHOOSE(1+LOG(1+2*(J33="Meta")+4*(J33="Nível 2")+8*(J33="Nível 3")+16*(J33="Nível 4")+32*(J33="Serviço"),2),0,1,2,3,4,"S") -> S | B33: =IF(OR(A33="S",A33=0),0,IF(ISERROR(I33),H33,SMALL(H33:I33,1))) -> 0 | C33: =IF($A33=1,OFFSET(C33,-1,0)+1,OFFSET(C33,-1,0)) -> 1 | D33: =IF($A33=1,0,IF($A33=2,OFFSET(D33,-1,0)+1,OFFSET(D33,-1,0))) -> 3 | E33: =IF(AND($A33<=2,$A33<>0),0,IF($A33=3,OFFSET(E33,-1,0)+1,OFFSET(E33,-1,0))) -> 0 | F33: =IF(AND($A33<=3,$A33<>0),0,IF($A33=4,OFFSET(F33,-1,0)+1,OFFSET(F33,-1,0))) -> 0 | G33: =IF(AND($A33<=4,$A33<>0),0,IF($A33="S",OFFSET(G33,-1,0)+1,OFFSET(G33,-1,0))) -> 5 | H33: 0 | I33: 0 | J33: Serviço | K33: =IF($A33=0,"-",CONCATENATE(C33&".",IF(AND($A$5>=2,$A33>=2),D33&".",""),IF(AND($A$5>=3,$A33>=3),E33&".",""),IF(AND($A$5>=4,$A33>=4),F33&".",""),IF($A33="S",G33&".",""))) -> 1.3.5. | L33: SINAPI | M33: 92917 | N33: =IF($A33="S",Referencia.Descricao,"(digite a descrição aqui)") -> ARMAÇÃO DE ESTRUTURAS DIVERSAS DE CONCRETO ARMADO, EXCETO VIGAS, PILARES, LAJES E FUNDAÇÕES, UTILIZANDO AÇO CA-50 DE 8,0 MM - MONTAGEM. AF_06/2022 | O33: =Referencia.Unidade -> KG | P33: =OFFSET(PLQ!$E$12,ROW($P33)-ROW(P$12),0) -> 4.94 | Q33: 14.12 | R33: BDI 1 | S33: =IF($A33="S",IF($Q$10="Preço Unitário (R$)",PO.CustoUnitario,ROUND(PO.CustoUnitario*(1+$Z33),15-13*$X$6)),0) -> 17.84 | T33: =IF($A33="S",VTOTAL1,IF($A33=0,0,ROUND(SomaAgrup,15-13*$X$7))) -> 88.13 | U33: =IF($J33="","",IF($N33="","DESCRIÇÃO",IF(AND($J33="Serviço",$O33=""),"UNIDADE",IF($T33<=0,"SEM VALOR",IF(AND($Y33<>"",$Q33>$Y33),"ACIMA REF.",""))))) ->  | V33: =IF(OR($A33=0,$A33="S",$A33>CFF!$A$9),"",MAX(V$12:OFFSET(V33,-1,0))+1) ->  | W33: =IF(AND($J33="Serviço",$M33<>""),IF($L33="",$M33,CONCATENATE($L33,"-",$M33))) -> SINAPI-92917 | X33: =IF(AND(Fonte<>"",Código<>""),MATCH(Fonte&" "&IF(Fonte="sinapi",SUBSTITUTE(SUBSTITUTE(Código,"/00","/"),"/0","/"),Código),INDIRECT("'[Referência "&_xlnm.Database&".xls]Banco'!$a:$a"),0),"X") -> 2489 | Y33: =IF(Import.Desoneracao="sim",Referencia.Desonerado,Referencia.NaoDesonerado) -> 14.12 | Z33: =ROUND(IF(ISNUMBER(R33),R33,IF(LEFT(R33,3)="BDI",HLOOKUP(R33,DADOS!$T$37:$X$38,2,FALSE),0)),15-11*$X$5) -> 0.2638
A34: S | B34: 0 | C34: 1 | D34: 3 | E34: 0 | F34: 0 | G34: 6 | H34: 0 | I34: 0 | J34: Serviço | K34: 1.3.6. | L34: SINAPI | M34: 92915 | N34: ARMAÇÃO DE ESTRUTURAS DIVERSAS DE CONCRETO ARMADO, EXCETO VIGAS, PILARES, LAJES E FUNDAÇÕES, UTILIZANDO AÇO CA-60 DE 5,0 MM - MONTAGEM. AF_06/2022 | O34: =Referencia.Unidade -> KG | P34: =OFFSET(PLQ!$E$12,ROW($P34)-ROW(P$12),0) -> 9.47 | Q34: 16.21 | R34: BDI 1 | S34: 20.49 | T34: 194.04 | V34: =IF(OR($A34=0,$A34="S",$A34>CFF!$A$9),"",MAX(V$12:OFFSET(V34,-1,0))+1) ->  | W34: SINAPI-92915 | X34: 2487 | Y34: 16.21 | Z34: =ROUND(IF(ISNUMBER(R34),R34,IF(LEFT(R34,3)="BDI",HLOOKUP(R34,DADOS!$T$37:$X$38,2,FALSE),0)),15-11*$X$5) -> 0.2638
A35: S | B35: 0 | C35: 1 | D35: 3 | E35: 0 | F35: 0 | G35: 7 | H35: 0 | I35: 0 | J35: Serviço | K35: 1.3.7. | L35: SINAPI | M35: 93188 | N35: VERGA MOLDADA IN LOCO EM CONCRETO PARA PORTAS COM ATÉ 1,5 M DE VÃO. AF_03/2016 | O35: =Referencia.Unidade -> M | P35: =OFFSET(PLQ!$E$12,ROW($P35)-ROW(P$12),0) -> 2 | Q35: 64.23 | R35: BDI 1 | S35: 81.17 | T35: 162.34 | V35: =IF(OR($A35=0,$A35="S",$A35>CFF!$A$9),"",MAX(V$12:OFFSET(V35,-1,0))+1) ->  | W35: SINAPI-93188 | X35: 2626 | Y35: 64.23 | Z35: =ROUND(IF(ISNUMBER(R35),R35,IF(LEFT(R35,3)="BDI",HLOOKUP(R35,DADOS!$T$37:$X$38,2,FALSE),0)),15-11*$X$5) -> 0.2638
A36: S | B36: 0 | C36: 1 | D36: 3 | E36: 0 | F36: 0 | G36: 8 | H36: 0 | I36: 0 | J36: Serviço | K36: 1.3.8. | L36: SINAPI | M36: 93186 | N36: VERGA MOLDADA IN LOCO EM CONCRETO PARA JANELAS COM ATÉ 1,5 M DE VÃO. AF_03/2016 | O36: =Referencia.Unidade -> M | P36: =OFFSET(PLQ!$E$12,ROW($P36)-ROW(P$12),0) -> 2.5 | Q36: 68.53 | R36: BDI 1 | S36: 86.61 | T36: 216.53 | V36: =IF(OR($A36=0,$A36="S",$A36>CFF!$A$9),"",MAX(V$12:OFFSET(V36,-1,0))+1) ->  | W36: SINAPI-93186 | X36: 2624 | Y36: 68.53 | Z36: =ROUND(IF(ISNUMBER(R36),R36,IF(LEFT(R36,3)="BDI",HLOOKUP(R36,DADOS!$T$37:$X$38,2,FALSE),0)),15-11*$X$5) -> 0.2638
A37: S | B37: 0 | C37: 1 | D37: 3 | E37: 0 | F37: 0 | G37: 9 | H37: 0 | I37: 0 | J37: Serviço | K37: 1.3.9. | L37: SINAPI | M37: 93196 | N37: CONTRAVERGA MOLDADA IN LOCO EM CONCRETO PARA VÃOS DE ATÉ 1,5 M DE COMPRIMENTO. AF_03/2016 | O37: =Referencia.Unidade -> M | P37: =OFFSET(PLQ!$E$12,ROW($P37)-ROW(P$12),0) -> 2.5 | Q37: 66.2 | R37: BDI 1 | S37: 83.66 | T37: 209.15 | V37: =IF(OR($A37=0,$A37="S",$A37>CFF!$A$9),"",MAX(V$12:OFFSET(V37,-1,0))+1) ->  | W37: SINAPI-93196 | X37: 2634 | Y37: 66.2 | Z37: =ROUND(IF(ISNUMBER(R37),R37,IF(LEFT(R37,3)="BDI",HLOOKUP(R37,DADOS!$T$37:$X$38,2,FALSE),0)),15-11*$X$5) -> 0.2638
A38: S | B38: 0 | C38: 1 | D38: 3 | E38: 0 | F38: 0 | G38: 10 | H38: 0 | I38: 0 | J38: Serviço | K38: 1.3.10. | L38: COTAÇÃO | M38: 01 | N38: CAIBRO 5X7cm EM MADEIRA DE PINHO BRASILEIRO | O38: =Referencia.Unidade -> m | P38: =OFFSET(PLQ!$E$12,ROW($P38)-ROW(P$12),0) -> 186.05 | Q38: 11.75 | R38: BDI 1 | S38: 14.85 | T38: 2762.84 | V38: =IF(OR($A38=0,$A38="S",$A38>CFF!$A$9),"",MAX(V$12:OFFSET(V38,-1,0))+1) ->  | W38: COTAÇÃO-01 | X38: 22 | Y38: 11.75 | Z38: =ROUND(IF(ISNUMBER(R38),R38,IF(LEFT(R38,3)="BDI",HLOOKUP(R38,DADOS!$T$37:$X$38,2,FALSE),0)),15-11*$X$5) -> 0.2638
A39: 2 | B39: 11 | C39: 1 | D39: 4 | E39: 0 | F39: 0 | G39: 0 | H39: 103 | I39: 11 | J39: Nível 2 | K39: 1.4. | N39: PAREDE | O39: =Referencia.Unidade ->  | P39: =OFFSET(PLQ!$E$12,ROW($P39)-ROW(P$12),0) -> 0 | R39: BDI 1 | S39: 0 | T39: 24441.94 | V39: =IF(OR($A39=0,$A39="S",$A39>CFF!$A$9),"",MAX(V$12:OFFSET(V39,-1,0))+1) -> 5 | W39: FALSE | X39: X | Y39: 0 | Z39: =ROUND(IF(ISNUMBER(R39),R39,IF(LEFT(R39,3)="BDI",HLOOKUP(R39,DADOS!$T$37:$X$38,2,FALSE),0)),15-11*$X$5) -> 0.2638
A40: S | B40: 0 | C40: 1 | D40: 4 | E40: 0 | F40: 0 | G40: 1 | H40: 0 | I40: 0 | J40: Serviço | K40: 1.4.1. | L40: SINAPI | M40: 103330 | N40: ALVENARIA DE VEDAÇÃO DE BLOCOS CERÂMICOS FURADOS NA HORIZONTAL DE 11,5X19X19 CM (ESPESSURA 11,5 CM) E ARGAMASSA DE ASSENTAMENTO COM PREPARO EM BETONEIRA. AF_12/2021 | O40: =Referencia.Unidade -> M2 | P40: =OFFSET(PLQ!$E$12,ROW($P40)-ROW(P$12),0) -> 32.16 | Q40: 76.24 | R40: BDI 1 | S40: 96.35 | T40: 3098.62 | V40: =IF(OR($A40=0,$A40="S",$A40>CFF!$A$9),"",MAX(V$12:OFFSET(V40,-1,0))+1) ->  | W40: SINAPI-103330 | X40: 5760 | Y40: 76.24 | Z40: =ROUND(IF(ISNUMBER(R40),R40,IF(LEFT(R40,3)="BDI",HLOOKUP(R40,DADOS!$T$37:$X$38,2,FALSE),0)),15-11*$X$5) -> 0.2638
A41: S | B41: 0 | C41: 1 | D41: 4 | E41: 0 | F41: 0 | G41: 2 | H41: 0 | I41: 0 | J41: Serviço | K41: 1.4.2. | L41: COTAÇÃO | M41: 03 | N41: PAREDE DE EUCALIPTO | O41: =Referencia.Unidade -> m2 | P41: =OFFSET(PLQ!$E$12,ROW($P41)-ROW(P$12),0) -> 40.38 | Q41: 90 | R41: BDI 1 | S41: 113.74 | T41: 4592.82 | V41: =IF(OR($A41=0,$A41="S",$A41>CFF!$A$9),"",MAX(V$12:OFFSET(V41,-1,0))+1) ->  | W41: COTAÇÃO-03 | X41: 24 | Y41: 90 | Z41: =ROUND(IF(ISNUMBER(R41),R41,IF(LEFT(R41,3)="BDI",HLOOKUP(R41,DADOS!$T$37:$X$38,2,FALSE),0)),15-11*$X$5) -> 0.2638
A42: S | B42: 0 | C42: 1 | D42: 4 | E42: 0 | F42: 0 | G42: 3 | H42: 0 | I42: 0 | J42: Serviço | K42: 1.4.3. | L42: COTAÇÃO | M42: 02 | N42: FORRO DE PINUS | O42: =Referencia.Unidade -> m2 | P42: =OFFSET(PLQ!$E$12,ROW($P42)-ROW(P$12),0) -> 63.54 | Q42: 30 | R42: BDI 1 | S42: 37.91 | T42: 2408.8 | V42: =IF(OR($A42=0,$A42="S",$A42>CFF!$A$9),"",MAX(V$12:OFFSET(V42,-1,0))+1) ->  | W42: COTAÇÃO-02 | X42: 23 | Y42: 30 | Z42: =ROUND(IF(ISNUMBER(R42),R42,IF(LEFT(R42,3)="BDI",HLOOKUP(R42,DADOS!$T$37:$X$38,2,FALSE),0)),15-11*$X$5) -> 0.2638
A43: S | B43: 0 | C43: 1 | D43: 4 | E43: 0 | F43: 0 | G43: 4 | H43: 0 | I43: 0 | J43: Serviço | K43: 1.4.4. | L43: SINAPI | M43: 91320 | N43: KIT DE PORTA DE MADEIRA PARA PINTURA, SEMI-OCA (LEVE OU MÉDIA), PADRÃO POPULAR, 80X210CM, ESPESSURA DE 3,5CM, ITENS INCLUSOS: DOBRADIÇAS, MONTAGEM E INSTALAÇÃO DO BATENTE, SEM FECHADURA - FORNECIMENTO E INSTALAÇÃO. AF_12/2019 | O43: =Referencia.Unidade -> UN | P43: =OFFSET(PLQ!$E$12,ROW($P43)-ROW(P$12),0) -> 3 | Q43: 900 | R43: BDI 1 | S43: 1137.42 | T43: 3412.26 | V43: =IF(OR($A43=0,$A43="S",$A43>CFF!$A$9),"",MAX(V$12:OFFSET(V43,-1,0))+1) ->  | W43: SINAPI-91320 | X43: 2008 | Y43: 900.33 | Z43: =ROUND(IF(ISNUMBER(R43),R43,IF(LEFT(R43,3)="BDI",HLOOKUP(R43,DADOS!$T$37:$X$38,2,FALSE),0)),15-11*$X$5) -> 0.2638
A44: S | B44: 0 | C44: 1 | D44: 4 | E44: 0 | F44: 0 | G44: 5 | H44: 0 | I44: 0 | J44: Serviço | K44: 1.4.5. | L44: SINAPI | M44: 91320 | N44: KIT DE PORTA DE MADEIRA PARA PINTURA, SEMI-OCA (LEVE OU MÉDIA), PADRÃO POPULAR, 80X210CM, ESPESSURA DE 3,5CM, ITENS INCLUSOS: DOBRADIÇAS, MONTAGEM E INSTALAÇÃO DO BATENTE, SEM FECHADURA - FORNECIMENTO E INSTALAÇÃO. AF_12/2019 | O44: =Referencia.Unidade -> UN | P44: =OFFSET(PLQ!$E$12,ROW($P44)-ROW(P$12),0) -> 1 | Q44: 900 | R44: BDI 1 | S44: 1137.42 | T44: 1137.42 | V44: =IF(OR($A44=0,$A44="S",$A44>CFF!$A$9),"",MAX(V$12:OFFSET(V44,-1,0))+1) ->  | W44: SINAPI-91320 | X44: 2008 | Y44: 900.33 | Z44: =ROUND(IF(ISNUMBER(R44),R44,IF(LEFT(R44,3)="BDI",HLOOKUP(R44,DADOS!$T$37:$X$38,2,FALSE),0)),15-11*$X$5) -> 0.2638
A45: S | B45: 0 | C45: 1 | D45: 4 | E45: 0 | F45: 0 | G45: 6 | H45: =IF(OR($A45="S",$A45=0),0,MATCH(0,OFFSET($B45,1,$A45,ROW($A$142)-ROW($A45)),0)) -> 0 | I45: =IF(OR($A45="S",$A45=0),0,MATCH(OFFSET($B45,0,$A45)+1,OFFSET($B45,1,$A45,ROW($A$142)-ROW($A45)),0)) -> 0 | J45: Serviço | K45: 1.4.6. | L45: SINAPI | M45: 91321 | N45: KIT DE PORTA DE MADEIRA PARA PINTURA, SEMI-OCA (LEVE OU MÉDIA), PADRÃO POPULAR, 90X210CM, ESPESSURA DE 3,5CM, ITENS INCLUSOS: DOBRADIÇAS, MONTAGEM E INSTALAÇÃO DO BATENTE, SEM FECHADURA - FORNECIMENTO E INSTALAÇÃO. AF_12/2019 | O45: =Referencia.Unidade -> UN | P45: =OFFSET(PLQ!$E$12,ROW($P45)-ROW(P$12),0) -> 1 | Q45: 1001.78 | R45: BDI 1 | S45: 1266.05 | T45: 1266.05 | V45: =IF(OR($A45=0,$A45="S",$A45>CFF!$A$9),"",MAX(V$12:OFFSET(V45,-1,0))+1) ->  | W45: SINAPI-91321 | X45: 2009 | Y45: 1001.78 | Z45: =ROUND(IF(ISNUMBER(R45),R45,IF(LEFT(R45,3)="BDI",HLOOKUP(R45,DADOS!$T$37:$X$38,2,FALSE),0)),15-11*$X$5) -> 0.2638
A46: S | B46: 0 | C46: 1 | D46: 4 | E46: 0 | F46: 0 | G46: 7 | H46: 0 | I46: 0 | J46: Serviço | K46: 1.4.7. | L46: SINAPI | M46: 100669 | N46: JANELA DE MADEIRA (PINUS/EUCALIPTO OU EQUIV.) TIPO BASCULANTE COM 2 FOLHAS PARA VIDRO, COM BATENTE, ALIZAR E FERRAGENS. EXCLUSIVE VIDROS, ACABAMENTO E CONTRAMARCO. FORNECIMENTO E INSTALAÇÃO. AF_12/2019 | O46: =Referencia.Unidade -> M2 | P46: =OFFSET(PLQ!$E$12,ROW($P46)-ROW(P$12),0) -> 0.25 | Q46: 1016.71 | R46: BDI 1 | S46: 1284.92 | T46: 321.23 | V46: =IF(OR($A46=0,$A46="S",$A46>CFF!$A$9),"",MAX(V$12:OFFSET(V46,-1,0))+1) ->  | W46: SINAPI-100669 | X46: 2058 | Y46: 1016.71 | Z46: =ROUND(IF(ISNUMBER(R46),R46,IF(LEFT(R46,3)="BDI",HLOOKUP(R46,DADOS!$T$37:$X$38,2,FALSE),0)),15-11*$X$5) -> 0.2638
A47: S | B47: 0 | C47: 1 | D47: 4 | E47: 0 | F47: 0 | G47: 8 | H47: 0 | I47: 0 | J47: Serviço | K47: 1.4.8. | L47: SINAPI | M47: 102152 | N47: INSTALAÇÃO DE VIDRO LISO, E = 4 MM, EM ESQUADRIA DE MADEIRA, FIXADO COM BAGUETE. AF_01/2021 | O47: =Referencia.Unidade -> M2 | P47: =OFFSET(PLQ!$E$12,ROW($P47)-ROW(P$12),0) -> 0.21 | Q47: 149.83 | R47: BDI 1 | S47: 189.36 | T47: 39.77 | V47: =IF(OR($A47=0,$A47="S",$A47>CFF!$A$9),"",MAX(V$12:OFFSET(V47,-1,0))+1) ->  | W47: SINAPI-102152 | X47: 2092 | Y47: 149.83 | Z47: =ROUND(IF(ISNUMBER(R47),R47,IF(LEFT(R47,3)="BDI",HLOOKUP(R47,DADOS!$T$37:$X$38,2,FALSE),0)),15-11*$X$5) -> 0.2638
A48: S | B48: 0 | C48: 1 | D48: 4 | E48: 0 | F48: 0 | G48: 9 | H48: 0 | I48: 0 | J48: Serviço | K48: 1.4.9. | L48: SINAPI | M48: 100666 | N48: JANELA DE MADEIRA (PINUS/EUCALIPTO OU EQUIV.) DE ABRIR COM 4 FOLHAS (2 VENEZIANAS E 2 GUILHOTINAS PARA VIDRO), COM BATENTE, ALIZAR E FERRAGENS. EXCLUSIVE VIDROS, ACABAMENTO E CONTRAMARCO. FORNECIMENTO E INSTALAÇÃO. AF_12/2019 | O48: =Referencia.Unidade -> M2 | P48: =OFFSET(PLQ!$E$12,ROW($P48)-ROW(P$12),0) -> 6.6 | Q48: 851.53 | R48: BDI 1 | S48: 1076.16 | T48: 7102.66 | V48: =IF(OR($A48=0,$A48="S",$A48>CFF!$A$9),"",MAX(V$12:OFFSET(V48,-1,0))+1) ->  | W48: SINAPI-100666 | X48: 2055 | Y48: 851.53 | Z48: =ROUND(IF(ISNUMBER(R48),R48,IF(LEFT(R48,3)="BDI",HLOOKUP(R48,DADOS!$T$37:$X$38,2,FALSE),0)),15-11*$X$5) -> 0.2638
A49: S | B49: 0 | C49: 1 | D49: 4 | E49: 0 | F49: 0 | G49: 10 | H49: 0 | I49: 0 | J49: Serviço | K49: 1.4.10. | L49: SINAPI | M49: 102152 | N49: INSTALAÇÃO DE VIDRO LISO, E = 4 MM, EM ESQUADRIA DE MADEIRA, FIXADO COM BAGUETE. AF_01/2021 | O49: =Referencia.Unidade -> M2 | P49: =OFFSET(PLQ!$E$12,ROW($P49)-ROW(P$12),0) -> 5.61 | Q49: 149.83 | R49: BDI 1 | S49: 189.36 | T49: 1062.31 | V49: =IF(OR($A49=0,$A49="S",$A49>CFF!$A$9),"",MAX(V$12:OFFSET(V49,-1,0))+1) ->  | W49: SINAPI-102152 | X49: 2092 | Y49: 149.83 | Z49: =ROUND(IF(ISNUMBER(R49),R49,IF(LEFT(R49,3)="BDI",HLOOKUP(R49,DADOS!$T$37:$X$38,2,FALSE),0)),15-11*$X$5) -> 0.2638
A50: 2 | B50: 9 | C50: 1 | D50: 5 | E50: 0 | F50: 0 | G50: 0 | H50: 92 | I50: 9 | J50: Nível 2 | K50: 1.5. | N50: REVESTIMENTOS | O50: =Referencia.Unidade ->  | P50: =OFFSET(PLQ!$E$12,ROW($P50)-ROW(P$12),0) -> 0 | R50: BDI 1 | S50: 0 | T50: 9537.37 | V50: =IF(OR($A50=0,$A50="S",$A50>CFF!$A$9),"",MAX(V$12:OFFSET(V50,-1,0))+1) -> 6 | W50: FALSE | X50: X | Y50: 0 | Z50: =ROUND(IF(ISNUMBER(R50),R50,IF(LEFT(R50,3)="BDI",HLOOKUP(R50,DADOS!$T$37:$X$38,2,FALSE),0)),15-11*$X$5) -> 0.2638
A51: S | B51: 0 | C51: 1 | D51: 5 | E51: 0 | F51: 0 | G51: 1 | H51: 0 | I51: 0 | J51: Serviço | K51: 1.5.1. | L51: SINAPI | M51: 87878 | N51: CHAPISCO APLICADO EM ALVENARIAS E ESTRUTURAS DE CONCRETO INTERNAS, COM COLHER DE PEDREIRO. ARGAMASSA TRAÇO 1:3 COM PREPARO MANUAL. AF_10/2022 | O51: =Referencia.Unidade -> M2 | P51: =OFFSET(PLQ!$E$12,ROW($P51)-ROW(P$12),0) -> 43.91 | Q51: 4.36 | R51: BDI 1 | S51: 5.51 | T51: 241.94 | V51: =IF(OR($A51=0,$A51="S",$A51>CFF!$A$9),"",MAX(V$12:OFFSET(V51,-1,0))+1) ->  | W51: SINAPI-87878 | X51: 6260 | Y51: 4.36 | Z51: =ROUND(IF(ISNUMBER(R51),R51,IF(LEFT(R51,3)="BDI",HLOOKUP(R51,DADOS!$T$37:$X$38,2,FALSE),0)),15-11*$X$5) -> 0.2638
A52: S | B52: 0 | C52: 1 | D52: 5 | E52: 0 | F52: 0 | G52: 2 | H52: 0 | I52: 0 | J52: Serviço | K52: 1.5.2. | L52: SINAPI | M52: 87777 | N52: EMBOÇO OU MASSA ÚNICA EM ARGAMASSA TRAÇO 1:2:8, PREPARO MANUAL, APLICADA MANUALMENTE EM PANOS DE FACHADA COM PRESENÇA DE VÃOS, ESPESSURA DE 25 MM. AF_08/2022 | O52: =Referencia.Unidade -> M2 | P52: =OFFSET(PLQ!$E$12,ROW($P52)-ROW(P$12),0) -> 43.91 | Q52: 50.42 | R52: BDI 1 | S52: 63.72 | T52: 2797.95 | V52: =IF(OR($A52=0,$A52="S",$A52>CFF!$A$9),"",MAX(V$12:OFFSET(V52,-1,0))+1) ->  | W52: SINAPI-87777 | X52: 6329 | Y52: 50.42 | Z52: =ROUND(IF(ISNUMBER(R52),R52,IF(LEFT(R52,3)="BDI",HLOOKUP(R52,DADOS!$T$37:$X$38,2,FALSE),0)),15-11*$X$5) -> 0.2638
A53: S | B53: 0 | C53: 1 | D53: 5 | E53: 0 | F53: 0 | G53: 3 | H53: 0 | I53: 0 | J53: Serviço | K53: 1.5.3. | L53: SINAPI | M53: 88485 | N53: APLICAÇÃO DE FUNDO SELADOR ACRÍLICO EM PAREDES, UMA DEMÃO. AF_06/2014 | O53: =Referencia.Unidade -> M2 | P53: =OFFSET(PLQ!$E$12,ROW($P53)-ROW(P$12),0) -> 43.91 | Q53: 2.61 | R53: BDI 1 | S53: 3.3 | T53: 144.9 | V53: =IF(OR($A53=0,$A53="S",$A53>CFF!$A$9),"",MAX(V$12:OFFSET(V53,-1,0))+1) ->  | W53: SINAPI-88485 | X53: 5993 | Y53: 2.61 | Z53: =ROUND(IF(ISNUMBER(R53),R53,IF(LEFT(R53,3)="BDI",HLOOKUP(R53,DADOS!$T$37:$X$38,2,FALSE),0)),15-11*$X$5) -> 0.2638
A54: S | B54: 0 | C54: 1 | D54: 5 | E54: 0 | F54: 0 | G54: 4 | H54: 0 | I54: 0 | J54: Serviço | K54: 1.5.4. | L54: SINAPI | M54: 88489 | N54: APLICAÇÃO MANUAL DE PINTURA COM TINTA LÁTEX ACRÍLICA EM PAREDES, DUAS DEMÃOS. AF_06/2014 | O54: =Referencia.Unidade -> M2 | P54: =OFFSET(PLQ!$E$12,ROW($P54)-ROW(P$12),0) -> 43.91 | Q54: 15.69 | R54: BDI 1 | S54: 19.83 | T54: 870.74 | V54: =IF(OR($A54=0,$A54="S",$A54>CFF!$A$9),"",MAX(V$12:OFFSET(V54,-1,0))+1) ->  | W54: SINAPI-88489 | X54: 5995 | Y54: 15.69 | Z54: =ROUND(IF(ISNUMBER(R54),R54,IF(LEFT(R54,3)="BDI",HLOOKUP(R54,DADOS!$T$37:$X$38,2,FALSE),0)),15-11*$X$5) -> 0.2638
A55: S | B55: 0 | C55: 1 | D55: 5 | E55: 0 | F55: 0 | G55: 5 | H55: 0 | I55: 0 | J55: Serviço | K55: 1.5.5. | L55: SINAPI | M55: 87528 | N55: EMBOÇO, PARA RECEBIMENTO DE CERÂMICA, EM ARGAMASSA TRAÇO 1:2:8, PREPARO MANUAL, APLICADO MANUALMENTE EM FACES INTERNAS DE PAREDES, PARA AMBIENTE COM ÁREA MENOR QUE 5M2, ESPESSURA DE 20MM, COM EXECUÇÃO DE TALISCAS. AF_06/2014 | O55: =Referencia.Unidade -> M2 | P55: =OFFSET(PLQ!$E$12,ROW($P55)-ROW(P$12),0) -> 20.41 | Q55: 39.9 | R55: BDI 1 | S55: 50.43 | T55: 1029.28 | V55: =IF(OR($A55=0,$A55="S",$A55>CFF!$A$9),"",MAX(V$12:OFFSET(V55,-1,0))+1) ->  | W55: SINAPI-87528 | X55: 6303 | Y55: 39.9 | Z55: =ROUND(IF(ISNUMBER(R55),R55,IF(LEFT(R55,3)="BDI",HLOOKUP(R55,DADOS!$T$37:$X$38,2,FALSE),0)),15-11*$X$5) -> 0.2638
A56: S | B56: 0 | C56: 1 | D56: 5 | E56: 0 | F56: 0 | G56: 6 | H56: 0 | I56: 0 | J56: Serviço | K56: 1.5.6. | L56: SINAPI | M56: 104611 | N56: REVESTIMENTO CERÂMICO PARA PAREDES INTERNAS COM PLACAS TIPO ESMALTADA EXTRA DE DIMENSÕES 60X60 CM APLICADAS NA ALTURA INTEIRA DAS PAREDES. AF_02/2023_PE | O56: =Referencia.Unidade -> M2 | P56: =OFFSET(PLQ!$E$12,ROW($P56)-ROW(P$12),0) -> 20.41 | Q56: 73.42 | R56: BDI 1 | S56: 92.79 | T56: 1893.84 | V56: =IF(OR($A56=0,$A56="S",$A56>CFF!$A$9),"",MAX(V$12:OFFSET(V56,-1,0))+1) ->  | W56: SINAPI-104611 | X56: 6491 | Y56: 73.42 | Z56: =ROUND(IF(ISNUMBER(R56),R56,IF(LEFT(R56,3)="BDI",HLOOKUP(R56,DADOS!$T$37:$X$38,2,FALSE),0)),15-11*$X$5) -> 0.2638
A57: S | B57: 0 | C57: 1 | D57: 5 | E57: 0 | F57: 0 | G57: 7 | H57: 0 | I57: 0 | J57: Serviço | K57: 1.5.7. | L57: SINAPI | M57: 102213 | N57: PINTURA VERNIZ (INCOLOR) ALQUÍDICO EM MADEIRA, USO INTERNO E EXTERNO, 2 DEMÃOS. AF_01/2021 | O57: =Referencia.Unidade -> M2 | P57: =OFFSET(PLQ!$E$12,ROW($P57)-ROW(P$12),0) -> 103.92 | Q57: 18.57 | R57: BDI 1 | S57: 23.47 | T57: 2439 | V57: =IF(OR($A57=0,$A57="S",$A57>CFF!$A$9),"",MAX(V$12:OFFSET(V57,-1,0))+1) ->  | W57: SINAPI-102213 | X57: 6030 | Y57: 18.57 | Z57: =ROUND(IF(ISNUMBER(R57),R57,IF(LEFT(R57,3)="BDI",HLOOKUP(R57,DADOS!$T$37:$X$38,2,FALSE),0)),15-11*$X$5) -> 0.2638
A58: =CHOOSE(1+LOG(1+2*(J58="Meta")+4*(J58="Nível 2")+8*(J58="Nível 3")+16*(J58="Nível 4")+32*(J58="Serviço"),2),0,1,2,3,4,"S") -> S | B58: =IF(OR(A58="S",A58=0),0,IF(ISERROR(I58),H58,SMALL(H58:I58,1))) -> 0 | C58: =IF($A58=1,OFFSET(C58,-1,0)+1,OFFSET(C58,-1,0)) -> 1 | D58: =IF($A58=1,0,IF($A58=2,OFFSET(D58,-1,0)+1,OFFSET(D58,-1,0))) -> 5 | E58: =IF(AND($A58<=2,$A58<>0),0,IF($A58=3,OFFSET(E58,-1,0)+1,OFFSET(E58,-1,0))) -> 0 | F58: =IF(AND($A58<=3,$A58<>0),0,IF($A58=4,OFFSET(F58,-1,0)+1,OFFSET(F58,-1,0))) -> 0 | G58: =IF(AND($A58<=4,$A58<>0),0,IF($A58="S",OFFSET(G58,-1,0)+1,OFFSET(G58,-1,0))) -> 8 | H58: 0 | I58: 0 | J58: Serviço | K58: =IF($A58=0,"-",CONCATENATE(C58&".",IF(AND($A$5>=2,$A58>=2),D58&".",""),IF(AND($A$5>=3,$A58>=3),E58&".",""),IF(AND($A$5>=4,$A58>=4),F58&".",""),IF($A58="S",G58&".",""))) -> 1.5.8. | L58: SINAPI | M58: 102220 | N58: =IF($A58="S",Referencia.Descricao,"(digite a descrição aqui)") -> PINTURA TINTA DE ACABAMENTO (PIGMENTADA) ESMALTE SINTÉTICO BRILHANTE EM MADEIRA, 2 DEMÃOS. AF_01/2021 | O58: =Referencia.Unidade -> M2 | P58: =OFFSET(PLQ!$E$12,ROW($P58)-ROW(P$12),0) -> 6.6 | Q58: 14.35 | R58: BDI 1 | S58: =IF($A58="S",IF($Q$10="Preço Unitário (R$)",PO.CustoUnitario,ROUND(PO.CustoUnitario*(1+$Z58),15-13*$X$6)),0) -> 18.14 | T58: =IF($A58="S",VTOTAL1,IF($A58=0,0,ROUND(SomaAgrup,15-13*$X$7))) -> 119.72 | U58: =IF($J58="","",IF($N58="","DESCRIÇÃO",IF(AND($J58="Serviço",$O58=""),"UNIDADE",IF($T58<=0,"SEM VALOR",IF(AND($Y58<>"",$Q58>$Y58),"ACIMA REF.",""))))) ->  | V58: =IF(OR($A58=0,$A58="S",$A58>CFF!$A$9),"",MAX(V$12:OFFSET(V58,-1,0))+1) ->  | W58: =IF(AND($J58="Serviço",$M58<>""),IF($L58="",$M58,CONCATENATE($L58,"-",$M58))) -> SINAPI-102220 | X58: =IF(AND(Fonte<>"",Código<>""),MATCH(Fonte&" "&IF(Fonte="sinapi",SUBSTITUTE(SUBSTITUTE(Código,"/00","/"),"/0","/"),Código),INDIRECT("'[Referência "&_xlnm.Database&".xls]Banco'!$a:$a"),0),"X") -> 6036 | Y58: =IF(Import.Desoneracao="sim",Referencia.Desonerado,Referencia.NaoDesonerado) -> 14.35 | Z58: =ROUND(IF(ISNUMBER(R58),R58,IF(LEFT(R58,3)="BDI",HLOOKUP(R58,DADOS!$T$37:$X$38,2,FALSE),0)),15-11*$X$5) -> 0.2638
A59: 2 | B59: 6 | C59: 1 | D59: 6 | E59: 0 | F59: 0 | G59: 0 | H59: 83 | I59: 6 | J59: Nível 2 | K59: 1.6. | N59: PAVIMENTAÇÃO INTERNA | O59: =Referencia.Unidade ->  | P59: =OFFSET(PLQ!$E$12,ROW($P59)-ROW(P$12),0) -> 0 | R59: BDI 1 | S59: 0 | T59: 6208.84 | V59: =IF(OR($A59=0,$A59="S",$A59>CFF!$A$9),"",MAX(V$12:OFFSET(V59,-1,0))+1) -> 7 | W59: FALSE | X59: X | Y59: 0 | Z59: =ROUND(IF(ISNUMBER(R59),R59,IF(LEFT(R59,3)="BDI",HLOOKUP(R59,DADOS!$T$37:$X$38,2,FALSE),0)),15-11*$X$5) -> 0.2638
A60: S | B60: 0 | C60: 1 | D60: 6 | E60: 0 | F60: 0 | G60: 1 | H60: 0 | I60: 0 | J60: Serviço | K60: 1.6.1. | L60: SINAPI | M60: 100324 | N60: LASTRO COM MATERIAL GRANULAR (PEDRA BRITADA N.1 E PEDRA BRITADA N.2), APLICADO EM PISOS OU LAJES SOBRE SOLO, ESPESSURA DE *10 CM*. AF_07/2019 | O60: =Referencia.Unidade -> M3 | P60: =OFFSET(PLQ!$E$12,ROW($P60)-ROW(P$12),0) -> 2.32 | Q60: 112.26 | R60: BDI 1 | S60: 141.87 | T60: 329.14 | V60: =IF(OR($A60=0,$A60="S",$A60>CFF!$A$9),"",MAX(V$12:OFFSET(V60,-1,0))+1) ->  | W60: SINAPI-100324 | X60: 2213 | Y60: 112.26 | Z60: =ROUND(IF(ISNUMBER(R60),R60,IF(LEFT(R60,3)="BDI",HLOOKUP(R60,DADOS!$T$37:$X$38,2,FALSE),0)),15-11*$X$5) -> 0.2638
A61: S | B61: 0 | C61: 1 | D61: 6 | E61: 0 | F61: 0 | G61: 2 | H61: 0 | I61: 0 | J61: Serviço | K61: 1.6.2. | L61: SINAPI | M61: 95241 | N61: LASTRO DE CONCRETO MAGRO, APLICADO EM PISOS, LAJES SOBRE SOLO OU RADIERS, ESPESSURA DE 5 CM. AF_07/2016 | O61: =Referencia.Unidade -> M2 | P61: =OFFSET(PLQ!$E$12,ROW($P61)-ROW(P$12),0) -> 46.36 | Q61: 27.91 | R61: BDI 1 | S61: 35.27 | T61: 1635.12 | V61: =IF(OR($A61=0,$A61="S",$A61>CFF!$A$9),"",MAX(V$12:OFFSET(V61,-1,0))+1) ->  | W61: SINAPI-95241 | X61: 2186 | Y61: 27.91 | Z61: =ROUND(IF(ISNUMBER(R61),R61,IF(LEFT(R61,3)="BDI",HLOOKUP(R61,DADOS!$T$37:$X$38,2,FALSE),0)),15-11*$X$5) -> 0.2638
A62: S | B62: 0 | C62: 1 | D62: 6 | E62: 0 | F62: 0 | G62: 3 | H62: 0 | I62: 0 | J62: Serviço | K62: 1.6.3. | L62: SINAPI | M62: 87251 | N62: REVESTIMENTO CERÂMICO PARA PISO COM PLACAS TIPO ESMALTADA EXTRA DE DIMENSÕES 45X45 CM APLICADA EM AMBIENTES DE ÁREA MAIOR QUE 10 M2. AF_02/2023_PE | O62: =Referencia.Unidade -> M2 | P62: =OFFSET(PLQ!$E$12,ROW($P62)-ROW(P$12),0) -> 48.68 | Q62: 46.08 | R62: BDI 1 | S62: 58.24 | T62: 2835.12 | V62: =IF(OR($A62=0,$A62="S",$A62>CFF!$A$9),"",MAX(V$12:OFFSET(V62,-1,0))+1) ->  | W62: SINAPI-87251 | X62: 6117 | Y62: 46.08 | Z62: =ROUND(IF(ISNUMBER(R62),R62,IF(LEFT(R62,3)="BDI",HLOOKUP(R62,DADOS!$T$37:$X$38,2,FALSE),0)),15-11*$X$5) -> 0.2638
A63: S | B63: 0 | C63: 1 | D63: 6 | E63: 0 | F63: 0 | G63: 4 | H63: 0 | I63: 0 | J63: Serviço | K63: 1.6.4. | L63: SINAPI | M63: 101739 | N63: RODAPÉ EM MADEIRA, ALTURA 7CM, FIXADO COM COLA E PARAFUSOS. AF_09/2020 | O63: =Referencia.Unidade -> M | P63: =OFFSET(PLQ!$E$12,ROW($P63)-ROW(P$12),0) -> 35.21 | Q63: 30.76 | R63: BDI 1 | S63: 38.87 | T63: 1368.61 | V63: =IF(OR($A63=0,$A63="S",$A63>CFF!$A$9),"",MAX(V$12:OFFSET(V63,-1,0))+1) ->  | W63: SINAPI-101739 | X63: 6181 | Y63: 30.76 | Z63: =ROUND(IF(ISNUMBER(R63),R63,IF(LEFT(R63,3)="BDI",HLOOKUP(R63,DADOS!$T$37:$X$38,2,FALSE),0)),15-11*$X$5) -> 0.2638
A64: S | B64: 0 | C64: 1 | D64: 6 | E64: 0 | F64: 0 | G64: 5 | H64: 0 | I64: 0 | J64: Serviço | K64: 1.6.5. | L64: SINAPI | M64: 88649 | N64: RODAPÉ CERÂMICO DE 7CM DE ALTURA COM PLACAS TIPO ESMALTADA EXTRA DE DIMENSÕES 45X45CM. AF_02/2023 | O64: =Referencia.Unidade -> M | P64: =OFFSET(PLQ!$E$12,ROW($P64)-ROW(P$12),0) -> 4.35 | Q64: 7.43 | R64: BDI 1 | S64: 9.39 | T64: 40.85 | V64: =IF(OR($A64=0,$A64="S",$A64>CFF!$A$9),"",MAX(V$12:OFFSET(V64,-1,0))+1) ->  | W64: SINAPI-88649 | X64: 6183 | Y64: 7.43 | Z64: =ROUND(IF(ISNUMBER(R64),R64,IF(LEFT(R64,3)="BDI",HLOOKUP(R64,DADOS!$T$37:$X$38,2,FALSE),0)),15-11*$X$5) -> 0.2638
A65: 2 | B65: 6 | C65: 1 | D65: 7 | E65: 0 | F65: 0 | G65: 0 | H65: 77 | I65: 6 | J65: Nível 2 | K65: 1.7. | N65: FORRO E COBERTURA | O65: =Referencia.Unidade ->  | P65: =OFFSET(PLQ!$E$12,ROW($P65)-ROW(P$12),0) -> 0 | R65: BDI 1 | S65: 0 | T65: 16457.44 | V65: =IF(OR($A65=0,$A65="S",$A65>CFF!$A$9),"",MAX(V$12:OFFSET(V65,-1,0))+1) -> 8 | W65: FALSE | X65: X | Y65: 0 | Z65: =ROUND(IF(ISNUMBER(R65),R65,IF(LEFT(R65,3)="BDI",HLOOKUP(R65,DADOS!$T$37:$X$38,2,FALSE),0)),15-11*$X$5) -> 0.2638
A66: S | B66: 0 | C66: 1 | D66: 7 | E66: 0 | F66: 0 | G66: 1 | H66: 0 | I66: 0 | J66: Serviço | K66: 1.7.1. | L66: SINAPI | M66: 96111 | N66: FORRO EM RÉGUAS DE PVC, FRISADO, PARA AMBIENTES RESIDENCIAIS, INCLUSIVE ESTRUTURA DE FIXAÇÃO. AF_05/2017_PS | O66: =Referencia.Unidade -> M2 | P66: =OFFSET(PLQ!$E$12,ROW($P66)-ROW(P$12),0) -> 62.36 | Q66: 74.07 | R66: BDI 1 | S66: 93.61 | T66: 5837.52 | V66: =IF(OR($A66=0,$A66="S",$A66>CFF!$A$9),"",MAX(V$12:OFFSET(V66,-1,0))+1) ->  | W66: SINAPI-96111 | X66: 6513 | Y66: 74.07 | Z66: =ROUND(IF(ISNUMBER(R66),R66,IF(LEFT(R66,3)="BDI",HLOOKUP(R66,DADOS!$T$37:$X$38,2,FALSE),0)),15-11*$X$5) -> 0.2638
A67: S | B67: 0 | C67: 1 | D67: 7 | E67: 0 | F67: 0 | G67: 2 | H67: 0 | I67: 0 | J67: Serviço | K67: 1.7.2. | L67: SINAPI | M67: 96121 | N67: ACABAMENTOS PARA FORRO (RODA-FORRO EM PERFIL METÁLICO E PLÁSTICO). AF_05/2017 | O67: =Referencia.Unidade -> M | P67: =OFFSET(PLQ!$E$12,ROW($P67)-ROW(P$12),0) -> 73.15 | Q67: 13.13 | R67: BDI 1 | S67: 16.59 | T67: 1213.56 | V67: =IF(OR($A67=0,$A67="S",$A67>CFF!$A$9),"",MAX(V$12:OFFSET(V67,-1,0))+1) ->  | W67: SINAPI-96121 | X67: 6515 | Y67: 13.13 | Z67: =ROUND(IF(ISNUMBER(R67),R67,IF(LEFT(R67,3)="BDI",HLOOKUP(R67,DADOS!$T$37:$X$38,2,FALSE),0)),15-11*$X$5) -> 0.2638
A68: S | B68: 0 | C68: 1 | D68: 7 | E68: 0 | F68: 0 | G68: 3 | H68: 0 | I68: 0 | J68: Serviço | K68: 1.7.3. | L68: SINAPI | M68: 92259 | N68: INSTALAÇÃO DE TESOURA (INTEIRA OU MEIA), BIAPOIADA, EM MADEIRA NÃO APARELHADA, PARA VÃOS MAIORES OU IGUAIS A 3,0 M E MENORES QUE 6,0 M, INCLUSO IÇAMENTO. AF_07/2019 | O68: =Referencia.Unidade -> UN | P68: =OFFSET(PLQ!$E$12,ROW($P68)-ROW(P$12),0) -> 9 | Q68: 340.11 | R68: BDI 1 | S68: 429.83 | T68: 3868.47 | V68: =IF(OR($A68=0,$A68="S",$A68>CFF!$A$9),"",MAX(V$12:OFFSET(V68,-1,0))+1) ->  | W68: SINAPI-92259 | X68: 1319 | Y68: 340.11 | Z68: =ROUND(IF(ISNUMBER(R68),R68,IF(LEFT(R68,3)="BDI",HLOOKUP(R68,DADOS!$T$37:$X$38,2,FALSE),0)),15-11*$X$5) -> 0.2638
A69: =CHOOSE(1+LOG(1+2*(J69="Meta")+4*(J69="Nível 2")+8*(J69="Nível 3")+16*(J69="Nível 4")+32*(J69="Serviço"),2),0,1,2,3,4,"S") -> S | B69: =IF(OR(A69="S",A69=0),0,IF(ISERROR(I69),H69,SMALL(H69:I69,1))) -> 0 | C69: =IF($A69=1,OFFSET(C69,-1,0)+1,OFFSET(C69,-1,0)) -> 1 | D69: =IF($A69=1,0,IF($A69=2,OFFSET(D69,-1,0)+1,OFFSET(D69,-1,0))) -> 7 | E69: =IF(AND($A69<=2,$A69<>0),0,IF($A69=3,OFFSET(E69,-1,0)+1,OFFSET(E69,-1,0))) -> 0 | F69: =IF(AND($A69<=3,$A69<>0),0,IF($A69=4,OFFSET(F69,-1,0)+1,OFFSET(F69,-1,0))) -> 0 | G69: =IF(AND($A69<=4,$A69<>0),0,IF($A69="S",OFFSET(G69,-1,0)+1,OFFSET(G69,-1,0))) -> 4 | H69: 0 | I69: 0 | J69: Serviço | K69: =IF($A69=0,"-",CONCATENATE(C69&".",IF(AND($A$5>=2,$A69>=2),D69&".",""),IF(AND($A$5>=3,$A69>=3),E69&".",""),IF(AND($A$5>=4,$A69>=4),F69&".",""),IF($A69="S",G69&".",""))) -> 1.7.4. | L69: SINAPI | M69: 94207 | N69: TELHAMENTO COM TELHA ONDULADA DE FIBROCIMENTO E = 6 MM, COM RECOBRIMENTO LATERAL DE 1/4 DE ONDA PARA TELHADO COM INCLINAÇÃO MAIOR QUE 10°, COM ATÉ 2 ÁGUAS, INCLUSO IÇAMENTO. AF_07/2019 | O69: =Referencia.Unidade -> M2 | P69: =OFFSET(PLQ!$E$12,ROW($P69)-ROW(P$12),0) -> 73.74 | Q69: 47.88 | R69: BDI 1 | S69: =IF($A69="S",IF($Q$10="Preço Unitário (R$)",PO.CustoUnitario,ROUND(PO.CustoUnitario*(1+$Z69),15-13*$X$6)),0) -> 60.51 | T69: =IF($A69="S",VTOTAL1,IF($A69=0,0,ROUND(SomaAgrup,15-13*$X$7))) -> 4462.01 | U69: =IF($J69="","",IF($N69="","DESCRIÇÃO",IF(AND($J69="Serviço",$O69=""),"UNIDADE",IF($T69<=0,"SEM VALOR",IF(AND($Y69<>"",$Q69>$Y69),"ACIMA REF.",""))))) ->  | V69: =IF(OR($A69=0,$A69="S",$A69>CFF!$A$9),"",MAX(V$12:OFFSET(V69,-1,0))+1) ->  | W69: =IF(AND($J69="Serviço",$M69<>""),IF($L69="",$M69,CONCATENATE($L69,"-",$M69))) -> SINAPI-94207 | X69: =IF(AND(Fonte<>"",Código<>""),MATCH(Fonte&" "&IF(Fonte="sinapi",SUBSTITUTE(SUBSTITUTE(Código,"/00","/"),"/0","/"),Código),INDIRECT("'[Referência "&_xlnm.Database&".xls]Banco'!$a:$a"),0),"X") -> 1385 | Y69: =IF(Import.Desoneracao="sim",Referencia.Desonerado,Referencia.NaoDesonerado) -> 47.88 | Z69: =ROUND(IF(ISNUMBER(R69),R69,IF(LEFT(R69,3)="BDI",HLOOKUP(R69,DADOS!$T$37:$X$38,2,FALSE),0)),15-11*$X$5) -> 0.2638
A70: S | B70: 0 | C70: 1 | D70: 7 | E70: 0 | F70: 0 | G70: 5 | H70: 0 | I70: 0 | J70: Serviço | K70: 1.7.5. | L70: SINAPI | M70: 100325 | N70: CUMEEIRA SHED PARA TELHA ONDULADA DE FIBROCIMENTO, E = 6 MM, INCLUSO ACESSÓRIOS DE FIXAÇÃO E IÇAMENTO. AF_07/2019 | O70: =Referencia.Unidade -> M | P70: =OFFSET(PLQ!$E$12,ROW($P70)-ROW(P$12),0) -> 9.5 | Q70: 89.61 | R70: BDI 1 | S70: 113.25 | T70: 1075.88 | V70: =IF(OR($A70=0,$A70="S",$A70>CFF!$A$9),"",MAX(V$12:OFFSET(V70,-1,0))+1) ->  | W70: SINAPI-100325 | X70: 1396 | Y70: =IF(Import.Desoneracao="sim",Referencia.Desonerado,Referencia.NaoDesonerado) -> 89.61 | Z70: =ROUND(IF(ISNUMBER(R70),R70,IF(LEFT(R70,3)="BDI",HLOOKUP(R70,DADOS!$T$37:$X$38,2,FALSE),0)),15-11*$X$5) -> 0.2638
A71: 2 | B71: 24 | C71: 1 | D71: 8 | E71: 0 | F71: 0 | G71: 0 | H71: 71 | I71: 24 | J71: Nível 2 | K71: 1.8. | N71: ISTALAÇÕES ELÉTRICA | O71: =Referencia.Unidade ->  | P71: =OFFSET(PLQ!$E$12,ROW($P71)-ROW(P$12),0) -> 0 | R71: BDI 1 | S71: 0 | T71: 5051.21 | V71: =IF(OR($A71=0,$A71="S",$A71>CFF!$A$9),"",MAX(V$12:OFFSET(V71,-1,0))+1) -> 9 | W71: FALSE | X71: X | Y71: =IF(Import.Desoneracao="sim",Referencia.Desonerado,Referencia.NaoDesonerado) -> 0 | Z71: =ROUND(IF(ISNUMBER(R71),R71,IF(LEFT(R71,3)="BDI",HLOOKUP(R71,DADOS!$T$37:$X$38,2,FALSE),0)),15-11*$X$5) -> 0.2638
A72: S | B72: 0 | C72: 1 | D72: 8 | E72: 0 | F72: 0 | G72: 1 | H72: 0 | I72: 0 | J72: Serviço | K72: 1.8.1. | L72: SINAPI | M72: 91940 | N72: =IF($A72="S",Referencia.Descricao,"(digite a descrição aqui)") -> CAIXA RETANGULAR 4" X 2" MÉDIA (1,30 M DO PISO), PVC, INSTALADA EM PAREDE - FORNECIMENTO E INSTALAÇÃO. AF_03/2023 | O72: =Referencia.Unidade -> UN | P72: =OFFSET(PLQ!$E$12,ROW($P72)-ROW(P$12),0) -> 18 | Q72: 16.83 | R72: BDI 1 | S72: 21.27 | T72: 382.86 | V72: =IF(OR($A72=0,$A72="S",$A72>CFF!$A$9),"",MAX(V$12:OFFSET(V72,-1,0))+1) ->  | W72: SINAPI-91940 | X72: 2880 | Y72: =IF(Import.Desoneracao="sim",Referencia.Desonerado,Referencia.NaoDesonerado) -> 16.83 | Z72: =ROUND(IF(ISNUMBER(R72),R72,IF(LEFT(R72,3)="BDI",HLOOKUP(R72,DADOS!$T$37:$X$38,2,FALSE),0)),15-11*$X$5) -> 0.2638
A73: S | B73: 0 | C73: 1 | D73: 8 | E73: 0 | F73: 0 | G73: 2 | H73: 0 | I73: 0 | J73: Serviço | K73: 1.8.2. | L73: SINAPI | M73: 91943 | N73: =IF($A73="S",Referencia.Descricao,"(digite a descrição aqui)") -> CAIXA RETANGULAR 4" X 4" MÉDIA (1,30 M DO PISO), PVC, INSTALADA EM PAREDE - FORNECIMENTO E INSTALAÇÃO. AF_03/2023 | O73: =Referencia.Unidade -> UN | P73: =OFFSET(PLQ!$E$12,ROW($P73)-ROW(P$12),0) -> 1 | Q73: 20.34 | R73: BDI 1 | S73: 25.71 | T73: 25.71 | V73: =IF(OR($A73=0,$A73="S",$A73>CFF!$A$9),"",MAX(V$12:OFFSET(V73,-1,0))+1) ->  | W73: SINAPI-91943 | X73: 2883 | Y73: =IF(Import.Desoneracao="sim",Referencia.Desonerado,Referencia.NaoDesonerado) -> 20.34 | Z73: =ROUND(IF(ISNUMBER(R73),R73,IF(LEFT(R73,3)="BDI",HLOOKUP(R73,DADOS!$T$37:$X$38,2,FALSE),0)),15-11*$X$5) -> 0.2638
A74: S | B74: 0 | C74: 1 | D74: 8 | E74: 0 | F74: 0 | G74: 3 | H74: 0 | I74: 0 | J74: Serviço | K74: 1.8.3. | L74: SINAPI | M74: 91937 | N74: =IF($A74="S",Referencia.Descricao,"(digite a descrição aqui)") -> CAIXA OCTOGONAL 3" X 3", PVC, INSTALADA EM LAJE - FORNECIMENTO E INSTALAÇÃO. AF_03/2023 | O74: =Referencia.Unidade -> UN | P74: =OFFSET(PLQ!$E$12,ROW($P74)-ROW(P$12),0) -> 9 | Q74: 15.38 | R74: BDI 1 | S74: 19.44 | T74: 174.96 | V74: =IF(OR($A74=0,$A74="S",$A74>CFF!$A$9),"",MAX(V$12:OFFSET(V74,-1,0))+1) ->  | W74: SINAPI-91937 | X74: 2878 | Y74: =IF(Import.Desoneracao="sim",Referencia.Desonerado,Referencia.NaoDesonerado) -> 15.38 | Z74: =ROUND(IF(ISNUMBER(R74),R74,IF(LEFT(R74,3)="BDI",HLOOKUP(R74,DADOS!$T$37:$X$38,2,FALSE),0)),15-11*$X$5) -> 0.2638
A75: S | B75: 0 | C75: 1 | D75: 8 | E75: 0 | F75: 0 | G75: 4 | H75: 0 | I75: 0 | J75: Serviço | K75: 1.8.4. | L75: SINAPI | M75: 91924 | N75: =IF($A75="S",Referencia.Descricao,"(digite a descrição aqui)") -> CABO DE COBRE FLEXÍVEL ISOLADO, 1,5 MM², ANTI-CHAMA 450/750 V, PARA CIRCUITOS TERMINAIS - FORNECIMENTO E INSTALAÇÃO. AF_03/2023 | O75: =Referencia.Unidade -> M | P75: =OFFSET(PLQ!$E$12,ROW($P75)-ROW(P$12),0) -> 85.3 | Q75: 2.63 | R75: BDI 1 | S75: 3.32 | T75: 283.2 | V75: =IF(OR($A75=0,$A75="S",$A75>CFF!$A$9),"",MAX(V$12:OFFSET(V75,-1,0))+1) ->  | W75: SINAPI-91924 | X75: 2845 | Y75: =IF(Import.Desoneracao="sim",Referencia.Desonerado,Referencia.NaoDesonerado) -> 2.63 | Z75: =ROUND(IF(ISNUMBER(R75),R75,IF(LEFT(R75,3)="BDI",HLOOKUP(R75,DADOS!$T$37:$X$38,2,FALSE),0)),15-11*$X$5) -> 0.2638
A76: S | B76: 0 | C76: 1 | D76: 8 | E76: 0 | F76: 0 | G76: 5 | H76: 0 | I76: 0 | J76: Serviço | K76: 1.8.5. | L76: SINAPI | M76: 91926 | N76: =IF($A76="S",Referencia.Descricao,"(digite a descrição aqui)") -> CABO DE COBRE FLEXÍVEL ISOLADO, 2,5 MM², ANTI-CHAMA 450/750 V, PARA CIRCUITOS TERMINAIS - FORNECIMENTO E INSTALAÇÃO. AF_03/2023 | O76: =Referencia.Unidade -> M | P76: =OFFSET(PLQ!$E$12,ROW($P76)-ROW(P$12),0) -> 182 | Q76: 3.82 | R76: BDI 1 | S76: 4.83 | T76: 879.06 | V76: =IF(OR($A76=0,$A76="S",$A76>CFF!$A$9),"",MAX(V$12:OFFSET(V76,-1,0))+1) ->  | W76: SINAPI-91926 | X76: 2847 | Y76: =IF(Import.Desoneracao="sim",Referencia.Desonerado,Referencia.NaoDesonerado) -> 3.82 | Z76: =ROUND(IF(ISNUMBER(R76),R76,IF(LEFT(R76,3)="BDI",HLOOKUP(R76,DADOS!$T$37:$X$38,2,FALSE),0)),15-11*$X$5) -> 0.2638
A77: S | B77: 0 | C77: 1 | D77: 8 | E77: 0 | F77: 0 | G77: 6 | H77: =IF(OR($A77="S",$A77=0),0,MATCH(0,OFFSET($B77,1,$A77,ROW($A$142)-ROW($A77)),0)) -> 0 | I77: =IF(OR($A77="S",$A77=0),0,MATCH(OFFSET($B77,0,$A77)+1,OFFSET($B77,1,$A77,ROW($A$142)-ROW($A77)),0)) -> 0 | J77: Serviço | K77: 1.8.6. | L77: SINAPI | M77: 91928 | N77: =IF($A77="S",Referencia.Descricao,"(digite a descrição aqui)") -> CABO DE COBRE FLEXÍVEL ISOLADO, 4 MM², ANTI-CHAMA 450/750 V, PARA CIRCUITOS TERMINAIS - FORNECIMENTO E INSTALAÇÃO. AF_03/2023 | O77: =Referencia.Unidade -> M | P77: =OFFSET(PLQ!$E$12,ROW($P77)-ROW(P$12),0) -> 14 | Q77: 5.93 | R77: BDI 1 | S77: 7.49 | T77: 104.86 | V77: =IF(OR($A77=0,$A77="S",$A77>CFF!$A$9),"",MAX(V$12:OFFSET(V77,-1,0))+1) ->  | W77: SINAPI-91928 | X77: 2849 | Y77: =IF(Import.Desoneracao="sim",Referencia.Desonerado,Referencia.NaoDesonerado) -> 5.93 | Z77: =ROUND(IF(ISNUMBER(R77),R77,IF(LEFT(R77,3)="BDI",HLOOKUP(R77,DADOS!$T$37:$X$38,2,FALSE),0)),15-11*$X$5) -> 0.2638
A78: S | B78: 0 | C78: 1 | D78: 8 | E78: 0 | F78: 0 | G78: 7 | H78: 0 | I78: 0 | J78: Serviço | K78: 1.8.7. | L78: SINAPI | M78: 91930 | N78: =IF($A78="S",Referencia.Descricao,"(digite a descrição aqui)") -> CABO DE COBRE FLEXÍVEL ISOLADO, 6 MM², ANTI-CHAMA 450/750 V, PARA CIRCUITOS TERMINAIS - FORNECIMENTO E INSTALAÇÃO. AF_03/2023 | O78: =Referencia.Unidade -> M | P78: =OFFSET(PLQ!$E$12,ROW($P78)-ROW(P$12),0) -> 10 | Q78: 8.28 | R78: BDI 1 | S78: 10.46 | T78: 104.6 | V78: =IF(OR($A78=0,$A78="S",$A78>CFF!$A$9),"",MAX(V$12:OFFSET(V78,-1,0))+1) ->  | W78: SINAPI-91930 | X78: 2851 | Y78: =IF(Import.Desoneracao="sim",Referencia.Desonerado,Referencia.NaoDesonerado) -> 8.28 | Z78: =ROUND(IF(ISNUMBER(R78),R78,IF(LEFT(R78,3)="BDI",HLOOKUP(R78,DADOS!$T$37:$X$38,2,FALSE),0)),15-11*$X$5) -> 0.2638
A79: S | B79: 0 | C79: 1 | D79: 8 | E79: 0 | F79: 0 | G79: 8 | H79: 0 | I79: 0 | J79: Serviço | K79: 1.8.8. | L79: SINAPI | M79: 91932 | N79: =IF($A79="S",Referencia.Descricao,"(digite a descrição aqui)") -> CABO DE COBRE FLEXÍVEL ISOLADO, 10 MM², ANTI-CHAMA 450/750 V, PARA CIRCUITOS TERMINAIS - FORNECIMENTO E INSTALAÇÃO. AF_03/2023 | O79: =Referencia.Unidade -> M | P79: =OFFSET(PLQ!$E$12,ROW($P79)-ROW(P$12),0) -> 22 | Q79: 14.83 | R79: BDI 1 | S79: 18.74 | T79: 412.28 | V79: =IF(OR($A79=0,$A79="S",$A79>CFF!$A$9),"",MAX(V$12:OFFSET(V79,-1,0))+1) ->  | W79: SINAPI-91932 | X79: 2853 | Y79: =IF(Import.Desoneracao="sim",Referencia.Desonerado,Referencia.NaoDesonerado) -> 14.83 | Z79: =ROUND(IF(ISNUMBER(R79),R79,IF(LEFT(R79,3)="BDI",HLOOKUP(R79,DADOS!$T$37:$X$38,2,FALSE),0)),15-11*$X$5) -> 0.2638
A80: S | B80: 0 | C80: 1 | D80: 8 | E80: 0 | F80: 0 | G80: 9 | H80: 0 | I80: 0 | J80: Serviço | K80: 1.8.9. | L80: SINAPI | M80: 92023 | N80: =IF($A80="S",Referencia.Descricao,"(digite a descrição aqui)") -> INTERRUPTOR SIMPLES (1 MÓDULO) COM 1 TOMADA DE EMBUTIR 2P+T 10 A, INCLUINDO SUPORTE E PLACA - FORNECIMENTO E INSTALAÇÃO. AF_03/2023 | O80: =Referencia.Unidade -> UN | P80: =OFFSET(PLQ!$E$12,ROW($P80)-ROW(P$12),0) -> 3 | Q80: 49.39 | R80: BDI 1 | S80: 62.42 | T80: 187.26 | V80: =IF(OR($A80=0,$A80="S",$A80>CFF!$A$9),"",MAX(V$12:OFFSET(V80,-1,0))+1) ->  | W80: SINAPI-92023 | X80: 3076 | Y80: =IF(Import.Desoneracao="sim",Referencia.Desonerado,Referencia.NaoDesonerado) -> 49.49 | Z80: =ROUND(IF(ISNUMBER(R80),R80,IF(LEFT(R80,3)="BDI",HLOOKUP(R80,DADOS!$T$37:$X$38,2,FALSE),0)),15-11*$X$5) -> 0.2638
A81: S | B81: 0 | C81: 1 | D81: 8 | E81: 0 | F81: 0 | G81: 10 | H81: 0 | I81: 0 | J81: Serviço | K81: 1.8.10. | L81: SINAPI | M81: 91959 | N81: =IF($A81="S",Referencia.Descricao,"(digite a descrição aqui)") -> INTERRUPTOR SIMPLES (2 MÓDULOS), 10A/250V, INCLUINDO SUPORTE E PLACA - FORNECIMENTO E INSTALAÇÃO. AF_03/2023 | O81: =Referencia.Unidade -> UN | P81: =OFFSET(PLQ!$E$12,ROW($P81)-ROW(P$12),0) -> 3 | Q81: 44.58 | R81: BDI 1 | S81: 56.34 | T81: 169.02 | V81: =IF(OR($A81=0,$A81="S",$A81>CFF!$A$9),"",MAX(V$12:OFFSET(V81,-1,0))+1) ->  | W81: SINAPI-91959 | X81: 3012 | Y81: =IF(Import.Desoneracao="sim",Referencia.Desonerado,Referencia.NaoDesonerado) -> 44.58 | Z81: =ROUND(IF(ISNUMBER(R81),R81,IF(LEFT(R81,3)="BDI",HLOOKUP(R81,DADOS!$T$37:$X$38,2,FALSE),0)),15-11*$X$5) -> 0.2638
A82: S | B82: 0 | C82: 1 | D82: 8 | E82: 0 | F82: 0 | G82: 11 | H82: 0 | I82: 0 | J82: Serviço | K82: 1.8.11. | L82: SINAPI | M82: 91996 | N82: =IF($A82="S",Referencia.Descricao,"(digite a descrição aqui)") -> TOMADA MÉDIA DE EMBUTIR (1 MÓDULO), 2P+T 10 A, INCLUINDO SUPORTE E PLACA - FORNECIMENTO E INSTALAÇÃO. AF_03/2023 | O82: =Referencia.Unidade -> UN | P82: =OFFSET(PLQ!$E$12,ROW($P82)-ROW(P$12),0) -> 12 | Q82: 34.06 | R82: BDI 1 | S82: 43.05 | T82: 516.6 | V82: =IF(OR($A82=0,$A82="S",$A82>CFF!$A$9),"",MAX(V$12:OFFSET(V82,-1,0))+1) ->  | W82: SINAPI-91996 | X82: 3049 | Y82: =IF(Import.Desoneracao="sim",Referencia.Desonerado,Referencia.NaoDesonerado) -> 34.06 | Z82: =ROUND(IF(ISNUMBER(R82),R82,IF(LEFT(R82,3)="BDI",HLOOKUP(R82,DADOS!$T$37:$X$38,2,FALSE),0)),15-11*$X$5) -> 0.2638
A83: S | B83: 0 | C83: 1 | D83: 8 | E83: 0 | F83: 0 | G83: 12 | H83: 0 | I83: 0 | J83: Serviço | K83: 1.8.12. | L83: SINAPI | M83: 92004 | N83: =IF($A83="S",Referencia.Descricao,"(digite a descrição aqui)") -> TOMADA MÉDIA DE EMBUTIR (2 MÓDULOS), 2P+T 10 A, INCLUINDO SUPORTE E PLACA - FORNECIMENTO E INSTALAÇÃO. AF_03/2023 | O83: =Referencia.Unidade -> UN | P83: =OFFSET(PLQ!$E$12,ROW($P83)-ROW(P$12),0) -> 1 | Q83: 54.5 | R83: BDI 1 | S83: 68.88 | T83: 68.88 | V83: =IF(OR($A83=0,$A83="S",$A83>CFF!$A$9),"",MAX(V$12:OFFSET(V83,-1,0))+1) ->  | W83: SINAPI-92004 | X83: 3057 | Y83: =IF(Import.Desoneracao="sim",Referencia.Desonerado,Referencia.NaoDesonerado) -> 54.5 | Z83: =ROUND(IF(ISNUMBER(R83),R83,IF(LEFT(R83,3)="BDI",HLOOKUP(R83,DADOS!$T$37:$X$38,2,FALSE),0)),15-11*$X$5) -> 0.2638
A84: S | B84: 0 | C84: 1 | D84: 8 | E84: 0 | F84: 0 | G84: 13 | H84: 0 | I84: 0 | J84: Serviço | K84: 1.8.13. | L84: SINAPI-I | M84: 38091 | N84: =IF($A84="S",Referencia.Descricao,"(digite a descrição aqui)") -> ESPELHO / PLACA CEGA 4" X 2", PARA INSTALACAO DE TOMADAS E INTERRUPTORES | O84: =Referencia.Unidade -> UN | P84: =OFFSET(PLQ!$E$12,ROW($P84)-ROW(P$12),0) -> 1 | Q84: 2.7 | R84: BDI 1 | S84: 3.41 | T84: 3.41 | V84: =IF(OR($A84=0,$A84="S",$A84>CFF!$A$9),"",MAX(V$12:OFFSET(V84,-1,0))+1) ->  | W84: SINAPI-I-38091 | X84: 9478 | Y84: =IF(Import.Desoneracao="sim",Referencia.Desonerado,Referencia.NaoDesonerado) -> 2.7 | Z84: =ROUND(IF(ISNUMBER(R84),R84,IF(LEFT(R84,3)="BDI",HLOOKUP(R84,DADOS!$T$37:$X$38,2,FALSE),0)),15-11*$X$5) -> 0.2638
A85: S | B85: 0 | C85: 1 | D85: 8 | E85: 0 | F85: 0 | G85: 14 | H85: 0 | I85: 0 | J85: Serviço | K85: 1.8.14. | L85: SINAPI | M85: 93655 | N85: =IF($A85="S",Referencia.Descricao,"(digite a descrição aqui)") -> DISJUNTOR MONOPOLAR TIPO DIN, CORRENTE NOMINAL DE 20A - FORNECIMENTO E INSTALAÇÃO. AF_10/2020 | O85: =Referencia.Unidade -> UN | P85: =OFFSET(PLQ!$E$12,ROW($P85)-ROW(P$12),0) -> 3 | Q85: 13.82 | R85: BDI 1 | S85: 17.47 | T85: 52.41 | V85: =IF(OR($A85=0,$A85="S",$A85>CFF!$A$9),"",MAX(V$12:OFFSET(V85,-1,0))+1) ->  | W85: SINAPI-93655 | X85: 2950 | Y85: =IF(Import.Desoneracao="sim",Referencia.Desonerado,Referencia.NaoDesonerado) -> 13.82 | Z85: =ROUND(IF(ISNUMBER(R85),R85,IF(LEFT(R85,3)="BDI",HLOOKUP(R85,DADOS!$T$37:$X$38,2,FALSE),0)),15-11*$X$5) -> 0.2638
A86: S | B86: 0 | C86: 1 | D86: 8 | E86: 0 | F86: 0 | G86: 15 | H86: 0 | I86: 0 | J86: Serviço | K86: 1.8.15. | L86: SINAPI | M86: 93657 | N86: =IF($A86="S",Referencia.Descricao,"(digite a descrição aqui)") -> DISJUNTOR MONOPOLAR TIPO DIN, CORRENTE NOMINAL DE 32A - FORNECIMENTO E INSTALAÇÃO. AF_10/2020 | O86: =Referencia.Unidade -> UN | P86: =OFFSET(PLQ!$E$12,ROW($P86)-ROW(P$12),0) -> 1 | Q86: 15.26 | R86: BDI 1 | S86: 19.29 | T86: 19.29 | V86: =IF(OR($A86=0,$A86="S",$A86>CFF!$A$9),"",MAX(V$12:OFFSET(V86,-1,0))+1) ->  | W86: SINAPI-93657 | X86: 2952 | Y86: =IF(Import.Desoneracao="sim",Referencia.Desonerado,Referencia.NaoDesonerado) -> 15.26 | Z86: =ROUND(IF(ISNUMBER(R86),R86,IF(LEFT(R86,3)="BDI",HLOOKUP(R86,DADOS!$T$37:$X$38,2,FALSE),0)),15-11*$X$5) -> 0.2638
A87: S | B87: 0 | C87: 1 | D87: 8 | E87: 0 | F87: 0 | G87: 16 | H87: 0 | I87: 0 | J87: Serviço | K87: 1.8.16. | L87: SINAPI-I | M87: 39445 | N87: =IF($A87="S",Referencia.Descricao,"(digite a descrição aqui)") -> DISPOSITIVO DR, 2 POLOS, SENSIBILIDADE DE 30 MA, CORRENTE DE 25 A, TIPO AC | O87: =Referencia.Unidade -> UN | P87: =OFFSET(PLQ!$E$12,ROW($P87)-ROW(P$12),0) -> 1 | Q87: 142.42 | R87: BDI 1 | S87: 179.99 | T87: 179.99 | V87: =IF(OR($A87=0,$A87="S",$A87>CFF!$A$9),"",MAX(V$12:OFFSET(V87,-1,0))+1) ->  | W87: SINAPI-I-39445 | X87: 9260 | Y87: =IF(Import.Desoneracao="sim",Referencia.Desonerado,Referencia.NaoDesonerado) -> 142.42 | Z87: =ROUND(IF(ISNUMBER(R87),R87,IF(LEFT(R87,3)="BDI",HLOOKUP(R87,DADOS!$T$37:$X$38,2,FALSE),0)),15-11*$X$5) -> 0.2638
A88: S | B88: 0 | C88: 1 | D88: 8 | E88: 0 | F88: 0 | G88: 17 | H88: 0 | I88: 0 | J88: Serviço | K88: 1.8.17. | L88: SINAPI-I | M88: 34628 | N88: =IF($A88="S",Referencia.Descricao,"(digite a descrição aqui)") -> DISJUNTOR TIPO DIN/IEC, BIPOLAR 63 A | O88: =Referencia.Unidade -> UN | P88: =OFFSET(PLQ!$E$12,ROW($P88)-ROW(P$12),0) -> 1 | Q88: 74.78 | R88: BDI 1 | S88: 94.51 | T88: 94.51 | V88: =IF(OR($A88=0,$A88="S",$A88>CFF!$A$9),"",MAX(V$12:OFFSET(V88,-1,0))+1) ->  | W88: SINAPI-I-34628 | X88: 9231 | Y88: =IF(Import.Desoneracao="sim",Referencia.Desonerado,Referencia.NaoDesonerado) -> 74.78 | Z88: =ROUND(IF(ISNUMBER(R88),R88,IF(LEFT(R88,3)="BDI",HLOOKUP(R88,DADOS!$T$37:$X$38,2,FALSE),0)),15-11*$X$5) -> 0.2638
A89: S | B89: 0 | C89: 1 | D89: 8 | E89: 0 | F89: 0 | G89: 18 | H89: 0 | I89: 0 | J89: Serviço | K89: 1.8.18. | L89: SINAPI | M89: 91854 | N89: =IF($A89="S",Referencia.Descricao,"(digite a descrição aqui)") -> ELETRODUTO FLEXÍVEL CORRUGADO, PVC, DN 25 MM (3/4"), PARA CIRCUITOS TERMINAIS, INSTALADO EM PAREDE - FORNECIMENTO E INSTALAÇÃO. AF_03/2023 | O89: =Referencia.Unidade -> M | P89: =OFFSET(PLQ!$E$12,ROW($P89)-ROW(P$12),0) -> 76 | Q89: 9.4 | R89: BDI 1 | S89: 11.88 | T89: 902.88 | V89: =IF(OR($A89=0,$A89="S",$A89>CFF!$A$9),"",MAX(V$12:OFFSET(V89,-1,0))+1) ->  | W89: SINAPI-91854 | X89: 2764 | Y89: =IF(Import.Desoneracao="sim",Referencia.Desonerado,Referencia.NaoDesonerado) -> 9.4 | Z89: =ROUND(IF(ISNUMBER(R89),R89,IF(LEFT(R89,3)="BDI",HLOOKUP(R89,DADOS!$T$37:$X$38,2,FALSE),0)),15-11*$X$5) -> 0.2638
A90: S | B90: 0 | C90: 1 | D90: 8 | E90: 0 | F90: 0 | G90: 19 | H90: 0 | I90: 0 | J90: Serviço | K90: 1.8.19. | L90: SINAPI | M90: 91856 | N90: =IF($A90="S",Referencia.Descricao,"(digite a descrição aqui)") -> ELETRODUTO FLEXÍVEL CORRUGADO, PVC, DN 32 MM (1"), PARA CIRCUITOS TERMINAIS, INSTALADO EM PAREDE - FORNECIMENTO E INSTALAÇÃO. AF_03/2023 | O90: =Referencia.Unidade -> M | P90: =OFFSET(PLQ!$E$12,ROW($P90)-ROW(P$12),0) -> 10.2 | Q90: 12.41 | R90: BDI 1 | S90: 15.68 | T90: 159.94 | V90: =IF(OR($A90=0,$A90="S",$A90>CFF!$A$9),"",MAX(V$12:OFFSET(V90,-1,0))+1) ->  | W90: SINAPI-91856 | X90: 2766 | Y90: =IF(Import.Desoneracao="sim",Referencia.Desonerado,Referencia.NaoDesonerado) -> 12.41 | Z90: =ROUND(IF(ISNUMBER(R90),R90,IF(LEFT(R90,3)="BDI",HLOOKUP(R90,DADOS!$T$37:$X$38,2,FALSE),0)),15-11*$X$5) -> 0.2638
A91: S | B91: 0 | C91: 1 | D91: 8 | E91: 0 | F91: 0 | G91: 20 | H91: 0 | I91: 0 | J91: Serviço | K91: 1.8.20. | L91: SINAPI | M91: 97610 | N91: =IF($A91="S",Referencia.Descricao,"(digite a descrição aqui)") -> LÂMPADA COMPACTA DE LED 10 W, BASE E27 - FORNECIMENTO E INSTALAÇÃO. AF_02/2020 | O91: =Referencia.Unidade -> UN | P91: =OFFSET(PLQ!$E$12,ROW($P91)-ROW(P$12),0) -> 9 | Q91: 16.61 | R91: BDI 1 | S91: 20.99 | T91: 188.91 | V91: =IF(OR($A91=0,$A91="S",$A91>CFF!$A$9),"",MAX(V$12:OFFSET(V91,-1,0))+1) ->  | W91: SINAPI-97610 | X91: 3105 | Y91: =IF(Import.Desoneracao="sim",Referencia.Desonerado,Referencia.NaoDesonerado) -> 16.61 | Z91: =ROUND(IF(ISNUMBER(R91),R91,IF(LEFT(R91,3)="BDI",HLOOKUP(R91,DADOS!$T$37:$X$38,2,FALSE),0)),15-11*$X$5) -> 0.2638
A92: S | B92: 0 | C92: 1 | D92: 8 | E92: 0 | F92: 0 | G92: 21 | H92: 0 | I92: 0 | J92: Serviço | K92: 1.8.21. | L92: SINAPI-I | M92: 38093 | N92: =IF($A92="S",Referencia.Descricao,"(digite a descrição aqui)") -> ESPELHO / PLACA DE 2 POSTOS 4" X 2", PARA INSTALACAO DE TOMADAS E INTERRUPTORES | O92: =Referencia.Unidade -> UN | P92: =OFFSET(PLQ!$E$12,ROW($P92)-ROW(P$12),0) -> 7 | Q92: 2.65 | R92: BDI 1 | S92: 3.35 | T92: 23.45 | V92: =IF(OR($A92=0,$A92="S",$A92>CFF!$A$9),"",MAX(V$12:OFFSET(V92,-1,0))+1) ->  | W92: SINAPI-I-38093 | X92: 9481 | Y92: =IF(Import.Desoneracao="sim",Referencia.Desonerado,Referencia.NaoDesonerado) -> 2.65 | Z92: =ROUND(IF(ISNUMBER(R92),R92,IF(LEFT(R92,3)="BDI",HLOOKUP(R92,DADOS!$T$37:$X$38,2,FALSE),0)),15-11*$X$5) -> 0.2638
A93: S | B93: 0 | C93: 1 | D93: 8 | E93: 0 | F93: 0 | G93: 22 | H93: 0 | I93: 0 | J93: Serviço | K93: 1.8.22. | L93: SINAPI-I | M93: 38092 | N93: =IF($A93="S",Referencia.Descricao,"(digite a descrição aqui)") -> ESPELHO / PLACA DE 1 POSTO 4" X 2", PARA INSTALACAO DE TOMADAS E INTERRUPTORES | O93: =Referencia.Unidade -> UN | P93: =OFFSET(PLQ!$E$12,ROW($P93)-ROW(P$12),0) -> 12 | Q93: 2.56 | R93: BDI 1 | S93: 3.24 | T93: 38.88 | V93: =IF(OR($A93=0,$A93="S",$A93>CFF!$A$9),"",MAX(V$12:OFFSET(V93,-1,0))+1) ->  | W93: SINAPI-I-38092 | X93: 9480 | Y93: =IF(Import.Desoneracao="sim",Referencia.Desonerado,Referencia.NaoDesonerado) -> 2.56 | Z93: =ROUND(IF(ISNUMBER(R93),R93,IF(LEFT(R93,3)="BDI",HLOOKUP(R93,DADOS!$T$37:$X$38,2,FALSE),0)),15-11*$X$5) -> 0.2638
A94: S | B94: 0 | C94: 1 | D94: 8 | E94: 0 | F94: 0 | G94: 23 | H94: 0 | I94: 0 | J94: Serviço | K94: 1.8.23. | L94: SINAPI-I | M94: 39795 | N94: =IF($A94="S",Referencia.Descricao,"(digite a descrição aqui)") -> QUADRO DE DISTRIBUICAO, SEM BARRAMENTO, EM PVC, DE EMBUTIR, PARA 6 DISJUNTORES NEMA OU 8 DISJUNTORES DIN | O94: =Referencia.Unidade -> UN | P94: =OFFSET(PLQ!$E$12,ROW($P94)-ROW(P$12),0) -> 1 | Q94: 61.92 | R94: BDI 1 | S94: 78.25 | T94: 78.25 | V94: =IF(OR($A94=0,$A94="S",$A94>CFF!$A$9),"",MAX(V$12:OFFSET(V94,-1,0))+1) ->  | W94: SINAPI-I-39795 | X94: 11219 | Y94: =IF(Import.Desoneracao="sim",Referencia.Desonerado,Referencia.NaoDesonerado) -> 61.92 | Z94: =ROUND(IF(ISNUMBER(R94),R94,IF(LEFT(R94,3)="BDI",HLOOKUP(R94,DADOS!$T$37:$X$38,2,FALSE),0)),15-11*$X$5) -> 0.2638
A95: 2 | B95: 22 | C95: 1 | D95: 9 | E95: 0 | F95: 0 | G95: 0 | H95: 47 | I95: 22 | J95: Nível 2 | K95: 1.9. | N95: ISNSTALAÇÕES HIDRÁULICAS | O95: =Referencia.Unidade ->  | P95: =OFFSET(PLQ!$E$12,ROW($P95)-ROW(P$12),0) -> 0 | R95: BDI 1 | S95: 0 | T95: 3132.08 | V95: =IF(OR($A95=0,$A95="S",$A95>CFF!$A$9),"",MAX(V$12:OFFSET(V95,-1,0))+1) -> 10 | W95: FALSE | X95: X | Y95: =IF(Import.Desoneracao="sim",Referencia.Desonerado,Referencia.NaoDesonerado) -> 0 | Z95: =ROUND(IF(ISNUMBER(R95),R95,IF(LEFT(R95,3)="BDI",HLOOKUP(R95,DADOS!$T$37:$X$38,2,FALSE),0)),15-11*$X$5) -> 0.2638
A96: S | B96: 0 | C96: 1 | D96: 9 | E96: 0 | F96: 0 | G96: 1 | H96: 0 | I96: 0 | J96: Serviço | K96: 1.9.1. | L96: SINAPI | M96: 94689 | N96: =IF($A96="S",Referencia.Descricao,"(digite a descrição aqui)") -> TÊ COM BUCHA DE LATÃO NA BOLSA CENTRAL, PVC, SOLDÁVEL, DN 25 MM X 3/4 , INSTALADO EM RESERVAÇÃO DE ÁGUA DE EDIFICAÇÃO QUE POSSUA RESERVATÓRIO DE FIBRA/FIBROCIMENTO FORNECIMENTO E INSTALAÇÃO. AF_06/2016 | O96: =Referencia.Unidade -> UN | P96: =OFFSET(PLQ!$E$12,ROW($P96)-ROW(P$12),0) -> 3 | Q96: 14.73 | R96: BDI 1 | S96: 18.62 | T96: 55.86 | V96: =IF(OR($A96=0,$A96="S",$A96>CFF!$A$9),"",MAX(V$12:OFFSET(V96,-1,0))+1) ->  | W96: SINAPI-94689 | X96: 4430 | Y96: =IF(Import.Desoneracao="sim",Referencia.Desonerado,Referencia.NaoDesonerado) -> 14.73 | Z96: =ROUND(IF(ISNUMBER(R96),R96,IF(LEFT(R96,3)="BDI",HLOOKUP(R96,DADOS!$T$37:$X$38,2,FALSE),0)),15-11*$X$5) -> 0.2638
A97: S | B97: 0 | C97: 1 | D97: 9 | E97: 0 | F97: 0 | G97: 2 | H97: 0 | I97: 0 | J97: Serviço | K97: 1.9.2. | L97: SINAPI | M97: 89443 | N97: =IF($A97="S",Referencia.Descricao,"(digite a descrição aqui)") -> TE, PVC, SOLDÁVEL, DN 32MM, INSTALADO EM RAMAL DE DISTRIBUIÇÃO DE ÁGUA - FORNECIMENTO E INSTALAÇÃO. AF_06/2022 | O97: =Referencia.Unidade -> UN | P97: =OFFSET(PLQ!$E$12,ROW($P97)-ROW(P$12),0) -> 1 | Q97: 16.7 | R97: BDI 1 | S97: 21.11 | T97: 21.11 | V97: =IF(OR($A97=0,$A97="S",$A97>CFF!$A$9),"",MAX(V$12:OFFSET(V97,-1,0))+1) ->  | W97: SINAPI-89443 | X97: 3788 | Y97: =IF(Import.Desoneracao="sim",Referencia.Desonerado,Referencia.NaoDesonerado) -> 16.7 | Z97: =ROUND(IF(ISNUMBER(R97),R97,IF(LEFT(R97,3)="BDI",HLOOKUP(R97,DADOS!$T$37:$X$38,2,FALSE),0)),15-11*$X$5) -> 0.2638
A98: S | B98: 0 | C98: 1 | D98: 9 | E98: 0 | F98: 0 | G98: 3 | H98: 0 | I98: 0 | J98: Serviço | K98: 1.9.3. | L98: SINAPI | M98: 89440 | N98: =IF($A98="S",Referencia.Descricao,"(digite a descrição aqui)") -> TE, PVC, SOLDÁVEL, DN 25MM, INSTALADO EM RAMAL DE DISTRIBUIÇÃO DE ÁGUA - FORNECIMENTO E INSTALAÇÃO. AF_06/2022 | O98: =Referencia.Unidade -> UN | P98: =OFFSET(PLQ!$E$12,ROW($P98)-ROW(P$12),0) -> 2 | Q98: 11.54 | R98: BDI 1 | S98: 14.58 | T98: 29.16 | V98: =IF(OR($A98=0,$A98="S",$A98>CFF!$A$9),"",MAX(V$12:OFFSET(V98,-1,0))+1) ->  | W98: SINAPI-89440 | X98: 3786 | Y98: =IF(Import.Desoneracao="sim",Referencia.Desonerado,Referencia.NaoDesonerado) -> 11.54 | Z98: =ROUND(IF(ISNUMBER(R98),R98,IF(LEFT(R98,3)="BDI",HLOOKUP(R98,DADOS!$T$37:$X$38,2,FALSE),0)),15-11*$X$5) -> 0.2638
A99: S | B99: 0 | C99: 1 | D99: 9 | E99: 0 | F99: 0 | G99: 4 | H99: 0 | I99: 0 | J99: Serviço | K99: 1.9.4. | L99: SINAPI | M99: 89427 | N99: =IF($A99="S",Referencia.Descricao,"(digite a descrição aqui)") -> LUVA COM BUCHA DE LATÃO, PVC, SOLDÁVEL, DN 25MM X 3/4 , INSTALADO EM RAMAL DE DISTRIBUIÇÃO DE ÁGUA - FORNECIMENTO E INSTALAÇÃO. AF_06/2022 | O99: =Referencia.Unidade -> UN | P99: =OFFSET(PLQ!$E$12,ROW($P99)-ROW(P$12),0) -> 1 | Q99: 12.31 | R99: BDI 1 | S99: 15.56 | T99: 15.56 | V99: =IF(OR($A99=0,$A99="S",$A99>CFF!$A$9),"",MAX(V$12:OFFSET(V99,-1,0))+1) ->  | W99: SINAPI-89427 | X99: 3773 | Y99: =IF(Import.Desoneracao="sim",Referencia.Desonerado,Referencia.NaoDesonerado) -> 12.31 | Z99: =ROUND(IF(ISNUMBER(R99),R99,IF(LEFT(R99,3)="BDI",HLOOKUP(R99,DADOS!$T$37:$X$38,2,FALSE),0)),15-11*$X$5) -> 0.2638
A100: S | B100: 0 | C100: 1 | D100: 9 | E100: 0 | F100: 0 | G100: 5 | H100: 0 | I100: 0 | J100: Serviço | K100: 1.9.5. | L100: SINAPI | M100: 90373 | N100: =IF($A100="S",Referencia.Descricao,"(digite a descrição aqui)") -> JOELHO 90 GRAUS COM BUCHA DE LATÃO, PVC, SOLDÁVEL, DN 25MM, X 1/2 INSTALADO EM RAMAL OU SUB-RAMAL DE ÁGUA - FORNECIMENTO E INSTALAÇÃO. AF_06/2022 | O100: =Referencia.Unidade -> UN | P100: =OFFSET(PLQ!$E$12,ROW($P100)-ROW(P$12),0) -> 2 | Q100: 13.1 | R100: BDI 1 | S100: 16.56 | T100: 33.12 | V100: =IF(OR($A100=0,$A100="S",$A100>CFF!$A$9),"",MAX(V$12:OFFSET(V100,-1,0))+1) ->  | W100: SINAPI-90373 | X100: 4110 | Y100: =IF(Import.Desoneracao="sim",Referencia.Desonerado,Referencia.NaoDesonerado) -> 13.1 | Z100: =ROUND(IF(ISNUMBER(R100),R100,IF(LEFT(R100,3)="BDI",HLOOKUP(R100,DADOS!$T$37:$X$38,2,FALSE),0)),15-11*$X$5) -> 0.2638
A101: S | B101: 0 | C101: 1 | D101: 9 | E101: 0 | F101: 0 | G101: 6 | H101: 0 | I101: 0 | J101: Serviço | K101: 1.9.6. | L101: SINAPI | M101: 89413 | N101: =IF($A101="S",Referencia.Descricao,"(digite a descrição aqui)") -> JOELHO 90 GRAUS, PVC, SOLDÁVEL, DN 32MM, INSTALADO EM RAMAL DE DISTRIBUIÇÃO DE ÁGUA - FORNECIMENTO E INSTALAÇÃO. AF_06/2022 | O101: =Referencia.Unidade -> UN | P101: =OFFSET(PLQ!$E$12,ROW($P101)-ROW(P$12),0) -> 9 | Q101: 11.84 | R101: BDI 1 | S101: =IF($A101="S",IF($Q$10="Preço Unitário (R$)",PO.CustoUnitario,ROUND(PO.CustoUnitario*(1+$Z101),15-13*$X$6)),0) -> 14.96 | T101: =IF($A101="S",VTOTAL1,IF($A101=0,0,ROUND(SomaAgrup,15-13*$X$7))) -> 134.64 | V101: =IF(OR($A101=0,$A101="S",$A101>CFF!$A$9),"",MAX(V$12:OFFSET(V101,-1,0))+1) ->  | W101: SINAPI-89413 | X101: =IF(AND(Fonte<>"",Código<>""),MATCH(Fonte&" "&IF(Fonte="sinapi",SUBSTITUTE(SUBSTITUTE(Código,"/00","/"),"/0","/"),Código),INDIRECT("'[Referência "&_xlnm.Database&".xls]Banco'!$a:$a"),0),"X") -> 3761 | Y101: =IF(Import.Desoneracao="sim",Referencia.Desonerado,Referencia.NaoDesonerado) -> 11.84 | Z101: =ROUND(IF(ISNUMBER(R101),R101,IF(LEFT(R101,3)="BDI",HLOOKUP(R101,DADOS!$T$37:$X$38,2,FALSE),0)),15-11*$X$5) -> 0.2638
A102: S | B102: 0 | C102: 1 | D102: 9 | E102: 0 | F102: 0 | G102: 7 | H102: 0 | I102: 0 | J102: Serviço | K102: 1.9.7. | L102: SINAPI | M102: 89408 | N102: =IF($A102="S",Referencia.Descricao,"(digite a descrição aqui)") -> JOELHO 90 GRAUS, PVC, SOLDÁVEL, DN 25MM, INSTALADO EM RAMAL DE DISTRIBUIÇÃO DE ÁGUA - FORNECIMENTO E INSTALAÇÃO. AF_06/2022 | O102: =Referencia.Unidade -> UN | P102: =OFFSET(PLQ!$E$12,ROW($P102)-ROW(P$12),0) -> 6 | Q102: 8.3 | R102: BDI 1 | S102: 10.49 | T102: 62.94 | V102: =IF(OR($A102=0,$A102="S",$A102>CFF!$A$9),"",MAX(V$12:OFFSET(V102,-1,0))+1) ->  | W102: SINAPI-89408 | X102: 3756 | Y102: =IF(Import.Desoneracao="sim",Referencia.Desonerado,Referencia.NaoDesonerado) -> 8.3 | Z102: =ROUND(IF(ISNUMBER(R102),R102,IF(LEFT(R102,3)="BDI",HLOOKUP(R102,DADOS!$T$37:$X$38,2,FALSE),0)),15-11*$X$5) -> 0.2638
A103: S | B103: 0 | C103: 1 | D103: 9 | E103: 0 | F103: 0 | G103: 8 | H103: 0 | I103: 0 | J103: Serviço | K103: 1.9.8. | L103: SINAPI | M103: 89532 | N103: =IF($A103="S",Referencia.Descricao,"(digite a descrição aqui)") -> LUVA DE REDUÇÃO, PVC, SOLDÁVEL, DN 32MM X 25MM, INSTALADO EM PRUMADA DE ÁGUA - FORNECIMENTO E INSTALAÇÃO. AF_06/2022 | O103: =Referencia.Unidade -> UN | P103: =OFFSET(PLQ!$E$12,ROW($P103)-ROW(P$12),0) -> 4 | Q103: 7.32 | R103: BDI 1 | S103: 9.25 | T103: 37 | V103: =IF(OR($A103=0,$A103="S",$A103>CFF!$A$9),"",MAX(V$12:OFFSET(V103,-1,0))+1) ->  | W103: SINAPI-89532 | X103: 3830 | Y103: =IF(Import.Desoneracao="sim",Referencia.Desonerado,Referencia.NaoDesonerado) -> 7.32 | Z103: =ROUND(IF(ISNUMBER(R103),R103,IF(LEFT(R103,3)="BDI",HLOOKUP(R103,DADOS!$T$37:$X$38,2,FALSE),0)),15-11*$X$5) -> 0.2638
A104: S | B104: 0 | C104: 1 | D104: 9 | E104: 0 | F104: 0 | G104: 9 | H104: 0 | I104: 0 | J104: Serviço | K104: 1.9.9. | L104: SINAPI | M104: 89356 | N104: =IF($A104="S",Referencia.Descricao,"(digite a descrição aqui)") -> TUBO, PVC, SOLDÁVEL, DN 25MM, INSTALADO EM RAMAL OU SUB-RAMAL DE ÁGUA - FORNECIMENTO E INSTALAÇÃO. AF_06/2022 | O104: =Referencia.Unidade -> M | P104: =OFFSET(PLQ!$E$12,ROW($P104)-ROW(P$12),0) -> 18 | Q104: 22.42 | R104: BDI 1 | S104: 28.33 | T104: 509.94 | V104: =IF(OR($A104=0,$A104="S",$A104>CFF!$A$9),"",MAX(V$12:OFFSET(V104,-1,0))+1) ->  | W104: SINAPI-89356 | X104: 3448 | Y104: =IF(Import.Desoneracao="sim",Referencia.Desonerado,Referencia.NaoDesonerado) -> 22.42 | Z104: =ROUND(IF(ISNUMBER(R104),R104,IF(LEFT(R104,3)="BDI",HLOOKUP(R104,DADOS!$T$37:$X$38,2,FALSE),0)),15-11*$X$5) -> 0.2638
A105: S | B105: 0 | C105: 1 | D105: 9 | E105: 0 | F105: 0 | G105: 10 | H105: 0 | I105: 0 | J105: Serviço | K105: 1.9.10. | L105: SINAPI | M105: 89357 | N105: =IF($A105="S",Referencia.Descricao,"(digite a descrição aqui)") -> TUBO, PVC, SOLDÁVEL, DN 32MM, INSTALADO EM RAMAL OU SUB-RAMAL DE ÁGUA - FORNECIMENTO E INSTALAÇÃO. AF_06/2022 | O105: =Referencia.Unidade -> M | P105: =OFFSET(PLQ!$E$12,ROW($P105)-ROW(P$12),0) -> 18 | Q105: 31.46 | R105: BDI 1 | S105: 39.76 | T105: 715.68 | V105: =IF(OR($A105=0,$A105="S",$A105>CFF!$A$9),"",MAX(V$12:OFFSET(V105,-1,0))+1) ->  | W105: SINAPI-89357 | X105: 3449 | Y105: =IF(Import.Desoneracao="sim",Referencia.Desonerado,Referencia.NaoDesonerado) -> 31.46 | Z105: =ROUND(IF(ISNUMBER(R105),R105,IF(LEFT(R105,3)="BDI",HLOOKUP(R105,DADOS!$T$37:$X$38,2,FALSE),0)),15-11*$X$5) -> 0.2638
A106: S | B106: 0 | C106: 1 | D106: 9 | E106: 0 | F106: 0 | G106: 11 | H106: 0 | I106: 0 | J106: Serviço | K106: 1.9.11. | L106: SINAPI | M106: 89984 | N106: =IF($A106="S",Referencia.Descricao,"(digite a descrição aqui)") -> REGISTRO DE PRESSÃO BRUTO, LATÃO, ROSCÁVEL, 1/2", COM ACABAMENTO E CANOPLA CROMADOS - FORNECIMENTO E INSTALAÇÃO. AF_08/2021 | O106: =Referencia.Unidade -> UN | P106: =OFFSET(PLQ!$E$12,ROW($P106)-ROW(P$12),0) -> 1 | Q106: 99.25 | R106: BDI 1 | S106: 125.43 | T106: 125.43 | V106: =IF(OR($A106=0,$A106="S",$A106>CFF!$A$9),"",MAX(V$12:OFFSET(V106,-1,0))+1) ->  | W106: SINAPI-89984 | X106: 5226 | Y106: =IF(Import.Desoneracao="sim",Referencia.Desonerado,Referencia.NaoDesonerado) -> 99.25 | Z106: =ROUND(IF(ISNUMBER(R106),R106,IF(LEFT(R106,3)="BDI",HLOOKUP(R106,DADOS!$T$37:$X$38,2,FALSE),0)),15-11*$X$5) -> 0.2638
A107: S | B107: 0 | C107: 1 | D107: 9 | E107: 0 | F107: 0 | G107: 12 | H107: 0 | I107: 0 | J107: Serviço | K107: 1.9.12. | L107: SINAPI | M107: 89987 | N107: =IF($A107="S",Referencia.Descricao,"(digite a descrição aqui)") -> REGISTRO DE GAVETA BRUTO, LATÃO, ROSCÁVEL, 3/4", COM ACABAMENTO E CANOPLA CROMADOS - FORNECIMENTO E INSTALAÇÃO. AF_08/2021 | O107: =Referencia.Unidade -> UN | P107: =OFFSET(PLQ!$E$12,ROW($P107)-ROW(P$12),0) -> 2 | Q107: 109.75 | R107: BDI 1 | S107: 138.7 | T107: 277.4 | V107: =IF(OR($A107=0,$A107="S",$A107>CFF!$A$9),"",MAX(V$12:OFFSET(V107,-1,0))+1) ->  | W107: SINAPI-89987 | X107: 5229 | Y107: =IF(Import.Desoneracao="sim",Referencia.Desonerado,Referencia.NaoDesonerado) -> 109.75 | Z107: =ROUND(IF(ISNUMBER(R107),R107,IF(LEFT(R107,3)="BDI",HLOOKUP(R107,DADOS!$T$37:$X$38,2,FALSE),0)),15-11*$X$5) -> 0.2638
A108: S | B108: 0 | C108: 1 | D108: 9 | E108: 0 | F108: 0 | G108: 13 | H108: 0 | I108: 0 | J108: Serviço | K108: 1.9.13. | L108: SINAPI | M108: 94490 | N108: =IF($A108="S",Referencia.Descricao,"(digite a descrição aqui)") -> REGISTRO DE ESFERA, PVC, SOLDÁVEL, COM VOLANTE, DN 32 MM - FORNECIMENTO E INSTALAÇÃO. AF_08/2021 | O108: =Referencia.Unidade -> UN | P108: =OFFSET(PLQ!$E$12,ROW($P108)-ROW(P$12),0) -> 2 | Q108: 67.05 | R108: BDI 1 | S108: 84.74 | T108: 169.48 | V108: =IF(OR($A108=0,$A108="S",$A108>CFF!$A$9),"",MAX(V$12:OFFSET(V108,-1,0))+1) ->  | W108: SINAPI-94490 | X108: 5232 | Y108: =IF(Import.Desoneracao="sim",Referencia.Desonerado,Referencia.NaoDesonerado) -> 67.05 | Z108: =ROUND(IF(ISNUMBER(R108),R108,IF(LEFT(R108,3)="BDI",HLOOKUP(R108,DADOS!$T$37:$X$38,2,FALSE),0)),15-11*$X$5) -> 0.2638
A109: S | B109: 0 | C109: 1 | D109: 9 | E109: 0 | F109: 0 | G109: 14 | H109: =IF(OR($A109="S",$A109=0),0,MATCH(0,OFFSET($B109,1,$A109,ROW($A$142)-ROW($A109)),0)) -> 0 | I109: =IF(OR($A109="S",$A109=0),0,MATCH(OFFSET($B109,0,$A109)+1,OFFSET($B109,1,$A109,ROW($A$142)-ROW($A109)),0)) -> 0 | J109: Serviço | K109: 1.9.14. | L109: SINAPI | M109: 94489 | N109: =IF($A109="S",Referencia.Descricao,"(digite a descrição aqui)") -> REGISTRO DE ESFERA, PVC, SOLDÁVEL, COM VOLANTE, DN 25 MM - FORNECIMENTO E INSTALAÇÃO. AF_08/2021 | O109: =Referencia.Unidade -> UN | P109: =OFFSET(PLQ!$E$12,ROW($P109)-ROW(P$12),0) -> 1 | Q109: 44.24 | R109: BDI 1 | S109: 55.91 | T109: 55.91 | V109: =IF(OR($A109=0,$A109="S",$A109>CFF!$A$9),"",MAX(V$12:OFFSET(V109,-1,0))+1) ->  | W109: SINAPI-94489 | X109: 5231 | Y109: =IF(Import.Desoneracao="sim",Referencia.Desonerado,Referencia.NaoDesonerado) -> 44.24 | Z109: =ROUND(IF(ISNUMBER(R109),R109,IF(LEFT(R109,3)="BDI",HLOOKUP(R109,DADOS!$T$37:$X$38,2,FALSE),0)),15-11*$X$5) -> 0.2638
A110: S | B110: 0 | C110: 1 | D110: 9 | E110: 0 | F110: 0 | G110: 15 | H110: 0 | I110: 0 | J110: Serviço | K110: 1.9.15. | L110: SINAPI | M110: 100860 | N110: =IF($A110="S",Referencia.Descricao,"(digite a descrição aqui)") -> CHUVEIRO ELÉTRICO COMUM CORPO PLÁSTICO, TIPO DUCHA  FORNECIMENTO E INSTALAÇÃO. AF_01/2020 | O110: =Referencia.Unidade -> UN | P110: =OFFSET(PLQ!$E$12,ROW($P110)-ROW(P$12),0) -> 1 | Q110: 87.06 | R110: BDI 1 | S110: 110.03 | T110: 110.03 | V110: =IF(OR($A110=0,$A110="S",$A110>CFF!$A$9),"",MAX(V$12:OFFSET(V110,-1,0))+1) ->  | W110: SINAPI-100860 | X110: 5144 | Y110: =IF(Import.Desoneracao="sim",Referencia.Desonerado,Referencia.NaoDesonerado) -> 87.06 | Z110: =ROUND(IF(ISNUMBER(R110),R110,IF(LEFT(R110,3)="BDI",HLOOKUP(R110,DADOS!$T$37:$X$38,2,FALSE),0)),15-11*$X$5) -> 0.2638
A111: S | B111: 0 | C111: 1 | D111: 9 | E111: 0 | F111: 0 | G111: 16 | H111: 0 | I111: 0 | J111: Serviço | K111: 1.9.16. | L111: SINAPI | M111: 94795 | N111: =IF($A111="S",Referencia.Descricao,"(digite a descrição aqui)") -> TORNEIRA DE BOIA PARA CAIXA D'ÁGUA, ROSCÁVEL, 1/2" - FORNECIMENTO E INSTALAÇÃO. AF_08/2021 | O111: =Referencia.Unidade -> UN | P111: =OFFSET(PLQ!$E$12,ROW($P111)-ROW(P$12),0) -> 1 | Q111: 69.38 | R111: BDI 1 | S111: 87.68 | T111: 87.68 | V111: =IF(OR($A111=0,$A111="S",$A111>CFF!$A$9),"",MAX(V$12:OFFSET(V111,-1,0))+1) ->  | W111: SINAPI-94795 | X111: 5246 | Y111: =IF(Import.Desoneracao="sim",Referencia.Desonerado,Referencia.NaoDesonerado) -> 69.38 | Z111: =ROUND(IF(ISNUMBER(R111),R111,IF(LEFT(R111,3)="BDI",HLOOKUP(R111,DADOS!$T$37:$X$38,2,FALSE),0)),15-11*$X$5) -> 0.2638
A112: S | B112: 0 | C112: 1 | D112: 9 | E112: 0 | F112: 0 | G112: 17 | H112: 0 | I112: 0 | J112: Serviço | K112: 1.9.17. | L112: SINAPI-I | M112: 13415 | N112: =IF($A112="S",Referencia.Descricao,"(digite a descrição aqui)") -> TORNEIRA DE MESA/BANCADA, PARA LAVATORIO, FIXA, METALICA CROMADA, PADRAO POPULAR, 1/2 " OU 3/4 " (REF 1193) | O112: =Referencia.Unidade -> UN | P112: =OFFSET(PLQ!$E$12,ROW($P112)-ROW(P$12),0) -> 1 | Q112: 108.11 | R112: BDI 1 | S112: 136.63 | T112: 136.63 | V112: =IF(OR($A112=0,$A112="S",$A112>CFF!$A$9),"",MAX(V$12:OFFSET(V112,-1,0))+1) ->  | W112: SINAPI-I-13415 | X112: 11911 | Y112: =IF(Import.Desoneracao="sim",Referencia.Desonerado,Referencia.NaoDesonerado) -> 108.11 | Z112: =ROUND(IF(ISNUMBER(R112),R112,IF(LEFT(R112,3)="BDI",HLOOKUP(R112,DADOS!$T$37:$X$38,2,FALSE),0)),15-11*$X$5) -> 0.2638
A113: S | B113: 0 | C113: 1 | D113: 9 | E113: 0 | F113: 0 | G113: 18 | H113: 0 | I113: 0 | J113: Serviço | K113: 1.9.18. | L113: SINAPI | M113: 102605 | N113: =IF($A113="S",Referencia.Descricao,"(digite a descrição aqui)") -> CAIXA D´ÁGUA EM POLIETILENO, 500 LITROS - FORNECIMENTO E INSTALAÇÃO. AF_06/2021 | O113: =Referencia.Unidade -> UN | P113: =OFFSET(PLQ!$E$12,ROW($P113)-ROW(P$12),0) -> 1 | Q113: 291.44 | R113: BDI 1 | S113: 368.32 | T113: 368.32 | V113: =IF(OR($A113=0,$A113="S",$A113>CFF!$A$9),"",MAX(V$12:OFFSET(V113,-1,0))+1) ->  | W113: SINAPI-102605 | X113: 5028 | Y113: =IF(Import.Desoneracao="sim",Referencia.Desonerado,Referencia.NaoDesonerado) -> 291.44 | Z113: =ROUND(IF(ISNUMBER(R113),R113,IF(LEFT(R113,3)="BDI",HLOOKUP(R113,DADOS!$T$37:$X$38,2,FALSE),0)),15-11*$X$5) -> 0.2638
A114: S | B114: 0 | C114: 1 | D114: 9 | E114: 0 | F114: 0 | G114: 19 | H114: 0 | I114: 0 | J114: Serviço | K114: 1.9.19. | L114: SINAPI | M114: 94785 | N114: =IF($A114="S",Referencia.Descricao,"(digite a descrição aqui)") -> ADAPTADOR COM FLANGES LIVRES, PVC, SOLDÁVEL LONGO, DN 32 MM X 1 , INSTALADO EM RESERVAÇÃO DE ÁGUA DE EDIFICAÇÃO QUE POSSUA RESERVATÓRIO DE FIBRA/FIBROCIMENTO FORNECIMENTO E INSTALAÇÃO. AF_06/2016 | O114: =Referencia.Unidade -> UN | P114: =OFFSET(PLQ!$E$12,ROW($P114)-ROW(P$12),0) -> 3 | Q114: 24.85 | R114: BDI 1 | S114: 31.41 | T114: 94.23 | V114: =IF(OR($A114=0,$A114="S",$A114>CFF!$A$9),"",MAX(V$12:OFFSET(V114,-1,0))+1) ->  | W114: SINAPI-94785 | X114: 4498 | Y114: =IF(Import.Desoneracao="sim",Referencia.Desonerado,Referencia.NaoDesonerado) -> 24.85 | Z114: =ROUND(IF(ISNUMBER(R114),R114,IF(LEFT(R114,3)="BDI",HLOOKUP(R114,DADOS!$T$37:$X$38,2,FALSE),0)),15-11*$X$5) -> 0.2638
A115: S | B115: 0 | C115: 1 | D115: 9 | E115: 0 | F115: 0 | G115: 20 | H115: 0 | I115: 0 | J115: Serviço | K115: 1.9.20. | L115: SINAPI | M115: 89391 | N115: =IF($A115="S",Referencia.Descricao,"(digite a descrição aqui)") -> ADAPTADOR CURTO COM BOLSA E ROSCA PARA REGISTRO, PVC, SOLDÁVEL, DN 32MM X 1 , INSTALADO EM RAMAL OU SUB-RAMAL DE ÁGUA - FORNECIMENTO E INSTALAÇÃO. AF_06/2022 | O115: =Referencia.Unidade -> UN | P115: =OFFSET(PLQ!$E$12,ROW($P115)-ROW(P$12),0) -> 4 | Q115: 8.58 | R115: BDI 1 | S115: 10.84 | T115: 43.36 | V115: =IF(OR($A115=0,$A115="S",$A115>CFF!$A$9),"",MAX(V$12:OFFSET(V115,-1,0))+1) ->  | W115: SINAPI-89391 | X115: 3742 | Y115: =IF(Import.Desoneracao="sim",Referencia.Desonerado,Referencia.NaoDesonerado) -> 8.58 | Z115: =ROUND(IF(ISNUMBER(R115),R115,IF(LEFT(R115,3)="BDI",HLOOKUP(R115,DADOS!$T$37:$X$38,2,FALSE),0)),15-11*$X$5) -> 0.2638
A116: S | B116: 0 | C116: 1 | D116: 9 | E116: 0 | F116: 0 | G116: 21 | H116: 0 | I116: 0 | J116: Serviço | K116: 1.9.21. | L116: SINAPI | M116: 89383 | N116: =IF($A116="S",Referencia.Descricao,"(digite a descrição aqui)") -> ADAPTADOR CURTO COM BOLSA E ROSCA PARA REGISTRO, PVC, SOLDÁVEL, DN 25MM X 3/4 , INSTALADO EM RAMAL OU SUB-RAMAL DE ÁGUA - FORNECIMENTO E INSTALAÇÃO. AF_06/2022 | O116: =Referencia.Unidade -> UN | P116: =OFFSET(PLQ!$E$12,ROW($P116)-ROW(P$12),0) -> 6 | Q116: 6.41 | R116: BDI 1 | S116: 8.1 | T116: 48.6 | V116: =IF(OR($A116=0,$A116="S",$A116>CFF!$A$9),"",MAX(V$12:OFFSET(V116,-1,0))+1) ->  | W116: SINAPI-89383 | X116: 3735 | Y116: =IF(Import.Desoneracao="sim",Referencia.Desonerado,Referencia.NaoDesonerado) -> 6.41 | Z116: =ROUND(IF(ISNUMBER(R116),R116,IF(LEFT(R116,3)="BDI",HLOOKUP(R116,DADOS!$T$37:$X$38,2,FALSE),0)),15-11*$X$5) -> 0.2638
A117: 2 | B117: 25 | C117: 1 | D117: 10 | E117: 0 | F117: 0 | G117: 0 | H117: 25 | J117: Nível 2 | K117: 1.10. | N117: INSTALAÇÕES SANITÁRIAS | O117: =Referencia.Unidade ->  | P117: =OFFSET(PLQ!$E$12,ROW($P117)-ROW(P$12),0) -> 0 | R117: BDI 1 | S117: 0 | T117: 5534.87 | V117: =IF(OR($A117=0,$A117="S",$A117>CFF!$A$9),"",MAX(V$12:OFFSET(V117,-1,0))+1) -> 11 | W117: FALSE | X117: X | Y117: =IF(Import.Desoneracao="sim",Referencia.Desonerado,Referencia.NaoDesonerado) -> 0 | Z117: =ROUND(IF(ISNUMBER(R117),R117,IF(LEFT(R117,3)="BDI",HLOOKUP(R117,DADOS!$T$37:$X$38,2,FALSE),0)),15-11*$X$5) -> 0.2638
A118: S | B118: 0 | C118: 1 | D118: 10 | E118: 0 | F118: 0 | G118: 1 | H118: 0 | I118: 0 | J118: Serviço | K118: 1.10.1. | L118: SINAPI | M118: 89796 | N118: =IF($A118="S",Referencia.Descricao,"(digite a descrição aqui)") -> TE, PVC, SERIE NORMAL, ESGOTO PREDIAL, DN 100 X 100 MM, JUNTA ELÁSTICA, FORNECIDO E INSTALADO EM RAMAL DE DESCARGA OU RAMAL DE ESGOTO SANITÁRIO. AF_08/2022 | O118: =Referencia.Unidade -> UN | P118: =OFFSET(PLQ!$E$12,ROW($P118)-ROW(P$12),0) -> 1 | Q118: 44.08 | R118: BDI 1 | S118: 55.71 | T118: 55.71 | V118: =IF(OR($A118=0,$A118="S",$A118>CFF!$A$9),"",MAX(V$12:OFFSET(V118,-1,0))+1) ->  | W118: SINAPI-89796 | X118: 4047 | Y118: =IF(Import.Desoneracao="sim",Referencia.Desonerado,Referencia.NaoDesonerado) -> 44.08 | Z118: =ROUND(IF(ISNUMBER(R118),R118,IF(LEFT(R118,3)="BDI",HLOOKUP(R118,DADOS!$T$37:$X$38,2,FALSE),0)),15-11*$X$5) -> 0.2638
A119: S | B119: 0 | C119: 1 | D119: 10 | E119: 0 | F119: 0 | G119: 2 | H119: 0 | I119: 0 | J119: Serviço | K119: 1.10.2. | L119: SINAPI-I | M119: 11655 | N119: =IF($A119="S",Referencia.Descricao,"(digite a descrição aqui)") -> TE SANITARIO DE REDUCAO, PVC, DN 100 X 50 MM, SERIE NORMAL, PARA ESGOTO PREDIAL | O119: =Referencia.Unidade -> UN | P119: =OFFSET(PLQ!$E$12,ROW($P119)-ROW(P$12),0) -> 1 | Q119: 19.13 | R119: BDI 1 | S119: 24.18 | T119: 24.18 | V119: =IF(OR($A119=0,$A119="S",$A119>CFF!$A$9),"",MAX(V$12:OFFSET(V119,-1,0))+1) ->  | W119: SINAPI-I-11655 | X119: 11672 | Y119: =IF(Import.Desoneracao="sim",Referencia.Desonerado,Referencia.NaoDesonerado) -> 19.13 | Z119: =ROUND(IF(ISNUMBER(R119),R119,IF(LEFT(R119,3)="BDI",HLOOKUP(R119,DADOS!$T$37:$X$38,2,FALSE),0)),15-11*$X$5) -> 0.2638
A120: S | B120: 0 | C120: 1 | D120: 10 | E120: 0 | F120: 0 | G120: 3 | H120: 0 | I120: 0 | J120: Serviço | K120: 1.10.3. | L120: SINAPI | M120: 89786 | N120: =IF($A120="S",Referencia.Descricao,"(digite a descrição aqui)") -> TE, PVC, SERIE NORMAL, ESGOTO PREDIAL, DN 75 X 75 MM, JUNTA ELÁSTICA, FORNECIDO E INSTALADO EM RAMAL DE DESCARGA OU RAMAL DE ESGOTO SANITÁRIO. AF_08/2022 | O120: =Referencia.Unidade -> UN | P120: =OFFSET(PLQ!$E$12,ROW($P120)-ROW(P$12),0) -> 1 | Q120: 39.67 | R120: BDI 1 | S120: 50.13 | T120: 50.13 | V120: =IF(OR($A120=0,$A120="S",$A120>CFF!$A$9),"",MAX(V$12:OFFSET(V120,-1,0))+1) ->  | W120: SINAPI-89786 | X120: 4037 | Y120: =IF(Import.Desoneracao="sim",Referencia.Desonerado,Referencia.NaoDesonerado) -> 39.67 | Z120: =ROUND(IF(ISNUMBER(R120),R120,IF(LEFT(R120,3)="BDI",HLOOKUP(R120,DADOS!$T$37:$X$38,2,FALSE),0)),15-11*$X$5) -> 0.2638
A121: S | B121: 0 | C121: 1 | D121: 10 | E121: 0 | F121: 0 | G121: 4 | H121: 0 | I121: 0 | J121: Serviço | K121: 1.10.4. | L121: SINAPI | M121: 89778 | N121: =IF($A121="S",Referencia.Descricao,"(digite a descrição aqui)") -> LUVA SIMPLES, PVC, SERIE NORMAL, ESGOTO PREDIAL, DN 100 MM, JUNTA ELÁSTICA, FORNECIDO E INSTALADO EM RAMAL DE DESCARGA OU RAMAL DE ESGOTO SANITÁRIO. AF_08/2022 | O121: =Referencia.Unidade -> UN | P121: =OFFSET(PLQ!$E$12,ROW($P121)-ROW(P$12),0) -> 16 | Q121: 18.53 | R121: BDI 1 | S121: 23.42 | T121: 374.72 | V121: =IF(OR($A121=0,$A121="S",$A121>CFF!$A$9),"",MAX(V$12:OFFSET(V121,-1,0))+1) ->  | W121: SINAPI-89778 | X121: 4029 | Y121: =IF(Import.Desoneracao="sim",Referencia.Desonerado,Referencia.NaoDesonerado) -> 18.53 | Z121: =ROUND(IF(ISNUMBER(R121),R121,IF(LEFT(R121,3)="BDI",HLOOKUP(R121,DADOS!$T$37:$X$38,2,FALSE),0)),15-11*$X$5) -> 0.2638
A122: S | B122: 0 | C122: 1 | D122: 10 | E122: 0 | F122: 0 | G122: 5 | H122: 0 | I122: 0 | J122: Serviço | K122: 1.10.5. | L122: SINAPI | M122: 89774 | N122: =IF($A122="S",Referencia.Descricao,"(digite a descrição aqui)") -> LUVA SIMPLES, PVC, SERIE NORMAL, ESGOTO PREDIAL, DN 75 MM, JUNTA ELÁSTICA, FORNECIDO E INSTALADO EM RAMAL DE DESCARGA OU RAMAL DE ESGOTO SANITÁRIO. AF_08/2022 | O122: =Referencia.Unidade -> UN | P122: =OFFSET(PLQ!$E$12,ROW($P122)-ROW(P$12),0) -> 5 | Q122: 16.17 | R122: BDI 1 | S122: 20.44 | T122: 102.2 | V122: =IF(OR($A122=0,$A122="S",$A122>CFF!$A$9),"",MAX(V$12:OFFSET(V122,-1,0))+1) ->  | W122: SINAPI-89774 | X122: 4026 | Y122: =IF(Import.Desoneracao="sim",Referencia.Desonerado,Referencia.NaoDesonerado) -> 16.17 | Z122: =ROUND(IF(ISNUMBER(R122),R122,IF(LEFT(R122,3)="BDI",HLOOKUP(R122,DADOS!$T$37:$X$38,2,FALSE),0)),15-11*$X$5) -> 0.2638
A123: S | B123: 0 | C123: 1 | D123: 10 | E123: 0 | F123: 0 | G123: 6 | H123: 0 | I123: 0 | J123: Serviço | K123: 1.10.6. | L123: SINAPI | M123: 89753 | N123: =IF($A123="S",Referencia.Descricao,"(digite a descrição aqui)") -> LUVA SIMPLES, PVC, SERIE NORMAL, ESGOTO PREDIAL, DN 50 MM, JUNTA ELÁSTICA, FORNECIDO E INSTALADO EM RAMAL DE DESCARGA OU RAMAL DE ESGOTO SANITÁRIO. AF_08/2022 | O123: =Referencia.Unidade -> UN | P123: =OFFSET(PLQ!$E$12,ROW($P123)-ROW(P$12),0) -> 10 | Q123: 9.48 | R123: BDI 1 | S123: 11.98 | T123: 119.8 | V123: =IF(OR($A123=0,$A123="S",$A123>CFF!$A$9),"",MAX(V$12:OFFSET(V123,-1,0))+1) ->  | W123: SINAPI-89753 | X123: 4009 | Y123: =IF(Import.Desoneracao="sim",Referencia.Desonerado,Referencia.NaoDesonerado) -> 9.48 | Z123: =ROUND(IF(ISNUMBER(R123),R123,IF(LEFT(R123,3)="BDI",HLOOKUP(R123,DADOS!$T$37:$X$38,2,FALSE),0)),15-11*$X$5) -> 0.2638
A124: S | B124: 0 | C124: 1 | D124: 10 | E124: 0 | F124: 0 | G124: 7 | H124: 0 | I124: 0 | J124: Serviço | K124: 1.10.7. | L124: SINAPI | M124: 89785 | N124: =IF($A124="S",Referencia.Descricao,"(digite a descrição aqui)") -> JUNÇÃO SIMPLES, PVC, SERIE NORMAL, ESGOTO PREDIAL, DN 50 X 50 MM, JUNTA ELÁSTICA, FORNECIDO E INSTALADO EM RAMAL DE DESCARGA OU RAMAL DE ESGOTO SANITÁRIO. AF_08/2022 | O124: =Referencia.Unidade -> UN | P124: =OFFSET(PLQ!$E$12,ROW($P124)-ROW(P$12),0) -> 1 | Q124: 26.88 | R124: BDI 1 | S124: 33.97 | T124: 33.97 | V124: =IF(OR($A124=0,$A124="S",$A124>CFF!$A$9),"",MAX(V$12:OFFSET(V124,-1,0))+1) ->  | W124: SINAPI-89785 | X124: 4036 | Y124: =IF(Import.Desoneracao="sim",Referencia.Desonerado,Referencia.NaoDesonerado) -> 26.88 | Z124: =ROUND(IF(ISNUMBER(R124),R124,IF(LEFT(R124,3)="BDI",HLOOKUP(R124,DADOS!$T$37:$X$38,2,FALSE),0)),15-11*$X$5) -> 0.2638
A125: S | B125: 0 | C125: 1 | D125: 10 | E125: 0 | F125: 0 | G125: 8 | H125: 0 | I125: 0 | J125: Serviço | K125: 1.10.8. | L125: SINAPI | M125: 89744 | N125: =IF($A125="S",Referencia.Descricao,"(digite a descrição aqui)") -> JOELHO 90 GRAUS, PVC, SERIE NORMAL, ESGOTO PREDIAL, DN 100 MM, JUNTA ELÁSTICA, FORNECIDO E INSTALADO EM RAMAL DE DESCARGA OU RAMAL DE ESGOTO SANITÁRIO. AF_08/2022 | O125: =Referencia.Unidade -> UN | P125: =OFFSET(PLQ!$E$12,ROW($P125)-ROW(P$12),0) -> 1 | Q125: 27.7 | R125: BDI 1 | S125: 35.01 | T125: 35.01 | V125: =IF(OR($A125=0,$A125="S",$A125>CFF!$A$9),"",MAX(V$12:OFFSET(V125,-1,0))+1) ->  | W125: SINAPI-89744 | X125: 4002 | Y125: =IF(Import.Desoneracao="sim",Referencia.Desonerado,Referencia.NaoDesonerado) -> 27.7 | Z125: =ROUND(IF(ISNUMBER(R125),R125,IF(LEFT(R125,3)="BDI",HLOOKUP(R125,DADOS!$T$37:$X$38,2,FALSE),0)),15-11*$X$5) -> 0.2638
A126: S | B126: 0 | C126: 1 | D126: 10 | E126: 0 | F126: 0 | G126: 9 | H126: 0 | I126: 0 | J126: Serviço | K126: 1.10.9. | L126: SINAPI | M126: 89731 | N126: =IF($A126="S",Referencia.Descricao,"(digite a descrição aqui)") -> JOELHO 90 GRAUS, PVC, SERIE NORMAL, ESGOTO PREDIAL, DN 50 MM, JUNTA ELÁSTICA, FORNECIDO E INSTALADO EM RAMAL DE DESCARGA OU RAMAL DE ESGOTO SANITÁRIO. AF_08/2022 | O126: =Referencia.Unidade -> UN | P126: =OFFSET(PLQ!$E$12,ROW($P126)-ROW(P$12),0) -> 13 | Q126: 14.66 | R126: BDI 1 | S126: 18.53 | T126: 240.89 | V126: =IF(OR($A126=0,$A126="S",$A126>CFF!$A$9),"",MAX(V$12:OFFSET(V126,-1,0))+1) ->  | W126: SINAPI-89731 | X126: 3989 | Y126: =IF(Import.Desoneracao="sim",Referencia.Desonerado,Referencia.NaoDesonerado) -> 14.66 | Z126: =ROUND(IF(ISNUMBER(R126),R126,IF(LEFT(R126,3)="BDI",HLOOKUP(R126,DADOS!$T$37:$X$38,2,FALSE),0)),15-11*$X$5) -> 0.2638
A127: S | B127: 0 | C127: 1 | D127: 10 | E127: 0 | F127: 0 | G127: 10 | H127: 0 | I127: 0 | J127: Serviço | K127: 1.10.10. | L127: SINAPI | M127: 89724 | N127: =IF($A127="S",Referencia.Descricao,"(digite a descrição aqui)") -> JOELHO 90 GRAUS, PVC, SERIE NORMAL, ESGOTO PREDIAL, DN 40 MM, JUNTA SOLDÁVEL, FORNECIDO E INSTALADO EM RAMAL DE DESCARGA OU RAMAL DE ESGOTO SANITÁRIO. AF_08/2022 | O127: =Referencia.Unidade -> UN | P127: =OFFSET(PLQ!$E$12,ROW($P127)-ROW(P$12),0) -> 6 | Q127: 10.2 | R127: BDI 1 | S127: 12.89 | T127: 77.34 | V127: =IF(OR($A127=0,$A127="S",$A127>CFF!$A$9),"",MAX(V$12:OFFSET(V127,-1,0))+1) ->  | W127: SINAPI-89724 | X127: 3982 | Y127: =IF(Import.Desoneracao="sim",Referencia.Desonerado,Referencia.NaoDesonerado) -> 10.2 | Z127: =ROUND(IF(ISNUMBER(R127),R127,IF(LEFT(R127,3)="BDI",HLOOKUP(R127,DADOS!$T$37:$X$38,2,FALSE),0)),15-11*$X$5) -> 0.2638
A128: S | B128: 0 | C128: 1 | D128: 10 | E128: 0 | F128: 0 | G128: 11 | H128: 0 | I128: 0 | J128: Serviço | K128: 1.10.11. | L128: SINAPI | M128: 89746 | N128: =IF($A128="S",Referencia.Descricao,"(digite a descrição aqui)") -> JOELHO 45 GRAUS, PVC, SERIE NORMAL, ESGOTO PREDIAL, DN 100 MM, JUNTA ELÁSTICA, FORNECIDO E INSTALADO EM RAMAL DE DESCARGA OU RAMAL DE ESGOTO SANITÁRIO. AF_08/2022 | O128: =Referencia.Unidade -> UN | P128: =OFFSET(PLQ!$E$12,ROW($P128)-ROW(P$12),0) -> 8 | Q128: 28.64 | R128: BDI 1 | S128: 36.2 | T128: 289.6 | V128: =IF(OR($A128=0,$A128="S",$A128>CFF!$A$9),"",MAX(V$12:OFFSET(V128,-1,0))+1) ->  | W128: SINAPI-89746 | X128: 4003 | Y128: =IF(Import.Desoneracao="sim",Referencia.Desonerado,Referencia.NaoDesonerado) -> 28.64 | Z128: =ROUND(IF(ISNUMBER(R128),R128,IF(LEFT(R128,3)="BDI",HLOOKUP(R128,DADOS!$T$37:$X$38,2,FALSE),0)),15-11*$X$5) -> 0.2638
A129: S | B129: 0 | C129: 1 | D129: 10 | E129: 0 | F129: 0 | G129: 12 | H129: 0 | I129: 0 | J129: Serviço | K129: 1.10.12. | L129: SINAPI | M129: 89739 | N129: =IF($A129="S",Referencia.Descricao,"(digite a descrição aqui)") -> JOELHO 45 GRAUS, PVC, SERIE NORMAL, ESGOTO PREDIAL, DN 75 MM, JUNTA ELÁSTICA, FORNECIDO E INSTALADO EM RAMAL DE DESCARGA OU RAMAL DE ESGOTO SANITÁRIO. AF_08/2022 | O129: =Referencia.Unidade -> UN | P129: =OFFSET(PLQ!$E$12,ROW($P129)-ROW(P$12),0) -> 3 | Q129: 23.76 | R129: BDI 1 | S129: 30.03 | T129: 90.09 | V129: =IF(OR($A129=0,$A129="S",$A129>CFF!$A$9),"",MAX(V$12:OFFSET(V129,-1,0))+1) ->  | W129: SINAPI-89739 | X129: 3997 | Y129: =IF(Import.Desoneracao="sim",Referencia.Desonerado,Referencia.NaoDesonerado) -> 23.76 | Z129: =ROUND(IF(ISNUMBER(R129),R129,IF(LEFT(R129,3)="BDI",HLOOKUP(R129,DADOS!$T$37:$X$38,2,FALSE),0)),15-11*$X$5) -> 0.2638
A130: S | B130: 0 | C130: 1 | D130: 10 | E130: 0 | F130: 0 | G130: 13 | H130: 0 | I130: 0 | J130: Serviço | K130: 1.10.13. | L130: SINAPI | M130: 89732 | N130: =IF($A130="S",Referencia.Descricao,"(digite a descrição aqui)") -> JOELHO 45 GRAUS, PVC, SERIE NORMAL, ESGOTO PREDIAL, DN 50 MM, JUNTA ELÁSTICA, FORNECIDO E INSTALADO EM RAMAL DE DESCARGA OU RAMAL DE ESGOTO SANITÁRIO. AF_08/2022 | O130: =Referencia.Unidade -> UN | P130: =OFFSET(PLQ!$E$12,ROW($P130)-ROW(P$12),0) -> 2 | Q130: 15.48 | R130: BDI 1 | S130: 19.56 | T130: 39.12 | V130: =IF(OR($A130=0,$A130="S",$A130>CFF!$A$9),"",MAX(V$12:OFFSET(V130,-1,0))+1) ->  | W130: SINAPI-89732 | X130: 3990 | Y130: =IF(Import.Desoneracao="sim",Referencia.Desonerado,Referencia.NaoDesonerado) -> 15.48 | Z130: =ROUND(IF(ISNUMBER(R130),R130,IF(LEFT(R130,3)="BDI",HLOOKUP(R130,DADOS!$T$37:$X$38,2,FALSE),0)),15-11*$X$5) -> 0.2638
A131: S | B131: 0 | C131: 1 | D131: 10 | E131: 0 | F131: 0 | G131: 14 | H131: 0 | I131: 0 | J131: Serviço | K131: 1.10.14. | L131: SINAPI | M131: 89726 | N131: =IF($A131="S",Referencia.Descricao,"(digite a descrição aqui)") -> JOELHO 45 GRAUS, PVC, SERIE NORMAL, ESGOTO PREDIAL, DN 40 MM, JUNTA SOLDÁVEL, FORNECIDO E INSTALADO EM RAMAL DE DESCARGA OU RAMAL DE ESGOTO SANITÁRIO. AF_08/2022 | O131: =Referencia.Unidade -> UN | P131: =OFFSET(PLQ!$E$12,ROW($P131)-ROW(P$12),0) -> 1 | Q131: 10.46 | R131: BDI 1 | S131: 13.22 | T131: 13.22 | V131: =IF(OR($A131=0,$A131="S",$A131>CFF!$A$9),"",MAX(V$12:OFFSET(V131,-1,0))+1) ->  | W131: SINAPI-89726 | X131: 3984 | Y131: =IF(Import.Desoneracao="sim",Referencia.Desonerado,Referencia.NaoDesonerado) -> 10.46 | Z131: =ROUND(IF(ISNUMBER(R131),R131,IF(LEFT(R131,3)="BDI",HLOOKUP(R131,DADOS!$T$37:$X$38,2,FALSE),0)),15-11*$X$5) -> 0.2638
A132: =CHOOSE(1+LOG(1+2*(J132="Meta")+4*(J132="Nível 2")+8*(J132="Nível 3")+16*(J132="Nível 4")+32*(J132="Serviço"),2),0,1,2,3,4,"S") -> S | B132: =IF(OR(A132="S",A132=0),0,IF(ISERROR(I132),H132,SMALL(H132:I132,1))) -> 0 | C132: =IF($A132=1,OFFSET(C132,-1,0)+1,OFFSET(C132,-1,0)) -> 1 | D132: =IF($A132=1,0,IF($A132=2,OFFSET(D132,-1,0)+1,OFFSET(D132,-1,0))) -> 10 | E132: =IF(AND($A132<=2,$A132<>0),0,IF($A132=3,OFFSET(E132,-1,0)+1,OFFSET(E132,-1,0))) -> 0 | F132: =IF(AND($A132<=3,$A132<>0),0,IF($A132=4,OFFSET(F132,-1,0)+1,OFFSET(F132,-1,0))) -> 0 | G132: =IF(AND($A132<=4,$A132<>0),0,IF($A132="S",OFFSET(G132,-1,0)+1,OFFSET(G132,-1,0))) -> 15 | H132: 0 | I132: 0 | J132: Serviço | K132: =IF($A132=0,"-",CONCATENATE(C132&".",IF(AND($A$5>=2,$A132>=2),D132&".",""),IF(AND($A$5>=3,$A132>=3),E132&".",""),IF(AND($A$5>=4,$A132>=4),F132&".",""),IF($A132="S",G132&".",""))) -> 1.10.15. | L132: SINAPI | M132: 89711 | N132: =IF($A132="S",Referencia.Descricao,"(digite a descrição aqui)") -> TUBO PVC, SERIE NORMAL, ESGOTO PREDIAL, DN 40 MM, FORNECIDO E INSTALADO EM RAMAL DE DESCARGA OU RAMAL DE ESGOTO SANITÁRIO. AF_08/2022 | O132: =Referencia.Unidade -> M | P132: =OFFSET(PLQ!$E$12,ROW($P132)-ROW(P$12),0) -> 6 | Q132: 21.11 | R132: BDI 1 | S132: =IF($A132="S",IF($Q$10="Preço Unitário (R$)",PO.CustoUnitario,ROUND(PO.CustoUnitario*(1+$Z132),15-13*$X$6)),0) -> 26.68 | T132: =IF($A132="S",VTOTAL1,IF($A132=0,0,ROUND(SomaAgrup,15-13*$X$7))) -> 160.08 | U132: =IF($J132="","",IF($N132="","DESCRIÇÃO",IF(AND($J132="Serviço",$O132=""),"UNIDADE",IF($T132<=0,"SEM VALOR",IF(AND($Y132<>"",$Q132>$Y132),"ACIMA REF.",""))))) ->  | V132: =IF(OR($A132=0,$A132="S",$A132>CFF!$A$9),"",MAX(V$12:OFFSET(V132,-1,0))+1) ->  | W132: =IF(AND($J132="Serviço",$M132<>""),IF($L132="",$M132,CONCATENATE($L132,"-",$M132))) -> SINAPI-89711 | X132: =IF(AND(Fonte<>"",Código<>""),MATCH(Fonte&" "&IF(Fonte="sinapi",SUBSTITUTE(SUBSTITUTE(Código,"/00","/"),"/0","/"),Código),INDIRECT("'[Referência "&_xlnm.Database&".xls]Banco'!$a:$a"),0),"X") -> 3471 | Y132: =IF(Import.Desoneracao="sim",Referencia.Desonerado,Referencia.NaoDesonerado) -> 21.11 | Z132: =ROUND(IF(ISNUMBER(R132),R132,IF(LEFT(R132,3)="BDI",HLOOKUP(R132,DADOS!$T$37:$X$38,2,FALSE),0)),15-11*$X$5) -> 0.2638
A133: S | B133: 0 | C133: 1 | D133: 10 | E133: 0 | F133: 0 | G133: 16 | H133: 0 | I133: 0 | J133: Serviço | K133: 1.10.16. | L133: SINAPI | M133: 89712 | N133: =IF($A133="S",Referencia.Descricao,"(digite a descrição aqui)") -> TUBO PVC, SERIE NORMAL, ESGOTO PREDIAL, DN 50 MM, FORNECIDO E INSTALADO EM RAMAL DE DESCARGA OU RAMAL DE ESGOTO SANITÁRIO. AF_08/2022 | O133: =Referencia.Unidade -> M | P133: =OFFSET(PLQ!$E$12,ROW($P133)-ROW(P$12),0) -> 6 | Q133: 27.29 | R133: BDI 1 | S133: 34.49 | T133: 206.94 | V133: =IF(OR($A133=0,$A133="S",$A133>CFF!$A$9),"",MAX(V$12:OFFSET(V133,-1,0))+1) ->  | W133: SINAPI-89712 | X133: 3472 | Y133: =IF(Import.Desoneracao="sim",Referencia.Desonerado,Referencia.NaoDesonerado) -> 27.29 | Z133: =ROUND(IF(ISNUMBER(R133),R133,IF(LEFT(R133,3)="BDI",HLOOKUP(R133,DADOS!$T$37:$X$38,2,FALSE),0)),15-11*$X$5) -> 0.2638
A134: S | B134: 0 | C134: 1 | D134: 10 | E134: 0 | F134: 0 | G134: 17 | H134: 0 | I134: 0 | J134: Serviço | K134: 1.10.17. | L134: SINAPI | M134: 89713 | N134: =IF($A134="S",Referencia.Descricao,"(digite a descrição aqui)") -> TUBO PVC, SERIE NORMAL, ESGOTO PREDIAL, DN 75 MM, FORNECIDO E INSTALADO EM RAMAL DE DESCARGA OU RAMAL DE ESGOTO SANITÁRIO. AF_08/2022 | O134: =Referencia.Unidade -> M | P134: =OFFSET(PLQ!$E$12,ROW($P134)-ROW(P$12),0) -> 6 | Q134: 34.16 | R134: BDI 1 | S134: 43.17 | T134: 259.02 | V134: =IF(OR($A134=0,$A134="S",$A134>CFF!$A$9),"",MAX(V$12:OFFSET(V134,-1,0))+1) ->  | W134: SINAPI-89713 | X134: 3473 | Y134: =IF(Import.Desoneracao="sim",Referencia.Desonerado,Referencia.NaoDesonerado) -> 34.16 | Z134: =ROUND(IF(ISNUMBER(R134),R134,IF(LEFT(R134,3)="BDI",HLOOKUP(R134,DADOS!$T$37:$X$38,2,FALSE),0)),15-11*$X$5) -> 0.2638
A135: S | B135: 0 | C135: 1 | D135: 10 | E135: 0 | F135: 0 | G135: 18 | H135: 0 | I135: 0 | J135: Serviço | K135: 1.10.18. | L135: SINAPI | M135: 89714 | N135: =IF($A135="S",Referencia.Descricao,"(digite a descrição aqui)") -> TUBO PVC, SERIE NORMAL, ESGOTO PREDIAL, DN 100 MM, FORNECIDO E INSTALADO EM RAMAL DE DESCARGA OU RAMAL DE ESGOTO SANITÁRIO. AF_08/2022 | O135: =Referencia.Unidade -> M | P135: =OFFSET(PLQ!$E$12,ROW($P135)-ROW(P$12),0) -> 15 | Q135: 38 | R135: BDI 1 | S135: 48.02 | T135: 720.3 | V135: =IF(OR($A135=0,$A135="S",$A135>CFF!$A$9),"",MAX(V$12:OFFSET(V135,-1,0))+1) ->  | W135: SINAPI-89714 | X135: 3474 | Y135: =IF(Import.Desoneracao="sim",Referencia.Desonerado,Referencia.NaoDesonerado) -> 38 | Z135: =ROUND(IF(ISNUMBER(R135),R135,IF(LEFT(R135,3)="BDI",HLOOKUP(R135,DADOS!$T$37:$X$38,2,FALSE),0)),15-11*$X$5) -> 0.2638
A136: S | B136: 0 | C136: 1 | D136: 10 | E136: 0 | F136: 0 | G136: 19 | H136: 0 | I136: 0 | J136: Serviço | K136: 1.10.19. | L136: SINAPI | M136: 86931 | N136: =IF($A136="S",Referencia.Descricao,"(digite a descrição aqui)") -> VASO SANITÁRIO SIFONADO COM CAIXA ACOPLADA LOUÇA BRANCA, INCLUSO ENGATE FLEXÍVEL EM PLÁSTICO BRANCO, 1/2 X 40CM - FORNECIMENTO E INSTALAÇÃO. AF_01/2020 | O136: =Referencia.Unidade -> UN | P136: =OFFSET(PLQ!$E$12,ROW($P136)-ROW(P$12),0) -> 1 | Q136: 492.84 | R136: BDI 1 | S136: 622.85 | T136: 622.85 | V136: =IF(OR($A136=0,$A136="S",$A136>CFF!$A$9),"",MAX(V$12:OFFSET(V136,-1,0))+1) ->  | W136: SINAPI-86931 | X136: 5106 | Y136: =IF(Import.Desoneracao="sim",Referencia.Desonerado,Referencia.NaoDesonerado) -> 492.84 | Z136: =ROUND(IF(ISNUMBER(R136),R136,IF(LEFT(R136,3)="BDI",HLOOKUP(R136,DADOS!$T$37:$X$38,2,FALSE),0)),15-11*$X$5) -> 0.2638
A137: S | B137: 0 | C137: 1 | D137: 10 | E137: 0 | F137: 0 | G137: 20 | H137: 0 | I137: 0 | J137: Serviço | K137: 1.10.20. | L137: SINAPI-I | M137: 377 | N137: =IF($A137="S",Referencia.Descricao,"(digite a descrição aqui)") -> ASSENTO SANITARIO DE PLASTICO, TIPO CONVENCIONAL | O137: =Referencia.Unidade -> UN | P137: =OFFSET(PLQ!$E$12,ROW($P137)-ROW(P$12),0) -> 1 | Q137: 36.9 | R137: BDI 1 | S137: 46.63 | T137: 46.63 | V137: =IF(OR($A137=0,$A137="S",$A137>CFF!$A$9),"",MAX(V$12:OFFSET(V137,-1,0))+1) ->  | W137: SINAPI-I-377 | X137: 7884 | Y137: =IF(Import.Desoneracao="sim",Referencia.Desonerado,Referencia.NaoDesonerado) -> 36.9 | Z137: =ROUND(IF(ISNUMBER(R137),R137,IF(LEFT(R137,3)="BDI",HLOOKUP(R137,DADOS!$T$37:$X$38,2,FALSE),0)),15-11*$X$5) -> 0.2638
A138: S | B138: 0 | C138: 1 | D138: 10 | E138: 0 | F138: 0 | G138: 21 | H138: 0 | I138: 0 | J138: Serviço | K138: 1.10.21. | L138: SINAPI | M138: 86943 | N138: =IF($A138="S",Referencia.Descricao,"(digite a descrição aqui)") -> LAVATÓRIO LOUÇA BRANCA SUSPENSO, 29,5 X 39CM OU EQUIVALENTE, PADRÃO POPULAR, INCLUSO SIFÃO FLEXÍVEL EM PVC, VÁLVULA E ENGATE FLEXÍVEL 30CM EM PLÁSTICO E TORNEIRA CROMADA DE MESA, PADRÃO POPULAR - FORNECIMENTO E INSTALAÇÃO. AF_01/2020 | O138: =Referencia.Unidade -> UN | P138: =OFFSET(PLQ!$E$12,ROW($P138)-ROW(P$12),0) -> 1 | Q138: 294.74 | R138: BDI 1 | S138: 372.49 | T138: 372.49 | V138: =IF(OR($A138=0,$A138="S",$A138>CFF!$A$9),"",MAX(V$12:OFFSET(V138,-1,0))+1) ->  | W138: SINAPI-86943 | X138: 5118 | Y138: =IF(Import.Desoneracao="sim",Referencia.Desonerado,Referencia.NaoDesonerado) -> 294.74 | Z138: =ROUND(IF(ISNUMBER(R138),R138,IF(LEFT(R138,3)="BDI",HLOOKUP(R138,DADOS!$T$37:$X$38,2,FALSE),0)),15-11*$X$5) -> 0.2638
A139: S | B139: 0 | C139: 1 | D139: 10 | E139: 0 | F139: 0 | G139: 22 | H139: 0 | I139: 0 | J139: Serviço | K139: 1.10.22. | L139: SINAPI | M139: 98110 | N139: =IF($A139="S",Referencia.Descricao,"(digite a descrição aqui)") -> CAIXA DE GORDURA PEQUENA (CAPACIDADE: 19 L), CIRCULAR, EM PVC, DIÂMETRO INTERNO= 0,3 M. AF_12/2020 | O139: =Referencia.Unidade -> UN | P139: =OFFSET(PLQ!$E$12,ROW($P139)-ROW(P$12),0) -> 1 | Q139: 416.75 | R139: BDI 1 | S139: 526.69 | T139: 526.69 | V139: =IF(OR($A139=0,$A139="S",$A139>CFF!$A$9),"",MAX(V$12:OFFSET(V139,-1,0))+1) ->  | W139: SINAPI-98110 | X139: 5208 | Y139: =IF(Import.Desoneracao="sim",Referencia.Desonerado,Referencia.NaoDesonerado) -> 416.75 | Z139: =ROUND(IF(ISNUMBER(R139),R139,IF(LEFT(R139,3)="BDI",HLOOKUP(R139,DADOS!$T$37:$X$38,2,FALSE),0)),15-11*$X$5) -> 0.2638
A140: S | B140: 0 | C140: 1 | D140: 10 | E140: 0 | F140: 0 | G140: 23 | H140: 0 | I140: 0 | J140: Serviço | K140: 1.10.23. | L140: SINAPI | M140: 89707 | N140: =IF($A140="S",Referencia.Descricao,"(digite a descrição aqui)") -> CAIXA SIFONADA, PVC, DN 100 X 100 X 50 MM, JUNTA ELÁSTICA, FORNECIDA E INSTALADA EM RAMAL DE DESCARGA OU EM RAMAL DE ESGOTO SANITÁRIO. AF_08/2022 | O140: =Referencia.Unidade -> UN | P140: =OFFSET(PLQ!$E$12,ROW($P140)-ROW(P$12),0) -> 1 | Q140: 49.73 | R140: BDI 1 | S140: 62.85 | T140: 62.85 | V140: =IF(OR($A140=0,$A140="S",$A140>CFF!$A$9),"",MAX(V$12:OFFSET(V140,-1,0))+1) ->  | W140: SINAPI-89707 | X140: 5050 | Y140: =IF(Import.Desoneracao="sim",Referencia.Desonerado,Referencia.NaoDesonerado) -> 49.73 | Z140: =ROUND(IF(ISNUMBER(R140),R140,IF(LEFT(R140,3)="BDI",HLOOKUP(R140,DADOS!$T$37:$X$38,2,FALSE),0)),15-11*$X$5) -> 0.2638
A141: S | B141: 0 | C141: 1 | D141: 10 | E141: 0 | F141: 0 | G141: 24 | H141: 0 | I141: 0 | J141: Serviço | K141: 1.10.24. | L141: COTAÇÃO | M141: 04 | N141: =IF($A141="S",Referencia.Descricao,"(digite a descrição aqui)") -> TANQUE SEPTICO CAP-1875 LITROS DE CONCRETO | O141: =Referencia.Unidade -> UNIDADE | P141: =OFFSET(PLQ!$E$12,ROW($P141)-ROW(P$12),0) -> 1 | Q141: 800 | R141: BDI 1 | S141: 1011.04 | T141: 1011.04 | V141: =IF(OR($A141=0,$A141="S",$A141>CFF!$A$9),"",MAX(V$12:OFFSET(V141,-1,0))+1) ->  | W141: COTAÇÃO-04 | X141: 25 | Y141: =IF(Import.Desoneracao="sim",Referencia.Desonerado,Referencia.NaoDesonerado) -> 800 | Z141: =ROUND(IF(ISNUMBER(R141),R141,IF(LEFT(R141,3)="BDI",HLOOKUP(R141,DADOS!$T$37:$X$38,2,FALSE),0)),15-11*$X$5) -> 0.2638
A142: -1 | C142: 0 | D142: 0 | E142: 0 | F142: 0 | G142: 0
K143: Encargos sociais: | M143: Para elaboração deste orçamento, foram utilizados os encargos sociais do SINAPI para a Unidade da Federação indicada.
K145: Observações:
K150: =IF(AND($X$3=FALSE,$X$4=FALSE,$X$5=FALSE,$X$6=FALSE,$X$7=FALSE),"Não foi considerado arredondamento nos valores da planilha.",CONCATENATE("Foi considerado arredondamento de duas casas decimais para ",IF($X$3=TRUE,"Quantidade; ",""),IF($X$4=TRUE,"Custo Unitário; ",""),IF($X$5=TRUE,"BDI; ",""),IF($X$6=TRUE,"Preço Unitário; ",""),IF($X$7=TRUE,"Preço Total.",""))) -> Foi considerado arredondamento de duas casas decimais para Quantidade; Custo Unitário; BDI; Preço Unitário; Preço Total.
K153: =Import.Município -> SÃO JOÃO DA URTIGA/RS
K154: Local
K156: =TODAY() -> 2023-06-06
K157: Data

Sheet PLQ
E1: PLQ - | F1: PLANILHA DE LEVANTAMENTO DE QUANTIDADES
E7: =OFFSET(PO!$P$12,ROW($E7)-ROW(E$12),0) -> 0
E9: - | F9: 1
A10: Nível | B10: Item | C10: Descrição | D10: Unid. | E10: Quantidade | F10: =IF(OFFSET(F10,0,-1)="Quantidade",1,OFFSET(F10,0,-1)+1) -> 1 | G10: 2 | H10: 3 | I10: 4 | J10: 5 | K10: 6 | L10: 7 | M10: 8 | N10: 9 | O10: 10 | U10: =IF(OFFSET(U10,0,-1)="Quantidade",1,OFFSET(U10,0,-1)+1) -> 1
A11: =OFFSET(PO!J$12,ROW(A11)-ROW($A$12),0) -> Serviço | B11: =IF($A11=0,"",OFFSET(PO!K$12,ROW(B11)-ROW(B$12),0)) ->  | C11: =IF(OFFSET(PO!N$12,ROW(C11)-ROW(C$12),0)=0,"",OFFSET(PO!N$12,ROW(C11)-ROW(C$12),0)) ->  | D11: =IF(OFFSET(PO!O$12,ROW(D11)-ROW(D$12),0)=0,"",OFFSET(PO!O$12,ROW(D11)-ROW(D$12),0)) ->  | E11: =IF($A11<>"Serviço",0,ROUND(SUMIF($F$9:$P$9,"<>",$F11:$P11),15-13*PO!$X$3)) -> 0
A12: =PO!J12 -> LOTE | C12: =PO!N12 -> 0
A13: =OFFSET(PO!J$12,ROW(A13)-ROW($A$12),0) -> Meta | B13: =IF($A13=0,"",OFFSET(PO!K$12,ROW(B13)-ROW(B$12),0)) -> 1. | C13: =IF(OFFSET(PO!N$12,ROW(C13)-ROW(C$12),0)=0,"",OFFSET(PO!N$12,ROW(C13)-ROW(C$12),0)) -> RESIDÊNCIA POPULAR UNIFAMILIARES EM MADEIRA | D13: =IF(OFFSET(PO!O$12,ROW(D13)-ROW(D$12),0)=0,"",OFFSET(PO!O$12,ROW(D13)-ROW(D$12),0)) ->  | E13: =IF($A13<>"Serviço",0,ROUND(SUMIF($F$9:$P$9,"<>",$F13:$P13),15-13*PO!$X$3)) -> 0
A14: =OFFSET(PO!J$12,ROW(A14)-ROW($A$12),0) -> Nível 2 | B14: =IF($A14=0,"",OFFSET(PO!K$12,ROW(B14)-ROW(B$12),0)) -> 1.1. | C14: =IF(OFFSET(PO!N$12,ROW(C14)-ROW(C$12),0)=0,"",OFFSET(PO!N$12,ROW(C14)-ROW(C$12),0)) -> SERVIÇOS PRELIMINARES | D14: =IF(OFFSET(PO!O$12,ROW(D14)-ROW(D$12),0)=0,"",OFFSET(PO!O$12,ROW(D14)-ROW(D$12),0)) ->  | E14: =IF($A14<>"Serviço",0,ROUND(SUMIF($F$9:$P$9,"<>",$F14:$P14),15-13*PO!$X$3)) -> 0
A15: =OFFSET(PO!J$12,ROW(A15)-ROW($A$12),0) -> Serviço | B15: =IF($A15=0,"",OFFSET(PO!K$12,ROW(B15)-ROW(B$12),0)) -> 1.1.1. | C15: =IF(OFFSET(PO!N$12,ROW(C15)-ROW(C$12),0)=0,"",OFFSET(PO!N$12,ROW(C15)-ROW(C$12),0)) -> ENTRADA DE ENERGIA ELÉTRICA, AÉREA, MONOFÁSICA, COM CAIXA DE SOBREPOR, CABO DE 10 MM2 E DISJUNTOR DIN 50A (NÃO INCLUSO O POSTE DE CONCRETO). AF_07/2020_PS | D15: =IF(OFFSET(PO!O$12,ROW(D15)-ROW(D$12),0)=0,"",OFFSET(PO!O$12,ROW(D15)-ROW(D$12),0)) -> UN | E15: =IF($A15<>"Serviço",0,ROUND(SUMIF($F$9:$P$9,"<>",$F15:$P15),15-13*PO!$X$3)) -> 1 | F15: 1
A16: =OFFSET(PO!J$12,ROW(A16)-ROW($A$12),0) -> Serviço | B16: =IF($A16=0,"",OFFSET(PO!K$12,ROW(B16)-ROW(B$12),0)) -> 1.1.2. | C16: =IF(OFFSET(PO!N$12,ROW(C16)-ROW(C$12),0)=0,"",OFFSET(PO!N$12,ROW(C16)-ROW(C$12),0)) -> POSTE DE CONCRETO ARMADO DE SECAO CIRCULAR, EXTENSAO DE 10,00 M, RESISTENCIA DE 150 A 200 DAN, TIPO C-14 | D16: =IF(OFFSET(PO!O$12,ROW(D16)-ROW(D$12),0)=0,"",OFFSET(PO!O$12,ROW(D16)-ROW(D$12),0)) -> UN | E16: =IF($A16<>"Serviço",0,ROUND(SUMIF($F$9:$P$9,"<>",$F16:$P16),15-13*PO!$X$3)) -> 1 | F16: 1
A17: =OFFSET(PO!J$12,ROW(A17)-ROW($A$12),0) -> Nível 2 | B17: =IF($A17=0,"",OFFSET(PO!K$12,ROW(B17)-ROW(B$12),0)) -> 1.2. | C17: =IF(OFFSET(PO!N$12,ROW(C17)-ROW(C$12),0)=0,"",OFFSET(PO!N$12,ROW(C17)-ROW(C$12),0)) -> INFRAESTRUTURA | D17: =IF(OFFSET(PO!O$12,ROW(D17)-ROW(D$12),0)=0,"",OFFSET(PO!O$12,ROW(D17)-ROW(D$12),0)) ->  | E17: =IF($A17<>"Serviço",0,ROUND(SUMIF($F$9:$P$9,"<>",$F17:$P17),15-13*PO!$X$3)) -> 0
A18: =OFFSET(PO!J$12,ROW(A18)-ROW($A$12),0) -> Serviço | B18: =IF($A18=0,"",OFFSET(PO!K$12,ROW(B18)-ROW(B$12),0)) -> 1.2.1. | C18: =IF(OFFSET(PO!N$12,ROW(C18)-ROW(C$12),0)=0,"",OFFSET(PO!N$12,ROW(C18)-ROW(C$12),0)) -> ESCAVAÇÃO MANUAL DE VALA PARA VIGA BALDRAME (INCLUINDO ESCAVAÇÃO PARA COLOCAÇÃO DE FÔRMAS). AF_06/2017 | D18: =IF(OFFSET(PO!O$12,ROW(D18)-ROW(D$12),0)=0,"",OFFSET(PO!O$12,ROW(D18)-ROW(D$12),0)) -> M3 | E18: =IF($A18<>"Serviço",0,ROUND(SUMIF($F$9:$P$9,"<>",$F18:$P18),15-13*PO!$X$3)) -> 4.45 | F18: 4.45
A19: =OFFSET(PO!J$12,ROW(A19)-ROW($A$12),0) -> Serviço | B19: =IF($A19=0,"",OFFSET(PO!K$12,ROW(B19)-ROW(B$12),0)) -> 1.2.2. | C19: =IF(OFFSET(PO!N$12,ROW(C19)-ROW(C$12),0)=0,"",OFFSET(PO!N$12,ROW(C19)-ROW(C$12),0)) -> CONCRETO CICLÓPICO FCK = 15MPA, 30% PEDRA DE MÃO EM VOLUME REAL, INCLUSIVE LANÇAMENTO. AF_05/2021 | D19: =IF(OFFSET(PO!O$12,ROW(D19)-ROW(D$12),0)=0,"",OFFSET(PO!O$12,ROW(D19)-ROW(D$12),0)) -> M3 | E19: =IF($A19<>"Serviço",0,ROUND(SUMIF($F$9:$P$9,"<>",$F19:$P19),15-13*PO!$X$3)) -> 1.48 | F19: 1.48
A20: =OFFSET(PO!J$12,ROW(A20)-ROW($A$12),0) -> Serviço | B20: =IF($A20=0,"",OFFSET(PO!K$12,ROW(B20)-ROW(B$12),0)) -> 1.2.3. | C20: =IF(OFFSET(PO!N$12,ROW(C20)-ROW(C$12),0)=0,"",OFFSET(PO!N$12,ROW(C20)-ROW(C$12),0)) -> ALVENARIA DE VEDAÇÃO DE BLOCOS CERÂMICOS MACIÇOS DE 5X10X20CM (ESPESSURA 10CM) E ARGAMASSA DE ASSENTAMENTO COM PREPARO EM BETONEIRA. AF_05/2020 | D20: =IF(OFFSET(PO!O$12,ROW(D20)-ROW(D$12),0)=0,"",OFFSET(PO!O$12,ROW(D20)-ROW(D$12),0)) -> M2 | E20: =IF($A20<>"Serviço",0,ROUND(SUMIF($F$9:$P$9,"<>",$F20:$P20),15-13*PO!$X$3)) -> 10.18 | F20: 10.18
A21: =OFFSET(PO!J$12,ROW(A21)-ROW($A$12),0) -> Serviço | B21: =IF($A21=0,"",OFFSET(PO!K$12,ROW(B21)-ROW(B$12),0)) -> 1.2.4. | C21: =IF(OFFSET(PO!N$12,ROW(C21)-ROW(C$12),0)=0,"",OFFSET(PO!N$12,ROW(C21)-ROW(C$12),0)) -> FABRICAÇÃO, MONTAGEM E DESMONTAGEM DE FÔRMA PARA VIGA BALDRAME, EM MADEIRA SERRADA, E=25 MM, 2 UTILIZAÇÕES. AF_06/2017 | D21: =IF(OFFSET(PO!O$12,ROW(D21)-ROW(D$12),0)=0,"",OFFSET(PO!O$12,ROW(D21)-ROW(D$12),0)) -> M2 | E21: =IF($A21<>"Serviço",0,ROUND(SUMIF($F$9:$P$9,"<>",$F21:$P21),15-13*PO!$X$3)) -> 14.82 | F21: 14.82
A22: =OFFSET(PO!J$12,ROW(A22)-ROW($A$12),0) -> Serviço | B22: =IF($A22=0,"",OFFSET(PO!K$12,ROW(B22)-ROW(B$12),0)) -> 1.2.5. | C22: =IF(OFFSET(PO!N$12,ROW(C22)-ROW(C$12),0)=0,"",OFFSET(PO!N$12,ROW(C22)-ROW(C$12),0)) -> CONCRETO FCK = 25MPA, TRAÇO 1:2,3:2,7 (EM MASSA SECA DE CIMENTO/ AREIA MÉDIA/ BRITA 1) - PREPARO MECÂNICO COM BETONEIRA 400 L. AF_05/2021 | D22: =IF(OFFSET(PO!O$12,ROW(D22)-ROW(D$12),0)=0,"",OFFSET(PO!O$12,ROW(D22)-ROW(D$12),0)) -> M3 | E22: =IF($A22<>"Serviço",0,ROUND(SUMIF($F$9:$P$9,"<>",$F22:$P22),15-13*PO!$X$3)) -> 2.96 | F22: 2.96
A23: =OFFSET(PO!J$12,ROW(A23)-ROW($A$12),0) -> Serviço | B23: =IF($A23=0,"",OFFSET(PO!K$12,ROW(B23)-ROW(B$12),0)) -> 1.2.6. | C23: =IF(OFFSET(PO!N$12,ROW(C23)-ROW(C$12),0)=0,"",OFFSET(PO!N$12,ROW(C23)-ROW(C$12),0)) -> LANÇAMENTO COM USO DE BALDES, ADENSAMENTO E ACABAMENTO DE CONCRETO EM ESTRUTURAS. AF_02/2022 | D23: =IF(OFFSET(PO!O$12,ROW(D23)-ROW(D$12),0)=0,"",OFFSET(PO!O$12,ROW(D23)-ROW(D$12),0)) -> M3 | E23: =IF($A23<>"Serviço",0,ROUND(SUMIF($F$9:$P$9,"<>",$F23:$P23),15-13*PO!$X$3)) -> 2.96 | F23: 2.96
A24: =OFFSET(PO!J$12,ROW(A24)-ROW($A$12),0) -> Serviço | B24: =IF($A24=0,"",OFFSET(PO!K$12,ROW(B24)-ROW(B$12),0)) -> 1.2.7. | C24: =IF(OFFSET(PO!N$12,ROW(C24)-ROW(C$12),0)=0,"",OFFSET(PO!N$12,ROW(C24)-ROW(C$12),0)) -> ARMAÇÃO DE ESTRUTURAS DIVERSAS DE CONCRETO ARMADO, EXCETO VIGAS, PILARES, LAJES E FUNDAÇÕES, UTILIZANDO AÇO CA-50 DE 10,0 MM - MONTAGEM. AF_06/2022 | D24: =IF(OFFSET(PO!O$12,ROW(D24)-ROW(D$12),0)=0,"",OFFSET(PO!O$12,ROW(D24)-ROW(D$12),0)) -> KG | E24: =IF($A24<>"Serviço",0,ROUND(SUMIF($F$9:$P$9,"<>",$F24:$P24),15-13*PO!$X$3)) -> 37.38 | F24: 37.38
A25: =OFFSET(PO!J$12,ROW(A25)-ROW($A$12),0) -> Serviço | B25: =IF($A25=0,"",OFFSET(PO!K$12,ROW(B25)-ROW(B$12),0)) -> 1.2.8. | C25: =IF(OFFSET(PO!N$12,ROW(C25)-ROW(C$12),0)=0,"",OFFSET(PO!N$12,ROW(C25)-ROW(C$12),0)) -> ARMAÇÃO DE ESTRUTURAS DIVERSAS DE CONCRETO ARMADO, EXCETO VIGAS, PILARES, LAJES E FUNDAÇÕES, UTILIZANDO AÇO CA-50 DE 8,0 MM - MONTAGEM. AF_06/2022 | D25: =IF(OFFSET(PO!O$12,ROW(D25)-ROW(D$12),0)=0,"",OFFSET(PO!O$12,ROW(D25)-ROW(D$12),0)) -> KG | E25: =IF($A25<>"Serviço",0,ROUND(SUMIF($F$9:$P$9,"<>",$F25:$P25),15-13*PO!$X$3)) -> 9.76 | F25: 9.76
A26: =OFFSET(PO!J$12,ROW(A26)-ROW($A$12),0) -> Serviço | B26: =IF($A26=0,"",OFFSET(PO!K$12,ROW(B26)-ROW(B$12),0)) -> 1.2.9. | C26: =IF(OFFSET(PO!N$12,ROW(C26)-ROW(C$12),0)=0,"",OFFSET(PO!N$12,ROW(C26)-ROW(C$12),0)) -> ARMAÇÃO DE ESTRUTURAS DIVERSAS DE CONCRETO ARMADO, EXCETO VIGAS, PILARES, LAJES E FUNDAÇÕES, UTILIZANDO AÇO CA-60 DE 5,0 MM - MONTAGEM. AF_06/2022 | D26: =IF(OFFSET(PO!O$12,ROW(D26)-ROW(D$12),0)=0,"",OFFSET(PO!O$12,ROW(D26)-ROW(D$12),0)) -> KG | E26: =IF($A26<>"Serviço",0,ROUND(SUMIF($F$9:$P$9,"<>",$F26:$P26),15-13*PO!$X$3)) -> 10.39 | F26: 10.39
A27: =OFFSET(PO!J$12,ROW(A27)-ROW($A$12),0) -> Serviço | B27: =IF($A27=0,"",OFFSET(PO!K$12,ROW(B27)-ROW(B$12),0)) -> 1.2.10. | C27: =IF(OFFSET(PO!N$12,ROW(C27)-ROW(C$12),0)=0,"",OFFSET(PO!N$12,ROW(C27)-ROW(C$12),0)) -> IMPERMEABILIZAÇÃO DE SUPERFÍCIE COM EMULSÃO ASFÁLTICA, 2 DEMÃOS AF_06/2018 | D27: =IF(OFFSET(PO!O$12,ROW(D27)-ROW(D$12),0)=0,"",OFFSET(PO!O$12,ROW(D27)-ROW(D$12),0)) -> M2 | E27: =IF($A27<>"Serviço",0,ROUND(SUMIF($F$9:$P$9,"<>",$F27:$P27),15-13*PO!$X$3)) -> 39.52 | F27: 39.52
A28: =OFFSET(PO!J$12,ROW(A28)-ROW($A$12),0) -> Nível 2 | B28: =IF($A28=0,"",OFFSET(PO!K$12,ROW(B28)-ROW(B$12),0)) -> 1.3. | C28: =IF(OFFSET(PO!N$12,ROW(C28)-ROW(C$12),0)=0,"",OFFSET(PO!N$12,ROW(C28)-ROW(C$12),0)) -> SUPRAESTRUTURA | D28: =IF(OFFSET(PO!O$12,ROW(D28)-ROW(D$12),0)=0,"",OFFSET(PO!O$12,ROW(D28)-ROW(D$12),0)) ->  | E28: =IF($A28<>"Serviço",0,ROUND(SUMIF($F$9:$P$9,"<>",$F28:$P28),15-13*PO!$X$3)) -> 0
A29: =OFFSET(PO!J$12,ROW(A29)-ROW($A$12),0) -> Serviço | B29: =IF($A29=0,"",OFFSET(PO!K$12,ROW(B29)-ROW(B$12),0)) -> 1.3.1. | C29: =IF(OFFSET(PO!N$12,ROW(C29)-ROW(C$12),0)=0,"",OFFSET(PO!N$12,ROW(C29)-ROW(C$12),0)) -> CONCRETO FCK = 25MPA, TRAÇO 1:2,3:2,7 (EM MASSA SECA DE CIMENTO/ AREIA MÉDIA/ BRITA 1) - PREPARO MECÂNICO COM BETONEIRA 400 L. AF_05/2021 | D29: =IF(OFFSET(PO!O$12,ROW(D29)-ROW(D$12),0)=0,"",OFFSET(PO!O$12,ROW(D29)-ROW(D$12),0)) -> M3 | E29: =IF($A29<>"Serviço",0,ROUND(SUMIF($F$9:$P$9,"<>",$F29:$P29),15-13*PO!$X$3)) -> 1.49 | F29: 1.49
A30: =OFFSET(PO!J$12,ROW(A30)-ROW($A$12),0) -> Serviço | B30: =IF($A30=0,"",OFFSET(PO!K$12,ROW(B30)-ROW(B$12),0)) -> 1.3.2. | C30: =IF(OFFSET(PO!N$12,ROW(C30)-ROW(C$12),0)=0,"",OFFSET(PO!N$12,ROW(C30)-ROW(C$12),0)) -> LANÇAMENTO COM USO DE BALDES, ADENSAMENTO E ACABAMENTO DE CONCRETO EM ESTRUTURAS. AF_02/2022 | D30: =IF(OFFSET(PO!O$12,ROW(D30)-ROW(D$12),0)=0,"",OFFSET(PO!O$12,ROW(D30)-ROW(D$12),0)) -> M3 | E30: =IF($A30<>"Serviço",0,ROUND(SUMIF($F$9:$P$9,"<>",$F30:$P30),15-13*PO!$X$3)) -> 1.49 | F30: 1.49
A31: =OFFSET(PO!J$12,ROW(A31)-ROW($A$12),0) -> Serviço | B31: =IF($A31=0,"",OFFSET(PO!K$12,ROW(B31)-ROW(B$12),0)) -> 1.3.3. | C31: =IF(OFFSET(PO!N$12,ROW(C31)-ROW(C$12),0)=0,"",OFFSET(PO!N$12,ROW(C31)-ROW(C$12),0)) -> FABRICAÇÃO, MONTAGEM E DESMONTAGEM DE FÔRMA PARA VIGA BALDRAME, EM MADEIRA SERRADA, E=25 MM, 2 UTILIZAÇÕES. AF_06/2017 | D31: =IF(OFFSET(PO!O$12,ROW(D31)-ROW(D$12),0)=0,"",OFFSET(PO!O$12,ROW(D31)-ROW(D$12),0)) -> M2 | E31: =IF($A31<>"Serviço",0,ROUND(SUMIF($F$9:$P$9,"<>",$F31:$P31),15-13*PO!$X$3)) -> 12.95 | F31: 12.95
A32: =OFFSET(PO!J$12,ROW(A32)-ROW($A$12),0) -> Serviço | B32: =IF($A32=0,"",OFFSET(PO!K$12,ROW(B32)-ROW(B$12),0)) -> 1.3.4. | C32: =IF(OFFSET(PO!N$12,ROW(C32)-ROW(C$12),0)=0,"",OFFSET(PO!N$12,ROW(C32)-ROW(C$12),0)) -> ARMAÇÃO DE ESTRUTURAS DIVERSAS DE CONCRETO ARMADO, EXCETO VIGAS, PILARES, LAJES E FUNDAÇÕES, UTILIZANDO AÇO CA-50 DE 10,0 MM - MONTAGEM. AF_06/2022 | D32: =IF(OFFSET(PO!O$12,ROW(D32)-ROW(D$12),0)=0,"",OFFSET(PO!O$12,ROW(D32)-ROW(D$12),0)) -> KG | E32: =IF($A32<>"Serviço",0,ROUND(SUMIF($F$9:$P$9,"<>",$F32:$P32),15-13*PO!$X$3)) -> 4.97 | F32: 4.97
A33: =OFFSET(PO!J$12,ROW(A33)-ROW($A$12),0) -> Serviço | B33: =IF($A33=0,"",OFFSET(PO!K$12,ROW(B33)-ROW(B$12),0)) -> 1.3.5. | C33: =IF(OFFSET(PO!N$12,ROW(C33)-ROW(C$12),0)=0,"",OFFSET(PO!N$12,ROW(C33)-ROW(C$12),0)) -> ARMAÇÃO DE ESTRUTURAS DIVERSAS DE CONCRETO ARMADO, EXCETO VIGAS, PILARES, LAJES E FUNDAÇÕES, UTILIZANDO AÇO CA-50 DE 8,0 MM - MONTAGEM. AF_06/2022 | D33: =IF(OFFSET(PO!O$12,ROW(D33)-ROW(D$12),0)=0,"",OFFSET(PO!O$12,ROW(D33)-ROW(D$12),0)) -> KG | E33: =IF($A33<>"Serviço",0,ROUND(SUMIF($F$9:$P$9,"<>",$F33:$P33),15-13*PO!$X$3)) -> 4.94 | F33: 4.94
A34: =OFFSET(PO!J$12,ROW(A34)-ROW($A$12),0) -> Serviço | B34: =IF($A34=0,"",OFFSET(PO!K$12,ROW(B34)-ROW(B$12),0)) -> 1.3.6. | C34: =IF(OFFSET(PO!N$12,ROW(C34)-ROW(C$12),0)=0,"",OFFSET(PO!N$12,ROW(C34)-ROW(C$12),0)) -> ARMAÇÃO DE ESTRUTURAS DIVERSAS DE CONCRETO ARMADO, EXCETO VIGAS, PILARES, LAJES E FUNDAÇÕES, UTILIZANDO AÇO CA-60 DE 5,0 MM - MONTAGEM. AF_06/2022 | D34: =IF(OFFSET(PO!O$12,ROW(D34)-ROW(D$12),0)=0,"",OFFSET(PO!O$12,ROW(D34)-ROW(D$12),0)) -> KG | E34: =IF($A34<>"Serviço",0,ROUND(SUMIF($F$9:$P$9,"<>",$F34:$P34),15-13*PO!$X$3)) -> 9.47 | F34: 9.47
A35: =OFFSET(PO!J$12,ROW(A35)-ROW($A$12),0) -> Serviço | B35: =IF($A35=0,"",OFFSET(PO!K$12,ROW(B35)-ROW(B$12),0)) -> 1.3.7. | C35: =IF(OFFSET(PO!N$12,ROW(C35)-ROW(C$12),0)=0,"",OFFSET(PO!N$12,ROW(C35)-ROW(C$12),0)) -> VERGA MOLDADA IN LOCO EM CONCRETO PARA PORTAS COM ATÉ 1,5 M DE VÃO. AF_03/2016 | D35: =IF(OFFSET(PO!O$12,ROW(D35)-ROW(D$12),0)=0,"",OFFSET(PO!O$12,ROW(D35)-ROW(D$12),0)) -> M | E35: =IF($A35<>"Serviço",0,ROUND(SUMIF($F$9:$P$9,"<>",$F35:$P35),15-13*PO!$X$3)) -> 2 | F35: 2
A36: =OFFSET(PO!J$12,ROW(A36)-ROW($A$12),0) -> Serviço | B36: =IF($A36=0,"",OFFSET(PO!K$12,ROW(B36)-ROW(B$12),0)) -> 1.3.8. | C36: =IF(OFFSET(PO!N$12,ROW(C36)-ROW(C$12),0)=0,"",OFFSET(PO!N$12,ROW(C36)-ROW(C$12),0)) -> VERGA MOLDADA IN LOCO EM CONCRETO PARA JANELAS COM ATÉ 1,5 M DE VÃO. AF_03/2016 | D36: =IF(OFFSET(PO!O$12,ROW(D36)-ROW(D$12),0)=0,"",OFFSET(PO!O$12,ROW(D36)-ROW(D$12),0)) -> M | E36: =IF($A36<>"Serviço",0,ROUND(SUMIF($F$9:$P$9,"<>",$F36:$P36),15-13*PO!$X$3)) -> 2.5 | F36: 2.5
A37: =OFFSET(PO!J$12,ROW(A37)-ROW($A$12),0) -> Serviço | B37: =IF($A37=0,"",OFFSET(PO!K$12,ROW(B37)-ROW(B$12),0)) -> 1.3.9. | C37: =IF(OFFSET(PO!N$12,ROW(C37)-ROW(C$12),0)=0,"",OFFSET(PO!N$12,ROW(C37)-ROW(C$12),0)) -> CONTRAVERGA MOLDADA IN LOCO EM CONCRETO PARA VÃOS DE ATÉ 1,5 M DE COMPRIMENTO. AF_03/2016 | D37: =IF(OFFSET(PO!O$12,ROW(D37)-ROW(D$12),0)=0,"",OFFSET(PO!O$12,ROW(D37)-ROW(D$12),0)) -> M | E37: =IF($A37<>"Serviço",0,ROUND(SUMIF($F$9:$P$9,"<>",$F37:$P37),15-13*PO!$X$3)) -> 2.5 | F37: 2.5
A38: =OFFSET(PO!J$12,ROW(A38)-ROW($A$12),0) -> Serviço | B38: =IF($A38=0,"",OFFSET(PO!K$12,ROW(B38)-ROW(B$12),0)) -> 1.3.10. | C38: =IF(OFFSET(PO!N$12,ROW(C38)-ROW(C$12),0)=0,"",OFFSET(PO!N$12,ROW(C38)-ROW(C$12),0)) -> CAIBRO 5X7cm EM MADEIRA DE PINHO BRASILEIRO | D38: =IF(OFFSET(PO!O$12,ROW(D38)-ROW(D$12),0)=0,"",OFFSET(PO!O$12,ROW(D38)-ROW(D$12),0)) -> m | E38: =IF($A38<>"Serviço",0,ROUND(SUMIF($F$9:$P$9,"<>",$F38:$P38),15-13*PO!$X$3)) -> 186.05 | F38: =130.05+56 -> 186.05
A39: =OFFSET(PO!J$12,ROW(A39)-ROW($A$12),0) -> Nível 2 | B39: =IF($A39=0,"",OFFSET(PO!K$12,ROW(B39)-ROW(B$12),0)) -> 1.4. | C39: =IF(OFFSET(PO!N$12,ROW(C39)-ROW(C$12),0)=0,"",OFFSET(PO!N$12,ROW(C39)-ROW(C$12),0)) -> PAREDE | D39: =IF(OFFSET(PO!O$12,ROW(D39)-ROW(D$12),0)=0,"",OFFSET(PO!O$12,ROW(D39)-ROW(D$12),0)) ->  | E39: =IF($A39<>"Serviço",0,ROUND(SUMIF($F$9:$P$9,"<>",$F39:$P39),15-13*PO!$X$3)) -> 0
A40: =OFFSET(PO!J$12,ROW(A40)-ROW($A$12),0) -> Serviço | B40: =IF($A40=0,"",OFFSET(PO!K$12,ROW(B40)-ROW(B$12),0)) -> 1.4.1. | C40: =IF(OFFSET(PO!N$12,ROW(C40)-ROW(C$12),0)=0,"",OFFSET(PO!N$12,ROW(C40)-ROW(C$12),0)) -> ALVENARIA DE VEDAÇÃO DE BLOCOS CERÂMICOS FURADOS NA HORIZONTAL DE 11,5X19X19 CM (ESPESSURA 11,5 CM) E ARGAMASSA DE ASSENTAMENTO COM PREPARO EM BETONEIRA. AF_12/2021 | D40: =IF(OFFSET(PO!O$12,ROW(D40)-ROW(D$12),0)=0,"",OFFSET(PO!O$12,ROW(D40)-ROW(D$12),0)) -> M2 | E40: =IF($A40<>"Serviço",0,ROUND(SUMIF($F$9:$P$9,"<>",$F40:$P40),15-13*PO!$X$3)) -> 32.16 | F40: 32.16
A41: =OFFSET(PO!J$12,ROW(A41)-ROW($A$12),0) -> Serviço | B41: =IF($A41=0,"",OFFSET(PO!K$12,ROW(B41)-ROW(B$12),0)) -> 1.4.2. | C41: =IF(OFFSET(PO!N$12,ROW(C41)-ROW(C$12),0)=0,"",OFFSET(PO!N$12,ROW(C41)-ROW(C$12),0)) -> PAREDE DE EUCALIPTO | D41: =IF(OFFSET(PO!O$12,ROW(D41)-ROW(D$12),0)=0,"",OFFSET(PO!O$12,ROW(D41)-ROW(D$12),0)) -> m2 | E41: =IF($A41<>"Serviço",0,ROUND(SUMIF($F$9:$P$9,"<>",$F41:$P41),15-13*PO!$X$3)) -> 40.38 | F41: 40.38
A42: =OFFSET(PO!J$12,ROW(A42)-ROW($A$12),0) -> Serviço | B42: =IF($A42=0,"",OFFSET(PO!K$12,ROW(B42)-ROW(B$12),0)) -> 1.4.3. | C42: =IF(OFFSET(PO!N$12,ROW(C42)-ROW(C$12),0)=0,"",OFFSET(PO!N$12,ROW(C42)-ROW(C$12),0)) -> FORRO DE PINUS | D42: =IF(OFFSET(PO!O$12,ROW(D42)-ROW(D$12),0)=0,"",OFFSET(PO!O$12,ROW(D42)-ROW(D$12),0)) -> m2 | E42: =IF($A42<>"Serviço",0,ROUND(SUMIF($F$9:$P$9,"<>",$F42:$P42),15-13*PO!$X$3)) -> 63.54 | F42: 63.54
A43: =OFFSET(PO!J$12,ROW(A43)-ROW($A$12),0) -> Serviço | B43: =IF($A43=0,"",OFFSET(PO!K$12,ROW(B43)-ROW(B$12),0)) -> 1.4.4. | C43: =IF(OFFSET(PO!N$12,ROW(C43)-ROW(C$12),0)=0,"",OFFSET(PO!N$12,ROW(C43)-ROW(C$12),0)) -> KIT DE PORTA DE MADEIRA PARA PINTURA, SEMI-OCA (LEVE OU MÉDIA), PADRÃO POPULAR, 80X210CM, ESPESSURA DE 3,5CM, ITENS INCLUSOS: DOBRADIÇAS, MONTAGEM E INSTALAÇÃO DO BATENTE, SEM FECHADURA - FORNECIMENTO E INSTALAÇÃO. AF_12/2019 | D43: =IF(OFFSET(PO!O$12,ROW(D43)-ROW(D$12),0)=0,"",OFFSET(PO!O$12,ROW(D43)-ROW(D$12),0)) -> UN | E43: =IF($A43<>"Serviço",0,ROUND(SUMIF($F$9:$P$9,"<>",$F43:$P43),15-13*PO!$X$3)) -> 3 | F43: 3
A44: =OFFSET(PO!J$12,ROW(A44)-ROW($A$12),0) -> Serviço | B44: =IF($A44=0,"",OFFSET(PO!K$12,ROW(B44)-ROW(B$12),0)) -> 1.4.5. | C44: =IF(OFFSET(PO!N$12,ROW(C44)-ROW(C$12),0)=0,"",OFFSET(PO!N$12,ROW(C44)-ROW(C$12),0)) -> KIT DE PORTA DE MADEIRA PARA PINTURA, SEMI-OCA (LEVE OU MÉDIA), PADRÃO POPULAR, 80X210CM, ESPESSURA DE 3,5CM, ITENS INCLUSOS: DOBRADIÇAS, MONTAGEM E INSTALAÇÃO DO BATENTE, SEM FECHADURA - FORNECIMENTO E INSTALAÇÃO. AF_12/2019 | D44: =IF(OFFSET(PO!O$12,ROW(D44)-ROW(D$12),0)=0,"",OFFSET(PO!O$12,ROW(D44)-ROW(D$12),0)) -> UN | E44: =IF($A44<>"Serviço",0,ROUND(SUMIF($F$9:$P$9,"<>",$F44:$P44),15-13*PO!$X$3)) -> 1 | F44: 1
A45: =OFFSET(PO!J$12,ROW(A45)-ROW($A$12),0) -> Serviço | B45: =IF($A45=0,"",OFFSET(PO!K$12,ROW(B45)-ROW(B$12),0)) -> 1.4.6. | C45: =IF(OFFSET(PO!N$12,ROW(C45)-ROW(C$12),0)=0,"",OFFSET(PO!N$12,ROW(C45)-ROW(C$12),0)) -> KIT DE PORTA DE MADEIRA PARA PINTURA, SEMI-OCA (LEVE OU MÉDIA), PADRÃO POPULAR, 90X210CM, ESPESSURA DE 3,5CM, ITENS INCLUSOS: DOBRADIÇAS, MONTAGEM E INSTALAÇÃO DO BATENTE, SEM FECHADURA - FORNECIMENTO E INSTALAÇÃO. AF_12/2019 | D45: =IF(OFFSET(PO!O$12,ROW(D45)-ROW(D$12),0)=0,"",OFFSET(PO!O$12,ROW(D45)-ROW(D$12),0)) -> UN | E45: =IF($A45<>"Serviço",0,ROUND(SUMIF($F$9:$P$9,"<>",$F45:$P45),15-13*PO!$X$3)) -> 1 | F45: 1
A46: =OFFSET(PO!J$12,ROW(A46)-ROW($A$12),0) -> Serviço | B46: =IF($A46=0,"",OFFSET(PO!K$12,ROW(B46)-ROW(B$12),0)) -> 1.4.7. | C46: =IF(OFFSET(PO!N$12,ROW(C46)-ROW(C$12),0)=0,"",OFFSET(PO!N$12,ROW(C46)-ROW(C$12),0)) -> JANELA DE MADEIRA (PINUS/EUCALIPTO OU EQUIV.) TIPO BASCULANTE COM 2 FOLHAS PARA VIDRO, COM BATENTE, ALIZAR E FERRAGENS. EXCLUSIVE VIDROS, ACABAMENTO E CONTRAMARCO. FORNECIMENTO E INSTALAÇÃO. AF_12/2019 | D46: =IF(OFFSET(PO!O$12,ROW(D46)-ROW(D$12),0)=0,"",OFFSET(PO!O$12,ROW(D46)-ROW(D$12),0)) -> M2 | E46: =IF($A46<>"Serviço",0,ROUND(SUMIF($F$9:$P$9,"<>",$F46:$P46),15-13*PO!$X$3)) -> 0.25 | F46: =0.5*0.5 -> 0.25
A47: =OFFSET(PO!J$12,ROW(A47)-ROW($A$12),0) -> Serviço | B47: =IF($A47=0,"",OFFSET(PO!K$12,ROW(B47)-ROW(B$12),0)) -> 1.4.8. | C47: =IF(OFFSET(PO!N$12,ROW(C47)-ROW(C$12),0)=0,"",OFFSET(PO!N$12,ROW(C47)-ROW(C$12),0)) -> INSTALAÇÃO DE VIDRO LISO, E = 4 MM, EM ESQUADRIA DE MADEIRA, FIXADO COM BAGUETE. AF_01/2021 | D47: =IF(OFFSET(PO!O$12,ROW(D47)-ROW(D$12),0)=0,"",OFFSET(PO!O$12,ROW(D47)-ROW(D$12),0)) -> M2 | E47: =IF($A47<>"Serviço",0,ROUND(SUMIF($F$9:$P$9,"<>",$F47:$P47),15-13*PO!$X$3)) -> 0.21 | F47: =0.25*0.85 -> 0.2125
A48: =OFFSET(PO!J$12,ROW(A48)-ROW($A$12),0) -> Serviço | B48: =IF($A48=0,"",OFFSET(PO!K$12,ROW(B48)-ROW(B$12),0)) -> 1.4.9. | C48: =IF(OFFSET(PO!N$12,ROW(C48)-ROW(C$12),0)=0,"",OFFSET(PO!N$12,ROW(C48)-ROW(C$12),0)) -> JANELA DE MADEIRA (PINUS/EUCALIPTO OU EQUIV.) DE ABRIR COM 4 FOLHAS (2 VENEZIANAS E 2 GUILHOTINAS PARA VIDRO), COM BATENTE, ALIZAR E FERRAGENS. EXCLUSIVE VIDROS, ACABAMENTO E CONTRAMARCO. FORNECIMENTO E INSTALAÇÃO. AF_12/2019 | D48: =IF(OFFSET(PO!O$12,ROW(D48)-ROW(D$12),0)=0,"",OFFSET(PO!O$12,ROW(D48)-ROW(D$12),0)) -> M2 | E48: =IF($A48<>"Serviço",0,ROUND(SUMIF($F$9:$P$9,"<>",$F48:$P48),15-13*PO!$X$3)) -> 6.6 | F48: 6.6
A49: =OFFSET(PO!J$12,ROW(A49)-ROW($A$12),0) -> Serviço | B49: =IF($A49=0,"",OFFSET(PO!K$12,ROW(B49)-ROW(B$12),0)) -> 1.4.10. | C49: =IF(OFFSET(PO!N$12,ROW(C49)-ROW(C$12),0)=0,"",OFFSET(PO!N$12,ROW(C49)-ROW(C$12),0)) -> INSTALAÇÃO DE VIDRO LISO, E = 4 MM, EM ESQUADRIA DE MADEIRA, FIXADO COM BAGUETE. AF_01/2021 | D49: =IF(OFFSET(PO!O$12,ROW(D49)-ROW(D$12),0)=0,"",OFFSET(PO!O$12,ROW(D49)-ROW(D$12),0)) -> M2 | E49: =IF($A49<>"Serviço",0,ROUND(SUMIF($F$9:$P$9,"<>",$F49:$P49),15-13*PO!$X$3)) -> 5.61 | F49: 5.61
A50: =OFFSET(PO!J$12,ROW(A50)-ROW($A$12),0) -> Nível 2 | B50: =IF($A50=0,"",OFFSET(PO!K$12,ROW(B50)-ROW(B$12),0)) -> 1.5. | C50: =IF(OFFSET(PO!N$12,ROW(C50)-ROW(C$12),0)=0,"",OFFSET(PO!N$12,ROW(C50)-ROW(C$12),0)) -> REVESTIMENTOS | D50: =IF(OFFSET(PO!O$12,ROW(D50)-ROW(D$12),0)=0,"",OFFSET(PO!O$12,ROW(D50)-ROW(D$12),0)) ->  | E50: =IF($A50<>"Serviço",0,ROUND(SUMIF($F$9:$P$9,"<>",$F50:$P50),15-13*PO!$X$3)) -> 0
A51: =OFFSET(PO!J$12,ROW(A51)-ROW($A$12),0) -> Serviço | B51: =IF($A51=0,"",OFFSET(PO!K$12,ROW(B51)-ROW(B$12),0)) -> 1.5.1. | C51: =IF(OFFSET(PO!N$12,ROW(C51)-ROW(C$12),0)=0,"",OFFSET(PO!N$12,ROW(C51)-ROW(C$12),0)) -> CHAPISCO APLICADO EM ALVENARIAS E ESTRUTURAS DE CONCRETO INTERNAS, COM COLHER DE PEDREIRO. ARGAMASSA TRAÇO 1:3 COM PREPARO MANUAL. AF_10/2022 | D51: =IF(OFFSET(PO!O$12,ROW(D51)-ROW(D$12),0)=0,"",OFFSET(PO!O$12,ROW(D51)-ROW(D$12),0)) -> M2 | E51: =IF($A51<>"Serviço",0,ROUND(SUMIF($F$9:$P$9,"<>",$F51:$P51),15-13*PO!$X$3)) -> 43.91 | F51: 43.91
A52: =OFFSET(PO!J$12,ROW(A52)-ROW($A$12),0) -> Serviço | B52: =IF($A52=0,"",OFFSET(PO!K$12,ROW(B52)-ROW(B$12),0)) -> 1.5.2. | C52: =IF(OFFSET(PO!N$12,ROW(C52)-ROW(C$12),0)=0,"",OFFSET(PO!N$12,ROW(C52)-ROW(C$12),0)) -> EMBOÇO OU MASSA ÚNICA EM ARGAMASSA TRAÇO 1:2:8, PREPARO MANUAL, APLICADA MANUALMENTE EM PANOS DE FACHADA COM PRESENÇA DE VÃOS, ESPESSURA DE 25 MM. AF_08/2022 | D52: =IF(OFFSET(PO!O$12,ROW(D52)-ROW(D$12),0)=0,"",OFFSET(PO!O$12,ROW(D52)-ROW(D$12),0)) -> M2 | E52: =IF($A52<>"Serviço",0,ROUND(SUMIF($F$9:$P$9,"<>",$F52:$P52),15-13*PO!$X$3)) -> 43.91 | F52: 43.91
A53: =OFFSET(PO!J$12,ROW(A53)-ROW($A$12),0) -> Serviço | B53: =IF($A53=0,"",OFFSET(PO!K$12,ROW(B53)-ROW(B$12),0)) -> 1.5.3. | C53: =IF(OFFSET(PO!N$12,ROW(C53)-ROW(C$12),0)=0,"",OFFSET(PO!N$12,ROW(C53)-ROW(C$12),0)) -> APLICAÇÃO DE FUNDO SELADOR ACRÍLICO EM PAREDES, UMA DEMÃO. AF_06/2014 | D53: =IF(OFFSET(PO!O$12,ROW(D53)-ROW(D$12),0)=0,"",OFFSET(PO!O$12,ROW(D53)-ROW(D$12),0)) -> M2 | E53: =IF($A53<>"Serviço",0,ROUND(SUMIF($F$9:$P$9,"<>",$F53:$P53),15-13*PO!$X$3)) -> 43.91 | F53: 43.91
A54: =OFFSET(PO!J$12,ROW(A54)-ROW($A$12),0) -> Serviço | B54: =IF($A54=0,"",OFFSET(PO!K$12,ROW(B54)-ROW(B$12),0)) -> 1.5.4. | C54: =IF(OFFSET(PO!N$12,ROW(C54)-ROW(C$12),0)=0,"",OFFSET(PO!N$12,ROW(C54)-ROW(C$12),0)) -> APLICAÇÃO MANUAL DE PINTURA COM TINTA LÁTEX ACRÍLICA EM PAREDES, DUAS DEMÃOS. AF_06/2014 | D54: =IF(OFFSET(PO!O$12,ROW(D54)-ROW(D$12),0)=0,"",OFFSET(PO!O$12,ROW(D54)-ROW(D$12),0)) -> M2 | E54: =IF($A54<>"Serviço",0,ROUND(SUMIF($F$9:$P$9,"<>",$F54:$P54),15-13*PO!$X$3)) -> 43.91 | F54: 43.91
A55: =OFFSET(PO!J$12,ROW(A55)-ROW($A$12),0) -> Serviço | B55: =IF($A55=0,"",OFFSET(PO!K$12,ROW(B55)-ROW(B$12),0)) -> 1.5.5. | C55: =IF(OFFSET(PO!N$12,ROW(C55)-ROW(C$12),0)=0,"",OFFSET(PO!N$12,ROW(C55)-ROW(C$12),0)) -> EMBOÇO, PARA RECEBIMENTO DE CERÂMICA, EM ARGAMASSA TRAÇO 1:2:8, PREPARO MANUAL, APLICADO MANUALMENTE EM FACES INTERNAS DE PAREDES, PARA AMBIENTE COM ÁREA MENOR QUE 5M2, ESPESSURA DE 20MM, COM EXECUÇÃO DE TALISCAS. AF_06/2014 | D55: =IF(OFFSET(PO!O$12,ROW(D55)-ROW(D$12),0)=0,"",OFFSET(PO!O$12,ROW(D55)-ROW(D$12),0)) -> M2 | E55: =IF($A55<>"Serviço",0,ROUND(SUMIF($F$9:$P$9,"<>",$F55:$P55),15-13*PO!$X$3)) -> 20.41 | F55: 20.41
A56: =OFFSET(PO!J$12,ROW(A56)-ROW($A$12),0) -> Serviço | B56: =IF($A56=0,"",OFFSET(PO!K$12,ROW(B56)-ROW(B$12),0)) -> 1.5.6. | C56: =IF(OFFSET(PO!N$12,ROW(C56)-ROW(C$12),0)=0,"",OFFSET(PO!N$12,ROW(C56)-ROW(C$12),0)) -> REVESTIMENTO CERÂMICO PARA PAREDES INTERNAS COM PLACAS TIPO ESMALTADA EXTRA DE DIMENSÕES 60X60 CM APLICADAS NA ALTURA INTEIRA DAS PAREDES. AF_02/2023_PE | D56: =IF(OFFSET(PO!O$12,ROW(D56)-ROW(D$12),0)=0,"",OFFSET(PO!O$12,ROW(D56)-ROW(D$12),0)) -> M2 | E56: =IF($A56<>"Serviço",0,ROUND(SUMIF($F$9:$P$9,"<>",$F56:$P56),15-13*PO!$X$3)) -> 20.41 | F56: 20.41
A57: =OFFSET(PO!J$12,ROW(A57)-ROW($A$12),0) -> Serviço | B57: =IF($A57=0,"",OFFSET(PO!K$12,ROW(B57)-ROW(B$12),0)) -> 1.5.7. | C57: =IF(OFFSET(PO!N$12,ROW(C57)-ROW(C$12),0)=0,"",OFFSET(PO!N$12,ROW(C57)-ROW(C$12),0)) -> PINTURA VERNIZ (INCOLOR) ALQUÍDICO EM MADEIRA, USO INTERNO E EXTERNO, 2 DEMÃOS. AF_01/2021 | D57: =IF(OFFSET(PO!O$12,ROW(D57)-ROW(D$12),0)=0,"",OFFSET(PO!O$12,ROW(D57)-ROW(D$12),0)) -> M2 | E57: =IF($A57<>"Serviço",0,ROUND(SUMIF($F$9:$P$9,"<>",$F57:$P57),15-13*PO!$X$3)) -> 103.92 | F57: 103.92
A58: =OFFSET(PO!J$12,ROW(A58)-ROW($A$12),0) -> Serviço | B58: =IF($A58=0,"",OFFSET(PO!K$12,ROW(B58)-ROW(B$12),0)) -> 1.5.8. | C58: =IF(OFFSET(PO!N$12,ROW(C58)-ROW(C$12),0)=0,"",OFFSET(PO!N$12,ROW(C58)-ROW(C$12),0)) -> PINTURA TINTA DE ACABAMENTO (PIGMENTADA) ESMALTE SINTÉTICO BRILHANTE EM MADEIRA, 2 DEMÃOS. AF_01/2021 | D58: =IF(OFFSET(PO!O$12,ROW(D58)-ROW(D$12),0)=0,"",OFFSET(PO!O$12,ROW(D58)-ROW(D$12),0)) -> M2 | E58: =IF($A58<>"Serviço",0,ROUND(SUMIF($F$9:$P$9,"<>",$F58:$P58),15-13*PO!$X$3)) -> 6.6 | F58: 6.6
A59: =OFFSET(PO!J$12,ROW(A59)-ROW($A$12),0) -> Nível 2 | B59: =IF($A59=0,"",OFFSET(PO!K$12,ROW(B59)-ROW(B$12),0)) -> 1.6. | C59: =IF(OFFSET(PO!N$12,ROW(C59)-ROW(C$12),0)=0,"",OFFSET(PO!N$12,ROW(C59)-ROW(C$12),0)) -> PAVIMENTAÇÃO INTERNA | D59: =IF(OFFSET(PO!O$12,ROW(D59)-ROW(D$12),0)=0,"",OFFSET(PO!O$12,ROW(D59)-ROW(D$12),0)) ->  | E59: =IF($A59<>"Serviço",0,ROUND(SUMIF($F$9:$P$9,"<>",$F59:$P59),15-13*PO!$X$3)) -> 0
A60: =OFFSET(PO!J$12,ROW(A60)-ROW($A$12),0) -> Serviço | B60: =IF($A60=0,"",OFFSET(PO!K$12,ROW(B60)-ROW(B$12),0)) -> 1.6.1. | C60: =IF(OFFSET(PO!N$12,ROW(C60)-ROW(C$12),0)=0,"",OFFSET(PO!N$12,ROW(C60)-ROW(C$12),0)) -> LASTRO COM MATERIAL GRANULAR (PEDRA BRITADA N.1 E PEDRA BRITADA N.2), APLICADO EM PISOS OU LAJES SOBRE SOLO, ESPESSURA DE *10 CM*. AF_07/2019 | D60: =IF(OFFSET(PO!O$12,ROW(D60)-ROW(D$12),0)=0,"",OFFSET(PO!O$12,ROW(D60)-ROW(D$12),0)) -> M3 | E60: =IF($A60<>"Serviço",0,ROUND(SUMIF($F$9:$P$9,"<>",$F60:$P60),15-13*PO!$X$3)) -> 2.32 | F60: 2.32
A61: =OFFSET(PO!J$12,ROW(A61)-ROW($A$12),0) -> Serviço | B61: =IF($A61=0,"",OFFSET(PO!K$12,ROW(B61)-ROW(B$12),0)) -> 1.6.2. | C61: =IF(OFFSET(PO!N$12,ROW(C61)-ROW(C$12),0)=0,"",OFFSET(PO!N$12,ROW(C61)-ROW(C$12),0)) -> LASTRO DE CONCRETO MAGRO, APLICADO EM PISOS, LAJES SOBRE SOLO OU RADIERS, ESPESSURA DE 5 CM. AF_07/2016 | D61: =IF(OFFSET(PO!O$12,ROW(D61)-ROW(D$12),0)=0,"",OFFSET(PO!O$12,ROW(D61)-ROW(D$12),0)) -> M2 | E61: =IF($A61<>"Serviço",0,ROUND(SUMIF($F$9:$P$9,"<>",$F61:$P61),15-13*PO!$X$3)) -> 46.36 | F61: 46.36
A62: =OFFSET(PO!J$12,ROW(A62)-ROW($A$12),0) -> Serviço | B62: =IF($A62=0,"",OFFSET(PO!K$12,ROW(B62)-ROW(B$12),0)) -> 1.6.3. | C62: =IF(OFFSET(PO!N$12,ROW(C62)-ROW(C$12),0)=0,"",OFFSET(PO!N$12,ROW(C62)-ROW(C$12),0)) -> REVESTIMENTO CERÂMICO PARA PISO COM PLACAS TIPO ESMALTADA EXTRA DE DIMENSÕES 45X45 CM APLICADA EM AMBIENTES DE ÁREA MAIOR QUE 10 M2. AF_02/2023_PE | D62: =IF(OFFSET(PO!O$12,ROW(D62)-ROW(D$12),0)=0,"",OFFSET(PO!O$12,ROW(D62)-ROW(D$12),0)) -> M2 | E62: =IF($A62<>"Serviço",0,ROUND(SUMIF($F$9:$P$9,"<>",$F62:$P62),15-13*PO!$X$3)) -> 48.68 | F62: 48.68
A63: =OFFSET(PO!J$12,ROW(A63)-ROW($A$12),0) -> Serviço | B63: =IF($A63=0,"",OFFSET(PO!K$12,ROW(B63)-ROW(B$12),0)) -> 1.6.4. | C63: =IF(OFFSET(PO!N$12,ROW(C63)-ROW(C$12),0)=0,"",OFFSET(PO!N$12,ROW(C63)-ROW(C$12),0)) -> RODAPÉ EM MADEIRA, ALTURA 7CM, FIXADO COM COLA E PARAFUSOS. AF_09/2020 | D63: =IF(OFFSET(PO!O$12,ROW(D63)-ROW(D$12),0)=0,"",OFFSET(PO!O$12,ROW(D63)-ROW(D$12),0)) -> M | E63: =IF($A63<>"Serviço",0,ROUND(SUMIF($F$9:$P$9,"<>",$F63:$P63),15-13*PO!$X$3)) -> 35.21 | F63: 35.21
A64: =OFFSET(PO!J$12,ROW(A64)-ROW($A$12),0) -> Serviço | B64: =IF($A64=0,"",OFFSET(PO!K$12,ROW(B64)-ROW(B$12),0)) -> 1.6.5. | C64: =IF(OFFSET(PO!N$12,ROW(C64)-ROW(C$12),0)=0,"",OFFSET(PO!N$12,ROW(C64)-ROW(C$12),0)) -> RODAPÉ CERÂMICO DE 7CM DE ALTURA COM PLACAS TIPO ESMALTADA EXTRA DE DIMENSÕES 45X45CM. AF_02/2023 | D64: =IF(OFFSET(PO!O$12,ROW(D64)-ROW(D$12),0)=0,"",OFFSET(PO!O$12,ROW(D64)-ROW(D$12),0)) -> M | E64: =IF($A64<>"Serviço",0,ROUND(SUMIF($F$9:$P$9,"<>",$F64:$P64),15-13*PO!$X$3)) -> 4.35 | F64: 4.35
A65: =OFFSET(PO!J$12,ROW(A65)-ROW($A$12),0) -> Nível 2 | B65: =IF($A65=0,"",OFFSET(PO!K$12,ROW(B65)-ROW(B$12),0)) -> 1.7. | C65: =IF(OFFSET(PO!N$12,ROW(C65)-ROW(C$12),0)=0,"",OFFSET(PO!N$12,ROW(C65)-ROW(C$12),0)) -> FORRO E COBERTURA | D65: =IF(OFFSET(PO!O$12,ROW(D65)-ROW(D$12),0)=0,"",OFFSET(PO!O$12,ROW(D65)-ROW(D$12),0)) ->  | E65: =IF($A65<>"Serviço",0,ROUND(SUMIF($F$9:$P$9,"<>",$F65:$P65),15-13*PO!$X$3)) -> 0
A66: =OFFSET(PO!J$12,ROW(A66)-ROW($A$12),0) -> Serviço | B66: =IF($A66=0,"",OFFSET(PO!K$12,ROW(B66)-ROW(B$12),0)) -> 1.7.1. | C66: =IF(OFFSET(PO!N$12,ROW(C66)-ROW(C$12),0)=0,"",OFFSET(PO!N$12,ROW(C66)-ROW(C$12),0)) -> FORRO EM RÉGUAS DE PVC, FRISADO, PARA AMBIENTES RESIDENCIAIS, INCLUSIVE ESTRUTURA DE FIXAÇÃO. AF_05/2017_PS | D66: =IF(OFFSET(PO!O$12,ROW(D66)-ROW(D$12),0)=0,"",OFFSET(PO!O$12,ROW(D66)-ROW(D$12),0)) -> M2 | E66: =IF($A66<>"Serviço",0,ROUND(SUMIF($F$9:$P$9,"<>",$F66:$P66),15-13*PO!$X$3)) -> 62.36 | F66: 62.36
A67: =OFFSET(PO!J$12,ROW(A67)-ROW($A$12),0) -> Serviço | B67: =IF($A67=0,"",OFFSET(PO!K$12,ROW(B67)-ROW(B$12),0)) -> 1.7.2. | C67: =IF(OFFSET(PO!N$12,ROW(C67)-ROW(C$12),0)=0,"",OFFSET(PO!N$12,ROW(C67)-ROW(C$12),0)) -> ACABAMENTOS PARA FORRO (RODA-FORRO EM PERFIL METÁLICO E PLÁSTICO). AF_05/2017 | D67: =IF(OFFSET(PO!O$12,ROW(D67)-ROW(D$12),0)=0,"",OFFSET(PO!O$12,ROW(D67)-ROW(D$12),0)) -> M | E67: =IF($A67<>"Serviço",0,ROUND(SUMIF($F$9:$P$9,"<>",$F67:$P67),15-13*PO!$X$3)) -> 73.15 | F67: 73.15
A68: =OFFSET(PO!J$12,ROW(A68)-ROW($A$12),0) -> Serviço | B68: =IF($A68=0,"",OFFSET(PO!K$12,ROW(B68)-ROW(B$12),0)) -> 1.7.3. | C68: =IF(OFFSET(PO!N$12,ROW(C68)-ROW(C$12),0)=0,"",OFFSET(PO!N$12,ROW(C68)-ROW(C$12),0)) -> INSTALAÇÃO DE TESOURA (INTEIRA OU MEIA), BIAPOIADA, EM MADEIRA NÃO APARELHADA, PARA VÃOS MAIORES OU IGUAIS A 3,0 M E MENORES QUE 6,0 M, INCLUSO IÇAMENTO. AF_07/2019 | D68: =IF(OFFSET(PO!O$12,ROW(D68)-ROW(D$12),0)=0,"",OFFSET(PO!O$12,ROW(D68)-ROW(D$12),0)) -> UN | E68: =IF($A68<>"Serviço",0,ROUND(SUMIF($F$9:$P$9,"<>",$F68:$P68),15-13*PO!$X$3)) -> 9 | F68: 9
A69: =OFFSET(PO!J$12,ROW(A69)-ROW($A$12),0) -> Serviço | B69: =IF($A69=0,"",OFFSET(PO!K$12,ROW(B69)-ROW(B$12),0)) -> 1.7.4. | C69: =IF(OFFSET(PO!N$12,ROW(C69)-ROW(C$12),0)=0,"",OFFSET(PO!N$12,ROW(C69)-ROW(C$12),0)) -> TELHAMENTO COM TELHA ONDULADA DE FIBROCIMENTO E = 6 MM, COM RECOBRIMENTO LATERAL DE 1/4 DE ONDA PARA TELHADO COM INCLINAÇÃO MAIOR QUE 10°, COM ATÉ 2 ÁGUAS, INCLUSO IÇAMENTO. AF_07/2019 | D69: =IF(OFFSET(PO!O$12,ROW(D69)-ROW(D$12),0)=0,"",OFFSET(PO!O$12,ROW(D69)-ROW(D$12),0)) -> M2 | E69: =IF($A69<>"Serviço",0,ROUND(SUMIF($F$9:$P$9,"<>",$F69:$P69),15-13*PO!$X$3)) -> 73.74 | F69: 73.74
A70: =OFFSET(PO!J$12,ROW(A70)-ROW($A$12),0) -> Serviço | B70: =IF($A70=0,"",OFFSET(PO!K$12,ROW(B70)-ROW(B$12),0)) -> 1.7.5. | C70: =IF(OFFSET(PO!N$12,ROW(C70)-ROW(C$12),0)=0,"",OFFSET(PO!N$12,ROW(C70)-ROW(C$12),0)) -> CUMEEIRA SHED PARA TELHA ONDULADA DE FIBROCIMENTO, E = 6 MM, INCLUSO ACESSÓRIOS DE FIXAÇÃO E IÇAMENTO. AF_07/2019 | D70: =IF(OFFSET(PO!O$12,ROW(D70)-ROW(D$12),0)=0,"",OFFSET(PO!O$12,ROW(D70)-ROW(D$12),0)) -> M | E70: =IF($A70<>"Serviço",0,ROUND(SUMIF($F$9:$P$9,"<>",$F70:$P70),15-13*PO!$X$3)) -> 9.5 | F70: 9.5
A71: =OFFSET(PO!J$12,ROW(A71)-ROW($A$12),0) -> Nível 2 | B71: =IF($A71=0,"",OFFSET(PO!K$12,ROW(B71)-ROW(B$12),0)) -> 1.8. | C71: =IF(OFFSET(PO!N$12,ROW(C71)-ROW(C$12),0)=0,"",OFFSET(PO!N$12,ROW(C71)-ROW(C$12),0)) -> ISTALAÇÕES ELÉTRICA | D71: =IF(OFFSET(PO!O$12,ROW(D71)-ROW(D$12),0)=0,"",OFFSET(PO!O$12,ROW(D71)-ROW(D$12),0)) ->  | E71: =IF($A71<>"Serviço",0,ROUND(SUMIF($F$9:$P$9,"<>",$F71:$P71),15-13*PO!$X$3)) -> 0
A72: =OFFSET(PO!J$12,ROW(A72)-ROW($A$12),0) -> Serviço | B72: =IF($A72=0,"",OFFSET(PO!K$12,ROW(B72)-ROW(B$12),0)) -> 1.8.1. | C72: =IF(OFFSET(PO!N$12,ROW(C72)-ROW(C$12),0)=0,"",OFFSET(PO!N$12,ROW(C72)-ROW(C$12),0)) -> CAIXA RETANGULAR 4" X 2" MÉDIA (1,30 M DO PISO), PVC, INSTALADA EM PAREDE - FORNECIMENTO E INSTALAÇÃO. AF_03/2023 | D72: =IF(OFFSET(PO!O$12,ROW(D72)-ROW(D$12),0)=0,"",OFFSET(PO!O$12,ROW(D72)-ROW(D$12),0)) -> UN | E72: =IF($A72<>"Serviço",0,ROUND(SUMIF($F$9:$P$9,"<>",$F72:$P72),15-13*PO!$X$3)) -> 18 | F72: 18
A73: =OFFSET(PO!J$12,ROW(A73)-ROW($A$12),0) -> Serviço | B73: =IF($A73=0,"",OFFSET(PO!K$12,ROW(B73)-ROW(B$12),0)) -> 1.8.2. | C73: =IF(OFFSET(PO!N$12,ROW(C73)-ROW(C$12),0)=0,"",OFFSET(PO!N$12,ROW(C73)-ROW(C$12),0)) -> CAIXA RETANGULAR 4" X 4" MÉDIA (1,30 M DO PISO), PVC, INSTALADA EM PAREDE - FORNECIMENTO E INSTALAÇÃO. AF_03/2023 | D73: =IF(OFFSET(PO!O$12,ROW(D73)-ROW(D$12),0)=0,"",OFFSET(PO!O$12,ROW(D73)-ROW(D$12),0)) -> UN | E73: =IF($A73<>"Serviço",0,ROUND(SUMIF($F$9:$P$9,"<>",$F73:$P73),15-13*PO!$X$3)) -> 1 | F73: 1
A74: =OFFSET(PO!J$12,ROW(A74)-ROW($A$12),0) -> Serviço | B74: =IF($A74=0,"",OFFSET(PO!K$12,ROW(B74)-ROW(B$12),0)) -> 1.8.3. | C74: =IF(OFFSET(PO!N$12,ROW(C74)-ROW(C$12),0)=0,"",OFFSET(PO!N$12,ROW(C74)-ROW(C$12),0)) -> CAIXA OCTOGONAL 3" X 3", PVC, INSTALADA EM LAJE - FORNECIMENTO E INSTALAÇÃO. AF_03/2023 | D74: =IF(OFFSET(PO!O$12,ROW(D74)-ROW(D$12),0)=0,"",OFFSET(PO!O$12,ROW(D74)-ROW(D$12),0)) -> UN | E74: =IF($A74<>"Serviço",0,ROUND(SUMIF($F$9:$P$9,"<>",$F74:$P74),15-13*PO!$X$3)) -> 9 | F74: 9
A75: =OFFSET(PO!J$12,ROW(A75)-ROW($A$12),0) -> Serviço | B75: =IF($A75=0,"",OFFSET(PO!K$12,ROW(B75)-ROW(B$12),0)) -> 1.8.4. | C75: =IF(OFFSET(PO!N$12,ROW(C75)-ROW(C$12),0)=0,"",OFFSET(PO!N$12,ROW(C75)-ROW(C$12),0)) -> CABO DE COBRE FLEXÍVEL ISOLADO, 1,5 MM², ANTI-CHAMA 450/750 V, PARA CIRCUITOS TERMINAIS - FORNECIMENTO E INSTALAÇÃO. AF_03/2023 | D75: =IF(OFFSET(PO!O$12,ROW(D75)-ROW(D$12),0)=0,"",OFFSET(PO!O$12,ROW(D75)-ROW(D$12),0)) -> M | E75: =IF($A75<>"Serviço",0,ROUND(SUMIF($F$9:$P$9,"<>",$F75:$P75),15-13*PO!$X$3)) -> 85.3 | F75: 85.3
A76: =OFFSET(PO!J$12,ROW(A76)-ROW($A$12),0) -> Serviço | B76: =IF($A76=0,"",OFFSET(PO!K$12,ROW(B76)-ROW(B$12),0)) -> 1.8.5. | C76: =IF(OFFSET(PO!N$12,ROW(C76)-ROW(C$12),0)=0,"",OFFSET(PO!N$12,ROW(C76)-ROW(C$12),0)) -> CABO DE COBRE FLEXÍVEL ISOLADO, 2,5 MM², ANTI-CHAMA 450/750 V, PARA CIRCUITOS TERMINAIS - FORNECIMENTO E INSTALAÇÃO. AF_03/2023 | D76: =IF(OFFSET(PO!O$12,ROW(D76)-ROW(D$12),0)=0,"",OFFSET(PO!O$12,ROW(D76)-ROW(D$12),0)) -> M | E76: =IF($A76<>"Serviço",0,ROUND(SUMIF($F$9:$P$9,"<>",$F76:$P76),15-13*PO!$X$3)) -> 182 | F76: 182
A77: =OFFSET(PO!J$12,ROW(A77)-ROW($A$12),0) -> Serviço | B77: =IF($A77=0,"",OFFSET(PO!K$12,ROW(B77)-ROW(B$12),0)) -> 1.8.6. | C77: =IF(OFFSET(PO!N$12,ROW(C77)-ROW(C$12),0)=0,"",OFFSET(PO!N$12,ROW(C77)-ROW(C$12),0)) -> CABO DE COBRE FLEXÍVEL ISOLADO, 4 MM², ANTI-CHAMA 450/750 V, PARA CIRCUITOS TERMINAIS - FORNECIMENTO E INSTALAÇÃO. AF_03/2023 | D77: =IF(OFFSET(PO!O$12,ROW(D77)-ROW(D$12),0)=0,"",OFFSET(PO!O$12,ROW(D77)-ROW(D$12),0)) -> M | E77: =IF($A77<>"Serviço",0,ROUND(SUMIF($F$9:$P$9,"<>",$F77:$P77),15-13*PO!$X$3)) -> 14 | F77: 14
A78: =OFFSET(PO!J$12,ROW(A78)-ROW($A$12),0) -> Serviço | B78: =IF($A78=0,"",OFFSET(PO!K$12,ROW(B78)-ROW(B$12),0)) -> 1.8.7. | C78: =IF(OFFSET(PO!N$12,ROW(C78)-ROW(C$12),0)=0,"",OFFSET(PO!N$12,ROW(C78)-ROW(C$12),0)) -> CABO DE COBRE FLEXÍVEL ISOLADO, 6 MM², ANTI-CHAMA 450/750 V, PARA CIRCUITOS TERMINAIS - FORNECIMENTO E INSTALAÇÃO. AF_03/2023 | D78: =IF(OFFSET(PO!O$12,ROW(D78)-ROW(D$12),0)=0,"",OFFSET(PO!O$12,ROW(D78)-ROW(D$12),0)) -> M | E78: =IF($A78<>"Serviço",0,ROUND(SUMIF($F$9:$P$9,"<>",$F78:$P78),15-13*PO!$X$3)) -> 10 | F78: 10
A79: =OFFSET(PO!J$12,ROW(A79)-ROW($A$12),0) -> Serviço | B79: =IF($A79=0,"",OFFSET(PO!K$12,ROW(B79)-ROW(B$12),0)) -> 1.8.8. | C79: =IF(OFFSET(PO!N$12,ROW(C79)-ROW(C$12),0)=0,"",OFFSET(PO!N$12,ROW(C79)-ROW(C$12),0)) -> CABO DE COBRE FLEXÍVEL ISOLADO, 10 MM², ANTI-CHAMA 450/750 V, PARA CIRCUITOS TERMINAIS - FORNECIMENTO E INSTALAÇÃO. AF_03/2023 | D79: =IF(OFFSET(PO!O$12,ROW(D79)-ROW(D$12),0)=0,"",OFFSET(PO!O$12,ROW(D79)-ROW(D$12),0)) -> M | E79: =IF($A79<>"Serviço",0,ROUND(SUMIF($F$9:$P$9,"<>",$F79:$P79),15-13*PO!$X$3)) -> 22 | F79: 22
A80: =OFFSET(PO!J$12,ROW(A80)-ROW($A$12),0) -> Serviço | B80: =IF($A80=0,"",OFFSET(PO!K$12,ROW(B80)-ROW(B$12),0)) -> 1.8.9. | C80: =IF(OFFSET(PO!N$12,ROW(C80)-ROW(C$12),0)=0,"",OFFSET(PO!N$12,ROW(C80)-ROW(C$12),0)) -> INTERRUPTOR SIMPLES (1 MÓDULO) COM 1 TOMADA DE EMBUTIR 2P+T 10 A, INCLUINDO SUPORTE E PLACA - FORNECIMENTO E INSTALAÇÃO. AF_03/2023 | D80: =IF(OFFSET(PO!O$12,ROW(D80)-ROW(D$12),0)=0,"",OFFSET(PO!O$12,ROW(D80)-ROW(D$12),0)) -> UN | E80: =IF($A80<>"Serviço",0,ROUND(SUMIF($F$9:$P$9,"<>",$F80:$P80),15-13*PO!$X$3)) -> 3 | F80: 3
A81: =OFFSET(PO!J$12,ROW(A81)-ROW($A$12),0) -> Serviço | B81: =IF($A81=0,"",OFFSET(PO!K$12,ROW(B81)-ROW(B$12),0)) -> 1.8.10. | C81: =IF(OFFSET(PO!N$12,ROW(C81)-ROW(C$12),0)=0,"",OFFSET(PO!N$12,ROW(C81)-ROW(C$12),0)) -> INTERRUPTOR SIMPLES (2 MÓDULOS), 10A/250V, INCLUINDO SUPORTE E PLACA - FORNECIMENTO E INSTALAÇÃO. AF_03/2023 | D81: =IF(OFFSET(PO!O$12,ROW(D81)-ROW(D$12),0)=0,"",OFFSET(PO!O$12,ROW(D81)-ROW(D$12),0)) -> UN | E81: =IF($A81<>"Serviço",0,ROUND(SUMIF($F$9:$P$9,"<>",$F81:$P81),15-13*PO!$X$3)) -> 3 | F81: 3
A82: =OFFSET(PO!J$12,ROW(A82)-ROW($A$12),0) -> Serviço | B82: =IF($A82=0,"",OFFSET(PO!K$12,ROW(B82)-ROW(B$12),0)) -> 1.8.11. | C82: =IF(OFFSET(PO!N$12,ROW(C82)-ROW(C$12),0)=0,"",OFFSET(PO!N$12,ROW(C82)-ROW(C$12),0)) -> TOMADA MÉDIA DE EMBUTIR (1 MÓDULO), 2P+T 10 A, INCLUINDO SUPORTE E PLACA - FORNECIMENTO E INSTALAÇÃO. AF_03/2023 | D82: =IF(OFFSET(PO!O$12,ROW(D82)-ROW(D$12),0)=0,"",OFFSET(PO!O$12,ROW(D82)-ROW(D$12),0)) -> UN | E82: =IF($A82<>"Serviço",0,ROUND(SUMIF($F$9:$P$9,"<>",$F82:$P82),15-13*PO!$X$3)) -> 12 | F82: 12
A83: =OFFSET(PO!J$12,ROW(A83)-ROW($A$12),0) -> Serviço | B83: =IF($A83=0,"",OFFSET(PO!K$12,ROW(B83)-ROW(B$12),0)) -> 1.8.12. | C83: =IF(OFFSET(PO!N$12,ROW(C83)-ROW(C$12),0)=0,"",OFFSET(PO!N$12,ROW(C83)-ROW(C$12),0)) -> TOMADA MÉDIA DE EMBUTIR (2 MÓDULOS), 2P+T 10 A, INCLUINDO SUPORTE E PLACA - FORNECIMENTO E INSTALAÇÃO. AF_03/2023 | D83: =IF(OFFSET(PO!O$12,ROW(D83)-ROW(D$12),0)=0,"",OFFSET(PO!O$12,ROW(D83)-ROW(D$12),0)) -> UN | E83: =IF($A83<>"Serviço",0,ROUND(SUMIF($F$9:$P$9,"<>",$F83:$P83),15-13*PO!$X$3)) -> 1 | F83: 1
A84: =OFFSET(PO!J$12,ROW(A84)-ROW($A$12),0) -> Serviço | B84: =IF($A84=0,"",OFFSET(PO!K$12,ROW(B84)-ROW(B$12),0)) -> 1.8.13. | C84: =IF(OFFSET(PO!N$12,ROW(C84)-ROW(C$12),0)=0,"",OFFSET(PO!N$12,ROW(C84)-ROW(C$12),0)) -> ESPELHO / PLACA CEGA 4" X 2", PARA INSTALACAO DE TOMADAS E INTERRUPTORES | D84: =IF(OFFSET(PO!O$12,ROW(D84)-ROW(D$12),0)=0,"",OFFSET(PO!O$12,ROW(D84)-ROW(D$12),0)) -> UN | E84: =IF($A84<>"Serviço",0,ROUND(SUMIF($F$9:$P$9,"<>",$F84:$P84),15-13*PO!$X$3)) -> 1 | F84: 1
A85: =OFFSET(PO!J$12,ROW(A85)-ROW($A$12),0) -> Serviço | B85: =IF($A85=0,"",OFFSET(PO!K$12,ROW(B85)-ROW(B$12),0)) -> 1.8.14. | C85: =IF(OFFSET(PO!N$12,ROW(C85)-ROW(C$12),0)=0,"",OFFSET(PO!N$12,ROW(C85)-ROW(C$12),0)) -> DISJUNTOR MONOPOLAR TIPO DIN, CORRENTE NOMINAL DE 20A - FORNECIMENTO E INSTALAÇÃO. AF_10/2020 | D85: =IF(OFFSET(PO!O$12,ROW(D85)-ROW(D$12),0)=0,"",OFFSET(PO!O$12,ROW(D85)-ROW(D$12),0)) -> UN | E85: =IF($A85<>"Serviço",0,ROUND(SUMIF($F$9:$P$9,"<>",$F85:$P85),15-13*PO!$X$3)) -> 3 | F85: 3
A86: =OFFSET(PO!J$12,ROW(A86)-ROW($A$12),0) -> Serviço | B86: =IF($A86=0,"",OFFSET(PO!K$12,ROW(B86)-ROW(B$12),0)) -> 1.8.15. | C86: =IF(OFFSET(PO!N$12,ROW(C86)-ROW(C$12),0)=0,"",OFFSET(PO!N$12,ROW(C86)-ROW(C$12),0)) -> DISJUNTOR MONOPOLAR TIPO DIN, CORRENTE NOMINAL DE 32A - FORNECIMENTO E INSTALAÇÃO. AF_10/2020 | D86: =IF(OFFSET(PO!O$12,ROW(D86)-ROW(D$12),0)=0,"",OFFSET(PO!O$12,ROW(D86)-ROW(D$12),0)) -> UN | E86: =IF($A86<>"Serviço",0,ROUND(SUMIF($F$9:$P$9,"<>",$F86:$P86),15-13*PO!$X$3)) -> 1 | F86: 1
A87: =OFFSET(PO!J$12,ROW(A87)-ROW($A$12),0) -> Serviço | B87: =IF($A87=0,"",OFFSET(PO!K$12,ROW(B87)-ROW(B$12),0)) -> 1.8.16. | C87: =IF(OFFSET(PO!N$12,ROW(C87)-ROW(C$12),0)=0,"",OFFSET(PO!N$12,ROW(C87)-ROW(C$12),0)) -> DISPOSITIVO DR, 2 POLOS, SENSIBILIDADE DE 30 MA, CORRENTE DE 25 A, TIPO AC | D87: =IF(OFFSET(PO!O$12,ROW(D87)-ROW(D$12),0)=0,"",OFFSET(PO!O$12,ROW(D87)-ROW(D$12),0)) -> UN | E87: =IF($A87<>"Serviço",0,ROUND(SUMIF($F$9:$P$9,"<>",$F87:$P87),15-13*PO!$X$3)) -> 1 | F87: 1
A88: =OFFSET(PO!J$12,ROW(A88)-ROW($A$12),0) -> Serviço | B88: =IF($A88=0,"",OFFSET(PO!K$12,ROW(B88)-ROW(B$12),0)) -> 1.8.17. | C88: =IF(OFFSET(PO!N$12,ROW(C88)-ROW(C$12),0)=0,"",OFFSET(PO!N$12,ROW(C88)-ROW(C$12),0)) -> DISJUNTOR TIPO DIN/IEC, BIPOLAR 63 A | D88: =IF(OFFSET(PO!O$12,ROW(D88)-ROW(D$12),0)=0,"",OFFSET(PO!O$12,ROW(D88)-ROW(D$12),0)) -> UN | E88: =IF($A88<>"Serviço",0,ROUND(SUMIF($F$9:$P$9,"<>",$F88:$P88),15-13*PO!$X$3)) -> 1 | F88: 1
A89: =OFFSET(PO!J$12,ROW(A89)-ROW($A$12),0) -> Serviço | B89: =IF($A89=0,"",OFFSET(PO!K$12,ROW(B89)-ROW(B$12),0)) -> 1.8.18. | C89: =IF(OFFSET(PO!N$12,ROW(C89)-ROW(C$12),0)=0,"",OFFSET(PO!N$12,ROW(C89)-ROW(C$12),0)) -> ELETRODUTO FLEXÍVEL CORRUGADO, PVC, DN 25 MM (3/4"), PARA CIRCUITOS TERMINAIS, INSTALADO EM PAREDE - FORNECIMENTO E INSTALAÇÃO. AF_03/2023 | D89: =IF(OFFSET(PO!O$12,ROW(D89)-ROW(D$12),0)=0,"",OFFSET(PO!O$12,ROW(D89)-ROW(D$12),0)) -> M | E89: =IF($A89<>"Serviço",0,ROUND(SUMIF($F$9:$P$9,"<>",$F89:$P89),15-13*PO!$X$3)) -> 76 | F89: 76
A90: =OFFSET(PO!J$12,ROW(A90)-ROW($A$12),0) -> Serviço | B90: =IF($A90=0,"",OFFSET(PO!K$12,ROW(B90)-ROW(B$12),0)) -> 1.8.19. | C90: =IF(OFFSET(PO!N$12,ROW(C90)-ROW(C$12),0)=0,"",OFFSET(PO!N$12,ROW(C90)-ROW(C$12),0)) -> ELETRODUTO FLEXÍVEL CORRUGADO, PVC, DN 32 MM (1"), PARA CIRCUITOS TERMINAIS, INSTALADO EM PAREDE - FORNECIMENTO E INSTALAÇÃO. AF_03/2023 | D90: =IF(OFFSET(PO!O$12,ROW(D90)-ROW(D$12),0)=0,"",OFFSET(PO!O$12,ROW(D90)-ROW(D$12),0)) -> M | E90: =IF($A90<>"Serviço",0,ROUND(SUMIF($F$9:$P$9,"<>",$F90:$P90),15-13*PO!$X$3)) -> 10.2 | F90: 10.2
A91: =OFFSET(PO!J$12,ROW(A91)-ROW($A$12),0) -> Serviço | B91: =IF($A91=0,"",OFFSET(PO!K$12,ROW(B91)-ROW(B$12),0)) -> 1.8.20. | C91: =IF(OFFSET(PO!N$12,ROW(C91)-ROW(C$12),0)=0,"",OFFSET(PO!N$12,ROW(C91)-ROW(C$12),0)) -> LÂMPADA COMPACTA DE LED 10 W, BASE E27 - FORNECIMENTO E INSTALAÇÃO. AF_02/2020 | D91: =IF(OFFSET(PO!O$12,ROW(D91)-ROW(D$12),0)=0,"",OFFSET(PO!O$12,ROW(D91)-ROW(D$12),0)) -> UN | E91: =IF($A91<>"Serviço",0,ROUND(SUMIF($F$9:$P$9,"<>",$F91:$P91),15-13*PO!$X$3)) -> 9 | F91: 9
A92: =OFFSET(PO!J$12,ROW(A92)-ROW($A$12),0) -> Serviço | B92: =IF($A92=0,"",OFFSET(PO!K$12,ROW(B92)-ROW(B$12),0)) -> 1.8.21. | C92: =IF(OFFSET(PO!N$12,ROW(C92)-ROW(C$12),0)=0,"",OFFSET(PO!N$12,ROW(C92)-ROW(C$12),0)) -> ESPELHO / PLACA DE 2 POSTOS 4" X 2", PARA INSTALACAO DE TOMADAS E INTERRUPTORES | D92: =IF(OFFSET(PO!O$12,ROW(D92)-ROW(D$12),0)=0,"",OFFSET(PO!O$12,ROW(D92)-ROW(D$12),0)) -> UN | E92: =IF($A92<>"Serviço",0,ROUND(SUMIF($F$9:$P$9,"<>",$F92:$P92),15-13*PO!$X$3)) -> 7 | F92: 7
A93: =OFFSET(PO!J$12,ROW(A93)-ROW($A$12),0) -> Serviço | B93: =IF($A93=0,"",OFFSET(PO!K$12,ROW(B93)-ROW(B$12),0)) -> 1.8.22. | C93: =IF(OFFSET(PO!N$12,ROW(C93)-ROW(C$12),0)=0,"",OFFSET(PO!N$12,ROW(C93)-ROW(C$12),0)) -> ESPELHO / PLACA DE 1 POSTO 4" X 2", PARA INSTALACAO DE TOMADAS E INTERRUPTORES | D93: =IF(OFFSET(PO!O$12,ROW(D93)-ROW(D$12),0)=0,"",OFFSET(PO!O$12,ROW(D93)-ROW(D$12),0)) -> UN | E93: =IF($A93<>"Serviço",0,ROUND(SUMIF($F$9:$P$9,"<>",$F93:$P93),15-13*PO!$X$3)) -> 12 | F93: 12
A94: =OFFSET(PO!J$12,ROW(A94)-ROW($A$12),0) -> Serviço | B94: =IF($A94=0,"",OFFSET(PO!K$12,ROW(B94)-ROW(B$12),0)) -> 1.8.23. | C94: =IF(OFFSET(PO!N$12,ROW(C94)-ROW(C$12),0)=0,"",OFFSET(PO!N$12,ROW(C94)-ROW(C$12),0)) -> QUADRO DE DISTRIBUICAO, SEM BARRAMENTO, EM PVC, DE EMBUTIR, PARA 6 DISJUNTORES NEMA OU 8 DISJUNTORES DIN | D94: =IF(OFFSET(PO!O$12,ROW(D94)-ROW(D$12),0)=0,"",OFFSET(PO!O$12,ROW(D94)-ROW(D$12),0)) -> UN | E94: =IF($A94<>"Serviço",0,ROUND(SUMIF($F$9:$P$9,"<>",$F94:$P94),15-13*PO!$X$3)) -> 1 | F94: 1
A95: =OFFSET(PO!J$12,ROW(A95)-ROW($A$12),0) -> Nível 2 | B95: =IF($A95=0,"",OFFSET(PO!K$12,ROW(B95)-ROW(B$12),0)) -> 1.9. | C95: =IF(OFFSET(PO!N$12,ROW(C95)-ROW(C$12),0)=0,"",OFFSET(PO!N$12,ROW(C95)-ROW(C$12),0)) -> ISNSTALAÇÕES HIDRÁULICAS | D95: =IF(OFFSET(PO!O$12,ROW(D95)-ROW(D$12),0)=0,"",OFFSET(PO!O$12,ROW(D95)-ROW(D$12),0)) ->  | E95: =IF($A95<>"Serviço",0,ROUND(SUMIF($F$9:$P$9,"<>",$F95:$P95),15-13*PO!$X$3)) -> 0
A96: =OFFSET(PO!J$12,ROW(A96)-ROW($A$12),0) -> Serviço | B96: =IF($A96=0,"",OFFSET(PO!K$12,ROW(B96)-ROW(B$12),0)) -> 1.9.1. | C96: =IF(OFFSET(PO!N$12,ROW(C96)-ROW(C$12),0)=0,"",OFFSET(PO!N$12,ROW(C96)-ROW(C$12),0)) -> TÊ COM BUCHA DE LATÃO NA BOLSA CENTRAL, PVC, SOLDÁVEL, DN 25 MM X 3/4 , INSTALADO EM RESERVAÇÃO DE ÁGUA DE EDIFICAÇÃO QUE POSSUA RESERVATÓRIO DE FIBRA/FIBROCIMENTO FORNECIMENTO E INSTALAÇÃO. AF_06/2016 | D96: =IF(OFFSET(PO!O$12,ROW(D96)-ROW(D$12),0)=0,"",OFFSET(PO!O$12,ROW(D96)-ROW(D$12),0)) -> UN | E96: =IF($A96<>"Serviço",0,ROUND(SUMIF($F$9:$P$9,"<>",$F96:$P96),15-13*PO!$X$3)) -> 3 | F96: 3
A97: =OFFSET(PO!J$12,ROW(A97)-ROW($A$12),0) -> Serviço | B97: =IF($A97=0,"",OFFSET(PO!K$12,ROW(B97)-ROW(B$12),0)) -> 1.9.2. | C97: =IF(OFFSET(PO!N$12,ROW(C97)-ROW(C$12),0)=0,"",OFFSET(PO!N$12,ROW(C97)-ROW(C$12),0)) -> TE, PVC, SOLDÁVEL, DN 32MM, INSTALADO EM RAMAL DE DISTRIBUIÇÃO DE ÁGUA - FORNECIMENTO E INSTALAÇÃO. AF_06/2022 | D97: =IF(OFFSET(PO!O$12,ROW(D97)-ROW(D$12),0)=0,"",OFFSET(PO!O$12,ROW(D97)-ROW(D$12),0)) -> UN | E97: =IF($A97<>"Serviço",0,ROUND(SUMIF($F$9:$P$9,"<>",$F97:$P97),15-13*PO!$X$3)) -> 1 | F97: 1
A98: =OFFSET(PO!J$12,ROW(A98)-ROW($A$12),0) -> Serviço | B98: =IF($A98=0,"",OFFSET(PO!K$12,ROW(B98)-ROW(B$12),0)) -> 1.9.3. | C98: =IF(OFFSET(PO!N$12,ROW(C98)-ROW(C$12),0)=0,"",OFFSET(PO!N$12,ROW(C98)-ROW(C$12),0)) -> TE, PVC, SOLDÁVEL, DN 25MM, INSTALADO EM RAMAL DE DISTRIBUIÇÃO DE ÁGUA - FORNECIMENTO E INSTALAÇÃO. AF_06/2022 | D98: =IF(OFFSET(PO!O$12,ROW(D98)-ROW(D$12),0)=0,"",OFFSET(PO!O$12,ROW(D98)-ROW(D$12),0)) -> UN | E98: =IF($A98<>"Serviço",0,ROUND(SUMIF($F$9:$P$9,"<>",$F98:$P98),15-13*PO!$X$3)) -> 2 | F98: 2
A99: =OFFSET(PO!J$12,ROW(A99)-ROW($A$12),0) -> Serviço | B99: =IF($A99=0,"",OFFSET(PO!K$12,ROW(B99)-ROW(B$12),0)) -> 1.9.4. | C99: =IF(OFFSET(PO!N$12,ROW(C99)-ROW(C$12),0)=0,"",OFFSET(PO!N$12,ROW(C99)-ROW(C$12),0)) -> LUVA COM BUCHA DE LATÃO, PVC, SOLDÁVEL, DN 25MM X 3/4 , INSTALADO EM RAMAL DE DISTRIBUIÇÃO DE ÁGUA - FORNECIMENTO E INSTALAÇÃO. AF_06/2022 | D99: =IF(OFFSET(PO!O$12,ROW(D99)-ROW(D$12),0)=0,"",OFFSET(PO!O$12,ROW(D99)-ROW(D$12),0)) -> UN | E99: =IF($A99<>"Serviço",0,ROUND(SUMIF($F$9:$P$9,"<>",$F99:$P99),15-13*PO!$X$3)) -> 1 | F99: 1
A100: =OFFSET(PO!J$12,ROW(A100)-ROW($A$12),0) -> Serviço | B100: =IF($A100=0,"",OFFSET(PO!K$12,ROW(B100)-ROW(B$12),0)) -> 1.9.5. | C100: =IF(OFFSET(PO!N$12,ROW(C100)-ROW(C$12),0)=0,"",OFFSET(PO!N$12,ROW(C100)-ROW(C$12),0)) -> JOELHO 90 GRAUS COM BUCHA DE LATÃO, PVC, SOLDÁVEL, DN 25MM, X 1/2 INSTALADO EM RAMAL OU SUB-RAMAL DE ÁGUA - FORNECIMENTO E INSTALAÇÃO. AF_06/2022 | D100: =IF(OFFSET(PO!O$12,ROW(D100)-ROW(D$12),0)=0,"",OFFSET(PO!O$12,ROW(D100)-ROW(D$12),0)) -> UN | E100: =IF($A100<>"Serviço",0,ROUND(SUMIF($F$9:$P$9,"<>",$F100:$P100),15-13*PO!$X$3)) -> 2 | F100: 2
A101: =OFFSET(PO!J$12,ROW(A101)-ROW($A$12),0) -> Serviço | B101: =IF($A101=0,"",OFFSET(PO!K$12,ROW(B101)-ROW(B$12),0)) -> 1.9.6. | C101: =IF(OFFSET(PO!N$12,ROW(C101)-ROW(C$12),0)=0,"",OFFSET(PO!N$12,ROW(C101)-ROW(C$12),0)) -> JOELHO 90 GRAUS, PVC, SOLDÁVEL, DN 32MM, INSTALADO EM RAMAL DE DISTRIBUIÇÃO DE ÁGUA - FORNECIMENTO E INSTALAÇÃO. AF_06/2022 | D101: =IF(OFFSET(PO!O$12,ROW(D101)-ROW(D$12),0)=0,"",OFFSET(PO!O$12,ROW(D101)-ROW(D$12),0)) -> UN | E101: =IF($A101<>"Serviço",0,ROUND(SUMIF($F$9:$P$9,"<>",$F101:$P101),15-13*PO!$X$3)) -> 9 | F101: 9
A102: =OFFSET(PO!J$12,ROW(A102)-ROW($A$12),0) -> Serviço | B102: =IF($A102=0,"",OFFSET(PO!K$12,ROW(B102)-ROW(B$12),0)) -> 1.9.7. | C102: =IF(OFFSET(PO!N$12,ROW(C102)-ROW(C$12),0)=0,"",OFFSET(PO!N$12,ROW(C102)-ROW(C$12),0)) -> JOELHO 90 GRAUS, PVC, SOLDÁVEL, DN 25MM, INSTALADO EM RAMAL DE DISTRIBUIÇÃO DE ÁGUA - FORNECIMENTO E INSTALAÇÃO. AF_06/2022 | D102: =IF(OFFSET(PO!O$12,ROW(D102)-ROW(D$12),0)=0,"",OFFSET(PO!O$12,ROW(D102)-ROW(D$12),0)) -> UN | E102: =IF($A102<>"Serviço",0,ROUND(SUMIF($F$9:$P$9,"<>",$F102:$P102),15-13*PO!$X$3)) -> 6 | F102: 6
A103: =OFFSET(PO!J$12,ROW(A103)-ROW($A$12),0) -> Serviço | B103: =IF($A103=0,"",OFFSET(PO!K$12,ROW(B103)-ROW(B$12),0)) -> 1.9.8. | C103: =IF(OFFSET(PO!N$12,ROW(C103)-ROW(C$12),0)=0,"",OFFSET(PO!N$12,ROW(C103)-ROW(C$12),0)) -> LUVA DE REDUÇÃO, PVC, SOLDÁVEL, DN 32MM X 25MM, INSTALADO EM PRUMADA DE ÁGUA - FORNECIMENTO E INSTALAÇÃO. AF_06/2022 | D103: =IF(OFFSET(PO!O$12,ROW(D103)-ROW(D$12),0)=0,"",OFFSET(PO!O$12,ROW(D103)-ROW(D$12),0)) -> UN | E103: =IF($A103<>"Serviço",0,ROUND(SUMIF($F$9:$P$9,"<>",$F103:$P103),15-13*PO!$X$3)) -> 4 | F103: 4
A104: =OFFSET(PO!J$12,ROW(A104)-ROW($A$12),0) -> Serviço | B104: =IF($A104=0,"",OFFSET(PO!K$12,ROW(B104)-ROW(B$12),0)) -> 1.9.9. | C104: =IF(OFFSET(PO!N$12,ROW(C104)-ROW(C$12),0)=0,"",OFFSET(PO!N$12,ROW(C104)-ROW(C$12),0)) -> TUBO, PVC, SOLDÁVEL, DN 25MM, INSTALADO EM RAMAL OU SUB-RAMAL DE ÁGUA - FORNECIMENTO E INSTALAÇÃO. AF_06/2022 | D104: =IF(OFFSET(PO!O$12,ROW(D104)-ROW(D$12),0)=0,"",OFFSET(PO!O$12,ROW(D104)-ROW(D$12),0)) -> M | E104: =IF($A104<>"Serviço",0,ROUND(SUMIF($F$9:$P$9,"<>",$F104:$P104),15-13*PO!$X$3)) -> 18 | F104: 18
A105: =OFFSET(PO!J$12,ROW(A105)-ROW($A$12),0) -> Serviço | B105: =IF($A105=0,"",OFFSET(PO!K$12,ROW(B105)-ROW(B$12),0)) -> 1.9.10. | C105: =IF(OFFSET(PO!N$12,ROW(C105)-ROW(C$12),0)=0,"",OFFSET(PO!N$12,ROW(C105)-ROW(C$12),0)) -> TUBO, PVC, SOLDÁVEL, DN 32MM, INSTALADO EM RAMAL OU SUB-RAMAL DE ÁGUA - FORNECIMENTO E INSTALAÇÃO. AF_06/2022 | D105: =IF(OFFSET(PO!O$12,ROW(D105)-ROW(D$12),0)=0,"",OFFSET(PO!O$12,ROW(D105)-ROW(D$12),0)) -> M | E105: =IF($A105<>"Serviço",0,ROUND(SUMIF($F$9:$P$9,"<>",$F105:$P105),15-13*PO!$X$3)) -> 18 | F105: 18
A106: =OFFSET(PO!J$12,ROW(A106)-ROW($A$12),0) -> Serviço | B106: =IF($A106=0,"",OFFSET(PO!K$12,ROW(B106)-ROW(B$12),0)) -> 1.9.11. | C106: =IF(OFFSET(PO!N$12,ROW(C106)-ROW(C$12),0)=0,"",OFFSET(PO!N$12,ROW(C106)-ROW(C$12),0)) -> REGISTRO DE PRESSÃO BRUTO, LATÃO, ROSCÁVEL, 1/2", COM ACABAMENTO E CANOPLA CROMADOS - FORNECIMENTO E INSTALAÇÃO. AF_08/2021 | D106: =IF(OFFSET(PO!O$12,ROW(D106)-ROW(D$12),0)=0,"",OFFSET(PO!O$12,ROW(D106)-ROW(D$12),0)) -> UN | E106: =IF($A106<>"Serviço",0,ROUND(SUMIF($F$9:$P$9,"<>",$F106:$P106),15-13*PO!$X$3)) -> 1 | F106: 1
A107: =OFFSET(PO!J$12,ROW(A107)-ROW($A$12),0) -> Serviço | B107: =IF($A107=0,"",OFFSET(PO!K$12,ROW(B107)-ROW(B$12),0)) -> 1.9.12. | C107: =IF(OFFSET(PO!N$12,ROW(C107)-ROW(C$12),0)=0,"",OFFSET(PO!N$12,ROW(C107)-ROW(C$12),0)) -> REGISTRO DE GAVETA BRUTO, LATÃO, ROSCÁVEL, 3/4", COM ACABAMENTO E CANOPLA CROMADOS - FORNECIMENTO E INSTALAÇÃO. AF_08/2021 | D107: =IF(OFFSET(PO!O$12,ROW(D107)-ROW(D$12),0)=0,"",OFFSET(PO!O$12,ROW(D107)-ROW(D$12),0)) -> UN | E107: =IF($A107<>"Serviço",0,ROUND(SUMIF($F$9:$P$9,"<>",$F107:$P107),15-13*PO!$X$3)) -> 2 | F107: 2
A108: =OFFSET(PO!J$12,ROW(A108)-ROW($A$12),0) -> Serviço | B108: =IF($A108=0,"",OFFSET(PO!K$12,ROW(B108)-ROW(B$12),0)) -> 1.9.13. | C108: =IF(OFFSET(PO!N$12,ROW(C108)-ROW(C$12),0)=0,"",OFFSET(PO!N$12,ROW(C108)-ROW(C$12),0)) -> REGISTRO DE ESFERA, PVC, SOLDÁVEL, COM VOLANTE, DN 32 MM - FORNECIMENTO E INSTALAÇÃO. AF_08/2021 | D108: =IF(OFFSET(PO!O$12,ROW(D108)-ROW(D$12),0)=0,"",OFFSET(PO!O$12,ROW(D108)-ROW(D$12),0)) -> UN | E108: =IF($A108<>"Serviço",0,ROUND(SUMIF($F$9:$P$9,"<>",$F108:$P108),15-13*PO!$X$3)) -> 2 | F108: 2
A109: =OFFSET(PO!J$12,ROW(A109)-ROW($A$12),0) -> Serviço | B109: =IF($A109=0,"",OFFSET(PO!K$12,ROW(B109)-ROW(B$12),0)) -> 1.9.14. | C109: =IF(OFFSET(PO!N$12,ROW(C109)-ROW(C$12),0)=0,"",OFFSET(PO!N$12,ROW(C109)-ROW(C$12),0)) -> REGISTRO DE ESFERA, PVC, SOLDÁVEL, COM VOLANTE, DN 25 MM - FORNECIMENTO E INSTALAÇÃO. AF_08/2021 | D109: =IF(OFFSET(PO!O$12,ROW(D109)-ROW(D$12),0)=0,"",OFFSET(PO!O$12,ROW(D109)-ROW(D$12),0)) -> UN | E109: =IF($A109<>"Serviço",0,ROUND(SUMIF($F$9:$P$9,"<>",$F109:$P109),15-13*PO!$X$3)) -> 1 | F109: 1
A110: =OFFSET(PO!J$12,ROW(A110)-ROW($A$12),0) -> Serviço | B110: =IF($A110=0,"",OFFSET(PO!K$12,ROW(B110)-ROW(B$12),0)) -> 1.9.15. | C110: =IF(OFFSET(PO!N$12,ROW(C110)-ROW(C$12),0)=0,"",OFFSET(PO!N$12,ROW(C110)-ROW(C$12),0)) -> CHUVEIRO ELÉTRICO COMUM CORPO PLÁSTICO, TIPO DUCHA  FORNECIMENTO E INSTALAÇÃO. AF_01/2020 | D110: =IF(OFFSET(PO!O$12,ROW(D110)-ROW(D$12),0)=0,"",OFFSET(PO!O$12,ROW(D110)-ROW(D$12),0)) -> UN | E110: =IF($A110<>"Serviço",0,ROUND(SUMIF($F$9:$P$9,"<>",$F110:$P110),15-13*PO!$X$3)) -> 1 | F110: 1
A111: =OFFSET(PO!J$12,ROW(A111)-ROW($A$12),0) -> Serviço | B111: =IF($A111=0,"",OFFSET(PO!K$12,ROW(B111)-ROW(B$12),0)) -> 1.9.16. | C111: =IF(OFFSET(PO!N$12,ROW(C111)-ROW(C$12),0)=0,"",OFFSET(PO!N$12,ROW(C111)-ROW(C$12),0)) -> TORNEIRA DE BOIA PARA CAIXA D'ÁGUA, ROSCÁVEL, 1/2" - FORNECIMENTO E INSTALAÇÃO. AF_08/2021 | D111: =IF(OFFSET(PO!O$12,ROW(D111)-ROW(D$12),0)=0,"",OFFSET(PO!O$12,ROW(D111)-ROW(D$12),0)) -> UN | E111: =IF($A111<>"Serviço",0,ROUND(SUMIF($F$9:$P$9,"<>",$F111:$P111),15-13*PO!$X$3)) -> 1 | F111: 1
A112: =OFFSET(PO!J$12,ROW(A112)-ROW($A$12),0) -> Serviço | B112: =IF($A112=0,"",OFFSET(PO!K$12,ROW(B112)-ROW(B$12),0)) -> 1.9.17. | C112: =IF(OFFSET(PO!N$12,ROW(C112)-ROW(C$12),0)=0,"",OFFSET(PO!N$12,ROW(C112)-ROW(C$12),0)) -> TORNEIRA DE MESA/BANCADA, PARA LAVATORIO, FIXA, METALICA CROMADA, PADRAO POPULAR, 1/2 " OU 3/4 " (REF 1193) | D112: =IF(OFFSET(PO!O$12,ROW(D112)-ROW(D$12),0)=0,"",OFFSET(PO!O$12,ROW(D112)-ROW(D$12),0)) -> UN | E112: =IF($A112<>"Serviço",0,ROUND(SUMIF($F$9:$P$9,"<>",$F112:$P112),15-13*PO!$X$3)) -> 1 | F112: 1
A113: =OFFSET(PO!J$12,ROW(A113)-ROW($A$12),0) -> Serviço | B113: =IF($A113=0,"",OFFSET(PO!K$12,ROW(B113)-ROW(B$12),0)) -> 1.9.18. | C113: =IF(OFFSET(PO!N$12,ROW(C113)-ROW(C$12),0)=0,"",OFFSET(PO!N$12,ROW(C113)-ROW(C$12),0)) -> CAIXA D´ÁGUA EM POLIETILENO, 500 LITROS - FORNECIMENTO E INSTALAÇÃO. AF_06/2021 | D113: =IF(OFFSET(PO!O$12,ROW(D113)-ROW(D$12),0)=0,"",OFFSET(PO!O$12,ROW(D113)-ROW(D$12),0)) -> UN | E113: =IF($A113<>"Serviço",0,ROUND(SUMIF($F$9:$P$9,"<>",$F113:$P113),15-13*PO!$X$3)) -> 1 | F113: 1
A114: =OFFSET(PO!J$12,ROW(A114)-ROW($A$12),0) -> Serviço | B114: =IF($A114=0,"",OFFSET(PO!K$12,ROW(B114)-ROW(B$12),0)) -> 1.9.19. | C114: =IF(OFFSET(PO!N$12,ROW(C114)-ROW(C$12),0)=0,"",OFFSET(PO!N$12,ROW(C114)-ROW(C$12),0)) -> ADAPTADOR COM FLANGES LIVRES, PVC, SOLDÁVEL LONGO, DN 32 MM X 1 , INSTALADO EM RESERVAÇÃO DE ÁGUA DE EDIFICAÇÃO QUE POSSUA RESERVATÓRIO DE FIBRA/FIBROCIMENTO FORNECIMENTO E INSTALAÇÃO. AF_06/2016 | D114: =IF(OFFSET(PO!O$12,ROW(D114)-ROW(D$12),0)=0,"",OFFSET(PO!O$12,ROW(D114)-ROW(D$12),0)) -> UN | E114: =IF($A114<>"Serviço",0,ROUND(SUMIF($F$9:$P$9,"<>",$F114:$P114),15-13*PO!$X$3)) -> 3 | F114: 3
A115: =OFFSET(PO!J$12,ROW(A115)-ROW($A$12),0) -> Serviço | B115: =IF($A115=0,"",OFFSET(PO!K$12,ROW(B115)-ROW(B$12),0)) -> 1.9.20. | C115: =IF(OFFSET(PO!N$12,ROW(C115)-ROW(C$12),0)=0,"",OFFSET(PO!N$12,ROW(C115)-ROW(C$12),0)) -> ADAPTADOR CURTO COM BOLSA E ROSCA PARA REGISTRO, PVC, SOLDÁVEL, DN 32MM X 1 , INSTALADO EM RAMAL OU SUB-RAMAL DE ÁGUA - FORNECIMENTO E INSTALAÇÃO. AF_06/2022 | D115: =IF(OFFSET(PO!O$12,ROW(D115)-ROW(D$12),0)=0,"",OFFSET(PO!O$12,ROW(D115)-ROW(D$12),0)) -> UN | E115: =IF($A115<>"Serviço",0,ROUND(SUMIF($F$9:$P$9,"<>",$F115:$P115),15-13*PO!$X$3)) -> 4 | F115: 4
A116: =OFFSET(PO!J$12,ROW(A116)-ROW($A$12),0) -> Serviço | B116: =IF($A116=0,"",OFFSET(PO!K$12,ROW(B116)-ROW(B$12),0)) -> 1.9.21. | C116: =IF(OFFSET(PO!N$12,ROW(C116)-ROW(C$12),0)=0,"",OFFSET(PO!N$12,ROW(C116)-ROW(C$12),0)) -> ADAPTADOR CURTO COM BOLSA E ROSCA PARA REGISTRO, PVC, SOLDÁVEL, DN 25MM X 3/4 , INSTALADO EM RAMAL OU SUB-RAMAL DE ÁGUA - FORNECIMENTO E INSTALAÇÃO. AF_06/2022 | D116: =IF(OFFSET(PO!O$12,ROW(D116)-ROW(D$12),0)=0,"",OFFSET(PO!O$12,ROW(D116)-ROW(D$12),0)) -> UN | E116: =IF($A116<>"Serviço",0,ROUND(SUMIF($F$9:$P$9,"<>",$F116:$P116),15-13*PO!$X$3)) -> 6 | F116: 6
A117: =OFFSET(PO!J$12,ROW(A117)-ROW($A$12),0) -> Nível 2 | B117: =IF($A117=0,"",OFFSET(PO!K$12,ROW(B117)-ROW(B$12),0)) -> 1.10. | C117: =IF(OFFSET(PO!N$12,ROW(C117)-ROW(C$12),0)=0,"",OFFSET(PO!N$12,ROW(C117)-ROW(C$12),0)) -> INSTALAÇÕES SANITÁRIAS | D117: =IF(OFFSET(PO!O$12,ROW(D117)-ROW(D$12),0)=0,"",OFFSET(PO!O$12,ROW(D117)-ROW(D$12),0)) ->  | E117: =IF($A117<>"Serviço",0,ROUND(SUMIF($F$9:$P$9,"<>",$F117:$P117),15-13*PO!$X$3)) -> 0
A118: =OFFSET(PO!J$12,ROW(A118)-ROW($A$12),0) -> Serviço | B118: =IF($A118=0,"",OFFSET(PO!K$12,ROW(B118)-ROW(B$12),0)) -> 1.10.1. | C118: =IF(OFFSET(PO!N$12,ROW(C118)-ROW(C$12),0)=0,"",OFFSET(PO!N$12,ROW(C118)-ROW(C$12),0)) -> TE, PVC, SERIE NORMAL, ESGOTO PREDIAL, DN 100 X 100 MM, JUNTA ELÁSTICA, FORNECIDO E INSTALADO EM RAMAL DE DESCARGA OU RAMAL DE ESGOTO SANITÁRIO. AF_08/2022 | D118: =IF(OFFSET(PO!O$12,ROW(D118)-ROW(D$12),0)=0,"",OFFSET(PO!O$12,ROW(D118)-ROW(D$12),0)) -> UN | E118: =IF($A118<>"Serviço",0,ROUND(SUMIF($F$9:$P$9,"<>",$F118:$P118),15-13*PO!$X$3)) -> 1 | F118: 1
A119: =OFFSET(PO!J$12,ROW(A119)-ROW($A$12),0) -> Serviço | B119: =IF($A119=0,"",OFFSET(PO!K$12,ROW(B119)-ROW(B$12),0)) -> 1.10.2. | C119: =IF(OFFSET(PO!N$12,ROW(C119)-ROW(C$12),0)=0,"",OFFSET(PO!N$12,ROW(C119)-ROW(C$12),0)) -> TE SANITARIO DE REDUCAO, PVC, DN 100 X 50 MM, SERIE NORMAL, PARA ESGOTO PREDIAL | D119: =IF(OFFSET(PO!O$12,ROW(D119)-ROW(D$12),0)=0,"",OFFSET(PO!O$12,ROW(D119)-ROW(D$12),0)) -> UN | E119: =IF($A119<>"Serviço",0,ROUND(SUMIF($F$9:$P$9,"<>",$F119:$P119),15-13*PO!$X$3)) -> 1 | F119: 1
A120: =OFFSET(PO!J$12,ROW(A120)-ROW($A$12),0) -> Serviço | B120: =IF($A120=0,"",OFFSET(PO!K$12,ROW(B120)-ROW(B$12),0)) -> 1.10.3. | C120: =IF(OFFSET(PO!N$12,ROW(C120)-ROW(C$12),0)=0,"",OFFSET(PO!N$12,ROW(C120)-ROW(C$12),0)) -> TE, PVC, SERIE NORMAL, ESGOTO PREDIAL, DN 75 X 75 MM, JUNTA ELÁSTICA, FORNECIDO E INSTALADO EM RAMAL DE DESCARGA OU RAMAL DE ESGOTO SANITÁRIO. AF_08/2022 | D120: =IF(OFFSET(PO!O$12,ROW(D120)-ROW(D$12),0)=0,"",OFFSET(PO!O$12,ROW(D120)-ROW(D$12),0)) -> UN | E120: =IF($A120<>"Serviço",0,ROUND(SUMIF($F$9:$P$9,"<>",$F120:$P120),15-13*PO!$X$3)) -> 1 | F120: 1
A121: =OFFSET(PO!J$12,ROW(A121)-ROW($A$12),0) -> Serviço | B121: =IF($A121=0,"",OFFSET(PO!K$12,ROW(B121)-ROW(B$12),0)) -> 1.10.4. | C121: =IF(OFFSET(PO!N$12,ROW(C121)-ROW(C$12),0)=0,"",OFFSET(PO!N$12,ROW(C121)-ROW(C$12),0)) -> LUVA SIMPLES, PVC, SERIE NORMAL, ESGOTO PREDIAL, DN 100 MM, JUNTA ELÁSTICA, FORNECIDO E INSTALADO EM RAMAL DE DESCARGA OU RAMAL DE ESGOTO SANITÁRIO. AF_08/2022 | D121: =IF(OFFSET(PO!O$12,ROW(D121)-ROW(D$12),0)=0,"",OFFSET(PO!O$12,ROW(D121)-ROW(D$12),0)) -> UN | E121: =IF($A121<>"Serviço",0,ROUND(SUMIF($F$9:$P$9,"<>",$F121:$P121),15-13*PO!$X$3)) -> 16 | F121: 16
A122: =OFFSET(PO!J$12,ROW(A122)-ROW($A$12),0) -> Serviço | B122: =IF($A122=0,"",OFFSET(PO!K$12,ROW(B122)-ROW(B$12),0)) -> 1.10.5. | C122: =IF(OFFSET(PO!N$12,ROW(C122)-ROW(C$12),0)=0,"",OFFSET(PO!N$12,ROW(C122)-ROW(C$12),0)) -> LUVA SIMPLES, PVC, SERIE NORMAL, ESGOTO PREDIAL, DN 75 MM, JUNTA ELÁSTICA, FORNECIDO E INSTALADO EM RAMAL DE DESCARGA OU RAMAL DE ESGOTO SANITÁRIO. AF_08/2022 | D122: =IF(OFFSET(PO!O$12,ROW(D122)-ROW(D$12),0)=0,"",OFFSET(PO!O$12,ROW(D122)-ROW(D$12),0)) -> UN | E122: =IF($A122<>"Serviço",0,ROUND(SUMIF($F$9:$P$9,"<>",$F122:$P122),15-13*PO!$X$3)) -> 5 | F122: 5
A123: =OFFSET(PO!J$12,ROW(A123)-ROW($A$12),0) -> Serviço | B123: =IF($A123=0,"",OFFSET(PO!K$12,ROW(B123)-ROW(B$12),0)) -> 1.10.6. | C123: =IF(OFFSET(PO!N$12,ROW(C123)-ROW(C$12),0)=0,"",OFFSET(PO!N$12,ROW(C123)-ROW(C$12),0)) -> LUVA SIMPLES, PVC, SERIE NORMAL, ESGOTO PREDIAL, DN 50 MM, JUNTA ELÁSTICA, FORNECIDO E INSTALADO EM RAMAL DE DESCARGA OU RAMAL DE ESGOTO SANITÁRIO. AF_08/2022 | D123: =IF(OFFSET(PO!O$12,ROW(D123)-ROW(D$12),0)=0,"",OFFSET(PO!O$12,ROW(D123)-ROW(D$12),0)) -> UN | E123: =IF($A123<>"Serviço",0,ROUND(SUMIF($F$9:$P$9,"<>",$F123:$P123),15-13*PO!$X$3)) -> 10 | F123: 10
A124: =OFFSET(PO!J$12,ROW(A124)-ROW($A$12),0) -> Serviço | B124: =IF($A124=0,"",OFFSET(PO!K$12,ROW(B124)-ROW(B$12),0)) -> 1.10.7. | C124: =IF(OFFSET(PO!N$12,ROW(C124)-ROW(C$12),0)=0,"",OFFSET(PO!N$12,ROW(C124)-ROW(C$12),0)) -> JUNÇÃO SIMPLES, PVC, SERIE NORMAL, ESGOTO PREDIAL, DN 50 X 50 MM, JUNTA ELÁSTICA, FORNECIDO E INSTALADO EM RAMAL DE DESCARGA OU RAMAL DE ESGOTO SANITÁRIO. AF_08/2022 | D124: =IF(OFFSET(PO!O$12,ROW(D124)-ROW(D$12),0)=0,"",OFFSET(PO!O$12,ROW(D124)-ROW(D$12),0)) -> UN | E124: =IF($A124<>"Serviço",0,ROUND(SUMIF($F$9:$P$9,"<>",$F124:$P124),15-13*PO!$X$3)) -> 1 | F124: 1
A125: =OFFSET(PO!J$12,ROW(A125)-ROW($A$12),0) -> Serviço | B125: =IF($A125=0,"",OFFSET(PO!K$12,ROW(B125)-ROW(B$12),0)) -> 1.10.8. | C125: =IF(OFFSET(PO!N$12,ROW(C125)-ROW(C$12),0)=0,"",OFFSET(PO!N$12,ROW(C125)-ROW(C$12),0)) -> JOELHO 90 GRAUS, PVC, SERIE NORMAL, ESGOTO PREDIAL, DN 100 MM, JUNTA ELÁSTICA, FORNECIDO E INSTALADO EM RAMAL DE DESCARGA OU RAMAL DE ESGOTO SANITÁRIO. AF_08/2022 | D125: =IF(OFFSET(PO!O$12,ROW(D125)-ROW(D$12),0)=0,"",OFFSET(PO!O$12,ROW(D125)-ROW(D$12),0)) -> UN | E125: =IF($A125<>"Serviço",0,ROUND(SUMIF($F$9:$P$9,"<>",$F125:$P125),15-13*PO!$X$3)) -> 1 | F125: 1
A126: =OFFSET(PO!J$12,ROW(A126)-ROW($A$12),0) -> Serviço | B126: =IF($A126=0,"",OFFSET(PO!K$12,ROW(B126)-ROW(B$12),0)) -> 1.10.9. | C126: =IF(OFFSET(PO!N$12,ROW(C126)-ROW(C$12),0)=0,"",OFFSET(PO!N$12,ROW(C126)-ROW(C$12),0)) -> JOELHO 90 GRAUS, PVC, SERIE NORMAL, ESGOTO PREDIAL, DN 50 MM, JUNTA ELÁSTICA, FORNECIDO E INSTALADO EM RAMAL DE DESCARGA OU RAMAL DE ESGOTO SANITÁRIO. AF_08/2022 | D126: =IF(OFFSET(PO!O$12,ROW(D126)-ROW(D$12),0)=0,"",OFFSET(PO!O$12,ROW(D126)-ROW(D$12),0)) -> UN | E126: =IF($A126<>"Serviço",0,ROUND(SUMIF($F$9:$P$9,"<>",$F126:$P126),15-13*PO!$X$3)) -> 13 | F126: 13
A127: =OFFSET(PO!J$12,ROW(A127)-ROW($A$12),0) -> Serviço | B127: =IF($A127=0,"",OFFSET(PO!K$12,ROW(B127)-ROW(B$12),0)) -> 1.10.10. | C127: =IF(OFFSET(PO!N$12,ROW(C127)-ROW(C$12),0)=0,"",OFFSET(PO!N$12,ROW(C127)-ROW(C$12),0)) -> JOELHO 90 GRAUS, PVC, SERIE NORMAL, ESGOTO PREDIAL, DN 40 MM, JUNTA SOLDÁVEL, FORNECIDO E INSTALADO EM RAMAL DE DESCARGA OU RAMAL DE ESGOTO SANITÁRIO. AF_08/2022 | D127: =IF(OFFSET(PO!O$12,ROW(D127)-ROW(D$12),0)=0,"",OFFSET(PO!O$12,ROW(D127)-ROW(D$12),0)) -> UN | E127: =IF($A127<>"Serviço",0,ROUND(SUMIF($F$9:$P$9,"<>",$F127:$P127),15-13*PO!$X$3)) -> 6 | F127: 6
A128: =OFFSET(PO!J$12,ROW(A128)-ROW($A$12),0) -> Serviço | B128: =IF($A128=0,"",OFFSET(PO!K$12,ROW(B128)-ROW(B$12),0)) -> 1.10.11. | C128: =IF(OFFSET(PO!N$12,ROW(C128)-ROW(C$12),0)=0,"",OFFSET(PO!N$12,ROW(C128)-ROW(C$12),0)) -> JOELHO 45 GRAUS, PVC, SERIE NORMAL, ESGOTO PREDIAL, DN 100 MM, JUNTA ELÁSTICA, FORNECIDO E INSTALADO EM RAMAL DE DESCARGA OU RAMAL DE ESGOTO SANITÁRIO. AF_08/2022 | D128: =IF(OFFSET(PO!O$12,ROW(D128)-ROW(D$12),0)=0,"",OFFSET(PO!O$12,ROW(D128)-ROW(D$12),0)) -> UN | E128: =IF($A128<>"Serviço",0,ROUND(SUMIF($F$9:$P$9,"<>",$F128:$P128),15-13*PO!$X$3)) -> 8 | F128: 8
A129: =OFFSET(PO!J$12,ROW(A129)-ROW($A$12),0) -> Serviço | B129: =IF($A129=0,"",OFFSET(PO!K$12,ROW(B129)-ROW(B$12),0)) -> 1.10.12. | C129: =IF(OFFSET(PO!N$12,ROW(C129)-ROW(C$12),0)=0,"",OFFSET(PO!N$12,ROW(C129)-ROW(C$12),0)) -> JOELHO 45 GRAUS, PVC, SERIE NORMAL, ESGOTO PREDIAL, DN 75 MM, JUNTA ELÁSTICA, FORNECIDO E INSTALADO EM RAMAL DE DESCARGA OU RAMAL DE ESGOTO SANITÁRIO. AF_08/2022 | D129: =IF(OFFSET(PO!O$12,ROW(D129)-ROW(D$12),0)=0,"",OFFSET(PO!O$12,ROW(D129)-ROW(D$12),0)) -> UN | E129: =IF($A129<>"Serviço",0,ROUND(SUMIF($F$9:$P$9,"<>",$F129:$P129),15-13*PO!$X$3)) -> 3 | F129: 3
A130: =OFFSET(PO!J$12,ROW(A130)-ROW($A$12),0) -> Serviço | B130: =IF($A130=0,"",OFFSET(PO!K$12,ROW(B130)-ROW(B$12),0)) -> 1.10.13. | C130: =IF(OFFSET(PO!N$12,ROW(C130)-ROW(C$12),0)=0,"",OFFSET(PO!N$12,ROW(C130)-ROW(C$12),0)) -> JOELHO 45 GRAUS, PVC, SERIE NORMAL, ESGOTO PREDIAL, DN 50 MM, JUNTA ELÁSTICA, FORNECIDO E INSTALADO EM RAMAL DE DESCARGA OU RAMAL DE ESGOTO SANITÁRIO. AF_08/2022 | D130: =IF(OFFSET(PO!O$12,ROW(D130)-ROW(D$12),0)=0,"",OFFSET(PO!O$12,ROW(D130)-ROW(D$12),0)) -> UN | E130: =IF($A130<>"Serviço",0,ROUND(SUMIF($F$9:$P$9,"<>",$F130:$P130),15-13*PO!$X$3)) -> 2 | F130: 2
A131: =OFFSET(PO!J$12,ROW(A131)-ROW($A$12),0) -> Serviço | B131: =IF($A131=0,"",OFFSET(PO!K$12,ROW(B131)-ROW(B$12),0)) -> 1.10.14. | C131: =IF(OFFSET(PO!N$12,ROW(C131)-ROW(C$12),0)=0,"",OFFSET(PO!N$12,ROW(C131)-ROW(C$12),0)) -> JOELHO 45 GRAUS, PVC, SERIE NORMAL, ESGOTO PREDIAL, DN 40 MM, JUNTA SOLDÁVEL, FORNECIDO E INSTALADO EM RAMAL DE DESCARGA OU RAMAL DE ESGOTO SANITÁRIO. AF_08/2022 | D131: =IF(OFFSET(PO!O$12,ROW(D131)-ROW(D$12),0)=0,"",OFFSET(PO!O$12,ROW(D131)-ROW(D$12),0)) -> UN | E131: =IF($A131<>"Serviço",0,ROUND(SUMIF($F$9:$P$9,"<>",$F131:$P131),15-13*PO!$X$3)) -> 1 | F131: 1
A132: =OFFSET(PO!J$12,ROW(A132)-ROW($A$12),0) -> Serviço | B132: =IF($A132=0,"",OFFSET(PO!K$12,ROW(B132)-ROW(B$12),0)) -> 1.10.15. | C132: =IF(OFFSET(PO!N$12,ROW(C132)-ROW(C$12),0)=0,"",OFFSET(PO!N$12,ROW(C132)-ROW(C$12),0)) -> TUBO PVC, SERIE NORMAL, ESGOTO PREDIAL, DN 40 MM, FORNECIDO E INSTALADO EM RAMAL DE DESCARGA OU RAMAL DE ESGOTO SANITÁRIO. AF_08/2022 | D132: =IF(OFFSET(PO!O$12,ROW(D132)-ROW(D$12),0)=0,"",OFFSET(PO!O$12,ROW(D132)-ROW(D$12),0)) -> M | E132: =IF($A132<>"Serviço",0,ROUND(SUMIF($F$9:$P$9,"<>",$F132:$P132),15-13*PO!$X$3)) -> 6 | F132: 6
A133: =OFFSET(PO!J$12,ROW(A133)-ROW($A$12),0) -> Serviço | B133: =IF($A133=0,"",OFFSET(PO!K$12,ROW(B133)-ROW(B$12),0)) -> 1.10.16. | C133: =IF(OFFSET(PO!N$12,ROW(C133)-ROW(C$12),0)=0,"",OFFSET(PO!N$12,ROW(C133)-ROW(C$12),0)) -> TUBO PVC, SERIE NORMAL, ESGOTO PREDIAL, DN 50 MM, FORNECIDO E INSTALADO EM RAMAL DE DESCARGA OU RAMAL DE ESGOTO SANITÁRIO. AF_08/2022 | D133: =IF(OFFSET(PO!O$12,ROW(D133)-ROW(D$12),0)=0,"",OFFSET(PO!O$12,ROW(D133)-ROW(D$12),0)) -> M | E133: =IF($A133<>"Serviço",0,ROUND(SUMIF($F$9:$P$9,"<>",$F133:$P133),15-13*PO!$X$3)) -> 6 | F133: 6
A134: =OFFSET(PO!J$12,ROW(A134)-ROW($A$12),0) -> Serviço | B134: =IF($A134=0,"",OFFSET(PO!K$12,ROW(B134)-ROW(B$12),0)) -> 1.10.17. | C134: =IF(OFFSET(PO!N$12,ROW(C134)-ROW(C$12),0)=0,"",OFFSET(PO!N$12,ROW(C134)-ROW(C$12),0)) -> TUBO PVC, SERIE NORMAL, ESGOTO PREDIAL, DN 75 MM, FORNECIDO E INSTALADO EM RAMAL DE DESCARGA OU RAMAL DE ESGOTO SANITÁRIO. AF_08/2022 | D134: =IF(OFFSET(PO!O$12,ROW(D134)-ROW(D$12),0)=0,"",OFFSET(PO!O$12,ROW(D134)-ROW(D$12),0)) -> M | E134: =IF($A134<>"Serviço",0,ROUND(SUMIF($F$9:$P$9,"<>",$F134:$P134),15-13*PO!$X$3)) -> 6 | F134: 6
A135: =OFFSET(PO!J$12,ROW(A135)-ROW($A$12),0) -> Serviço | B135: =IF($A135=0,"",OFFSET(PO!K$12,ROW(B135)-ROW(B$12),0)) -> 1.10.18. | C135: =IF(OFFSET(PO!N$12,ROW(C135)-ROW(C$12),0)=0,"",OFFSET(PO!N$12,ROW(C135)-ROW(C$12),0)) -> TUBO PVC, SERIE NORMAL, ESGOTO PREDIAL, DN 100 MM, FORNECIDO E INSTALADO EM RAMAL DE DESCARGA OU RAMAL DE ESGOTO SANITÁRIO. AF_08/2022 | D135: =IF(OFFSET(PO!O$12,ROW(D135)-ROW(D$12),0)=0,"",OFFSET(PO!O$12,ROW(D135)-ROW(D$12),0)) -> M | E135: =IF($A135<>"Serviço",0,ROUND(SUMIF($F$9:$P$9,"<>",$F135:$P135),15-13*PO!$X$3)) -> 15 | F135: 15
A136: =OFFSET(PO!J$12,ROW(A136)-ROW($A$12),0) -> Serviço | B136: =IF($A136=0,"",OFFSET(PO!K$12,ROW(B136)-ROW(B$12),0)) -> 1.10.19. | C136: =IF(OFFSET(PO!N$12,ROW(C136)-ROW(C$12),0)=0,"",OFFSET(PO!N$12,ROW(C136)-ROW(C$12),0)) -> VASO SANITÁRIO SIFONADO COM CAIXA ACOPLADA LOUÇA BRANCA, INCLUSO ENGATE FLEXÍVEL EM PLÁSTICO BRANCO, 1/2 X 40CM - FORNECIMENTO E INSTALAÇÃO. AF_01/2020 | D136: =IF(OFFSET(PO!O$12,ROW(D136)-ROW(D$12),0)=0,"",OFFSET(PO!O$12,ROW(D136)-ROW(D$12),0)) -> UN | E136: =IF($A136<>"Serviço",0,ROUND(SUMIF($F$9:$P$9,"<>",$F136:$P136),15-13*PO!$X$3)) -> 1 | F136: 1
A137: =OFFSET(PO!J$12,ROW(A137)-ROW($A$12),0) -> Serviço | B137: =IF($A137=0,"",OFFSET(PO!K$12,ROW(B137)-ROW(B$12),0)) -> 1.10.20. | C137: =IF(OFFSET(PO!N$12,ROW(C137)-ROW(C$12),0)=0,"",OFFSET(PO!N$12,ROW(C137)-ROW(C$12),0)) -> ASSENTO SANITARIO DE PLASTICO, TIPO CONVENCIONAL | D137: =IF(OFFSET(PO!O$12,ROW(D137)-ROW(D$12),0)=0,"",OFFSET(PO!O$12,ROW(D137)-ROW(D$12),0)) -> UN | E137: =IF($A137<>"Serviço",0,ROUND(SUMIF($F$9:$P$9,"<>",$F137:$P137),15-13*PO!$X$3)) -> 1 | F137: 1
A138: =OFFSET(PO!J$12,ROW(A138)-ROW($A$12),0) -> Serviço | B138: =IF($A138=0,"",OFFSET(PO!K$12,ROW(B138)-ROW(B$12),0)) -> 1.10.21. | C138: =IF(OFFSET(PO!N$12,ROW(C138)-ROW(C$12),0)=0,"",OFFSET(PO!N$12,ROW(C138)-ROW(C$12),0)) -> LAVATÓRIO LOUÇA BRANCA SUSPENSO, 29,5 X 39CM OU EQUIVALENTE, PADRÃO POPULAR, INCLUSO SIFÃO FLEXÍVEL EM PVC, VÁLVULA E ENGATE FLEXÍVEL 30CM EM PLÁSTICO E TORNEIRA CROMADA DE MESA, PADRÃO POPULAR - FORNECIMENTO E INSTALAÇÃO. AF_01/2020 | D138: =IF(OFFSET(PO!O$12,ROW(D138)-ROW(D$12),0)=0,"",OFFSET(PO!O$12,ROW(D138)-ROW(D$12),0)) -> UN | E138: =IF($A138<>"Serviço",0,ROUND(SUMIF($F$9:$P$9,"<>",$F138:$P138),15-13*PO!$X$3)) -> 1 | F138: 1
A139: =OFFSET(PO!J$12,ROW(A139)-ROW($A$12),0) -> Serviço | B139: =IF($A139=0,"",OFFSET(PO!K$12,ROW(B139)-ROW(B$12),0)) -> 1.10.22. | C139: =IF(OFFSET(PO!N$12,ROW(C139)-ROW(C$12),0)=0,"",OFFSET(PO!N$12,ROW(C139)-ROW(C$12),0)) -> CAIXA DE GORDURA PEQUENA (CAPACIDADE: 19 L), CIRCULAR, EM PVC, DIÂMETRO INTERNO= 0,3 M. AF_12/2020 | D139: =IF(OFFSET(PO!O$12,ROW(D139)-ROW(D$12),0)=0,"",OFFSET(PO!O$12,ROW(D139)-ROW(D$12),0)) -> UN | E139: =IF($A139<>"Serviço",0,ROUND(SUMIF($F$9:$P$9,"<>",$F139:$P139),15-13*PO!$X$3)) -> 1 | F139: 1
A140: =OFFSET(PO!J$12,ROW(A140)-ROW($A$12),0) -> Serviço | B140: =IF($A140=0,"",OFFSET(PO!K$12,ROW(B140)-ROW(B$12),0)) -> 1.10.23. | C140: =IF(OFFSET(PO!N$12,ROW(C140)-ROW(C$12),0)=0,"",OFFSET(PO!N$12,ROW(C140)-ROW(C$12),0)) -> CAIXA SIFONADA, PVC, DN 100 X 100 X 50 MM, JUNTA ELÁSTICA, FORNECIDA E INSTALADA EM RAMAL DE DESCARGA OU EM RAMAL DE ESGOTO SANITÁRIO. AF_08/2022 | D140: =IF(OFFSET(PO!O$12,ROW(D140)-ROW(D$12),0)=0,"",OFFSET(PO!O$12,ROW(D140)-ROW(D$12),0)) -> UN | E140: =IF($A140<>"Serviço",0,ROUND(SUMIF($F$9:$P$9,"<>",$F140:$P140),15-13*PO!$X$3)) -> 1 | F140: 1
A141: =OFFSET(PO!J$12,ROW(A141)-ROW($A$12),0) -> Serviço | B141: =IF($A141=0,"",OFFSET(PO!K$12,ROW(B141)-ROW(B$12),0)) -> 1.10.24. | C141: =IF(OFFSET(PO!N$12,ROW(C141)-ROW(C$12),0)=0,"",OFFSET(PO!N$12,ROW(C141)-ROW(C$12),0)) -> TANQUE SEPTICO CAP-1875 LITROS DE CONCRETO | D141: =IF(OFFSET(PO!O$12,ROW(D141)-ROW(D$12),0)=0,"",OFFSET(PO!O$12,ROW(D141)-ROW(D$12),0)) -> UNIDADE | E141: =IF($A141<>"Serviço",0,ROUND(SUMIF($F$9:$P$9,"<>",$F141:$P141),15-13*PO!$X$3)) -> 1 | F141: 1
B144: =PO!$K$153 -> SÃO JOÃO DA URTIGA/RS
B145: Local
B147: =PO!$K$156 -> 2023-06-06
B148: Data

Sheet CFF
O1: CFF - | P1: CRONOGRAMA FÍSICO-FINANCEIRO
P2: =CHOOSE(1+LOG(1+2*(TipoOrçamento="BASE")+4*(TipoOrçamento="LICITADO")+8*(TipoOrçamento="REPROGRAMADOAC")+16*(TipoOrçamento="REPROGRAMADONPL"),2),"nada","Cronograma Base para Licitação","Cronograma Licitado","Cronograma Licitado Reprogramado","Cronograma Base para Licitação - Reprogramado") -> Cronograma Base para Licitação
A8: Nível Máx Crono | L8: =IF(MAX($A$14:$A$52)<>MAX(PO!$V$12:$V$142),"ERRO: CRONOGRAMA DESATUALIZADO",IF(OR(COUNTIF($O$16:$X$16,">1")>0,OFFSET($X$17,0,-1)<>$N$14),"ERRO: CRONOGRAMA NÃO FECHA EM 100%","")) ->  | N8: =IF(TipoOrçamento="REPROGRAMADOAC","Qtde de Medições realizadas","") -> 
A9: 2 | N9: 1 | O9: =IF(AND(TipoOrçamento="REPROGRAMADOAC",$N$9>0),$N$9-1,0) -> 0 | P9: =OFFSET(P9,0,-1)+1 -> 1 | Q9: 2 | R9: 3 | S9: 4 | T9: 5 | U9: 6 | V9: 7 | W9: 8 | AC9: =OFFSET(AC9,0,-1)+1 -> 1
A10: Lista Crono | B10: Último Nível | C10: Nível | D10: Altura | E10: N1 | F10: N2 | G10: N3 | H10: N4 | I10: Czero | J10: Cnível | K10: VTOTAL SOMA | L10: Item | M10: Descrição das Metas / Macrosserviços | N10: Valores Totais (R$) | O10: =IF(TipoOrçamento="REPROGRAMADOAC","Reinício de Obra","Início de Obra")&CHAR(10)&TEXT(DADOS!A48,"dd/mm/aa") -> Início de Obra 00/01/00 | P10: =IF(AND(TipoOrçamento="REPROGRAMADOAC",$N$9>0,N10="Valores Totais (R$)"),"Parcela "&$N$9&" Executado","Parcela "&P$9&CHAR(10)&TEXT(DATE(YEAR(DADOS!$A$48),MONTH(DADOS!$A$48)+P$9-IF(AND(TipoOrçamento="REPROGRAMADOAC",$N$9>0),$N$9,0),1),"mmm/aa")) -> Parcela 1 fev/00 | Q10: =IF(AND(TipoOrçamento="REPROGRAMADOAC",$N$9>0,O10="Valores Totais (R$)"),"Parcela "&$N$9&" Executado","Parcela "&Q$9&CHAR(10)&TEXT(DATE(YEAR(DADOS!$A$48),MONTH(DADOS!$A$48)+Q$9-IF(AND(TipoOrçamento="REPROGRAMADOAC",$N$9>0),$N$9,0),1),"mmm/aa")) -> Parcela 2 mar/00 | R10: =IF(AND(TipoOrçamento="REPROGRAMADOAC",$N$9>0,P10="Valores Totais (R$)"),"Parcela "&$N$9&" Executado","Parcela "&R$9&CHAR(10)&TEXT(DATE(YEAR(DADOS!$A$48),MONTH(DADOS!$A$48)+R$9-IF(AND(TipoOrçamento="REPROGRAMADOAC",$N$9>0),$N$9,0),1),"mmm/aa")) -> Parcela 3 abr/00 | S10: =IF(AND(TipoOrçamento="REPROGRAMADOAC",$N$9>0,Q10="Valores Totais (R$)"),"Parcela "&$N$9&" Executado","Parcela "&S$9&CHAR(10)&TEXT(DATE(YEAR(DADOS!$A$48),MONTH(DADOS!$A$48)+S$9-IF(AND(TipoOrçamento="REPROGRAMADOAC",$N$9>0),$N$9,0),1),"mmm/aa")) -> Parcela 4 mai/00 | T10: =IF(AND(TipoOrçamento="REPROGRAMADOAC",$N$9>0,R10="Valores Totais (R$)"),"Parcela "&$N$9&" Executado","Parcela "&T$9&CHAR(10)&TEXT(DATE(YEAR(DADOS!$A$48),MONTH(DADOS!$A$48)+T$9-IF(AND(TipoOrçamento="REPROGRAMADOAC",$N$9>0),$N$9,0),1),"mmm/aa")) -> Parcela 5 jun/00 | U10: =IF(AND(TipoOrçamento="REPROGRAMADOAC",$N$9>0,S10="Valores Totais (R$)"),"Parcela "&$N$9&" Executado","Parcela "&U$9&CHAR(10)&TEXT(DATE(YEAR(DADOS!$A$48),MONTH(DADOS!$A$48)+U$9-IF(AND(TipoOrçamento="REPROGRAMADOAC",$N$9>0),$N$9,0),1),"mmm/aa")) -> Parcela 6 jul/00 | V10: =IF(AND(TipoOrçamento="REPROGRAMADOAC",$N$9>0,T10="Valores Totais (R$)"),"Parcela "&$N$9&" Executado","Parcela "&V$9&CHAR(10)&TEXT(DATE(YEAR(DADOS!$A$48),MONTH(DADOS!$A$48)+V$9-IF(AND(TipoOrçamento="REPROGRAMADOAC",$N$9>0),$N$9,0),1),"mmm/aa")) -> Parcela 7 ago/00 | W10: =IF(AND(TipoOrçamento="REPROGRAMADOAC",$N$9>0,U10="Valores Totais (R$)"),"Parcela "&$N$9&" Executado","Parcela "&W$9&CHAR(10)&TEXT(DATE(YEAR(DADOS!$A$48),MONTH(DADOS!$A$48)+W$9-IF(AND(TipoOrçamento="REPROGRAMADOAC",$N$9>0),$N$9,0),1),"mmm/aa")) -> Parcela 8 set/00 | AC10: =IF(AND(TipoOrçamento="REPROGRAMADOAC",$N$9>0,AA10="Valores Totais (R$)"),"Parcela "&$N$9&" Executado","Parcela "&AC$9&CHAR(10)&TEXT(DATE(YEAR(DADOS!$A$48),MONTH(DADOS!$A$48)+AC$9-IF(AND(TipoOrçamento="REPROGRAMADOAC",$N$9>0),$N$9,0),1),"mmm/aa")) -> Parcela 1 fev/00
L11: =INDEX(PO!K$12:K$142,MATCH($A13,PO!$V$12:$V$142,0)) ->  | M11: =INDEX(PO!N$12:N$142,MATCH($A13,PO!$V$12:$V$142,0)) ->  | N11: =IF(ROUND(K13,2)=0,K13,ROUND(K13,2)) ->  | O11: Parcela (%) | P11: =IF($B13,0,P12-IF(ISNUMBER(O12),O12,0)) ->  | Q11: =IF($B13,0,Q12-IF(ISNUMBER(P12),P12,0)) ->  | AC11: =IF($B13,0,AC12-IF(ISNUMBER(AB12),AB12,0)) -> 
O12: Acumulado (%) | P12: =MIN(IF($B13,P11+IF(ISNUMBER(O12),O12,0),P13/$N11),1) ->  | Q12: =MIN(IF($B13,Q11+IF(ISNUMBER(P12),P12,0),Q13/$N11),1) ->  | AC12: =MIN(IF($B13,AC11+IF(ISNUMBER(AB12),AB12,0),AC13/$N11),1) -> 
A13: =OFFSET(A13,-CFF.NumLinha,0)+1 ->  | B13: =$C13>=OFFSET($C13,CFF.NumLinha,0) ->  | C13: =INDEX(PO!A$12:A$142,MATCH($A13,PO!$V$12:$V$142,0)) ->  | D13: =IF(ISERROR(J13),I13,SMALL(I13:J13,1))-1 ->  | E13: =IF($C13=1,OFFSET(E13,-CFF.NumLinha,0)+1,OFFSET(E13,-CFF.NumLinha,0)) ->  | F13: =IF($C13=1,0,IF($C13=2,OFFSET(F13,-CFF.NumLinha,0)+1,OFFSET(F13,-CFF.NumLinha,0))) ->  | G13: =IF(AND($C13<=2,$C13<>0),0,IF($C13=3,OFFSET(G13,-CFF.NumLinha,0)+1,OFFSET(G13,-CFF.NumLinha,0))) ->  | H13: =IF(AND($C13<=3,$C13<>0),0,IF($C13=4,OFFSET(H13,-CFF.NumLinha,0)+1,OFFSET(H13,-CFF.NumLinha,0))) ->  | I13: =MATCH(0,OFFSET($D13,1,$C13,ROW($A$51)-ROW($A13)),0) ->  | J13: =MATCH(OFFSET($D13,0,$C13)+1,OFFSET($D13,1,$C13,ROW($A$51)-ROW($A13)),0) ->  | K13: =ROUND(INDEX(PO!T$12:T$142,MATCH($A13,PO!$V$12:$V$142,0)),2)+10^-12 ->  | O13: Acumulado (R$) | P13: =IF($B13,ROUND(P12*$N11,2),ROUND(SUMIF(OFFSET($B13,1,0,$D13),TRUE,OFFSET(P13,1,0,$D13))/SUMIF(OFFSET($B13,1,0,$D13),TRUE,OFFSET($K13,1,0,$D13))*$N11,2)) ->  | Q13: =IF($B13,ROUND(Q12*$N11,2),ROUND(SUMIF(OFFSET($B13,1,0,$D13),TRUE,OFFSET(Q13,1,0,$D13))/SUMIF(OFFSET($B13,1,0,$D13),TRUE,OFFSET($K13,1,0,$D13))*$N11,2)) ->  | AC13: =IF($B13,ROUND(AC12*$N11,2),ROUND(SUMIF(OFFSET($B13,1,0,$D13),TRUE,OFFSET(AC13,1,0,$D13))/SUMIF(OFFSET($B13,1,0,$D13),TRUE,OFFSET($K13,1,0,$D13))*$N11,2)) -> 
L14: CRONOGRAMA GLOBAL DO LOTE | N14: =IF(PO!$T$12=0,10^-12,PO!$T$12) -> 91360.2 | O14: Parcela (%) | P14: =ROUND(P15/$N14,4) -> 0.4397 | Q14: =ROUND(Q15/$N14,4) -> 0.2265 | R14: 0.3338 | S14: 0 | T14: 0 | U14: 0 | V14: 0 | W14: 0 | AC14: =ROUND(AC15/$N14,4) -> 0
O15: Parcela (R$) | P15: =P17-IF(ISNUMBER(O17),O17,0) -> 40169.16 | Q15: =Q17-IF(ISNUMBER(P17),P17,0) -> 20695.84 | R15: 30495.2 | S15: 0 | T15: 0 | U15: 0 | V15: 0 | W15: 0 | AC15: =AC17-IF(ISNUMBER(AB17),AB17,0) -> 0
O16: Acumulado (%) | P16: =ROUND(P17/$N14,4) -> 0.4397 | Q16: =ROUND(Q17/$N14,4) -> 0.6662 | R16: 1 | S16: 1 | T16: 1 | U16: 1 | V16: 1 | W16: 1 | AC16: =ROUND(AC17/$N14,4) -> 0
A17: 0 | D17: =ROW(D$51)-ROW(D18) -> 33 | O17: Acumulado (R$) | P17: =SUMIF(OFFSET($C17,1,0):$C$51,1,OFFSET(P17,1,0):P$51) -> 40169.16 | Q17: =SUMIF(OFFSET($C17,1,0):$C$51,1,OFFSET(Q17,1,0):Q$51) -> 60865 | R17: =SUMIF(OFFSET($C17,1,0):$C$51,1,OFFSET(R17,1,0):R$51) -> 91360.2 | S17: =SUMIF(OFFSET($C17,1,0):$C$51,1,OFFSET(S17,1,0):S$51) -> 91360.2 | T17: =SUMIF(OFFSET($C17,1,0):$C$51,1,OFFSET(T17,1,0):T$51) -> 91360.2 | U17: =SUMIF(OFFSET($C17,1,0):$C$51,1,OFFSET(U17,1,0):U$51) -> 91360.2 | V17: =SUMIF(OFFSET($C17,1,0):$C$51,1,OFFSET(V17,1,0):V$51) -> 91360.2 | W17: =SUMIF(OFFSET($C17,1,0):$C$51,1,OFFSET(W17,1,0):W$51) -> 91360.2 | AC17: =SUMIF(OFFSET($C17,1,0):$C$51,1,OFFSET(AC17,1,0):AC$51) -> 0
L18: =INDEX(PO!K$12:K$142,MATCH($A20,PO!$V$12:$V$142,0)) -> 1. | M18: =INDEX(PO!N$12:N$142,MATCH($A20,PO!$V$12:$V$142,0)) -> RESIDÊNCIA POPULAR UNIFAMILIARES EM MADEIRA | N18: =IF(ROUND(K20,2)=0,K20,ROUND(K20,2)) -> 91360.2 | O18: Parcela (%) | P18: 0.2 | Q18: 0.3 | R18: 0.3 | S18: 0.2 | T18: =IF($B20,0,T19-IF(ISNUMBER(S19),S19,0)) -> 0 | U18: 0 | V18: 0 | W18: 0 | AC18: =IF($B20,0,AC19-IF(ISNUMBER(AB19),AB19,0)) -> 0
O19: Acumulado (%) | P19: =MIN(IF($B20,P18+IF(ISNUMBER(O19),O19,0),P20/$N18),1) -> 0.4396789849 | Q19: 0.666209137 | R19: 1 | S19: 1 | T19: 1 | U19: 1 | V19: 1 | W19: 1 | AC19: =MIN(IF($B20,AC18+IF(ISNUMBER(AB19),AB19,0),AC20/$N18),1) -> 0
A20: =OFFSET(A20,-CFF.NumLinha,0)+1 -> 1 | B20: =$C20>=OFFSET($C20,CFF.NumLinha,0) -> FALSE | C20: =INDEX(PO!A$12:A$142,MATCH($A20,PO!$V$12:$V$142,0)) -> 1 | D20: =IF(ISERROR(J20),I20,SMALL(I20:J20,1))-1 -> 30 | E20: =IF($C20=1,OFFSET(E20,-CFF.NumLinha,0)+1,OFFSET(E20,-CFF.NumLinha,0)) -> 1 | F20: =IF($C20=1,0,IF($C20=2,OFFSET(F20,-CFF.NumLinha,0)+1,OFFSET(F20,-CFF.NumLinha,0))) -> 0 | G20: =IF(AND($C20<=2,$C20<>0),0,IF($C20=3,OFFSET(G20,-CFF.NumLinha,0)+1,OFFSET(G20,-CFF.NumLinha,0))) -> 0 | H20: =IF(AND($C20<=3,$C20<>0),0,IF($C20=4,OFFSET(H20,-CFF.NumLinha,0)+1,OFFSET(H20,-CFF.NumLinha,0))) -> 0 | I20: =MATCH(0,OFFSET($D20,1,$C20,ROW($A$51)-ROW($A20)),0) -> 31 | J20: =MATCH(OFFSET($D20,0,$C20)+1,OFFSET($D20,1,$C20,ROW($A$51)-ROW($A20)),0) ->  | K20: =ROUND(INDEX(PO!T$12:T$142,MATCH($A20,PO!$V$12:$V$142,0)),2)+10^-12 -> 91360.2 | O20: Acumulado (R$) | P20: =IF($B20,ROUND(P19*$N18,2),ROUND(SUMIF(OFFSET($B20,1,0,$D20),TRUE,OFFSET(P20,1,0,$D20))/SUMIF(OFFSET($B20,1,0,$D20),TRUE,OFFSET($K20,1,0,$D20))*$N18,2)) -> 40169.16 | Q20: 60865 | R20: 91360.2 | S20: 91360.2 | T20: 91360.2 | U20: 91360.2 | V20: 91360.2 | W20: 91360.2 | AC20: =IF($B20,ROUND(AC19*$N18,2),ROUND(SUMIF(OFFSET($B20,1,0,$D20),TRUE,OFFSET(AC20,1,0,$D20))/SUMIF(OFFSET($B20,1,0,$D20),TRUE,OFFSET($K20,1,0,$D20))*$N18,2)) -> 0
L21: =INDEX(PO!K$12:K$142,MATCH($A23,PO!$V$12:$V$142,0)) -> 1.1. | M21: =INDEX(PO!N$12:N$142,MATCH($A23,PO!$V$12:$V$142,0)) -> SERVIÇOS PRELIMINARES | N21: =IF(ROUND(K23,2)=0,K23,ROUND(K23,2)) -> 3555.62 | O21: Parcela (%) | P21: 1 | Q21: =IF($B23,0,Q22-IF(ISNUMBER(P22),P22,0)) -> 0 | R21: =IF($B23,0,R22-IF(ISNUMBER(Q22),Q22,0)) -> 0 | S21: =IF($B23,0,S22-IF(ISNUMBER(R22),R22,0)) -> 0 | T21: =IF($B23,0,T22-IF(ISNUMBER(S22),S22,0)) -> 0 | U21: =IF($B23,0,U22-IF(ISNUMBER(T22),T22,0)) -> 0 | V21: =IF($B23,0,V22-IF(ISNUMBER(U22),U22,0)) -> 0 | W21: =IF($B23,0,W22-IF(ISNUMBER(V22),V22,0)) -> 0 | AC21: =IF($B23,0,AC22-IF(ISNUMBER(AB22),AB22,0)) -> 0
O22: Acumulado (%) | P22: =MIN(IF($B23,P21+IF(ISNUMBER(O22),O22,0),P23/$N21),1) -> 1 | Q22: =MIN(IF($B23,Q21+IF(ISNUMBER(P22),P22,0),Q23/$N21),1) -> 1 | R22: =MIN(IF($B23,R21+IF(ISNUMBER(Q22),Q22,0),R23/$N21),1) -> 1 | S22: =MIN(IF($B23,S21+IF(ISNUMBER(R22),R22,0),S23/$N21),1) -> 1 | T22: =MIN(IF($B23,T21+IF(ISNUMBER(S22),S22,0),T23/$N21),1) -> 1 | U22: =MIN(IF($B23,U21+IF(ISNUMBER(T22),T22,0),U23/$N21),1) -> 1 | V22: =MIN(IF($B23,V21+IF(ISNUMBER(U22),U22,0),V23/$N21),1) -> 1 | W22: =MIN(IF($B23,W21+IF(ISNUMBER(V22),V22,0),W23/$N21),1) -> 1 | AC22: =MIN(IF($B23,AC21+IF(ISNUMBER(AB22),AB22,0),AC23/$N21),1) -> 0
A23: =OFFSET(A23,-CFF.NumLinha,0)+1 -> 2 | B23: =$C23>=OFFSET($C23,CFF.NumLinha,0) -> TRUE | C23: =INDEX(PO!A$12:A$142,MATCH($A23,PO!$V$12:$V$142,0)) -> 2 | D23: =IF(ISERROR(J23),I23,SMALL(I23:J23,1))-1 -> 2 | E23: =IF($C23=1,OFFSET(E23,-CFF.NumLinha,0)+1,OFFSET(E23,-CFF.NumLinha,0)) -> 1 | F23: =IF($C23=1,0,IF($C23=2,OFFSET(F23,-CFF.NumLinha,0)+1,OFFSET(F23,-CFF.NumLinha,0))) -> 1 | G23: =IF(AND($C23<=2,$C23<>0),0,IF($C23=3,OFFSET(G23,-CFF.NumLinha,0)+1,OFFSET(G23,-CFF.NumLinha,0))) -> 0 | H23: =IF(AND($C23<=3,$C23<>0),0,IF($C23=4,OFFSET(H23,-CFF.NumLinha,0)+1,OFFSET(H23,-CFF.NumLinha,0))) -> 0 | I23: =MATCH(0,OFFSET($D23,1,$C23,ROW($A$51)-ROW($A23)),0) -> 28 | J23: =MATCH(OFFSET($D23,0,$C23)+1,OFFSET($D23,1,$C23,ROW($A$51)-ROW($A23)),0) -> 3 | K23: =ROUND(INDEX(PO!T$12:T$142,MATCH($A23,PO!$V$12:$V$142,0)),2)+10^-12 -> 3555.62 | O23: Acumulado (R$) | P23: =IF($B23,ROUND(P22*$N21,2),ROUND(SUMIF(OFFSET($B23,1,0,$D23),TRUE,OFFSET(P23,1,0,$D23))/SUMIF(OFFSET($B23,1,0,$D23),TRUE,OFFSET($K23,1,0,$D23))*$N21,2)) -> 3555.62 | Q23: 3555.62 | R23: 3555.62 | S23: 3555.62 | T23: 3555.62 | U23: 3555.62 | V23: 3555.62 | W23: 3555.62 | AC23: =IF($B23,ROUND(AC22*$N21,2),ROUND(SUMIF(OFFSET($B23,1,0,$D23),TRUE,OFFSET(AC23,1,0,$D23))/SUMIF(OFFSET($B23,1,0,$D23),TRUE,OFFSET($K23,1,0,$D23))*$N21,2)) -> 0
L24: =INDEX(PO!K$12:K$142,MATCH($A26,PO!$V$12:$V$142,0)) -> 1.2. | M24: =INDEX(PO!N$12:N$142,MATCH($A26,PO!$V$12:$V$142,0)) -> INFRAESTRUTURA | N24: =IF(ROUND(K26,2)=0,K26,ROUND(K26,2)) -> 10972.2 | O24: Parcela (%) | P24: 1 | Q24: =IF($B26,0,Q25-IF(ISNUMBER(P25),P25,0)) -> 0 | R24: =IF($B26,0,R25-IF(ISNUMBER(Q25),Q25,0)) -> 0 | S24: =IF($B26,0,S25-IF(ISNUMBER(R25),R25,0)) -> 0 | T24: =IF($B26,0,T25-IF(ISNUMBER(S25),S25,0)) -> 0 | U24: =IF($B26,0,U25-IF(ISNUMBER(T25),T25,0)) -> 0 | V24: =IF($B26,0,V25-IF(ISNUMBER(U25),U25,0)) -> 0 | W24: =IF($B26,0,W25-IF(ISNUMBER(V25),V25,0)) -> 0 | AC24: =IF($B26,0,AC25-IF(ISNUMBER(AB25),AB25,0)) -> 0
O25: Acumulado (%) | P25: =MIN(IF($B26,P24+IF(ISNUMBER(O25),O25,0),P26/$N24),1) -> 1 | Q25: =MIN(IF($B26,Q24+IF(ISNUMBER(P25),P25,0),Q26/$N24),1) -> 1 | R25: =MIN(IF($B26,R24+IF(ISNUMBER(Q25),Q25,0),R26/$N24),1) -> 1 | S25: =MIN(IF($B26,S24+IF(ISNUMBER(R25),R25,0),S26/$N24),1) -> 1 | T25: =MIN(IF($B26,T24+IF(ISNUMBER(S25),S25,0),T26/$N24),1) -> 1 | U25: =MIN(IF($B26,U24+IF(ISNUMBER(T25),T25,0),U26/$N24),1) -> 1 | V25: =MIN(IF($B26,V24+IF(ISNUMBER(U25),U25,0),V26/$N24),1) -> 1 | W25: =MIN(IF($B26,W24+IF(ISNUMBER(V25),V25,0),W26/$N24),1) -> 1 | AC25: =MIN(IF($B26,AC24+IF(ISNUMBER(AB25),AB25,0),AC26/$N24),1) -> 0
A26: =OFFSET(A26,-CFF.NumLinha,0)+1 -> 3 | B26: =$C26>=OFFSET($C26,CFF.NumLinha,0) -> TRUE | C26: =INDEX(PO!A$12:A$142,MATCH($A26,PO!$V$12:$V$142,0)) -> 2 | D26: =IF(ISERROR(J26),I26,SMALL(I26:J26,1))-1 -> 2 | E26: =IF($C26=1,OFFSET(E26,-CFF.NumLinha,0)+1,OFFSET(E26,-CFF.NumLinha,0)) -> 1 | F26: =IF($C26=1,0,IF($C26=2,OFFSET(F26,-CFF.NumLinha,0)+1,OFFSET(F26,-CFF.NumLinha,0))) -> 2 | G26: =IF(AND($C26<=2,$C26<>0),0,IF($C26=3,OFFSET(G26,-CFF.NumLinha,0)+1,OFFSET(G26,-CFF.NumLinha,0))) -> 0 | H26: =IF(AND($C26<=3,$C26<>0),0,IF($C26=4,OFFSET(H26,-CFF.NumLinha,0)+1,OFFSET(H26,-CFF.NumLinha,0))) -> 0 | I26: =MATCH(0,OFFSET($D26,1,$C26,ROW($A$51)-ROW($A26)),0) -> 25 | J26: =MATCH(OFFSET($D26,0,$C26)+1,OFFSET($D26,1,$C26,ROW($A$51)-ROW($A26)),0) -> 3 | K26: =ROUND(INDEX(PO!T$12:T$142,MATCH($A26,PO!$V$12:$V$142,0)),2)+10^-12 -> 10972.2 | O26: Acumulado (R$) | P26: =IF($B26,ROUND(P25*$N24,2),ROUND(SUMIF(OFFSET($B26,1,0,$D26),TRUE,OFFSET(P26,1,0,$D26))/SUMIF(OFFSET($B26,1,0,$D26),TRUE,OFFSET($K26,1,0,$D26))*$N24,2)) -> 10972.2 | Q26: 10972.2 | R26: 10972.2 | S26: 10972.2 | T26: 10972.2 | U26: 10972.2 | V26: 10972.2 | W26: 10972.2 | AC26: =IF($B26,ROUND(AC25*$N24,2),ROUND(SUMIF(OFFSET($B26,1,0,$D26),TRUE,OFFSET(AC26,1,0,$D26))/SUMIF(OFFSET($B26,1,0,$D26),TRUE,OFFSET($K26,1,0,$D26))*$N24,2)) -> 0
L27: =INDEX(PO!K$12:K$142,MATCH($A29,PO!$V$12:$V$142,0)) -> 1.3. | M27: =INDEX(PO!N$12:N$142,MATCH($A29,PO!$V$12:$V$142,0)) -> SUPRAESTRUTURA | N27: =IF(ROUND(K29,2)=0,K29,ROUND(K29,2)) -> 6468.63 | O27: Parcela (%) | P27: 1 | Q27: 0.5 | R27: =IF($B29,0,R28-IF(ISNUMBER(Q28),Q28,0)) -> 0 | S27: =IF($B29,0,S28-IF(ISNUMBER(R28),R28,0)) -> 0 | T27: =IF($B29,0,T28-IF(ISNUMBER(S28),S28,0)) -> 0 | U27: =IF($B29,0,U28-IF(ISNUMBER(T28),T28,0)) -> 0 | V27: =IF($B29,0,V28-IF(ISNUMBER(U28),U28,0)) -> 0 | W27: =IF($B29,0,W28-IF(ISNUMBER(V28),V28,0)) -> 0 | AC27: =IF($B29,0,AC28-IF(ISNUMBER(AB28),AB28,0)) -> 0
O28: Acumulado (%) | P28: =MIN(IF($B29,P27+IF(ISNUMBER(O28),O28,0),P29/$N27),1) -> 1 | Q28: =MIN(IF($B29,Q27+IF(ISNUMBER(P28),P28,0),Q29/$N27),1) -> 1 | R28: =MIN(IF($B29,R27+IF(ISNUMBER(Q28),Q28,0),R29/$N27),1) -> 1 | S28: =MIN(IF($B29,S27+IF(ISNUMBER(R28),R28,0),S29/$N27),1) -> 1 | T28: =MIN(IF($B29,T27+IF(ISNUMBER(S28),S28,0),T29/$N27),1) -> 1 | U28: =MIN(IF($B29,U27+IF(ISNUMBER(T28),T28,0),U29/$N27),1) -> 1 | V28: =MIN(IF($B29,V27+IF(ISNUMBER(U28),U28,0),V29/$N27),1) -> 1 | W28: =MIN(IF($B29,W27+IF(ISNUMBER(V28),V28,0),W29/$N27),1) -> 1 | AC28: =MIN(IF($B29,AC27+IF(ISNUMBER(AB28),AB28,0),AC29/$N27),1) -> 0
A29: =OFFSET(A29,-CFF.NumLinha,0)+1 -> 4 | B29: =$C29>=OFFSET($C29,CFF.NumLinha,0) -> TRUE | C29: =INDEX(PO!A$12:A$142,MATCH($A29,PO!$V$12:$V$142,0)) -> 2 | D29: =IF(ISERROR(J29),I29,SMALL(I29:J29,1))-1 -> 2 | E29: =IF($C29=1,OFFSET(E29,-CFF.NumLinha,0)+1,OFFSET(E29,-CFF.NumLinha,0)) -> 1 | F29: =IF($C29=1,0,IF($C29=2,OFFSET(F29,-CFF.NumLinha,0)+1,OFFSET(F29,-CFF.NumLinha,0))) -> 3 | G29: =IF(AND($C29<=2,$C29<>0),0,IF($C29=3,OFFSET(G29,-CFF.NumLinha,0)+1,OFFSET(G29,-CFF.NumLinha,0))) -> 0 | H29: =IF(AND($C29<=3,$C29<>0),0,IF($C29=4,OFFSET(H29,-CFF.NumLinha,0)+1,OFFSET(H29,-CFF.NumLinha,0))) -> 0 | I29: =MATCH(0,OFFSET($D29,1,$C29,ROW($A$51)-ROW($A29)),0) -> 22 | J29: =MATCH(OFFSET($D29,0,$C29)+1,OFFSET($D29,1,$C29,ROW($A$51)-ROW($A29)),0) -> 3 | K29: =ROUND(INDEX(PO!T$12:T$142,MATCH($A29,PO!$V$12:$V$142,0)),2)+10^-12 -> 6468.63 | O29: Acumulado (R$) | P29: =IF($B29,ROUND(P28*$N27,2),ROUND(SUMIF(OFFSET($B29,1,0,$D29),TRUE,OFFSET(P29,1,0,$D29))/SUMIF(OFFSET($B29,1,0,$D29),TRUE,OFFSET($K29,1,0,$D29))*$N27,2)) -> 6468.63 | Q29: 6468.63 | R29: 6468.63 | S29: 6468.63 | T29: 6468.63 | U29: 6468.63 | V29: 6468.63 | W29: 6468.63 | AC29: =IF($B29,ROUND(AC28*$N27,2),ROUND(SUMIF(OFFSET($B29,1,0,$D29),TRUE,OFFSET(AC29,1,0,$D29))/SUMIF(OFFSET($B29,1,0,$D29),TRUE,OFFSET($K29,1,0,$D29))*$N27,2)) -> 0
L30: =INDEX(PO!K$12:K$142,MATCH($A32,PO!$V$12:$V$142,0)) -> 1.4. | M30: =INDEX(PO!N$12:N$142,MATCH($A32,PO!$V$12:$V$142,0)) -> PAREDE | N30: =IF(ROUND(K32,2)=0,K32,ROUND(K32,2)) -> 24441.94 | O30: Parcela (%) | P30: 0.6 | Q30: 0.4 | R30: 0.4 | S30: =IF($B32,0,S31-IF(ISNUMBER(R31),R31,0)) -> 0 | T30: =IF($B32,0,T31-IF(ISNUMBER(S31),S31,0)) -> 0 | U30: =IF($B32,0,U31-IF(ISNUMBER(T31),T31,0)) -> 0 | V30: =IF($B32,0,V31-IF(ISNUMBER(U31),U31,0)) -> 0 | W30: =IF($B32,0,W31-IF(ISNUMBER(V31),V31,0)) -> 0 | AC30: =IF($B32,0,AC31-IF(ISNUMBER(AB31),AB31,0)) -> 0
O31: Acumulado (%) | P31: =MIN(IF($B32,P30+IF(ISNUMBER(O31),O31,0),P32/$N30),1) -> 0.6 | Q31: =MIN(IF($B32,Q30+IF(ISNUMBER(P31),P31,0),Q32/$N30),1) -> 1 | R31: =MIN(IF($B32,R30+IF(ISNUMBER(Q31),Q31,0),R32/$N30),1) -> 1 | S31: =MIN(IF($B32,S30+IF(ISNUMBER(R31),R31,0),S32/$N30),1) -> 1 | T31: =MIN(IF($B32,T30+IF(ISNUMBER(S31),S31,0),T32/$N30),1) -> 1 | U31: =MIN(IF($B32,U30+IF(ISNUMBER(T31),T31,0),U32/$N30),1) -> 1 | V31: =MIN(IF($B32,V30+IF(ISNUMBER(U31),U31,0),V32/$N30),1) -> 1 | W31: =MIN(IF($B32,W30+IF(ISNUMBER(V31),V31,0),W32/$N30),1) -> 1 | AC31: =MIN(IF($B32,AC30+IF(ISNUMBER(AB31),AB31,0),AC32/$N30),1) -> 0
A32: =OFFSET(A32,-CFF.NumLinha,0)+1 -> 5 | B32: =$C32>=OFFSET($C32,CFF.NumLinha,0) -> TRUE | C32: =INDEX(PO!A$12:A$142,MATCH($A32,PO!$V$12:$V$142,0)) -> 2 | D32: =IF(ISERROR(J32),I32,SMALL(I32:J32,1))-1 -> 2 | E32: =IF($C32=1,OFFSET(E32,-CFF.NumLinha,0)+1,OFFSET(E32,-CFF.NumLinha,0)) -> 1 | F32: =IF($C32=1,0,IF($C32=2,OFFSET(F32,-CFF.NumLinha,0)+1,OFFSET(F32,-CFF.NumLinha,0))) -> 4 | G32: =IF(AND($C32<=2,$C32<>0),0,IF($C32=3,OFFSET(G32,-CFF.NumLinha,0)+1,OFFSET(G32,-CFF.NumLinha,0))) -> 0 | H32: =IF(AND($C32<=3,$C32<>0),0,IF($C32=4,OFFSET(H32,-CFF.NumLinha,0)+1,OFFSET(H32,-CFF.NumLinha,0))) -> 0 | I32: =MATCH(0,OFFSET($D32,1,$C32,ROW($A$51)-ROW($A32)),0) -> 19 | J32: =MATCH(OFFSET($D32,0,$C32)+1,OFFSET($D32,1,$C32,ROW($A$51)-ROW($A32)),0) -> 3 | K32: =ROUND(INDEX(PO!T$12:T$142,MATCH($A32,PO!$V$12:$V$142,0)),2)+10^-12 -> 24441.94 | O32: Acumulado (R$) | P32: =IF($B32,ROUND(P31*$N30,2),ROUND(SUMIF(OFFSET($B32,1,0,$D32),TRUE,OFFSET(P32,1,0,$D32))/SUMIF(OFFSET($B32,1,0,$D32),TRUE,OFFSET($K32,1,0,$D32))*$N30,2)) -> 14665.16 | Q32: 24441.94 | R32: 24441.94 | S32: 24441.94 | T32: 24441.94 | U32: 24441.94 | V32: 24441.94 | W32: 24441.94 | AC32: =IF($B32,ROUND(AC31*$N30,2),ROUND(SUMIF(OFFSET($B32,1,0,$D32),TRUE,OFFSET(AC32,1,0,$D32))/SUMIF(OFFSET($B32,1,0,$D32),TRUE,OFFSET($K32,1,0,$D32))*$N30,2)) -> 0
L33: =INDEX(PO!K$12:K$142,MATCH($A35,PO!$V$12:$V$142,0)) -> 1.5. | M33: =INDEX(PO!N$12:N$142,MATCH($A35,PO!$V$12:$V$142,0)) -> REVESTIMENTOS | N33: =IF(ROUND(K35,2)=0,K35,ROUND(K35,2)) -> 9537.37 | O33: Parcela (%) | P33: 0.2 | Q33: 0.4 | R33: 0.4 | S33: =IF($B35,0,S34-IF(ISNUMBER(R34),R34,0)) -> 0 | T33: =IF($B35,0,T34-IF(ISNUMBER(S34),S34,0)) -> 0 | U33: =IF($B35,0,U34-IF(ISNUMBER(T34),T34,0)) -> 0 | V33: =IF($B35,0,V34-IF(ISNUMBER(U34),U34,0)) -> 0 | W33: =IF($B35,0,W34-IF(ISNUMBER(V34),V34,0)) -> 0 | AC33: =IF($B35,0,AC34-IF(ISNUMBER(AB34),AB34,0)) -> 0
O34: Acumulado (%) | P34: =MIN(IF($B35,P33+IF(ISNUMBER(O34),O34,0),P35/$N33),1) -> 0.2 | Q34: =MIN(IF($B35,Q33+IF(ISNUMBER(P34),P34,0),Q35/$N33),1) -> 0.6 | R34: =MIN(IF($B35,R33+IF(ISNUMBER(Q34),Q34,0),R35/$N33),1) -> 1 | S34: =MIN(IF($B35,S33+IF(ISNUMBER(R34),R34,0),S35/$N33),1) -> 1 | T34: =MIN(IF($B35,T33+IF(ISNUMBER(S34),S34,0),T35/$N33),1) -> 1 | U34: =MIN(IF($B35,U33+IF(ISNUMBER(T34),T34,0),U35/$N33),1) -> 1 | V34: =MIN(IF($B35,V33+IF(ISNUMBER(U34),U34,0),V35/$N33),1) -> 1 | W34: =MIN(IF($B35,W33+IF(ISNUMBER(V34),V34,0),W35/$N33),1) -> 1 | AC34: =MIN(IF($B35,AC33+IF(ISNUMBER(AB34),AB34,0),AC35/$N33),1) -> 0
A35: =OFFSET(A35,-CFF.NumLinha,0)+1 -> 6 | B35: =$C35>=OFFSET($C35,CFF.NumLinha,0) -> TRUE | C35: =INDEX(PO!A$12:A$142,MATCH($A35,PO!$V$12:$V$142,0)) -> 2 | D35: =IF(ISERROR(J35),I35,SMALL(I35:J35,1))-1 -> 2 | E35: =IF($C35=1,OFFSET(E35,-CFF.NumLinha,0)+1,OFFSET(E35,-CFF.NumLinha,0)) -> 1 | F35: =IF($C35=1,0,IF($C35=2,OFFSET(F35,-CFF.NumLinha,0)+1,OFFSET(F35,-CFF.NumLinha,0))) -> 5 | G35: =IF(AND($C35<=2,$C35<>0),0,IF($C35=3,OFFSET(G35,-CFF.NumLinha,0)+1,OFFSET(G35,-CFF.NumLinha,0))) -> 0 | H35: =IF(AND($C35<=3,$C35<>0),0,IF($C35=4,OFFSET(H35,-CFF.NumLinha,0)+1,OFFSET(H35,-CFF.NumLinha,0))) -> 0 | I35: =MATCH(0,OFFSET($D35,1,$C35,ROW($A$51)-ROW($A35)),0) -> 16 | J35: =MATCH(OFFSET($D35,0,$C35)+1,OFFSET($D35,1,$C35,ROW($A$51)-ROW($A35)),0) -> 3 | K35: =ROUND(INDEX(PO!T$12:T$142,MATCH($A35,PO!$V$12:$V$142,0)),2)+10^-12 -> 9537.37 | O35: Acumulado (R$) | P35: =IF($B35,ROUND(P34*$N33,2),ROUND(SUMIF(OFFSET($B35,1,0,$D35),TRUE,OFFSET(P35,1,0,$D35))/SUMIF(OFFSET($B35,1,0,$D35),TRUE,OFFSET($K35,1,0,$D35))*$N33,2)) -> 1907.47 | Q35: 5722.42 | R35: 9537.37 | S35: 9537.37 | T35: 9537.37 | U35: 9537.37 | V35: 9537.37 | W35: 9537.37 | AC35: =IF($B35,ROUND(AC34*$N33,2),ROUND(SUMIF(OFFSET($B35,1,0,$D35),TRUE,OFFSET(AC35,1,0,$D35))/SUMIF(OFFSET($B35,1,0,$D35),TRUE,OFFSET($K35,1,0,$D35))*$N33,2)) -> 0
L36: =INDEX(PO!K$12:K$142,MATCH($A38,PO!$V$12:$V$142,0)) -> 1.6. | M36: =INDEX(PO!N$12:N$142,MATCH($A38,PO!$V$12:$V$142,0)) -> PAVIMENTAÇÃO INTERNA | N36: =IF(ROUND(K38,2)=0,K38,ROUND(K38,2)) -> 6208.84 | O36: Parcela (%) | P36: =IF($B38,0,P37-IF(ISNUMBER(O37),O37,0)) -> 0 | Q36: 0.4 | R36: 0.6 | S36: =IF($B38,0,S37-IF(ISNUMBER(R37),R37,0)) -> 0 | T36: =IF($B38,0,T37-IF(ISNUMBER(S37),S37,0)) -> 0 | U36: =IF($B38,0,U37-IF(ISNUMBER(T37),T37,0)) -> 0 | V36: =IF($B38,0,V37-IF(ISNUMBER(U37),U37,0)) -> 0 | W36: =IF($B38,0,W37-IF(ISNUMBER(V37),V37,0)) -> 0 | AC36: =IF($B38,0,AC37-IF(ISNUMBER(AB37),AB37,0)) -> 0
O37: Acumulado (%) | P37: =MIN(IF($B38,P36+IF(ISNUMBER(O37),O37,0),P38/$N36),1) -> 0 | Q37: =MIN(IF($B38,Q36+IF(ISNUMBER(P37),P37,0),Q38/$N36),1) -> 0.4 | R37: =MIN(IF($B38,R36+IF(ISNUMBER(Q37),Q37,0),R38/$N36),1) -> 1 | S37: =MIN(IF($B38,S36+IF(ISNUMBER(R37),R37,0),S38/$N36),1) -> 1 | T37: =MIN(IF($B38,T36+IF(ISNUMBER(S37),S37,0),T38/$N36),1) -> 1 | U37: =MIN(IF($B38,U36+IF(ISNUMBER(T37),T37,0),U38/$N36),1) -> 1 | V37: =MIN(IF($B38,V36+IF(ISNUMBER(U37),U37,0),V38/$N36),1) -> 1 | W37: =MIN(IF($B38,W36+IF(ISNUMBER(V37),V37,0),W38/$N36),1) -> 1 | AC37: =MIN(IF($B38,AC36+IF(ISNUMBER(AB37),AB37,0),AC38/$N36),1) -> 0
A38: =OFFSET(A38,-CFF.NumLinha,0)+1 -> 7 | B38: =$C38>=OFFSET($C38,CFF.NumLinha,0) -> TRUE | C38: =INDEX(PO!A$12:A$142,MATCH($A38,PO!$V$12:$V$142,0)) -> 2 | D38: =IF(ISERROR(J38),I38,SMALL(I38:J38,1))-1 -> 2 | E38: =IF($C38=1,OFFSET(E38,-CFF.NumLinha,0)+1,OFFSET(E38,-CFF.NumLinha,0)) -> 1 | F38: =IF($C38=1,0,IF($C38=2,OFFSET(F38,-CFF.NumLinha,0)+1,OFFSET(F38,-CFF.NumLinha,0))) -> 6 | G38: =IF(AND($C38<=2,$C38<>0),0,IF($C38=3,OFFSET(G38,-CFF.NumLinha,0)+1,OFFSET(G38,-CFF.NumLinha,0))) -> 0 | H38: =IF(AND($C38<=3,$C38<>0),0,IF($C38=4,OFFSET(H38,-CFF.NumLinha,0)+1,OFFSET(H38,-CFF.NumLinha,0))) -> 0 | I38: =MATCH(0,OFFSET($D38,1,$C38,ROW($A$51)-ROW($A38)),0) -> 13 | J38: =MATCH(OFFSET($D38,0,$C38)+1,OFFSET($D38,1,$C38,ROW($A$51)-ROW($A38)),0) -> 3 | K38: =ROUND(INDEX(PO!T$12:T$142,MATCH($A38,PO!$V$12:$V$142,0)),2)+10^-12 -> 6208.84 | O38: Acumulado (R$) | P38: =IF($B38,ROUND(P37*$N36,2),ROUND(SUMIF(OFFSET($B38,1,0,$D38),TRUE,OFFSET(P38,1,0,$D38))/SUMIF(OFFSET($B38,1,0,$D38),TRUE,OFFSET($K38,1,0,$D38))*$N36,2)) -> 0 | Q38: 2483.54 | R38: 6208.84 | S38: 6208.84 | T38: 6208.84 | U38: 6208.84 | V38: 6208.84 | W38: 6208.84 | AC38: =IF($B38,ROUND(AC37*$N36,2),ROUND(SUMIF(OFFSET($B38,1,0,$D38),TRUE,OFFSET(AC38,1,0,$D38))/SUMIF(OFFSET($B38,1,0,$D38),TRUE,OFFSET($K38,1,0,$D38))*$N36,2)) -> 0
L39: =INDEX(PO!K$12:K$142,MATCH($A41,PO!$V$12:$V$142,0)) -> 1.7. | M39: =INDEX(PO!N$12:N$142,MATCH($A41,PO!$V$12:$V$142,0)) -> FORRO E COBERTURA | N39: =IF(ROUND(K41,2)=0,K41,ROUND(K41,2)) -> 16457.44 | O39: Parcela (%) | P39: =IF($B41,0,P40-IF(ISNUMBER(O40),O40,0)) -> 0 | Q39: =IF($B41,0,Q40-IF(ISNUMBER(P40),P40,0)) -> 0 | R39: 1 | S39: 1 | T39: =IF($B41,0,T40-IF(ISNUMBER(S40),S40,0)) -> 0 | U39: =IF($B41,0,U40-IF(ISNUMBER(T40),T40,0)) -> 0 | V39: =IF($B41,0,V40-IF(ISNUMBER(U40),U40,0)) -> 0 | W39: =IF($B41,0,W40-IF(ISNUMBER(V40),V40,0)) -> 0 | AC39: =IF($B41,0,AC40-IF(ISNUMBER(AB40),AB40,0)) -> 0
O40: Acumulado (%) | P40: =MIN(IF($B41,P39+IF(ISNUMBER(O40),O40,0),P41/$N39),1) -> 0 | Q40: =MIN(IF($B41,Q39+IF(ISNUMBER(P40),P40,0),Q41/$N39),1) -> 0 | R40: =MIN(IF($B41,R39+IF(ISNUMBER(Q40),Q40,0),R41/$N39),1) -> 1 | S40: =MIN(IF($B41,S39+IF(ISNUMBER(R40),R40,0),S41/$N39),1) -> 1 | T40: =MIN(IF($B41,T39+IF(ISNUMBER(S40),S40,0),T41/$N39),1) -> 1 | U40: =MIN(IF($B41,U39+IF(ISNUMBER(T40),T40,0),U41/$N39),1) -> 1 | V40: =MIN(IF($B41,V39+IF(ISNUMBER(U40),U40,0),V41/$N39),1) -> 1 | W40: =MIN(IF($B41,W39+IF(ISNUMBER(V40),V40,0),W41/$N39),1) -> 1 | AC40: =MIN(IF($B41,AC39+IF(ISNUMBER(AB40),AB40,0),AC41/$N39),1) -> 0
A41: =OFFSET(A41,-CFF.NumLinha,0)+1 -> 8 | B41: =$C41>=OFFSET($C41,CFF.NumLinha,0) -> TRUE | C41: =INDEX(PO!A$12:A$142,MATCH($A41,PO!$V$12:$V$142,0)) -> 2 | D41: =IF(ISERROR(J41),I41,SMALL(I41:J41,1))-1 -> 2 | E41: =IF($C41=1,OFFSET(E41,-CFF.NumLinha,0)+1,OFFSET(E41,-CFF.NumLinha,0)) -> 1 | F41: =IF($C41=1,0,IF($C41=2,OFFSET(F41,-CFF.NumLinha,0)+1,OFFSET(F41,-CFF.NumLinha,0))) -> 7 | G41: =IF(AND($C41<=2,$C41<>0),0,IF($C41=3,OFFSET(G41,-CFF.NumLinha,0)+1,OFFSET(G41,-CFF.NumLinha,0))) -> 0 | H41: =IF(AND($C41<=3,$C41<>0),0,IF($C41=4,OFFSET(H41,-CFF.NumLinha,0)+1,OFFSET(H41,-CFF.NumLinha,0))) -> 0 | I41: =MATCH(0,OFFSET($D41,1,$C41,ROW($A$51)-ROW($A41)),0) -> 10 | J41: =MATCH(OFFSET($D41,0,$C41)+1,OFFSET($D41,1,$C41,ROW($A$51)-ROW($A41)),0) -> 3 | K41: =ROUND(INDEX(PO!T$12:T$142,MATCH($A41,PO!$V$12:$V$142,0)),2)+10^-12 -> 16457.44 | O41: Acumulado (R$) | P41: =IF($B41,ROUND(P40*$N39,2),ROUND(SUMIF(OFFSET($B41,1,0,$D41),TRUE,OFFSET(P41,1,0,$D41))/SUMIF(OFFSET($B41,1,0,$D41),TRUE,OFFSET($K41,1,0,$D41))*$N39,2)) -> 0 | Q41: 0 | R41: 16457.44 | S41: 16457.44 | T41: 16457.44 | U41: 16457.44 | V41: 16457.44 | W41: 16457.44 | AC41: =IF($B41,ROUND(AC40*$N39,2),ROUND(SUMIF(OFFSET($B41,1,0,$D41),TRUE,OFFSET(AC41,1,0,$D41))/SUMIF(OFFSET($B41,1,0,$D41),TRUE,OFFSET($K41,1,0,$D41))*$N39,2)) -> 0
L42: =INDEX(PO!K$12:K$142,MATCH($A44,PO!$V$12:$V$142,0)) -> 1.8. | M42: =INDEX(PO!N$12:N$142,MATCH($A44,PO!$V$12:$V$142,0)) -> ISTALAÇÕES ELÉTRICA | N42: =IF(ROUND(K44,2)=0,K44,ROUND(K44,2)) -> 5051.21 | O42: Parcela (%) | P42: =IF($B44,0,P43-IF(ISNUMBER(O43),O43,0)) -> 0 | Q42: 0.4 | R42: 0.6 | S42: 0.6 | T42: =IF($B44,0,T43-IF(ISNUMBER(S43),S43,0)) -> 0 | U42: =IF($B44,0,U43-IF(ISNUMBER(T43),T43,0)) -> 0 | V42: =IF($B44,0,V43-IF(ISNUMBER(U43),U43,0)) -> 0 | W42: =IF($B44,0,W43-IF(ISNUMBER(V43),V43,0)) -> 0 | AC42: =IF($B44,0,AC43-IF(ISNUMBER(AB43),AB43,0)) -> 0
O43: Acumulado (%) | P43: =MIN(IF($B44,P42+IF(ISNUMBER(O43),O43,0),P44/$N42),1) -> 0 | Q43: =MIN(IF($B44,Q42+IF(ISNUMBER(P43),P43,0),Q44/$N42),1) -> 0.4 | R43: =MIN(IF($B44,R42+IF(ISNUMBER(Q43),Q43,0),R44/$N42),1) -> 1 | S43: =MIN(IF($B44,S42+IF(ISNUMBER(R43),R43,0),S44/$N42),1) -> 1 | T43: =MIN(IF($B44,T42+IF(ISNUMBER(S43),S43,0),T44/$N42),1) -> 1 | U43: =MIN(IF($B44,U42+IF(ISNUMBER(T43),T43,0),U44/$N42),1) -> 1 | V43: =MIN(IF($B44,V42+IF(ISNUMBER(U43),U43,0),V44/$N42),1) -> 1 | W43: =MIN(IF($B44,W42+IF(ISNUMBER(V43),V43,0),W44/$N42),1) -> 1 | AC43: =MIN(IF($B44,AC42+IF(ISNUMBER(AB43),AB43,0),AC44/$N42),1) -> 0
A44: =OFFSET(A44,-CFF.NumLinha,0)+1 -> 9 | B44: =$C44>=OFFSET($C44,CFF.NumLinha,0) -> TRUE | C44: =INDEX(PO!A$12:A$142,MATCH($A44,PO!$V$12:$V$142,0)) -> 2 | D44: =IF(ISERROR(J44),I44,SMALL(I44:J44,1))-1 -> 2 | E44: =IF($C44=1,OFFSET(E44,-CFF.NumLinha,0)+1,OFFSET(E44,-CFF.NumLinha,0)) -> 1 | F44: =IF($C44=1,0,IF($C44=2,OFFSET(F44,-CFF.NumLinha,0)+1,OFFSET(F44,-CFF.NumLinha,0))) -> 8 | G44: =IF(AND($C44<=2,$C44<>0),0,IF($C44=3,OFFSET(G44,-CFF.NumLinha,0)+1,OFFSET(G44,-CFF.NumLinha,0))) -> 0 | H44: =IF(AND($C44<=3,$C44<>0),0,IF($C44=4,OFFSET(H44,-CFF.NumLinha,0)+1,OFFSET(H44,-CFF.NumLinha,0))) -> 0 | I44: =MATCH(0,OFFSET($D44,1,$C44,ROW($A$51)-ROW($A44)),0) -> 7 | J44: =MATCH(OFFSET($D44,0,$C44)+1,OFFSET($D44,1,$C44,ROW($A$51)-ROW($A44)),0) -> 3 | K44: =ROUND(INDEX(PO!T$12:T$142,MATCH($A44,PO!$V$12:$V$142,0)),2)+10^-12 -> 5051.21 | O44: Acumulado (R$) | P44: =IF($B44,ROUND(P43*$N42,2),ROUND(SUMIF(OFFSET($B44,1,0,$D44),TRUE,OFFSET(P44,1,0,$D44))/SUMIF(OFFSET($B44,1,0,$D44),TRUE,OFFSET($K44,1,0,$D44))*$N42,2)) -> 0 | Q44: 2020.48 | R44: 5051.21 | S44: 5051.21 | T44: 5051.21 | U44: 5051.21 | V44: 5051.21 | W44: 5051.21 | AC44: =IF($B44,ROUND(AC43*$N42,2),ROUND(SUMIF(OFFSET($B44,1,0,$D44),TRUE,OFFSET(AC44,1,0,$D44))/SUMIF(OFFSET($B44,1,0,$D44),TRUE,OFFSET($K44,1,0,$D44))*$N42,2)) -> 0
L45: =INDEX(PO!K$12:K$142,MATCH($A47,PO!$V$12:$V$142,0)) -> 1.9. | M45: =INDEX(PO!N$12:N$142,MATCH($A47,PO!$V$12:$V$142,0)) -> ISNSTALAÇÕES HIDRÁULICAS | N45: =IF(ROUND(K47,2)=0,K47,ROUND(K47,2)) -> 3132.08 | O45: Parcela (%) | P45: 0.3 | Q45: 0.3 | R45: 0.4 | S45: 0.4 | T45: =IF($B47,0,T46-IF(ISNUMBER(S46),S46,0)) -> 0 | U45: =IF($B47,0,U46-IF(ISNUMBER(T46),T46,0)) -> 0 | V45: =IF($B47,0,V46-IF(ISNUMBER(U46),U46,0)) -> 0 | W45: =IF($B47,0,W46-IF(ISNUMBER(V46),V46,0)) -> 0 | AC45: =IF($B47,0,AC46-IF(ISNUMBER(AB46),AB46,0)) -> 0
O46: Acumulado (%) | P46: =MIN(IF($B47,P45+IF(ISNUMBER(O46),O46,0),P47/$N45),1) -> 0.3 | Q46: =MIN(IF($B47,Q45+IF(ISNUMBER(P46),P46,0),Q47/$N45),1) -> 0.6 | R46: =MIN(IF($B47,R45+IF(ISNUMBER(Q46),Q46,0),R47/$N45),1) -> 1 | S46: =MIN(IF($B47,S45+IF(ISNUMBER(R46),R46,0),S47/$N45),1) -> 1 | T46: =MIN(IF($B47,T45+IF(ISNUMBER(S46),S46,0),T47/$N45),1) -> 1 | U46: =MIN(IF($B47,U45+IF(ISNUMBER(T46),T46,0),U47/$N45),1) -> 1 | V46: =MIN(IF($B47,V45+IF(ISNUMBER(U46),U46,0),V47/$N45),1) -> 1 | W46: =MIN(IF($B47,W45+IF(ISNUMBER(V46),V46,0),W47/$N45),1) -> 1 | AC46: =MIN(IF($B47,AC45+IF(ISNUMBER(AB46),AB46,0),AC47/$N45),1) -> 0
A47: =OFFSET(A47,-CFF.NumLinha,0)+1 -> 10 | B47: =$C47>=OFFSET($C47,CFF.NumLinha,0) -> TRUE | C47: =INDEX(PO!A$12:A$142,MATCH($A47,PO!$V$12:$V$142,0)) -> 2 | D47: =IF(ISERROR(J47),I47,SMALL(I47:J47,1))-1 -> 2 | E47: =IF($C47=1,OFFSET(E47,-CFF.NumLinha,0)+1,OFFSET(E47,-CFF.NumLinha,0)) -> 1 | F47: =IF($C47=1,0,IF($C47=2,OFFSET(F47,-CFF.NumLinha,0)+1,OFFSET(F47,-CFF.NumLinha,0))) -> 9 | G47: =IF(AND($C47<=2,$C47<>0),0,IF($C47=3,OFFSET(G47,-CFF.NumLinha,0)+1,OFFSET(G47,-CFF.NumLinha,0))) -> 0 | H47: =IF(AND($C47<=3,$C47<>0),0,IF($C47=4,OFFSET(H47,-CFF.NumLinha,0)+1,OFFSET(H47,-CFF.NumLinha,0))) -> 0 | I47: =MATCH(0,OFFSET($D47,1,$C47,ROW($A$51)-ROW($A47)),0) -> 4 | J47: =MATCH(OFFSET($D47,0,$C47)+1,OFFSET($D47,1,$C47,ROW($A$51)-ROW($A47)),0) -> 3 | K47: =ROUND(INDEX(PO!T$12:T$142,MATCH($A47,PO!$V$12:$V$142,0)),2)+10^-12 -> 3132.08 | O47: Acumulado (R$) | P47: =IF($B47,ROUND(P46*$N45,2),ROUND(SUMIF(OFFSET($B47,1,0,$D47),TRUE,OFFSET(P47,1,0,$D47))/SUMIF(OFFSET($B47,1,0,$D47),TRUE,OFFSET($K47,1,0,$D47))*$N45,2)) -> 939.62 | Q47: 1879.25 | R47: 3132.08 | S47: 3132.08 | T47: 3132.08 | U47: 3132.08 | V47: 3132.08 | W47: 3132.08 | AC47: =IF($B47,ROUND(AC46*$N45,2),ROUND(SUMIF(OFFSET($B47,1,0,$D47),TRUE,OFFSET(AC47,1,0,$D47))/SUMIF(OFFSET($B47,1,0,$D47),TRUE,OFFSET($K47,1,0,$D47))*$N45,2)) -> 0
L48: =INDEX(PO!K$12:K$142,MATCH($A50,PO!$V$12:$V$142,0)) -> 1.10. | M48: =INDEX(PO!N$12:N$142,MATCH($A50,PO!$V$12:$V$142,0)) -> INSTALAÇÕES SANITÁRIAS | N48: =IF(ROUND(K50,2)=0,K50,ROUND(K50,2)) -> 5534.87 | O48: Parcela (%) | P48: 0.3 | Q48: 0.3 | R48: 0.4 | S48: 0.3 | T48: =IF($B50,0,T49-IF(ISNUMBER(S49),S49,0)) -> 0 | U48: =IF($B50,0,U49-IF(ISNUMBER(T49),T49,0)) -> 0 | V48: =IF($B50,0,V49-IF(ISNUMBER(U49),U49,0)) -> 0 | W48: =IF($B50,0,W49-IF(ISNUMBER(V49),V49,0)) -> 0 | AC48: =IF($B50,0,AC49-IF(ISNUMBER(AB49),AB49,0)) -> 0
O49: Acumulado (%) | P49: =MIN(IF($B50,P48+IF(ISNUMBER(O49),O49,0),P50/$N48),1) -> 0.3 | Q49: =MIN(IF($B50,Q48+IF(ISNUMBER(P49),P49,0),Q50/$N48),1) -> 0.6 | R49: =MIN(IF($B50,R48+IF(ISNUMBER(Q49),Q49,0),R50/$N48),1) -> 1 | S49: =MIN(IF($B50,S48+IF(ISNUMBER(R49),R49,0),S50/$N48),1) -> 1 | T49: =MIN(IF($B50,T48+IF(ISNUMBER(S49),S49,0),T50/$N48),1) -> 1 | U49: =MIN(IF($B50,U48+IF(ISNUMBER(T49),T49,0),U50/$N48),1) -> 1 | V49: =MIN(IF($B50,V48+IF(ISNUMBER(U49),U49,0),V50/$N48),1) -> 1 | W49: =MIN(IF($B50,W48+IF(ISNUMBER(V49),V49,0),W50/$N48),1) -> 1 | AC49: =MIN(IF($B50,AC48+IF(ISNUMBER(AB49),AB49,0),AC50/$N48),1) -> 0
A50: =OFFSET(A50,-CFF.NumLinha,0)+1 -> 11 | B50: =$C50>=OFFSET($C50,CFF.NumLinha,0) -> TRUE | C50: =INDEX(PO!A$12:A$142,MATCH($A50,PO!$V$12:$V$142,0)) -> 2 | D50: =IF(ISERROR(J50),I50,SMALL(I50:J50,1))-1 -> 0 | E50: =IF($C50=1,OFFSET(E50,-CFF.NumLinha,0)+1,OFFSET(E50,-CFF.NumLinha,0)) -> 1 | F50: =IF($C50=1,0,IF($C50=2,OFFSET(F50,-CFF.NumLinha,0)+1,OFFSET(F50,-CFF.NumLinha,0))) -> 10 | G50: =IF(AND($C50<=2,$C50<>0),0,IF($C50=3,OFFSET(G50,-CFF.NumLinha,0)+1,OFFSET(G50,-CFF.NumLinha,0))) -> 0 | H50: =IF(AND($C50<=3,$C50<>0),0,IF($C50=4,OFFSET(H50,-CFF.NumLinha,0)+1,OFFSET(H50,-CFF.NumLinha,0))) -> 0 | I50: =MATCH(0,OFFSET($D50,1,$C50,ROW($A$51)-ROW($A50)),0) -> 1 | J50: =MATCH(OFFSET($D50,0,$C50)+1,OFFSET($D50,1,$C50,ROW($A$51)-ROW($A50)),0) ->  | K50: =ROUND(INDEX(PO!T$12:T$142,MATCH($A50,PO!$V$12:$V$142,0)),2)+10^-12 -> 5534.87 | O50: Acumulado (R$) | P50: =IF($B50,ROUND(P49*$N48,2),ROUND(SUMIF(OFFSET($B50,1,0,$D50),TRUE,OFFSET(P50,1,0,$D50))/SUMIF(OFFSET($B50,1,0,$D50),TRUE,OFFSET($K50,1,0,$D50))*$N48,2)) -> 1660.46 | Q50: 3320.92 | R50: 5534.87 | S50: 5534.87 | T50: 5534.87 | U50: 5534.87 | V50: 5534.87 | W50: 5534.87 | AC50: =IF($B50,ROUND(AC49*$N48,2),ROUND(SUMIF(OFFSET($B50,1,0,$D50),TRUE,OFFSET(AC50,1,0,$D50))/SUMIF(OFFSET($B50,1,0,$D50),TRUE,OFFSET($K50,1,0,$D50))*$N48,2)) -> 0
C51: -1 | E51: 0 | F51: 0 | G51: 0 | H51: 0
L53: =DADOS!I32 -> 0
L54: Local
L56: =PO!K156 -> 2023-06-06
L57: Data
